Workbook

Sheet Cover
A3: Navigator
C5: =Client_Name -> SumProduct Pty Limited
C6: =Model_Name -> SP Point and Figure Chart - Complete.xlsm
C14: Primary Developer: Sam Ngo
C16: General Cover Notes:
C17: Point and Figure Charts CSE array (CSE), Dynamic array (DA)
C18: and Dynamic Array with Bollinger Bands (BB) version.
C21: Any queries, please e-mail: | G21: sam.ngo@sumproduct.com
C22: Website: | G22: www.sumproduct.com

Sheet Navigator
A1: Navigator
A2: =Model_Name -> SP Point and Figure Chart - Complete.xlsm
A3: Navigator
E4: Error Checks: | G4: =Overall_Error_Check -> 0
B7: 1 | C7: Table of Contents
F9: Cover
F10: Style Guide
F11: Model Parameters
F12: Data
F13: PnF-CSE
F14: PnF-DA
F15: Data_BB
F16: PnF_BB
F17: Error Checks

Sheet Style Guide
A1: =IF(ISERROR(RIGHT(CELL("filename",A1),LEN(CELL("filename",A1))-FIND("]",CELL("filename",A1)))), "", RIGHT(CELL("filename",A1),LEN(CELL("filename",A1))-FIND("]",CELL("filename",A1)))) -> Style Guide
A2: =Model_Name -> SP Point and Figure Chart - Complete.xlsm
A3: Navigator
E4: Error Checks: | I4: =Overall_Error_Check -> 0
B6: =MAX($B$5:$B5)+1 -> 1 | C6: Formatting of Headers / Dividers
C8: Description | I8: Display | K8: Style Name
C10: Sheet Title | I10: =C10 -> Sheet Title | K10: Sheet Title
C11: Model Name | I11: =C11 -> Model Name | K11: Model Name
C13: Header 1 | I13: =C13 -> Header 1 | K13: Header 1
C14: Header 2 | I14: =C14 -> Header 2 | K14: Header 2
C15: Header 3 | I15: =C15 -> Header 3 | K15: Header 3
C16: Header 4 | I16: =C16 -> Header 4 | K16: Header 4
C18: Notes | I18: =C18 -> Notes | K18: Notes
C20: Table Heading | I20: =C20 -> Table Heading | K20: Table Heading
B23: =MAX($B$5:$B22)+1 -> 2 | C23: Individual Cell Styles
C25: Description | I25: Display | K25: Style Name
C27: Assumption | I27: Assumption | K27: =C27 -> Assumption
C29: Constraint | I29: =C29 -> Constraint | K29: =C29 -> Constraint
C31: Empty | K31: =C31 -> Empty
C33: Error Check | I33: 0 | K33: =C33 -> Error Check
C35: Hyperlink | I35: Hyperlink | K35: =C35 -> Hyperlink
C37: Internal Reference | I37: ='Error Checks'!E12 -> Example | K37: =C37 -> Internal Reference
C39: Line Calculation | I39: 77 | K39: Line Calc
C41: Line Total | I41: =I39 -> 77 | K41: =C41 -> Line Total
C43: Parameter | I43: 365 | K43: =C43 -> Parameter
C45: Range Name Description | I45: Not_Named | K45: =C45 -> Range Name Description
C47: Row Reference | I47: =ROW(C47) -> 47 | K47: Row Ref
C49: Row Summary | I49: =I41 -> 77 | K49: =C49 -> Row Summary
C51: Units | I51: A$ | K51: =C51 -> Units
C53: WIP | K53: =C53 -> WIP
B56: =MAX($B$5:$B55)+1 -> 3 | C56: Numerical Styles
C58: Description | I58: Display | K58: Style Name
C60: Comma | I60: 123456.789 | K60: =C60 -> Comma
C62: Comma [0] | I62: -123456.789 | K62: Comma [0]
C64: Currency | I64: 123456.789 | K64: Currency
C66: Currency [0] | I66: 123456.789 | K66: Currency [0]
C68: Date | I68: =TODAY() -> 2023-07-13 | K68: =C68 -> Date
C70: Date Heading | I70: =TODAY() -> 2023-07-13 | K70: =C70 -> Date Heading
C72: Numbers 0 | I72: -123456.789 | K72: =C72 -> Numbers 0
C74: Percent | I74: 0.5 | K74: =C74 -> Percent

Sheet Model Parameters
A1: =IF(ISERROR(RIGHT(CELL("filename",A1),LEN(CELL("filename",A1))-FIND("]",CELL("filename",A1)))), "", RIGHT(CELL("filename",A1),LEN(CELL("filename",A1))-FIND("]",CELL("filename",A1)))) -> Model Parameters
A2: =Model_Name -> SP Point and Figure Chart - Complete.xlsm
A3: Navigator
E4: Error Checks: | I4: =Overall_Error_Check -> 0
B6: =MAX($B$5:$B5)+1 -> 1 | C6: General
C8: Key Inputs
E10: General
E11: Model Name | G11: =IF(ISERROR(OR(FIND("[",CELL("filename",A1)),FIND("]",CELL("filename",A1)))),"",MID(CELL("filename",A1),FIND("[",CELL("filename",A1))+1,FIND("]",CELL("filename",A1))-FIND("[",CELL("filename",A1))-1)) -> SP Point and Figure Chart - Complete.xlsm
E12: Client Name | G12: SumProduct Pty Limited
B15: =MAX($B$5:$B14)+1 -> 2 | C15: General Range Names
C17: Technical Assumptions
E19: Days in Year | G19: 365
E20: Months in Month | G20: 1
E21: Months in Quarter | G21: 3
E22: Months in Half Yr | G22: 6
E23: Months in Year | G23: 12
E24: Quarters in Year | G24: 4
E26: Rounding Accuracy | G26: 5
E28: Very Large Number | G28: 1e+99
E29: Very Small Number | G29: 1e-08
E31: Thousand | G31: 1000

Sheet Data
A1: =IF(ISERROR(RIGHT(CELL("filename",A1),LEN(CELL("filename",A1))-FIND("]",CELL("filename",A1)))), "", RIGHT(CELL("filename",A1),LEN(CELL("filename",A1))-FIND("]",CELL("filename",A1)))) -> Data
A2: =Model_Name -> SP Point and Figure Chart - Complete.xlsm
A3: Navigator
B4: Error Checks: | F4: =Overall_Error_Check -> 0
B6: =MAX($B$5:$B5)+1 -> 1 | C6: =A1 -> Data
C8: Summary Data
D10: Min | E10: =MIN(Data[Adj Close]) -> 213.647903
D11: Max | E11: =MAX(Data[Adj Close]) -> 331
D12: Range | E12: =Max-Min -> 117.352097
D14: Bin Width | E14: 30
D15: Width | E15: =Range/Number_of_Bins -> 3.911736567
D17: Up Symbol | E17: X
D18: Down Symbol | E18: O
D19: Starting Symbol | E19: =IF(F26<>"",Up_Symbol,Down_Symbol) -> O
C22: Data Table | K22: Transform Data
D24: The Ajusted Close Price is took from MSFT stock on Yahoo Finance
D25: Date | E25: Adj Close | F25: Up | G25: Switch Location | H25: Index | I25: Lag Index | L25: Unique Index | M25: Date | N25: Max | O25: Min
D26: 2022-01-03 | E26: 331 | F26: =IF(Data[[#This Row],[Adj Close]]<E27,TRUE,"") ->  | G26: =IF(F25=Data[[#This Row],[Up]],0,1) -> 1 | H26: =SUM($G$26:G26) -> 1 | I26: =N(H25) -> 0 | L26: =N(L25)+1 -> 1 | M26: =INDEX(Data[Date],MATCH(Transform_Data[[#This Row],[Unique Index]],Data[Index],0)) -> 2022-01-03 | N26: =MAX( IF(Transform_Data[[#This Row],[Unique Index]]=Data[Index],Data[Adj Close]), IF(Transform_Data[[#This Row],[Unique Index]]=Data[Lag Index],Data[Adj Close])) -> 331 | O26: =MIN(IF(Transform_Data[[#This Row],[Unique Index]]=Data[Index],Data[Adj Close]), IF(Transform_Data[[#This Row],[Unique Index]]=Data[Lag Index],Data[Adj Close])) -> 310.966217
D27: 2022-01-04 | E27: 325.95575 | F27: =IF(Data[[#This Row],[Adj Close]]<E28,TRUE,"") ->  | G27: =IF(F26=Data[[#This Row],[Up]],0,1) -> 0 | H27: =SUM($G$26:G27) -> 1 | I27: =N(H26) -> 1 | L27: 2 | M27: =INDEX(Data[Date],MATCH(Transform_Data[[#This Row],[Unique Index]],Data[Index],0)) -> 2022-01-06 | N27: =MAX( IF(Transform_Data[[#This Row],[Unique Index]]=Data[Index],Data[Adj Close]), IF(Transform_Data[[#This Row],[Unique Index]]=Data[Lag Index],Data[Adj Close])) -> 315.31543 | O27: =MIN(IF(Transform_Data[[#This Row],[Unique Index]]=Data[Index],Data[Adj Close]), IF(Transform_Data[[#This Row],[Unique Index]]=Data[Lag Index],Data[Adj Close])) -> 310.966217
D28: 2022-01-05 | E28: 313.442993 | F28: =IF(Data[[#This Row],[Adj Close]]<E29,TRUE,"") ->  | G28: =IF(F27=Data[[#This Row],[Up]],0,1) -> 0 | H28: =SUM($G$26:G28) -> 1 | I28: 1 | L28: 3 | M28: =INDEX(Data[Date],MATCH(Transform_Data[[#This Row],[Unique Index]],Data[Index],0)) -> 2022-01-12 | N28: =MAX( IF(Transform_Data[[#This Row],[Unique Index]]=Data[Index],Data[Adj Close]), IF(Transform_Data[[#This Row],[Unique Index]]=Data[Lag Index],Data[Adj Close])) -> 315.31543 | O28: =MIN(IF(Transform_Data[[#This Row],[Unique Index]]=Data[Index],Data[Adj Close]), IF(Transform_Data[[#This Row],[Unique Index]]=Data[Lag Index],Data[Adj Close])) -> 301.97049
D29: 2022-01-06 | E29: 310.966217 | F29: =IF(Data[[#This Row],[Adj Close]]<E30,TRUE,"") -> TRUE | G29: =IF(F28=Data[[#This Row],[Up]],0,1) -> 1 | H29: =SUM($G$26:G29) -> 2 | I29: 1 | L29: 4 | M29: =INDEX(Data[Date],MATCH(Transform_Data[[#This Row],[Unique Index]],Data[Index],0)) -> 2022-01-13 | N29: =MAX( IF(Transform_Data[[#This Row],[Unique Index]]=Data[Index],Data[Adj Close]), IF(Transform_Data[[#This Row],[Unique Index]]=Data[Lag Index],Data[Adj Close])) -> 307.320404 | O29: =MIN(IF(Transform_Data[[#This Row],[Unique Index]]=Data[Index],Data[Adj Close]), IF(Transform_Data[[#This Row],[Unique Index]]=Data[Lag Index],Data[Adj Close])) -> 301.97049
D30: 2022-01-07 | E30: 311.124725 | F30: =IF(Data[[#This Row],[Adj Close]]<E31,TRUE,"") -> TRUE | G30: =IF(F29=Data[[#This Row],[Up]],0,1) -> 0 | H30: =SUM($G$26:G30) -> 2 | I30: 2 | L30: 5 | M30: =INDEX(Data[Date],MATCH(Transform_Data[[#This Row],[Unique Index]],Data[Index],0)) -> 2022-01-14 | N30: =MAX( IF(Transform_Data[[#This Row],[Unique Index]]=Data[Index],Data[Adj Close]), IF(Transform_Data[[#This Row],[Unique Index]]=Data[Lag Index],Data[Adj Close])) -> 307.320404 | O30: =MIN(IF(Transform_Data[[#This Row],[Unique Index]]=Data[Index],Data[Adj Close]), IF(Transform_Data[[#This Row],[Unique Index]]=Data[Lag Index],Data[Adj Close])) -> 299.840454
D31: 2022-01-10 | E31: 311.35257 | F31: =IF(Data[[#This Row],[Adj Close]]<E32,TRUE,"") -> TRUE | G31: =IF(F30=Data[[#This Row],[Up]],0,1) -> 0 | H31: =SUM($G$26:G31) -> 2 | I31: 2 | L31: 6 | M31: =INDEX(Data[Date],MATCH(Transform_Data[[#This Row],[Unique Index]],Data[Index],0)) -> 2022-01-18 | N31: =MAX( IF(Transform_Data[[#This Row],[Unique Index]]=Data[Index],Data[Adj Close]), IF(Transform_Data[[#This Row],[Unique Index]]=Data[Lag Index],Data[Adj Close])) -> 300.514099 | O31: =MIN(IF(Transform_Data[[#This Row],[Unique Index]]=Data[Index],Data[Adj Close]), IF(Transform_Data[[#This Row],[Unique Index]]=Data[Lag Index],Data[Adj Close])) -> 299.840454
D32: 2022-01-11 | E32: 312.056 | F32: =IF(Data[[#This Row],[Adj Close]]<E33,TRUE,"") -> TRUE | G32: =IF(F31=Data[[#This Row],[Up]],0,1) -> 0 | H32: =SUM($G$26:G32) -> 2 | I32: 2 | L32: 7 | M32: =INDEX(Data[Date],MATCH(Transform_Data[[#This Row],[Unique Index]],Data[Index],0)) -> 2022-01-19 | N32: =MAX( IF(Transform_Data[[#This Row],[Unique Index]]=Data[Index],Data[Adj Close]), IF(Transform_Data[[#This Row],[Unique Index]]=Data[Lag Index],Data[Adj Close])) -> 300.514099 | O32: =MIN(IF(Transform_Data[[#This Row],[Unique Index]]=Data[Index],Data[Adj Close]), IF(Transform_Data[[#This Row],[Unique Index]]=Data[Lag Index],Data[Adj Close])) -> 293.281891
D33: 2022-01-12 | E33: 315.31543 | F33: =IF(Data[[#This Row],[Adj Close]]<E34,TRUE,"") ->  | G33: =IF(F32=Data[[#This Row],[Up]],0,1) -> 1 | H33: =SUM($G$26:G33) -> 3 | I33: 2 | L33: 8 | M33: =INDEX(Data[Date],MATCH(Transform_Data[[#This Row],[Unique Index]],Data[Index],0)) -> 2022-01-21 | N33: =MAX( IF(Transform_Data[[#This Row],[Unique Index]]=Data[Index],Data[Adj Close]), IF(Transform_Data[[#This Row],[Unique Index]]=Data[Lag Index],Data[Adj Close])) -> 293.618744 | O33: =MIN(IF(Transform_Data[[#This Row],[Unique Index]]=Data[Index],Data[Adj Close]), IF(Transform_Data[[#This Row],[Unique Index]]=Data[Lag Index],Data[Adj Close])) -> 293.281891
D34: 2022-01-13 | E34: 301.97049 | F34: =IF(Data[[#This Row],[Adj Close]]<E35,TRUE,"") -> TRUE | G34: =IF(F33=Data[[#This Row],[Up]],0,1) -> 1 | H34: =SUM($G$26:G34) -> 4 | I34: 3 | L34: 9 | M34: =INDEX(Data[Date],MATCH(Transform_Data[[#This Row],[Unique Index]],Data[Index],0)) -> 2022-01-24 | N34: =MAX( IF(Transform_Data[[#This Row],[Unique Index]]=Data[Index],Data[Adj Close]), IF(Transform_Data[[#This Row],[Unique Index]]=Data[Lag Index],Data[Adj Close])) -> 293.618744 | O34: =MIN(IF(Transform_Data[[#This Row],[Unique Index]]=Data[Index],Data[Adj Close]), IF(Transform_Data[[#This Row],[Unique Index]]=Data[Lag Index],Data[Adj Close])) -> 285.81192
D35: 2022-01-14 | E35: 307.320404 | F35: =IF(Data[[#This Row],[Adj Close]]<E36,TRUE,"") ->  | G35: =IF(F34=Data[[#This Row],[Up]],0,1) -> 1 | H35: =SUM($G$26:G35) -> 5 | I35: 4 | L35: 10 | M35: =INDEX(Data[Date],MATCH(Transform_Data[[#This Row],[Unique Index]],Data[Index],0)) -> 2022-01-25 | N35: =MAX( IF(Transform_Data[[#This Row],[Unique Index]]=Data[Index],Data[Adj Close]), IF(Transform_Data[[#This Row],[Unique Index]]=Data[Lag Index],Data[Adj Close])) -> 308.093109 | O35: =MIN(IF(Transform_Data[[#This Row],[Unique Index]]=Data[Index],Data[Adj Close]), IF(Transform_Data[[#This Row],[Unique Index]]=Data[Lag Index],Data[Adj Close])) -> 285.81192
D36: 2022-01-18 | E36: 299.840454 | F36: =IF(Data[[#This Row],[Adj Close]]<E37,TRUE,"") -> TRUE | G36: =IF(F35=Data[[#This Row],[Up]],0,1) -> 1 | H36: =SUM($G$26:G36) -> 6 | I36: 5 | L36: 11 | M36: =INDEX(Data[Date],MATCH(Transform_Data[[#This Row],[Unique Index]],Data[Index],0)) -> 2022-01-31 | N36: =MAX( IF(Transform_Data[[#This Row],[Unique Index]]=Data[Index],Data[Adj Close]), IF(Transform_Data[[#This Row],[Unique Index]]=Data[Lag Index],Data[Adj Close])) -> 308.093109 | O36: =MIN(IF(Transform_Data[[#This Row],[Unique Index]]=Data[Index],Data[Adj Close]), IF(Transform_Data[[#This Row],[Unique Index]]=Data[Lag Index],Data[Adj Close])) -> 305.893738
D37: 2022-01-19 | E37: 300.514099 | F37: =IF(Data[[#This Row],[Adj Close]]<E38,TRUE,"") ->  | G37: =IF(F36=Data[[#This Row],[Up]],0,1) -> 1 | H37: =SUM($G$26:G37) -> 7 | I37: 6 | L37: 12 | M37: =INDEX(Data[Date],MATCH(Transform_Data[[#This Row],[Unique Index]],Data[Index],0)) -> 2022-02-01 | N37: =MAX( IF(Transform_Data[[#This Row],[Unique Index]]=Data[Index],Data[Adj Close]), IF(Transform_Data[[#This Row],[Unique Index]]=Data[Lag Index],Data[Adj Close])) -> 310.550079 | O37: =MIN(IF(Transform_Data[[#This Row],[Unique Index]]=Data[Index],Data[Adj Close]), IF(Transform_Data[[#This Row],[Unique Index]]=Data[Lag Index],Data[Adj Close])) -> 305.893738
D38: 2022-01-20 | E38: 298.800171 | F38: =IF(Data[[#This Row],[Adj Close]]<E39,TRUE,"") ->  | G38: =IF(F37=Data[[#This Row],[Up]],0,1) -> 0 | H38: =SUM($G$26:G38) -> 7 | I38: 7 | L38: 13 | M38: =INDEX(Data[Date],MATCH(Transform_Data[[#This Row],[Unique Index]],Data[Index],0)) -> 2022-02-02 | N38: =MAX( IF(Transform_Data[[#This Row],[Unique Index]]=Data[Index],Data[Adj Close]), IF(Transform_Data[[#This Row],[Unique Index]]=Data[Lag Index],Data[Adj Close])) -> 310.550079 | O38: =MIN(IF(Transform_Data[[#This Row],[Unique Index]]=Data[Index],Data[Adj Close]), IF(Transform_Data[[#This Row],[Unique Index]]=Data[Lag Index],Data[Adj Close])) -> 298.45343
D39: 2022-01-21 | E39: 293.281891 | F39: =IF(Data[[#This Row],[Adj Close]]<E40,TRUE,"") -> TRUE | G39: =IF(F38=Data[[#This Row],[Up]],0,1) -> 1 | H39: =SUM($G$26:G39) -> 8 | I39: 7 | L39: 14 | M39: =INDEX(Data[Date],MATCH(Transform_Data[[#This Row],[Unique Index]],Data[Index],0)) -> 2022-02-03 | N39: =MAX( IF(Transform_Data[[#This Row],[Unique Index]]=Data[Index],Data[Adj Close]), IF(Transform_Data[[#This Row],[Unique Index]]=Data[Lag Index],Data[Adj Close])) -> 303.099884 | O39: =MIN(IF(Transform_Data[[#This Row],[Unique Index]]=Data[Index],Data[Adj Close]), IF(Transform_Data[[#This Row],[Unique Index]]=Data[Lag Index],Data[Adj Close])) -> 298.45343
D40: 2022-01-24 | E40: 293.618744 | F40: =IF(Data[[#This Row],[Adj Close]]<E41,TRUE,"") ->  | G40: =IF(F39=Data[[#This Row],[Up]],0,1) -> 1 | H40: =SUM($G$26:G40) -> 9 | I40: 8 | L40: 15 | M40: =INDEX(Data[Date],MATCH(Transform_Data[[#This Row],[Unique Index]],Data[Index],0)) -> 2022-02-04 | N40: =MAX( IF(Transform_Data[[#This Row],[Unique Index]]=Data[Index],Data[Adj Close]), IF(Transform_Data[[#This Row],[Unique Index]]=Data[Lag Index],Data[Adj Close])) -> 303.099884 | O40: =MIN(IF(Transform_Data[[#This Row],[Unique Index]]=Data[Index],Data[Adj Close]), IF(Transform_Data[[#This Row],[Unique Index]]=Data[Lag Index],Data[Adj Close])) -> 298.156219
D41: 2022-01-25 | E41: 285.81192 | F41: =IF(Data[[#This Row],[Adj Close]]<E42,TRUE,"") -> TRUE | G41: =IF(F40=Data[[#This Row],[Up]],0,1) -> 1 | H41: =SUM($G$26:G41) -> 10 | I41: 9 | L41: 16 | M41: =INDEX(Data[Date],MATCH(Transform_Data[[#This Row],[Unique Index]],Data[Index],0)) -> 2022-02-07 | N41: =MAX( IF(Transform_Data[[#This Row],[Unique Index]]=Data[Index],Data[Adj Close]), IF(Transform_Data[[#This Row],[Unique Index]]=Data[Lag Index],Data[Adj Close])) -> 308.320953 | O41: =MIN(IF(Transform_Data[[#This Row],[Unique Index]]=Data[Index],Data[Adj Close]), IF(Transform_Data[[#This Row],[Unique Index]]=Data[Lag Index],Data[Adj Close])) -> 298.156219
D42: 2022-01-26 | E42: 293.955597 | F42: =IF(Data[[#This Row],[Adj Close]]<E43,TRUE,"") -> TRUE | G42: =IF(F41=Data[[#This Row],[Up]],0,1) -> 0 | H42: =SUM($G$26:G42) -> 10 | I42: 10 | L42: 17 | M42: =INDEX(Data[Date],MATCH(Transform_Data[[#This Row],[Unique Index]],Data[Index],0)) -> 2022-02-09 | N42: =MAX( IF(Transform_Data[[#This Row],[Unique Index]]=Data[Index],Data[Adj Close]), IF(Transform_Data[[#This Row],[Unique Index]]=Data[Lag Index],Data[Adj Close])) -> 308.320953 | O42: =MIN(IF(Transform_Data[[#This Row],[Unique Index]]=Data[Index],Data[Adj Close]), IF(Transform_Data[[#This Row],[Unique Index]]=Data[Lag Index],Data[Adj Close])) -> 292.261475
D43: 2022-01-27 | E43: 297.056549 | F43: =IF(Data[[#This Row],[Adj Close]]<E44,TRUE,"") -> TRUE | G43: =IF(F42=Data[[#This Row],[Up]],0,1) -> 0 | H43: =SUM($G$26:G43) -> 10 | I43: 10 | L43: 18 | M43: =INDEX(Data[Date],MATCH(Transform_Data[[#This Row],[Unique Index]],Data[Index],0)) -> 2022-02-14 | N43: =MAX( IF(Transform_Data[[#This Row],[Unique Index]]=Data[Index],Data[Adj Close]), IF(Transform_Data[[#This Row],[Unique Index]]=Data[Lag Index],Data[Adj Close])) -> 297.680695 | O43: =MIN(IF(Transform_Data[[#This Row],[Unique Index]]=Data[Index],Data[Adj Close]), IF(Transform_Data[[#This Row],[Unique Index]]=Data[Lag Index],Data[Adj Close])) -> 292.261475
D44: 2022-01-28 | E44: 305.398376 | F44: =IF(Data[[#This Row],[Adj Close]]<E45,TRUE,"") -> TRUE | G44: =IF(F43=Data[[#This Row],[Up]],0,1) -> 0 | H44: =SUM($G$26:G44) -> 10 | I44: 10 | L44: 19 | M44: =INDEX(Data[Date],MATCH(Transform_Data[[#This Row],[Unique Index]],Data[Index],0)) -> 2022-02-15 | N44: =MAX( IF(Transform_Data[[#This Row],[Unique Index]]=Data[Index],Data[Adj Close]), IF(Transform_Data[[#This Row],[Unique Index]]=Data[Lag Index],Data[Adj Close])) -> 297.680695 | O44: =MIN(IF(Transform_Data[[#This Row],[Unique Index]]=Data[Index],Data[Adj Close]), IF(Transform_Data[[#This Row],[Unique Index]]=Data[Lag Index],Data[Adj Close])) -> 278.24231
D45: 2022-01-31 | E45: 308.093109 | F45: =IF(Data[[#This Row],[Adj Close]]<E46,TRUE,"") ->  | G45: =IF(F44=Data[[#This Row],[Up]],0,1) -> 1 | H45: =SUM($G$26:G45) -> 11 | I45: 10 | L45: 20 | M45: =INDEX(Data[Date],MATCH(Transform_Data[[#This Row],[Unique Index]],Data[Index],0)) -> 2022-02-23 | N45: =MAX( IF(Transform_Data[[#This Row],[Unique Index]]=Data[Index],Data[Adj Close]), IF(Transform_Data[[#This Row],[Unique Index]]=Data[Lag Index],Data[Adj Close])) -> 296.628357 | O45: =MIN(IF(Transform_Data[[#This Row],[Unique Index]]=Data[Index],Data[Adj Close]), IF(Transform_Data[[#This Row],[Unique Index]]=Data[Lag Index],Data[Adj Close])) -> 278.24231
D46: 2022-02-01 | E46: 305.893738 | F46: =IF(Data[[#This Row],[Adj Close]]<E47,TRUE,"") -> TRUE | G46: =IF(F45=Data[[#This Row],[Up]],0,1) -> 1 | H46: =SUM($G$26:G46) -> 12 | I46: 11 | L46: 21 | M46: =INDEX(Data[Date],MATCH(Transform_Data[[#This Row],[Unique Index]],Data[Index],0)) -> 2022-02-28 | N46: =MAX( IF(Transform_Data[[#This Row],[Unique Index]]=Data[Index],Data[Adj Close]), IF(Transform_Data[[#This Row],[Unique Index]]=Data[Lag Index],Data[Adj Close])) -> 296.628357 | O46: =MIN(IF(Transform_Data[[#This Row],[Unique Index]]=Data[Index],Data[Adj Close]), IF(Transform_Data[[#This Row],[Unique Index]]=Data[Lag Index],Data[Adj Close])) -> 292.816162
D47: 2022-02-02 | E47: 310.550079 | F47: =IF(Data[[#This Row],[Adj Close]]<E48,TRUE,"") ->  | G47: =IF(F46=Data[[#This Row],[Up]],0,1) -> 1 | H47: =SUM($G$26:G47) -> 13 | I47: 12 | L47: 22 | M47: =INDEX(Data[Date],MATCH(Transform_Data[[#This Row],[Unique Index]],Data[Index],0)) -> 2022-03-01 | N47: =MAX( IF(Transform_Data[[#This Row],[Unique Index]]=Data[Index],Data[Adj Close]), IF(Transform_Data[[#This Row],[Unique Index]]=Data[Lag Index],Data[Adj Close])) -> 298.01825 | O47: =MIN(IF(Transform_Data[[#This Row],[Unique Index]]=Data[Index],Data[Adj Close]), IF(Transform_Data[[#This Row],[Unique Index]]=Data[Lag Index],Data[Adj Close])) -> 292.816162
D48: 2022-02-03 | E48: 298.45343 | F48: =IF(Data[[#This Row],[Adj Close]]<E49,TRUE,"") -> TRUE | G48: =IF(F47=Data[[#This Row],[Up]],0,1) -> 1 | H48: =SUM($G$26:G48) -> 14 | I48: 13 | L48: 23 | M48: =INDEX(Data[Date],MATCH(Transform_Data[[#This Row],[Unique Index]],Data[Index],0)) -> 2022-03-02 | N48: =MAX( IF(Transform_Data[[#This Row],[Unique Index]]=Data[Index],Data[Adj Close]), IF(Transform_Data[[#This Row],[Unique Index]]=Data[Lag Index],Data[Adj Close])) -> 298.01825 | O48: =MIN(IF(Transform_Data[[#This Row],[Unique Index]]=Data[Index],Data[Adj Close]), IF(Transform_Data[[#This Row],[Unique Index]]=Data[Lag Index],Data[Adj Close])) -> 273.854309
D49: 2022-02-04 | E49: 303.099884 | F49: =IF(Data[[#This Row],[Adj Close]]<E50,TRUE,"") ->  | G49: =IF(F48=Data[[#This Row],[Up]],0,1) -> 1 | H49: =SUM($G$26:G49) -> 15 | I49: 14 | L49: 24 | M49: =INDEX(Data[Date],MATCH(Transform_Data[[#This Row],[Unique Index]],Data[Index],0)) -> 2022-03-08 | N49: =MAX( IF(Transform_Data[[#This Row],[Unique Index]]=Data[Index],Data[Adj Close]), IF(Transform_Data[[#This Row],[Unique Index]]=Data[Lag Index],Data[Adj Close])) -> 286.412811 | O49: =MIN(IF(Transform_Data[[#This Row],[Unique Index]]=Data[Index],Data[Adj Close]), IF(Transform_Data[[#This Row],[Unique Index]]=Data[Lag Index],Data[Adj Close])) -> 273.854309
D50: 2022-02-07 | E50: 298.156219 | F50: =IF(Data[[#This Row],[Adj Close]]<E51,TRUE,"") -> TRUE | G50: =IF(F49=Data[[#This Row],[Up]],0,1) -> 1 | H50: =SUM($G$26:G50) -> 16 | I50: 15 | L50: 25 | M50: =INDEX(Data[Date],MATCH(Transform_Data[[#This Row],[Unique Index]],Data[Index],0)) -> 2022-03-09 | N50: =MAX( IF(Transform_Data[[#This Row],[Unique Index]]=Data[Index],Data[Adj Close]), IF(Transform_Data[[#This Row],[Unique Index]]=Data[Lag Index],Data[Adj Close])) -> 286.412811 | O50: =MIN(IF(Transform_Data[[#This Row],[Unique Index]]=Data[Index],Data[Adj Close]), IF(Transform_Data[[#This Row],[Unique Index]]=Data[Lag Index],Data[Adj Close])) -> 274.440063
D51: 2022-02-08 | E51: 301.732697 | F51: =IF(Data[[#This Row],[Adj Close]]<E52,TRUE,"") -> TRUE | G51: =IF(F50=Data[[#This Row],[Up]],0,1) -> 0 | H51: =SUM($G$26:G51) -> 16 | I51: 16 | L51: 26 | M51: =INDEX(Data[Date],MATCH(Transform_Data[[#This Row],[Unique Index]],Data[Index],0)) -> 2022-03-14 | N51: =MAX( IF(Transform_Data[[#This Row],[Unique Index]]=Data[Index],Data[Adj Close]), IF(Transform_Data[[#This Row],[Unique Index]]=Data[Lag Index],Data[Adj Close])) -> 298.2565 | O51: =MIN(IF(Transform_Data[[#This Row],[Unique Index]]=Data[Index],Data[Adj Close]), IF(Transform_Data[[#This Row],[Unique Index]]=Data[Lag Index],Data[Adj Close])) -> 274.440063
D52: 2022-02-09 | E52: 308.320953 | F52: =IF(Data[[#This Row],[Adj Close]]<E53,TRUE,"") ->  | G52: =IF(F51=Data[[#This Row],[Up]],0,1) -> 1 | H52: =SUM($G$26:G52) -> 17 | I52: 16 | L52: 27 | M52: =INDEX(Data[Date],MATCH(Transform_Data[[#This Row],[Unique Index]],Data[Index],0)) -> 2022-03-18 | N52: =MAX( IF(Transform_Data[[#This Row],[Unique Index]]=Data[Index],Data[Adj Close]), IF(Transform_Data[[#This Row],[Unique Index]]=Data[Lag Index],Data[Adj Close])) -> 298.2565 | O52: =MIN(IF(Transform_Data[[#This Row],[Unique Index]]=Data[Index],Data[Adj Close]), IF(Transform_Data[[#This Row],[Unique Index]]=Data[Lag Index],Data[Adj Close])) -> 296.995697
D53: 2022-02-10 | E53: 299.572998 | F53: =IF(Data[[#This Row],[Adj Close]]<E54,TRUE,"") ->  | G53: =IF(F52=Data[[#This Row],[Up]],0,1) -> 0 | H53: =SUM($G$26:G53) -> 17 | I53: 17 | L53: 28 | M53: =INDEX(Data[Date],MATCH(Transform_Data[[#This Row],[Unique Index]],Data[Index],0)) -> 2022-03-21 | N53: =MAX( IF(Transform_Data[[#This Row],[Unique Index]]=Data[Index],Data[Adj Close]), IF(Transform_Data[[#This Row],[Unique Index]]=Data[Lag Index],Data[Adj Close])) -> 301.860229 | O53: =MIN(IF(Transform_Data[[#This Row],[Unique Index]]=Data[Index],Data[Adj Close]), IF(Transform_Data[[#This Row],[Unique Index]]=Data[Lag Index],Data[Adj Close])) -> 296.995697
D54: 2022-02-11 | E54: 292.301086 | F54: =IF(Data[[#This Row],[Adj Close]]<E55,TRUE,"") ->  | G54: =IF(F53=Data[[#This Row],[Up]],0,1) -> 0 | H54: =SUM($G$26:G54) -> 17 | I54: 17 | L54: 29 | M54: =INDEX(Data[Date],MATCH(Transform_Data[[#This Row],[Unique Index]],Data[Index],0)) -> 2022-03-22 | N54: =MAX( IF(Transform_Data[[#This Row],[Unique Index]]=Data[Index],Data[Adj Close]), IF(Transform_Data[[#This Row],[Unique Index]]=Data[Lag Index],Data[Adj Close])) -> 301.860229 | O54: =MIN(IF(Transform_Data[[#This Row],[Unique Index]]=Data[Index],Data[Adj Close]), IF(Transform_Data[[#This Row],[Unique Index]]=Data[Lag Index],Data[Adj Close])) -> 297.323273
D55: 2022-02-14 | E55: 292.261475 | F55: =IF(Data[[#This Row],[Adj Close]]<E56,TRUE,"") -> TRUE | G55: =IF(F54=Data[[#This Row],[Up]],0,1) -> 1 | H55: =SUM($G$26:G55) -> 18 | I55: 17 | L55: 30 | M55: =INDEX(Data[Date],MATCH(Transform_Data[[#This Row],[Unique Index]],Data[Index],0)) -> 2022-03-23 | N55: =MAX( IF(Transform_Data[[#This Row],[Unique Index]]=Data[Index],Data[Adj Close]), IF(Transform_Data[[#This Row],[Unique Index]]=Data[Lag Index],Data[Adj Close])) -> 301.899963 | O55: =MIN(IF(Transform_Data[[#This Row],[Unique Index]]=Data[Index],Data[Adj Close]), IF(Transform_Data[[#This Row],[Unique Index]]=Data[Lag Index],Data[Adj Close])) -> 297.323273
D56: 2022-02-15 | E56: 297.680695 | F56: =IF(Data[[#This Row],[Adj Close]]<E57,TRUE,"") ->  | G56: =IF(F55=Data[[#This Row],[Up]],0,1) -> 1 | H56: =SUM($G$26:G56) -> 19 | I56: 18 | L56: 31 | M56: =INDEX(Data[Date],MATCH(Transform_Data[[#This Row],[Unique Index]],Data[Index],0)) -> 2022-03-24 | N56: =MAX( IF(Transform_Data[[#This Row],[Unique Index]]=Data[Index],Data[Adj Close]), IF(Transform_Data[[#This Row],[Unique Index]]=Data[Lag Index],Data[Adj Close])) -> 301.899963 | O56: =MIN(IF(Transform_Data[[#This Row],[Unique Index]]=Data[Index],Data[Adj Close]), IF(Transform_Data[[#This Row],[Unique Index]]=Data[Lag Index],Data[Adj Close])) -> 301.482971
D57: 2022-02-16 | E57: 297.333191 | F57: =IF(Data[[#This Row],[Adj Close]]<E58,TRUE,"") ->  | G57: =IF(F56=Data[[#This Row],[Up]],0,1) -> 0 | H57: =SUM($G$26:G57) -> 19 | I57: 19 | L57: 32 | M57: =INDEX(Data[Date],MATCH(Transform_Data[[#This Row],[Unique Index]],Data[Index],0)) -> 2022-03-25 | N57: =MAX( IF(Transform_Data[[#This Row],[Unique Index]]=Data[Index],Data[Adj Close]), IF(Transform_Data[[#This Row],[Unique Index]]=Data[Lag Index],Data[Adj Close])) -> 313.128113 | O57: =MIN(IF(Transform_Data[[#This Row],[Unique Index]]=Data[Index],Data[Adj Close]), IF(Transform_Data[[#This Row],[Unique Index]]=Data[Lag Index],Data[Adj Close])) -> 301.482971
D58: 2022-02-17 | E58: 288.626678 | F58: =IF(Data[[#This Row],[Adj Close]]<E59,TRUE,"") ->  | G58: =IF(F57=Data[[#This Row],[Up]],0,1) -> 0 | H58: =SUM($G$26:G58) -> 19 | I58: 19 | L58: =N(L57)+1 -> 33 | M58: =INDEX(Data[Date],MATCH(Transform_Data[[#This Row],[Unique Index]],Data[Index],0)) -> 2022-03-29 | N58: =MAX( IF(Transform_Data[[#This Row],[Unique Index]]=Data[Index],Data[Adj Close]), IF(Transform_Data[[#This Row],[Unique Index]]=Data[Lag Index],Data[Adj Close])) -> 313.128113 | O58: =MIN(IF(Transform_Data[[#This Row],[Unique Index]]=Data[Index],Data[Adj Close]), IF(Transform_Data[[#This Row],[Unique Index]]=Data[Lag Index],Data[Adj Close])) -> 306.079468
D59: 2022-02-18 | E59: 285.846924 | F59: =IF(Data[[#This Row],[Adj Close]]<E60,TRUE,"") ->  | G59: =IF(F58=Data[[#This Row],[Up]],0,1) -> 0 | H59: =SUM($G$26:G59) -> 19 | I59: 19 | L59: 34 | M59: =INDEX(Data[Date],MATCH(Transform_Data[[#This Row],[Unique Index]],Data[Index],0)) -> 2022-03-31 | N59: =MAX( IF(Transform_Data[[#This Row],[Unique Index]]=Data[Index],Data[Adj Close]), IF(Transform_Data[[#This Row],[Unique Index]]=Data[Lag Index],Data[Adj Close])) -> 312.691315 | O59: =MIN(IF(Transform_Data[[#This Row],[Unique Index]]=Data[Index],Data[Adj Close]), IF(Transform_Data[[#This Row],[Unique Index]]=Data[Lag Index],Data[Adj Close])) -> 306.079468
D60: 2022-02-22 | E60: 285.638458 | F60: =IF(Data[[#This Row],[Adj Close]]<E61,TRUE,"") ->  | G60: =IF(F59=Data[[#This Row],[Up]],0,1) -> 0 | H60: =SUM($G$26:G60) -> 19 | I60: 19 | L60: 35 | M60: =INDEX(Data[Date],MATCH(Transform_Data[[#This Row],[Unique Index]],Data[Index],0)) -> 2022-04-04 | N60: =MAX( IF(Transform_Data[[#This Row],[Unique Index]]=Data[Index],Data[Adj Close]), IF(Transform_Data[[#This Row],[Unique Index]]=Data[Lag Index],Data[Adj Close])) -> 312.691315 | O60: =MIN(IF(Transform_Data[[#This Row],[Unique Index]]=Data[Index],Data[Adj Close]), IF(Transform_Data[[#This Row],[Unique Index]]=Data[Lag Index],Data[Adj Close])) -> 297.333191
D61: 2022-02-23 | E61: 278.24231 | F61: =IF(Data[[#This Row],[Adj Close]]<E62,TRUE,"") -> TRUE | G61: =IF(F60=Data[[#This Row],[Up]],0,1) -> 1 | H61: =SUM($G$26:G61) -> 20 | I61: 19 | L61: 36 | M61: =INDEX(Data[Date],MATCH(Transform_Data[[#This Row],[Unique Index]],Data[Index],0)) -> 2022-04-06 | N61: =MAX( IF(Transform_Data[[#This Row],[Unique Index]]=Data[Index],Data[Adj Close]), IF(Transform_Data[[#This Row],[Unique Index]]=Data[Lag Index],Data[Adj Close])) -> 299.189667 | O61: =MIN(IF(Transform_Data[[#This Row],[Unique Index]]=Data[Index],Data[Adj Close]), IF(Transform_Data[[#This Row],[Unique Index]]=Data[Lag Index],Data[Adj Close])) -> 297.333191
D62: 2022-02-24 | E62: 292.45871 | F62: =IF(Data[[#This Row],[Adj Close]]<E63,TRUE,"") -> TRUE | G62: =IF(F61=Data[[#This Row],[Up]],0,1) -> 0 | H62: =SUM($G$26:G62) -> 20 | I62: 20 | L62: 37 | M62: =INDEX(Data[Date],MATCH(Transform_Data[[#This Row],[Unique Index]],Data[Index],0)) -> 2022-04-07 | N62: =MAX( IF(Transform_Data[[#This Row],[Unique Index]]=Data[Index],Data[Adj Close]), IF(Transform_Data[[#This Row],[Unique Index]]=Data[Lag Index],Data[Adj Close])) -> 299.189667 | O62: =MIN(IF(Transform_Data[[#This Row],[Unique Index]]=Data[Index],Data[Adj Close]), IF(Transform_Data[[#This Row],[Unique Index]]=Data[Lag Index],Data[Adj Close])) -> 280.019409
D63: 2022-02-25 | E63: 295.159088 | F63: =IF(Data[[#This Row],[Adj Close]]<E64,TRUE,"") -> TRUE | G63: =IF(F62=Data[[#This Row],[Up]],0,1) -> 0 | H63: =SUM($G$26:G63) -> 20 | I63: 20 | L63: 38 | M63: =INDEX(Data[Date],MATCH(Transform_Data[[#This Row],[Unique Index]],Data[Index],0)) -> 2022-04-12 | N63: =MAX( IF(Transform_Data[[#This Row],[Unique Index]]=Data[Index],Data[Adj Close]), IF(Transform_Data[[#This Row],[Unique Index]]=Data[Lag Index],Data[Adj Close])) -> 285.539154 | O63: =MIN(IF(Transform_Data[[#This Row],[Unique Index]]=Data[Index],Data[Adj Close]), IF(Transform_Data[[#This Row],[Unique Index]]=Data[Lag Index],Data[Adj Close])) -> 280.019409
D64: 2022-02-28 | E64: 296.628357 | F64: =IF(Data[[#This Row],[Adj Close]]<E65,TRUE,"") ->  | G64: =IF(F63=Data[[#This Row],[Up]],0,1) -> 1 | H64: =SUM($G$26:G64) -> 21 | I64: 20 | L64: 39 | M64: =INDEX(Data[Date],MATCH(Transform_Data[[#This Row],[Unique Index]],Data[Index],0)) -> 2022-04-13 | N64: =MAX( IF(Transform_Data[[#This Row],[Unique Index]]=Data[Index],Data[Adj Close]), IF(Transform_Data[[#This Row],[Unique Index]]=Data[Lag Index],Data[Adj Close])) -> 285.539154 | O64: =MIN(IF(Transform_Data[[#This Row],[Unique Index]]=Data[Index],Data[Adj Close]), IF(Transform_Data[[#This Row],[Unique Index]]=Data[Lag Index],Data[Adj Close])) -> 277.805542
D65: 2022-03-01 | E65: 292.816162 | F65: =IF(Data[[#This Row],[Adj Close]]<E66,TRUE,"") -> TRUE | G65: =IF(F64=Data[[#This Row],[Up]],0,1) -> 1 | H65: =SUM($G$26:G65) -> 22 | I65: 21 | L65: 40 | M65: =INDEX(Data[Date],MATCH(Transform_Data[[#This Row],[Unique Index]],Data[Index],0)) -> 2022-04-14 | N65: =MAX( IF(Transform_Data[[#This Row],[Unique Index]]=Data[Index],Data[Adj Close]), IF(Transform_Data[[#This Row],[Unique Index]]=Data[Lag Index],Data[Adj Close])) -> 284.288269 | O65: =MIN(IF(Transform_Data[[#This Row],[Unique Index]]=Data[Index],Data[Adj Close]), IF(Transform_Data[[#This Row],[Unique Index]]=Data[Lag Index],Data[Adj Close])) -> 277.805542
D66: 2022-03-02 | E66: 298.01825 | F66: =IF(Data[[#This Row],[Adj Close]]<E67,TRUE,"") ->  | G66: =IF(F65=Data[[#This Row],[Up]],0,1) -> 1 | H66: =SUM($G$26:G66) -> 23 | I66: 22 | L66: 41 | M66: =INDEX(Data[Date],MATCH(Transform_Data[[#This Row],[Unique Index]],Data[Index],0)) -> 2022-04-20 | N66: =MAX( IF(Transform_Data[[#This Row],[Unique Index]]=Data[Index],Data[Adj Close]), IF(Transform_Data[[#This Row],[Unique Index]]=Data[Lag Index],Data[Adj Close])) -> 284.288269 | O66: =MIN(IF(Transform_Data[[#This Row],[Unique Index]]=Data[Index],Data[Adj Close]), IF(Transform_Data[[#This Row],[Unique Index]]=Data[Lag Index],Data[Adj Close])) -> 272.047485
D67: 2022-03-03 | E67: 293.779144 | F67: =IF(Data[[#This Row],[Adj Close]]<E68,TRUE,"") ->  | G67: =IF(F66=Data[[#This Row],[Up]],0,1) -> 0 | H67: =SUM($G$26:G67) -> 23 | I67: 23 | L67: 42 | M67: =INDEX(Data[Date],MATCH(Transform_Data[[#This Row],[Unique Index]],Data[Index],0)) -> 2022-04-22 | N67: =MAX( IF(Transform_Data[[#This Row],[Unique Index]]=Data[Index],Data[Adj Close]), IF(Transform_Data[[#This Row],[Unique Index]]=Data[Lag Index],Data[Adj Close])) -> 278.689087 | O67: =MIN(IF(Transform_Data[[#This Row],[Unique Index]]=Data[Index],Data[Adj Close]), IF(Transform_Data[[#This Row],[Unique Index]]=Data[Lag Index],Data[Adj Close])) -> 272.047485
D68: 2022-03-04 | E68: 287.762939 | F68: =IF(Data[[#This Row],[Adj Close]]<E69,TRUE,"") ->  | G68: =IF(F67=Data[[#This Row],[Up]],0,1) -> 0 | H68: =SUM($G$26:G68) -> 23 | I68: 23 | L68: 43 | M68: =INDEX(Data[Date],MATCH(Transform_Data[[#This Row],[Unique Index]],Data[Index],0)) -> 2022-04-25 | N68: =MAX( IF(Transform_Data[[#This Row],[Unique Index]]=Data[Index],Data[Adj Close]), IF(Transform_Data[[#This Row],[Unique Index]]=Data[Lag Index],Data[Adj Close])) -> 278.689087 | O68: =MIN(IF(Transform_Data[[#This Row],[Unique Index]]=Data[Index],Data[Adj Close]), IF(Transform_Data[[#This Row],[Unique Index]]=Data[Lag Index],Data[Adj Close])) -> 268.265076
D69: 2022-03-07 | E69: 276.892181 | F69: =IF(Data[[#This Row],[Adj Close]]<E70,TRUE,"") ->  | G69: =IF(F68=Data[[#This Row],[Up]],0,1) -> 0 | H69: =SUM($G$26:G69) -> 23 | I69: 23 | L69: 44 | M69: =INDEX(Data[Date],MATCH(Transform_Data[[#This Row],[Unique Index]],Data[Index],0)) -> 2022-04-26 | N69: =MAX( IF(Transform_Data[[#This Row],[Unique Index]]=Data[Index],Data[Adj Close]), IF(Transform_Data[[#This Row],[Unique Index]]=Data[Lag Index],Data[Adj Close])) -> 287.534637 | O69: =MIN(IF(Transform_Data[[#This Row],[Unique Index]]=Data[Index],Data[Adj Close]), IF(Transform_Data[[#This Row],[Unique Index]]=Data[Lag Index],Data[Adj Close])) -> 268.265076
D70: 2022-03-08 | E70: 273.854309 | F70: =IF(Data[[#This Row],[Adj Close]]<E71,TRUE,"") -> TRUE | G70: =IF(F69=Data[[#This Row],[Up]],0,1) -> 1 | H70: =SUM($G$26:G70) -> 24 | I70: 23 | L70: 45 | M70: =INDEX(Data[Date],MATCH(Transform_Data[[#This Row],[Unique Index]],Data[Index],0)) -> 2022-04-28 | N70: =MAX( IF(Transform_Data[[#This Row],[Unique Index]]=Data[Index],Data[Adj Close]), IF(Transform_Data[[#This Row],[Unique Index]]=Data[Lag Index],Data[Adj Close])) -> 287.534637 | O70: =MIN(IF(Transform_Data[[#This Row],[Unique Index]]=Data[Index],Data[Adj Close]), IF(Transform_Data[[#This Row],[Unique Index]]=Data[Lag Index],Data[Adj Close])) -> 275.512207
D71: 2022-03-09 | E71: 286.412811 | F71: =IF(Data[[#This Row],[Adj Close]]<E72,TRUE,"") ->  | G71: =IF(F70=Data[[#This Row],[Up]],0,1) -> 1 | H71: =SUM($G$26:G71) -> 25 | I71: 24 | L71: 46 | M71: =INDEX(Data[Date],MATCH(Transform_Data[[#This Row],[Unique Index]],Data[Index],0)) -> 2022-04-29 | N71: =MAX( IF(Transform_Data[[#This Row],[Unique Index]]=Data[Index],Data[Adj Close]), IF(Transform_Data[[#This Row],[Unique Index]]=Data[Lag Index],Data[Adj Close])) -> 282.411957 | O71: =MIN(IF(Transform_Data[[#This Row],[Unique Index]]=Data[Index],Data[Adj Close]), IF(Transform_Data[[#This Row],[Unique Index]]=Data[Lag Index],Data[Adj Close])) -> 275.512207
D72: 2022-03-10 | E72: 283.523865 | F72: =IF(Data[[#This Row],[Adj Close]]<E73,TRUE,"") ->  | G72: =IF(F71=Data[[#This Row],[Up]],0,1) -> 0 | H72: =SUM($G$26:G72) -> 25 | I72: 25 | L72: 47 | M72: =INDEX(Data[Date],MATCH(Transform_Data[[#This Row],[Unique Index]],Data[Index],0)) -> 2022-05-02 | N72: =MAX( IF(Transform_Data[[#This Row],[Unique Index]]=Data[Index],Data[Adj Close]), IF(Transform_Data[[#This Row],[Unique Index]]=Data[Lag Index],Data[Adj Close])) -> 282.411957 | O72: =MIN(IF(Transform_Data[[#This Row],[Unique Index]]=Data[Index],Data[Adj Close]), IF(Transform_Data[[#This Row],[Unique Index]]=Data[Lag Index],Data[Adj Close])) -> 279.741425
D73: 2022-03-11 | E73: 278.043793 | F73: =IF(Data[[#This Row],[Adj Close]]<E74,TRUE,"") ->  | G73: =IF(F72=Data[[#This Row],[Up]],0,1) -> 0 | H73: =SUM($G$26:G73) -> 25 | I73: 25 | L73: 48 | M73: =INDEX(Data[Date],MATCH(Transform_Data[[#This Row],[Unique Index]],Data[Index],0)) -> 2022-05-03 | N73: =MAX( IF(Transform_Data[[#This Row],[Unique Index]]=Data[Index],Data[Adj Close]), IF(Transform_Data[[#This Row],[Unique Index]]=Data[Lag Index],Data[Adj Close])) -> 287.882111 | O73: =MIN(IF(Transform_Data[[#This Row],[Unique Index]]=Data[Index],Data[Adj Close]), IF(Transform_Data[[#This Row],[Unique Index]]=Data[Lag Index],Data[Adj Close])) -> 279.741425
D74: 2022-03-14 | E74: 274.440063 | F74: =IF(Data[[#This Row],[Adj Close]]<E75,TRUE,"") -> TRUE | G74: =IF(F73=Data[[#This Row],[Up]],0,1) -> 1 | H74: =SUM($G$26:G74) -> 26 | I74: 25 | L74: 49 | M74: =INDEX(Data[Date],MATCH(Transform_Data[[#This Row],[Unique Index]],Data[Index],0)) -> 2022-05-04 | N74: =MAX( IF(Transform_Data[[#This Row],[Unique Index]]=Data[Index],Data[Adj Close]), IF(Transform_Data[[#This Row],[Unique Index]]=Data[Lag Index],Data[Adj Close])) -> 287.882111 | O74: =MIN(IF(Transform_Data[[#This Row],[Unique Index]]=Data[Index],Data[Adj Close]), IF(Transform_Data[[#This Row],[Unique Index]]=Data[Lag Index],Data[Adj Close])) -> 262.665863
D75: 2022-03-15 | E75: 285.072571 | F75: =IF(Data[[#This Row],[Adj Close]]<E76,TRUE,"") -> TRUE | G75: =IF(F74=Data[[#This Row],[Up]],0,1) -> 0 | H75: =SUM($G$26:G75) -> 26 | I75: 26 | L75: 50 | M75: =INDEX(Data[Date],MATCH(Transform_Data[[#This Row],[Unique Index]],Data[Index],0)) -> 2022-05-09 | N75: =MAX( IF(Transform_Data[[#This Row],[Unique Index]]=Data[Index],Data[Adj Close]), IF(Transform_Data[[#This Row],[Unique Index]]=Data[Lag Index],Data[Adj Close])) -> 267.550262 | O75: =MIN(IF(Transform_Data[[#This Row],[Unique Index]]=Data[Index],Data[Adj Close]), IF(Transform_Data[[#This Row],[Unique Index]]=Data[Lag Index],Data[Adj Close])) -> 262.665863
D76: 2022-03-16 | E76: 292.260193 | F76: =IF(Data[[#This Row],[Adj Close]]<E77,TRUE,"") -> TRUE | G76: =IF(F75=Data[[#This Row],[Up]],0,1) -> 0 | H76: =SUM($G$26:G76) -> 26 | I76: 26 | L76: 51 | M76: =INDEX(Data[Date],MATCH(Transform_Data[[#This Row],[Unique Index]],Data[Index],0)) -> 2022-05-10 | N76: =MAX( IF(Transform_Data[[#This Row],[Unique Index]]=Data[Index],Data[Adj Close]), IF(Transform_Data[[#This Row],[Unique Index]]=Data[Lag Index],Data[Adj Close])) -> 267.550262 | O76: =MIN(IF(Transform_Data[[#This Row],[Unique Index]]=Data[Index],Data[Adj Close]), IF(Transform_Data[[#This Row],[Unique Index]]=Data[Lag Index],Data[Adj Close])) -> 253.50264
D77: 2022-03-17 | E77: 293.084167 | F77: =IF(Data[[#This Row],[Adj Close]]<E78,TRUE,"") -> TRUE | G77: =IF(F76=Data[[#This Row],[Up]],0,1) -> 0 | H77: =SUM($G$26:G77) -> 26 | I77: 26 | L77: 52 | M77: =INDEX(Data[Date],MATCH(Transform_Data[[#This Row],[Unique Index]],Data[Index],0)) -> 2022-05-12 | N77: =MAX( IF(Transform_Data[[#This Row],[Unique Index]]=Data[Index],Data[Adj Close]), IF(Transform_Data[[#This Row],[Unique Index]]=Data[Lag Index],Data[Adj Close])) -> 264.889679 | O77: =MIN(IF(Transform_Data[[#This Row],[Unique Index]]=Data[Index],Data[Adj Close]), IF(Transform_Data[[#This Row],[Unique Index]]=Data[Lag Index],Data[Adj Close])) -> 253.50264
D78: 2022-03-18 | E78: 298.2565 | F78: =IF(Data[[#This Row],[Adj Close]]<E79,TRUE,"") ->  | G78: =IF(F77=Data[[#This Row],[Up]],0,1) -> 1 | H78: =SUM($G$26:G78) -> 27 | I78: 26 | L78: 53 | M78: =INDEX(Data[Date],MATCH(Transform_Data[[#This Row],[Unique Index]],Data[Index],0)) -> 2022-05-17 | N78: =MAX( IF(Transform_Data[[#This Row],[Unique Index]]=Data[Index],Data[Adj Close]), IF(Transform_Data[[#This Row],[Unique Index]]=Data[Lag Index],Data[Adj Close])) -> 264.889679 | O78: =MIN(IF(Transform_Data[[#This Row],[Unique Index]]=Data[Index],Data[Adj Close]), IF(Transform_Data[[#This Row],[Unique Index]]=Data[Lag Index],Data[Adj Close])) -> 251.316803
D79: 2022-03-21 | E79: 296.995697 | F79: =IF(Data[[#This Row],[Adj Close]]<E80,TRUE,"") -> TRUE | G79: =IF(F78=Data[[#This Row],[Up]],0,1) -> 1 | H79: =SUM($G$26:G79) -> 28 | I79: 27 | L79: 54 | M79: =INDEX(Data[Date],MATCH(Transform_Data[[#This Row],[Unique Index]],Data[Index],0)) -> 2022-05-20 | N79: =MAX( IF(Transform_Data[[#This Row],[Unique Index]]=Data[Index],Data[Adj Close]), IF(Transform_Data[[#This Row],[Unique Index]]=Data[Lag Index],Data[Adj Close])) -> 259.366974 | O79: =MIN(IF(Transform_Data[[#This Row],[Unique Index]]=Data[Index],Data[Adj Close]), IF(Transform_Data[[#This Row],[Unique Index]]=Data[Lag Index],Data[Adj Close])) -> 251.316803
D80: 2022-03-22 | E80: 301.860229 | F80: =IF(Data[[#This Row],[Adj Close]]<E81,TRUE,"") ->  | G80: =IF(F79=Data[[#This Row],[Up]],0,1) -> 1 | H80: =SUM($G$26:G80) -> 29 | I80: 28 | L80: 55 | M80: =INDEX(Data[Date],MATCH(Transform_Data[[#This Row],[Unique Index]],Data[Index],0)) -> 2022-05-23 | N80: =MAX( IF(Transform_Data[[#This Row],[Unique Index]]=Data[Index],Data[Adj Close]), IF(Transform_Data[[#This Row],[Unique Index]]=Data[Lag Index],Data[Adj Close])) -> 259.366974 | O80: =MIN(IF(Transform_Data[[#This Row],[Unique Index]]=Data[Index],Data[Adj Close]), IF(Transform_Data[[#This Row],[Unique Index]]=Data[Lag Index],Data[Adj Close])) -> 258.342041
D81: 2022-03-23 | E81: 297.323273 | F81: =IF(Data[[#This Row],[Adj Close]]<E82,TRUE,"") -> TRUE | G81: =IF(F80=Data[[#This Row],[Up]],0,1) -> 1 | H81: =SUM($G$26:G81) -> 30 | I81: 29 | L81: 56 | M81: =INDEX(Data[Date],MATCH(Transform_Data[[#This Row],[Unique Index]],Data[Index],0)) -> 2022-05-24 | N81: =MAX( IF(Transform_Data[[#This Row],[Unique Index]]=Data[Index],Data[Adj Close]), IF(Transform_Data[[#This Row],[Unique Index]]=Data[Lag Index],Data[Adj Close])) -> 271.894989 | O81: =MIN(IF(Transform_Data[[#This Row],[Unique Index]]=Data[Index],Data[Adj Close]), IF(Transform_Data[[#This Row],[Unique Index]]=Data[Lag Index],Data[Adj Close])) -> 258.342041
D82: 2022-03-24 | E82: 301.899963 | F82: =IF(Data[[#This Row],[Adj Close]]<E83,TRUE,"") ->  | G82: =IF(F81=Data[[#This Row],[Up]],0,1) -> 1 | H82: =SUM($G$26:G82) -> 31 | I82: 30 | L82: 57 | M82: =INDEX(Data[Date],MATCH(Transform_Data[[#This Row],[Unique Index]],Data[Index],0)) -> 2022-05-27 | N82: =MAX( IF(Transform_Data[[#This Row],[Unique Index]]=Data[Index],Data[Adj Close]), IF(Transform_Data[[#This Row],[Unique Index]]=Data[Lag Index],Data[Adj Close])) -> 271.894989 | O82: =MIN(IF(Transform_Data[[#This Row],[Unique Index]]=Data[Index],Data[Adj Close]), IF(Transform_Data[[#This Row],[Unique Index]]=Data[Lag Index],Data[Adj Close])) -> 270.531769
D83: 2022-03-25 | E83: 301.482971 | F83: =IF(Data[[#This Row],[Adj Close]]<E84,TRUE,"") -> TRUE | G83: =IF(F82=Data[[#This Row],[Up]],0,1) -> 1 | H83: =SUM($G$26:G83) -> 32 | I83: 31 | L83: 58 | M83: =INDEX(Data[Date],MATCH(Transform_Data[[#This Row],[Unique Index]],Data[Index],0)) -> 2022-05-31 | N83: =MAX( IF(Transform_Data[[#This Row],[Unique Index]]=Data[Index],Data[Adj Close]), IF(Transform_Data[[#This Row],[Unique Index]]=Data[Lag Index],Data[Adj Close])) -> 273.228394 | O83: =MIN(IF(Transform_Data[[#This Row],[Unique Index]]=Data[Index],Data[Adj Close]), IF(Transform_Data[[#This Row],[Unique Index]]=Data[Lag Index],Data[Adj Close])) -> 270.531769
D84: 2022-03-28 | E84: 308.452209 | F84: =IF(Data[[#This Row],[Adj Close]]<E85,TRUE,"") -> TRUE | G84: =IF(F83=Data[[#This Row],[Up]],0,1) -> 0 | H84: =SUM($G$26:G84) -> 32 | I84: 32 | L84: 59 | M84: =INDEX(Data[Date],MATCH(Transform_Data[[#This Row],[Unique Index]],Data[Index],0)) -> 2022-06-02 | N84: =MAX( IF(Transform_Data[[#This Row],[Unique Index]]=Data[Index],Data[Adj Close]), IF(Transform_Data[[#This Row],[Unique Index]]=Data[Lag Index],Data[Adj Close])) -> 273.228394 | O84: =MIN(IF(Transform_Data[[#This Row],[Unique Index]]=Data[Index],Data[Adj Close]), IF(Transform_Data[[#This Row],[Unique Index]]=Data[Lag Index],Data[Adj Close])) -> 267.427094
D85: 2022-03-29 | E85: 313.128113 | F85: =IF(Data[[#This Row],[Adj Close]]<E86,TRUE,"") ->  | G85: =IF(F84=Data[[#This Row],[Up]],0,1) -> 1 | H85: =SUM($G$26:G85) -> 33 | I85: 32 | L85: 60 | M85: =INDEX(Data[Date],MATCH(Transform_Data[[#This Row],[Unique Index]],Data[Index],0)) -> 2022-06-06 | N85: =MAX( IF(Transform_Data[[#This Row],[Unique Index]]=Data[Index],Data[Adj Close]), IF(Transform_Data[[#This Row],[Unique Index]]=Data[Lag Index],Data[Adj Close])) -> 271.158661 | O85: =MIN(IF(Transform_Data[[#This Row],[Unique Index]]=Data[Index],Data[Adj Close]), IF(Transform_Data[[#This Row],[Unique Index]]=Data[Lag Index],Data[Adj Close])) -> 267.427094
D86: 2022-03-30 | E86: 311.589325 | F86: =IF(Data[[#This Row],[Adj Close]]<E87,TRUE,"") ->  | G86: =IF(F85=Data[[#This Row],[Up]],0,1) -> 0 | H86: =SUM($G$26:G86) -> 33 | I86: 33 | L86: 61 | M86: =INDEX(Data[Date],MATCH(Transform_Data[[#This Row],[Unique Index]],Data[Index],0)) -> 2022-06-07 | N86: =MAX( IF(Transform_Data[[#This Row],[Unique Index]]=Data[Index],Data[Adj Close]), IF(Transform_Data[[#This Row],[Unique Index]]=Data[Lag Index],Data[Adj Close])) -> 271.158661 | O86: =MIN(IF(Transform_Data[[#This Row],[Unique Index]]=Data[Index],Data[Adj Close]), IF(Transform_Data[[#This Row],[Unique Index]]=Data[Lag Index],Data[Adj Close])) -> 241.067505
D87: 2022-03-31 | E87: 306.079468 | F87: =IF(Data[[#This Row],[Adj Close]]<E88,TRUE,"") -> TRUE | G87: =IF(F86=Data[[#This Row],[Up]],0,1) -> 1 | H87: =SUM($G$26:G87) -> 34 | I87: 33 | L87: 62 | M87: =INDEX(Data[Date],MATCH(Transform_Data[[#This Row],[Unique Index]],Data[Index],0)) -> 2022-06-13 | N87: =MAX( IF(Transform_Data[[#This Row],[Unique Index]]=Data[Index],Data[Adj Close]), IF(Transform_Data[[#This Row],[Unique Index]]=Data[Lag Index],Data[Adj Close])) -> 250.520737 | O87: =MIN(IF(Transform_Data[[#This Row],[Unique Index]]=Data[Index],Data[Adj Close]), IF(Transform_Data[[#This Row],[Unique Index]]=Data[Lag Index],Data[Adj Close])) -> 241.067505
D88: 2022-04-01 | E88: 307.181458 | F88: =IF(Data[[#This Row],[Adj Close]]<E89,TRUE,"") -> TRUE | G88: =IF(F87=Data[[#This Row],[Up]],0,1) -> 0 | H88: =SUM($G$26:G88) -> 34 | I88: 34 | L88: 63 | M88: =INDEX(Data[Date],MATCH(Transform_Data[[#This Row],[Unique Index]],Data[Index],0)) -> 2022-06-15 | N88: =MAX( IF(Transform_Data[[#This Row],[Unique Index]]=Data[Index],Data[Adj Close]), IF(Transform_Data[[#This Row],[Unique Index]]=Data[Lag Index],Data[Adj Close])) -> 250.520737 | O88: =MIN(IF(Transform_Data[[#This Row],[Unique Index]]=Data[Index],Data[Adj Close]), IF(Transform_Data[[#This Row],[Unique Index]]=Data[Lag Index],Data[Adj Close])) -> 243.76416
D89: 2022-04-04 | E89: 312.691315 | F89: =IF(Data[[#This Row],[Adj Close]]<E90,TRUE,"") ->  | G89: =IF(F88=Data[[#This Row],[Up]],0,1) -> 1 | H89: =SUM($G$26:G89) -> 35 | I89: 34 | L89: 64 | M89: =INDEX(Data[Date],MATCH(Transform_Data[[#This Row],[Unique Index]],Data[Index],0)) -> 2022-06-16 | N89: =MAX( IF(Transform_Data[[#This Row],[Unique Index]]=Data[Index],Data[Adj Close]), IF(Transform_Data[[#This Row],[Unique Index]]=Data[Lag Index],Data[Adj Close])) -> 252.490997 | O89: =MIN(IF(Transform_Data[[#This Row],[Unique Index]]=Data[Index],Data[Adj Close]), IF(Transform_Data[[#This Row],[Unique Index]]=Data[Lag Index],Data[Adj Close])) -> 243.76416
D90: 2022-04-05 | E90: 308.63089 | F90: =IF(Data[[#This Row],[Adj Close]]<E91,TRUE,"") ->  | G90: =IF(F89=Data[[#This Row],[Up]],0,1) -> 0 | H90: =SUM($G$26:G90) -> 35 | I90: =N(H89) -> 35 | L90: =N(L89)+1 -> 65 | M90: =INDEX(Data[Date],MATCH(Transform_Data[[#This Row],[Unique Index]],Data[Index],0)) -> 2022-06-21 | N90: =MAX( IF(Transform_Data[[#This Row],[Unique Index]]=Data[Index],Data[Adj Close]), IF(Transform_Data[[#This Row],[Unique Index]]=Data[Lag Index],Data[Adj Close])) -> 252.490997 | O90: =MIN(IF(Transform_Data[[#This Row],[Unique Index]]=Data[Index],Data[Adj Close]), IF(Transform_Data[[#This Row],[Unique Index]]=Data[Lag Index],Data[Adj Close])) -> 251.884003
D91: 2022-04-06 | E91: 297.333191 | F91: =IF(Data[[#This Row],[Adj Close]]<E92,TRUE,"") -> TRUE | G91: =IF(F90=Data[[#This Row],[Up]],0,1) -> 1 | H91: =SUM($G$26:G91) -> 36 | I91: 35 | L91: 66 | M91: =INDEX(Data[Date],MATCH(Transform_Data[[#This Row],[Unique Index]],Data[Index],0)) -> 2022-06-22 | N91: =MAX( IF(Transform_Data[[#This Row],[Unique Index]]=Data[Index],Data[Adj Close]), IF(Transform_Data[[#This Row],[Unique Index]]=Data[Lag Index],Data[Adj Close])) -> 266.382294 | O91: =MIN(IF(Transform_Data[[#This Row],[Unique Index]]=Data[Index],Data[Adj Close]), IF(Transform_Data[[#This Row],[Unique Index]]=Data[Lag Index],Data[Adj Close])) -> 251.884003
D92: 2022-04-07 | E92: 299.189667 | F92: =IF(Data[[#This Row],[Adj Close]]<E93,TRUE,"") ->  | G92: =IF(F91=Data[[#This Row],[Up]],0,1) -> 1 | H92: =SUM($G$26:G92) -> 37 | I92: 36 | L92: 67 | M92: =INDEX(Data[Date],MATCH(Transform_Data[[#This Row],[Unique Index]],Data[Index],0)) -> 2022-06-24 | N92: =MAX( IF(Transform_Data[[#This Row],[Unique Index]]=Data[Index],Data[Adj Close]), IF(Transform_Data[[#This Row],[Unique Index]]=Data[Lag Index],Data[Adj Close])) -> 266.382294 | O92: =MIN(IF(Transform_Data[[#This Row],[Unique Index]]=Data[Index],Data[Adj Close]), IF(Transform_Data[[#This Row],[Unique Index]]=Data[Lag Index],Data[Adj Close])) -> 255.217514
D93: 2022-04-08 | E93: 294.821503 | F93: =IF(Data[[#This Row],[Adj Close]]<E94,TRUE,"") ->  | G93: =IF(F92=Data[[#This Row],[Up]],0,1) -> 0 | H93: =SUM($G$26:G93) -> 37 | I93: 37 | L93: 68 | M93: =INDEX(Data[Date],MATCH(Transform_Data[[#This Row],[Unique Index]],Data[Index],0)) -> 2022-06-28 | N93: =MAX( IF(Transform_Data[[#This Row],[Unique Index]]=Data[Index],Data[Adj Close]), IF(Transform_Data[[#This Row],[Unique Index]]=Data[Lag Index],Data[Adj Close])) -> 258.978912 | O93: =MIN(IF(Transform_Data[[#This Row],[Unique Index]]=Data[Index],Data[Adj Close]), IF(Transform_Data[[#This Row],[Unique Index]]=Data[Lag Index],Data[Adj Close])) -> 255.217514
D94: 2022-04-11 | E94: 283.196289 | F94: =IF(Data[[#This Row],[Adj Close]]<E95,TRUE,"") ->  | G94: =IF(F93=Data[[#This Row],[Up]],0,1) -> 0 | H94: =SUM($G$26:G94) -> 37 | I94: 37 | L94: 69 | M94: =INDEX(Data[Date],MATCH(Transform_Data[[#This Row],[Unique Index]],Data[Index],0)) -> 2022-06-29 | N94: =MAX( IF(Transform_Data[[#This Row],[Unique Index]]=Data[Index],Data[Adj Close]), IF(Transform_Data[[#This Row],[Unique Index]]=Data[Lag Index],Data[Adj Close])) -> 258.978912 | O94: =MIN(IF(Transform_Data[[#This Row],[Unique Index]]=Data[Index],Data[Adj Close]), IF(Transform_Data[[#This Row],[Unique Index]]=Data[Lag Index],Data[Adj Close])) -> 255.565781
D95: 2022-04-12 | E95: 280.019409 | F95: =IF(Data[[#This Row],[Adj Close]]<E96,TRUE,"") -> TRUE | G95: =IF(F94=Data[[#This Row],[Up]],0,1) -> 1 | H95: =SUM($G$26:G95) -> 38 | I95: 37 | L95: 70 | M95: =INDEX(Data[Date],MATCH(Transform_Data[[#This Row],[Unique Index]],Data[Index],0)) -> 2022-06-30 | N95: =MAX( IF(Transform_Data[[#This Row],[Unique Index]]=Data[Index],Data[Adj Close]), IF(Transform_Data[[#This Row],[Unique Index]]=Data[Lag Index],Data[Adj Close])) -> 267.078827 | O95: =MIN(IF(Transform_Data[[#This Row],[Unique Index]]=Data[Index],Data[Adj Close]), IF(Transform_Data[[#This Row],[Unique Index]]=Data[Lag Index],Data[Adj Close])) -> 255.565781
D96: 2022-04-13 | E96: 285.539154 | F96: =IF(Data[[#This Row],[Adj Close]]<E97,TRUE,"") ->  | G96: =IF(F95=Data[[#This Row],[Up]],0,1) -> 1 | H96: =SUM($G$26:G96) -> 39 | I96: 38 | L96: 71 | M96: =INDEX(Data[Date],MATCH(Transform_Data[[#This Row],[Unique Index]],Data[Index],0)) -> 2022-07-07 | N96: =MAX( IF(Transform_Data[[#This Row],[Unique Index]]=Data[Index],Data[Adj Close]), IF(Transform_Data[[#This Row],[Unique Index]]=Data[Lag Index],Data[Adj Close])) -> 267.078827 | O96: =MIN(IF(Transform_Data[[#This Row],[Unique Index]]=Data[Index],Data[Adj Close]), IF(Transform_Data[[#This Row],[Unique Index]]=Data[Lag Index],Data[Adj Close])) -> 251.476013
D97: 2022-04-14 | E97: 277.805542 | F97: =IF(Data[[#This Row],[Adj Close]]<E98,TRUE,"") -> TRUE | G97: =IF(F96=Data[[#This Row],[Up]],0,1) -> 1 | H97: =SUM($G$26:G97) -> 40 | I97: 39 | L97: 72 | M97: =INDEX(Data[Date],MATCH(Transform_Data[[#This Row],[Unique Index]],Data[Index],0)) -> 2022-07-13 | N97: =MAX( IF(Transform_Data[[#This Row],[Unique Index]]=Data[Index],Data[Adj Close]), IF(Transform_Data[[#This Row],[Unique Index]]=Data[Lag Index],Data[Adj Close])) -> 255.456314 | O97: =MIN(IF(Transform_Data[[#This Row],[Unique Index]]=Data[Index],Data[Adj Close]), IF(Transform_Data[[#This Row],[Unique Index]]=Data[Lag Index],Data[Adj Close])) -> 251.476013
D98: 2022-04-18 | E98: 278.49054 | F98: =IF(Data[[#This Row],[Adj Close]]<E99,TRUE,"") -> TRUE | G98: =IF(F97=Data[[#This Row],[Up]],0,1) -> 0 | H98: =SUM($G$26:G98) -> 40 | I98: 40 | L98: 73 | M98: =INDEX(Data[Date],MATCH(Transform_Data[[#This Row],[Unique Index]],Data[Index],0)) -> 2022-07-15 | N98: =MAX( IF(Transform_Data[[#This Row],[Unique Index]]=Data[Index],Data[Adj Close]), IF(Transform_Data[[#This Row],[Unique Index]]=Data[Lag Index],Data[Adj Close])) -> 255.456314 | O98: =MIN(IF(Transform_Data[[#This Row],[Unique Index]]=Data[Index],Data[Adj Close]), IF(Transform_Data[[#This Row],[Unique Index]]=Data[Lag Index],Data[Adj Close])) -> 252.998474
D99: 2022-04-19 | E99: 283.235962 | F99: =IF(Data[[#This Row],[Adj Close]]<E100,TRUE,"") -> TRUE | G99: =IF(F98=Data[[#This Row],[Up]],0,1) -> 0 | H99: =SUM($G$26:G99) -> 40 | I99: 40 | L99: 74 | M99: =INDEX(Data[Date],MATCH(Transform_Data[[#This Row],[Unique Index]],Data[Index],0)) -> 2022-07-18 | N99: =MAX( IF(Transform_Data[[#This Row],[Unique Index]]=Data[Index],Data[Adj Close]), IF(Transform_Data[[#This Row],[Unique Index]]=Data[Lag Index],Data[Adj Close])) -> 263.536346 | O99: =MIN(IF(Transform_Data[[#This Row],[Unique Index]]=Data[Index],Data[Adj Close]), IF(Transform_Data[[#This Row],[Unique Index]]=Data[Lag Index],Data[Adj Close])) -> 252.998474
D100: 2022-04-20 | E100: 284.288269 | F100: =IF(Data[[#This Row],[Adj Close]]<E101,TRUE,"") ->  | G100: =IF(F99=Data[[#This Row],[Up]],0,1) -> 1 | H100: =SUM($G$26:G100) -> 41 | I100: 40 | L100: 75 | M100: =INDEX(Data[Date],MATCH(Transform_Data[[#This Row],[Unique Index]],Data[Index],0)) -> 2022-07-21 | N100: =MAX( IF(Transform_Data[[#This Row],[Unique Index]]=Data[Index],Data[Adj Close]), IF(Transform_Data[[#This Row],[Unique Index]]=Data[Lag Index],Data[Adj Close])) -> 263.536346 | O100: =MIN(IF(Transform_Data[[#This Row],[Unique Index]]=Data[Index],Data[Adj Close]), IF(Transform_Data[[#This Row],[Unique Index]]=Data[Lag Index],Data[Adj Close])) -> 250.660034
D101: 2022-04-21 | E101: 278.778412 | F101: =IF(Data[[#This Row],[Adj Close]]<E102,TRUE,"") ->  | G101: =IF(F100=Data[[#This Row],[Up]],0,1) -> 0 | H101: =SUM($G$26:G101) -> 41 | I101: 41 | L101: 76 | M101: =INDEX(Data[Date],MATCH(Transform_Data[[#This Row],[Unique Index]],Data[Index],0)) -> 2022-07-26 | N101: =MAX( IF(Transform_Data[[#This Row],[Unique Index]]=Data[Index],Data[Adj Close]), IF(Transform_Data[[#This Row],[Unique Index]]=Data[Lag Index],Data[Adj Close])) -> 279.358093 | O101: =MIN(IF(Transform_Data[[#This Row],[Unique Index]]=Data[Index],Data[Adj Close]), IF(Transform_Data[[#This Row],[Unique Index]]=Data[Lag Index],Data[Adj Close])) -> 250.660034
D102: 2022-04-22 | E102: 272.047485 | F102: =IF(Data[[#This Row],[Adj Close]]<E103,TRUE,"") -> TRUE | G102: =IF(F101=Data[[#This Row],[Up]],0,1) -> 1 | H102: =SUM($G$26:G102) -> 42 | I102: 41 | L102: 77 | M102: =INDEX(Data[Date],MATCH(Transform_Data[[#This Row],[Unique Index]],Data[Index],0)) -> 2022-07-29 | N102: =MAX( IF(Transform_Data[[#This Row],[Unique Index]]=Data[Index],Data[Adj Close]), IF(Transform_Data[[#This Row],[Unique Index]]=Data[Lag Index],Data[Adj Close])) -> 279.358093 | O102: =MIN(IF(Transform_Data[[#This Row],[Unique Index]]=Data[Index],Data[Adj Close]), IF(Transform_Data[[#This Row],[Unique Index]]=Data[Lag Index],Data[Adj Close])) -> 273.467224
D103: 2022-04-25 | E103: 278.689087 | F103: =IF(Data[[#This Row],[Adj Close]]<E104,TRUE,"") ->  | G103: =IF(F102=Data[[#This Row],[Up]],0,1) -> 1 | H103: =SUM($G$26:G103) -> 43 | I103: 42 | L103: 78 | M103: =INDEX(Data[Date],MATCH(Transform_Data[[#This Row],[Unique Index]],Data[Index],0)) -> 2022-08-02 | N103: =MAX( IF(Transform_Data[[#This Row],[Unique Index]]=Data[Index],Data[Adj Close]), IF(Transform_Data[[#This Row],[Unique Index]]=Data[Lag Index],Data[Adj Close])) -> 282.253754 | O103: =MIN(IF(Transform_Data[[#This Row],[Unique Index]]=Data[Index],Data[Adj Close]), IF(Transform_Data[[#This Row],[Unique Index]]=Data[Lag Index],Data[Adj Close])) -> 273.467224
D104: 2022-04-26 | E104: 268.265076 | F104: =IF(Data[[#This Row],[Adj Close]]<E105,TRUE,"") -> TRUE | G104: =IF(F103=Data[[#This Row],[Up]],0,1) -> 1 | H104: =SUM($G$26:G104) -> 44 | I104: 43 | L104: 79 | M104: =INDEX(Data[Date],MATCH(Transform_Data[[#This Row],[Unique Index]],Data[Index],0)) -> 2022-08-04 | N104: =MAX( IF(Transform_Data[[#This Row],[Unique Index]]=Data[Index],Data[Adj Close]), IF(Transform_Data[[#This Row],[Unique Index]]=Data[Lag Index],Data[Adj Close])) -> 282.253754 | O104: =MIN(IF(Transform_Data[[#This Row],[Unique Index]]=Data[Index],Data[Adj Close]), IF(Transform_Data[[#This Row],[Unique Index]]=Data[Lag Index],Data[Adj Close])) -> 278.940155
D105: 2022-04-27 | E105: 281.171021 | F105: =IF(Data[[#This Row],[Adj Close]]<E106,TRUE,"") -> TRUE | G105: =IF(F104=Data[[#This Row],[Up]],0,1) -> 0 | H105: =SUM($G$26:G105) -> 44 | I105: 44 | L105: 80 | M105: =INDEX(Data[Date],MATCH(Transform_Data[[#This Row],[Unique Index]],Data[Index],0)) -> 2022-08-08 | N105: =MAX( IF(Transform_Data[[#This Row],[Unique Index]]=Data[Index],Data[Adj Close]), IF(Transform_Data[[#This Row],[Unique Index]]=Data[Lag Index],Data[Adj Close])) -> 287.736633 | O105: =MIN(IF(Transform_Data[[#This Row],[Unique Index]]=Data[Index],Data[Adj Close]), IF(Transform_Data[[#This Row],[Unique Index]]=Data[Lag Index],Data[Adj Close])) -> 278.940155
D106: 2022-04-28 | E106: 287.534637 | F106: =IF(Data[[#This Row],[Adj Close]]<E107,TRUE,"") ->  | G106: =IF(F105=Data[[#This Row],[Up]],0,1) -> 1 | H106: =SUM($G$26:G106) -> 45 | I106: 44 | L106: 81 | M106: =INDEX(Data[Date],MATCH(Transform_Data[[#This Row],[Unique Index]],Data[Index],0)) -> 2022-08-10 | N106: =MAX( IF(Transform_Data[[#This Row],[Unique Index]]=Data[Index],Data[Adj Close]), IF(Transform_Data[[#This Row],[Unique Index]]=Data[Lag Index],Data[Adj Close])) -> 287.736633 | O106: =MIN(IF(Transform_Data[[#This Row],[Unique Index]]=Data[Index],Data[Adj Close]), IF(Transform_Data[[#This Row],[Unique Index]]=Data[Lag Index],Data[Adj Close])) -> 285.607147
D107: 2022-04-29 | E107: 275.512207 | F107: =IF(Data[[#This Row],[Adj Close]]<E108,TRUE,"") -> TRUE | G107: =IF(F106=Data[[#This Row],[Up]],0,1) -> 1 | H107: =SUM($G$26:G107) -> 46 | I107: 45 | L107: 82 | M107: =INDEX(Data[Date],MATCH(Transform_Data[[#This Row],[Unique Index]],Data[Index],0)) -> 2022-08-11 | N107: =MAX( IF(Transform_Data[[#This Row],[Unique Index]]=Data[Index],Data[Adj Close]), IF(Transform_Data[[#This Row],[Unique Index]]=Data[Lag Index],Data[Adj Close])) -> 292.025452 | O107: =MIN(IF(Transform_Data[[#This Row],[Unique Index]]=Data[Index],Data[Adj Close]), IF(Transform_Data[[#This Row],[Unique Index]]=Data[Lag Index],Data[Adj Close])) -> 285.607147
D108: 2022-05-02 | E108: 282.411957 | F108: =IF(Data[[#This Row],[Adj Close]]<E109,TRUE,"") ->  | G108: =IF(F107=Data[[#This Row],[Up]],0,1) -> 1 | H108: =SUM($G$26:G108) -> 47 | I108: 46 | L108: 83 | M108: =INDEX(Data[Date],MATCH(Transform_Data[[#This Row],[Unique Index]],Data[Index],0)) -> 2022-08-15 | N108: =MAX( IF(Transform_Data[[#This Row],[Unique Index]]=Data[Index],Data[Adj Close]), IF(Transform_Data[[#This Row],[Unique Index]]=Data[Lag Index],Data[Adj Close])) -> 292.025452 | O108: =MIN(IF(Transform_Data[[#This Row],[Unique Index]]=Data[Index],Data[Adj Close]), IF(Transform_Data[[#This Row],[Unique Index]]=Data[Lag Index],Data[Adj Close])) -> 275.014984
D109: 2022-05-03 | E109: 279.741425 | F109: =IF(Data[[#This Row],[Adj Close]]<E110,TRUE,"") -> TRUE | G109: =IF(F108=Data[[#This Row],[Up]],0,1) -> 1 | H109: =SUM($G$26:G109) -> 48 | I109: 47 | L109: 84 | M109: =INDEX(Data[Date],MATCH(Transform_Data[[#This Row],[Unique Index]],Data[Index],0)) -> 2022-08-24 | N109: =MAX( IF(Transform_Data[[#This Row],[Unique Index]]=Data[Index],Data[Adj Close]), IF(Transform_Data[[#This Row],[Unique Index]]=Data[Lag Index],Data[Adj Close])) -> 278.066376 | O109: =MIN(IF(Transform_Data[[#This Row],[Unique Index]]=Data[Index],Data[Adj Close]), IF(Transform_Data[[#This Row],[Unique Index]]=Data[Lag Index],Data[Adj Close])) -> 275.014984
D110: 2022-05-04 | E110: 287.882111 | F110: =IF(Data[[#This Row],[Adj Close]]<E111,TRUE,"") ->  | G110: =IF(F109=Data[[#This Row],[Up]],0,1) -> 1 | H110: =SUM($G$26:G110) -> 49 | I110: 48 | L110: 85 | M110: =INDEX(Data[Date],MATCH(Transform_Data[[#This Row],[Unique Index]],Data[Index],0)) -> 2022-08-25 | N110: =MAX( IF(Transform_Data[[#This Row],[Unique Index]]=Data[Index],Data[Adj Close]), IF(Transform_Data[[#This Row],[Unique Index]]=Data[Lag Index],Data[Adj Close])) -> 278.066376 | O110: =MIN(IF(Transform_Data[[#This Row],[Unique Index]]=Data[Index],Data[Adj Close]), IF(Transform_Data[[#This Row],[Unique Index]]=Data[Lag Index],Data[Adj Close])) -> 252.5383
D111: 2022-05-05 | E111: 275.343475 | F111: =IF(Data[[#This Row],[Adj Close]]<E112,TRUE,"") ->  | G111: =IF(F110=Data[[#This Row],[Up]],0,1) -> 0 | H111: =SUM($G$26:G111) -> 49 | I111: 49 | L111: 86 | M111: =INDEX(Data[Date],MATCH(Transform_Data[[#This Row],[Unique Index]],Data[Index],0)) -> 2022-09-06 | N111: =MAX( IF(Transform_Data[[#This Row],[Unique Index]]=Data[Index],Data[Adj Close]), IF(Transform_Data[[#This Row],[Unique Index]]=Data[Lag Index],Data[Adj Close])) -> 265.900635 | O111: =MIN(IF(Transform_Data[[#This Row],[Unique Index]]=Data[Index],Data[Adj Close]), IF(Transform_Data[[#This Row],[Unique Index]]=Data[Lag Index],Data[Adj Close])) -> 252.5383
D112: 2022-05-06 | E112: 272.742432 | F112: =IF(Data[[#This Row],[Adj Close]]<E113,TRUE,"") ->  | G112: =IF(F111=Data[[#This Row],[Up]],0,1) -> 0 | H112: =SUM($G$26:G112) -> 49 | I112: 49 | L112: 87 | M112: =INDEX(Data[Date],MATCH(Transform_Data[[#This Row],[Unique Index]],Data[Index],0)) -> 2022-09-12 | N112: =MAX( IF(Transform_Data[[#This Row],[Unique Index]]=Data[Index],Data[Adj Close]), IF(Transform_Data[[#This Row],[Unique Index]]=Data[Lag Index],Data[Adj Close])) -> 265.900635 | O112: =MIN(IF(Transform_Data[[#This Row],[Unique Index]]=Data[Index],Data[Adj Close]), IF(Transform_Data[[#This Row],[Unique Index]]=Data[Lag Index],Data[Adj Close])) -> 251.28186
D113: 2022-05-09 | E113: 262.665863 | F113: =IF(Data[[#This Row],[Adj Close]]<E114,TRUE,"") -> TRUE | G113: =IF(F112=Data[[#This Row],[Up]],0,1) -> 1 | H113: =SUM($G$26:G113) -> 50 | I113: 49 | L113: 88 | M113: =INDEX(Data[Date],MATCH(Transform_Data[[#This Row],[Unique Index]],Data[Index],0)) -> 2022-09-13 | N113: =MAX( IF(Transform_Data[[#This Row],[Unique Index]]=Data[Index],Data[Adj Close]), IF(Transform_Data[[#This Row],[Unique Index]]=Data[Lag Index],Data[Adj Close])) -> 251.5112 | O113: =MIN(IF(Transform_Data[[#This Row],[Unique Index]]=Data[Index],Data[Adj Close]), IF(Transform_Data[[#This Row],[Unique Index]]=Data[Lag Index],Data[Adj Close])) -> 251.28186
D114: 2022-05-10 | E114: 267.550262 | F114: =IF(Data[[#This Row],[Adj Close]]<E115,TRUE,"") ->  | G114: =IF(F113=Data[[#This Row],[Up]],0,1) -> 1 | H114: =SUM($G$26:G114) -> 51 | I114: 50 | L114: 89 | M114: =INDEX(Data[Date],MATCH(Transform_Data[[#This Row],[Unique Index]],Data[Index],0)) -> 2022-09-14 | N114: =MAX( IF(Transform_Data[[#This Row],[Unique Index]]=Data[Index],Data[Adj Close]), IF(Transform_Data[[#This Row],[Unique Index]]=Data[Lag Index],Data[Adj Close])) -> 251.5112 | O114: =MIN(IF(Transform_Data[[#This Row],[Unique Index]]=Data[Index],Data[Adj Close]), IF(Transform_Data[[#This Row],[Unique Index]]=Data[Lag Index],Data[Adj Close])) -> 238.278488
D115: 2022-05-11 | E115: 258.665009 | F115: =IF(Data[[#This Row],[Adj Close]]<E116,TRUE,"") ->  | G115: =IF(F114=Data[[#This Row],[Up]],0,1) -> 0 | H115: =SUM($G$26:G115) -> 51 | I115: 51 | L115: 90 | M115: =INDEX(Data[Date],MATCH(Transform_Data[[#This Row],[Unique Index]],Data[Index],0)) -> 2022-09-21 | N115: =MAX( IF(Transform_Data[[#This Row],[Unique Index]]=Data[Index],Data[Adj Close]), IF(Transform_Data[[#This Row],[Unique Index]]=Data[Lag Index],Data[Adj Close])) -> 240.30278 | O115: =MIN(IF(Transform_Data[[#This Row],[Unique Index]]=Data[Index],Data[Adj Close]), IF(Transform_Data[[#This Row],[Unique Index]]=Data[Lag Index],Data[Adj Close])) -> 238.278488
D116: 2022-05-12 | E116: 253.50264 | F116: =IF(Data[[#This Row],[Adj Close]]<E117,TRUE,"") -> TRUE | G116: =IF(F115=Data[[#This Row],[Up]],0,1) -> 1 | H116: =SUM($G$26:G116) -> 52 | I116: 51 | L116: 91 | M116: =INDEX(Data[Date],MATCH(Transform_Data[[#This Row],[Unique Index]],Data[Index],0)) -> 2022-09-22 | N116: =MAX( IF(Transform_Data[[#This Row],[Unique Index]]=Data[Index],Data[Adj Close]), IF(Transform_Data[[#This Row],[Unique Index]]=Data[Lag Index],Data[Adj Close])) -> 240.30278 | O116: =MIN(IF(Transform_Data[[#This Row],[Unique Index]]=Data[Index],Data[Adj Close]), IF(Transform_Data[[#This Row],[Unique Index]]=Data[Lag Index],Data[Adj Close])) -> 235.745636
D117: 2022-05-13 | E117: 259.230927 | F117: =IF(Data[[#This Row],[Adj Close]]<E118,TRUE,"") -> TRUE | G117: =IF(F116=Data[[#This Row],[Up]],0,1) -> 0 | H117: =SUM($G$26:G117) -> 52 | I117: 52 | L117: 92 | M117: =INDEX(Data[Date],MATCH(Transform_Data[[#This Row],[Unique Index]],Data[Index],0)) -> 2022-09-27 | N117: =MAX( IF(Transform_Data[[#This Row],[Unique Index]]=Data[Index],Data[Adj Close]), IF(Transform_Data[[#This Row],[Unique Index]]=Data[Lag Index],Data[Adj Close])) -> 240.392548 | O117: =MIN(IF(Transform_Data[[#This Row],[Unique Index]]=Data[Index],Data[Adj Close]), IF(Transform_Data[[#This Row],[Unique Index]]=Data[Lag Index],Data[Adj Close])) -> 235.745636
D118: 2022-05-16 | E118: 259.608154 | F118: =IF(Data[[#This Row],[Adj Close]]<E119,TRUE,"") -> TRUE | G118: =IF(F117=Data[[#This Row],[Up]],0,1) -> 0 | H118: =SUM($G$26:G118) -> 52 | I118: 52 | L118: 93 | M118: =INDEX(Data[Date],MATCH(Transform_Data[[#This Row],[Unique Index]],Data[Index],0)) -> 2022-09-28 | N118: =MAX( IF(Transform_Data[[#This Row],[Unique Index]]=Data[Index],Data[Adj Close]), IF(Transform_Data[[#This Row],[Unique Index]]=Data[Lag Index],Data[Adj Close])) -> 240.392548 | O118: =MIN(IF(Transform_Data[[#This Row],[Unique Index]]=Data[Index],Data[Adj Close]), IF(Transform_Data[[#This Row],[Unique Index]]=Data[Lag Index],Data[Adj Close])) -> 232.245483
D119: 2022-05-17 | E119: 264.889679 | F119: =IF(Data[[#This Row],[Adj Close]]<E120,TRUE,"") ->  | G119: =IF(F118=Data[[#This Row],[Up]],0,1) -> 1 | H119: =SUM($G$26:G119) -> 53 | I119: 52 | L119: 94 | M119: =INDEX(Data[Date],MATCH(Transform_Data[[#This Row],[Unique Index]],Data[Index],0)) -> 2022-09-30 | N119: =MAX( IF(Transform_Data[[#This Row],[Unique Index]]=Data[Index],Data[Adj Close]), IF(Transform_Data[[#This Row],[Unique Index]]=Data[Lag Index],Data[Adj Close])) -> 248.49968 | O119: =MIN(IF(Transform_Data[[#This Row],[Unique Index]]=Data[Index],Data[Adj Close]), IF(Transform_Data[[#This Row],[Unique Index]]=Data[Lag Index],Data[Adj Close])) -> 232.245483
D120: 2022-05-18 | E120: 252.82933 | F120: =IF(Data[[#This Row],[Adj Close]]<E121,TRUE,"") ->  | G120: =IF(F119=Data[[#This Row],[Up]],0,1) -> 0 | H120: =SUM($G$26:G120) -> 53 | I120: 53 | L120: 95 | M120: =INDEX(Data[Date],MATCH(Transform_Data[[#This Row],[Unique Index]],Data[Index],0)) -> 2022-10-05 | N120: =MAX( IF(Transform_Data[[#This Row],[Unique Index]]=Data[Index],Data[Adj Close]), IF(Transform_Data[[#This Row],[Unique Index]]=Data[Lag Index],Data[Adj Close])) -> 248.49968 | O120: =MIN(IF(Transform_Data[[#This Row],[Unique Index]]=Data[Index],Data[Adj Close]), IF(Transform_Data[[#This Row],[Unique Index]]=Data[Lag Index],Data[Adj Close])) -> 224.77655
D121: 2022-05-19 | E121: 251.893951 | F121: =IF(Data[[#This Row],[Adj Close]]<E122,TRUE,"") ->  | G121: =IF(F120=Data[[#This Row],[Up]],0,1) -> 0 | H121: =SUM($G$26:G121) -> 53 | I121: 53 | L121: 96 | M121: =INDEX(Data[Date],MATCH(Transform_Data[[#This Row],[Unique Index]],Data[Index],0)) -> 2022-10-11 | N121: =MAX( IF(Transform_Data[[#This Row],[Unique Index]]=Data[Index],Data[Adj Close]), IF(Transform_Data[[#This Row],[Unique Index]]=Data[Lag Index],Data[Adj Close])) -> 233.581741 | O121: =MIN(IF(Transform_Data[[#This Row],[Unique Index]]=Data[Index],Data[Adj Close]), IF(Transform_Data[[#This Row],[Unique Index]]=Data[Lag Index],Data[Adj Close])) -> 224.77655
D122: 2022-05-20 | E122: 251.316803 | F122: =IF(Data[[#This Row],[Adj Close]]<E123,TRUE,"") -> TRUE | G122: =IF(F121=Data[[#This Row],[Up]],0,1) -> 1 | H122: =SUM($G$26:G122) -> 54 | I122: 53 | L122: =N(L121)+1 -> 97 | M122: =INDEX(Data[Date],MATCH(Transform_Data[[#This Row],[Unique Index]],Data[Index],0)) -> 2022-10-13 | N122: =MAX( IF(Transform_Data[[#This Row],[Unique Index]]=Data[Index],Data[Adj Close]), IF(Transform_Data[[#This Row],[Unique Index]]=Data[Lag Index],Data[Adj Close])) -> 233.581741 | O122: =MIN(IF(Transform_Data[[#This Row],[Unique Index]]=Data[Index],Data[Adj Close]), IF(Transform_Data[[#This Row],[Unique Index]]=Data[Lag Index],Data[Adj Close])) -> 227.917694
D123: 2022-05-23 | E123: 259.366974 | F123: =IF(Data[[#This Row],[Adj Close]]<E124,TRUE,"") ->  | G123: =IF(F122=Data[[#This Row],[Up]],0,1) -> 1 | H123: =SUM($G$26:G123) -> 55 | I123: 54 | L123: 98 | M123: =INDEX(Data[Date],MATCH(Transform_Data[[#This Row],[Unique Index]],Data[Index],0)) -> 2022-10-14 | N123: =MAX( IF(Transform_Data[[#This Row],[Unique Index]]=Data[Index],Data[Adj Close]), IF(Transform_Data[[#This Row],[Unique Index]]=Data[Lag Index],Data[Adj Close])) -> 237.829758 | O123: =MIN(IF(Transform_Data[[#This Row],[Unique Index]]=Data[Index],Data[Adj Close]), IF(Transform_Data[[#This Row],[Unique Index]]=Data[Lag Index],Data[Adj Close])) -> 227.917694
D124: 2022-05-24 | E124: 258.342041 | F124: =IF(Data[[#This Row],[Adj Close]]<E125,TRUE,"") -> TRUE | G124: =IF(F123=Data[[#This Row],[Up]],0,1) -> 1 | H124: =SUM($G$26:G124) -> 56 | I124: 55 | L124: 99 | M124: =INDEX(Data[Date],MATCH(Transform_Data[[#This Row],[Unique Index]],Data[Index],0)) -> 2022-10-18 | N124: =MAX( IF(Transform_Data[[#This Row],[Unique Index]]=Data[Index],Data[Adj Close]), IF(Transform_Data[[#This Row],[Unique Index]]=Data[Lag Index],Data[Adj Close])) -> 237.829758 | O124: =MIN(IF(Transform_Data[[#This Row],[Unique Index]]=Data[Index],Data[Adj Close]), IF(Transform_Data[[#This Row],[Unique Index]]=Data[Lag Index],Data[Adj Close])) -> 235.486359
D125: 2022-05-25 | E125: 261.227783 | F125: =IF(Data[[#This Row],[Adj Close]]<E126,TRUE,"") -> TRUE | G125: =IF(F124=Data[[#This Row],[Up]],0,1) -> 0 | H125: =SUM($G$26:G125) -> 56 | I125: 56 | L125: 100 | M125: =INDEX(Data[Date],MATCH(Transform_Data[[#This Row],[Unique Index]],Data[Index],0)) -> 2022-10-20 | N125: =MAX( IF(Transform_Data[[#This Row],[Unique Index]]=Data[Index],Data[Adj Close]), IF(Transform_Data[[#This Row],[Unique Index]]=Data[Lag Index],Data[Adj Close])) -> 249.955582 | O125: =MIN(IF(Transform_Data[[#This Row],[Unique Index]]=Data[Index],Data[Adj Close]), IF(Transform_Data[[#This Row],[Unique Index]]=Data[Lag Index],Data[Adj Close])) -> 235.486359
D126: 2022-05-26 | E126: 264.591125 | F126: =IF(Data[[#This Row],[Adj Close]]<E127,TRUE,"") -> TRUE | G126: =IF(F125=Data[[#This Row],[Up]],0,1) -> 0 | H126: =SUM($G$26:G126) -> 56 | I126: 56 | L126: 101 | M126: =INDEX(Data[Date],MATCH(Transform_Data[[#This Row],[Unique Index]],Data[Index],0)) -> 2022-10-25 | N126: =MAX( IF(Transform_Data[[#This Row],[Unique Index]]=Data[Index],Data[Adj Close]), IF(Transform_Data[[#This Row],[Unique Index]]=Data[Lag Index],Data[Adj Close])) -> 249.955582 | O126: =MIN(IF(Transform_Data[[#This Row],[Unique Index]]=Data[Index],Data[Adj Close]), IF(Transform_Data[[#This Row],[Unique Index]]=Data[Lag Index],Data[Adj Close])) -> 226.112778
D127: 2022-05-27 | E127: 271.894989 | F127: =IF(Data[[#This Row],[Adj Close]]<E128,TRUE,"") ->  | G127: =IF(F126=Data[[#This Row],[Up]],0,1) -> 1 | H127: =SUM($G$26:G127) -> 57 | I127: 56 | L127: 102 | M127: =INDEX(Data[Date],MATCH(Transform_Data[[#This Row],[Unique Index]],Data[Index],0)) -> 2022-10-27 | N127: =MAX( IF(Transform_Data[[#This Row],[Unique Index]]=Data[Index],Data[Adj Close]), IF(Transform_Data[[#This Row],[Unique Index]]=Data[Lag Index],Data[Adj Close])) -> 235.207138 | O127: =MIN(IF(Transform_Data[[#This Row],[Unique Index]]=Data[Index],Data[Adj Close]), IF(Transform_Data[[#This Row],[Unique Index]]=Data[Lag Index],Data[Adj Close])) -> 226.112778
D128: 2022-05-31 | E128: 270.531769 | F128: =IF(Data[[#This Row],[Adj Close]]<E129,TRUE,"") -> TRUE | G128: =IF(F127=Data[[#This Row],[Up]],0,1) -> 1 | H128: =SUM($G$26:G128) -> 58 | I128: 57 | L128: 103 | M128: =INDEX(Data[Date],MATCH(Transform_Data[[#This Row],[Unique Index]],Data[Index],0)) -> 2022-10-28 | N128: =MAX( IF(Transform_Data[[#This Row],[Unique Index]]=Data[Index],Data[Adj Close]), IF(Transform_Data[[#This Row],[Unique Index]]=Data[Lag Index],Data[Adj Close])) -> 235.207138 | O128: =MIN(IF(Transform_Data[[#This Row],[Unique Index]]=Data[Index],Data[Adj Close]), IF(Transform_Data[[#This Row],[Unique Index]]=Data[Lag Index],Data[Adj Close])) -> 213.647903
D129: 2022-06-01 | E129: 271.079041 | F129: =IF(Data[[#This Row],[Adj Close]]<E130,TRUE,"") -> TRUE | G129: =IF(F128=Data[[#This Row],[Up]],0,1) -> 0 | H129: =SUM($G$26:G129) -> 58 | I129: 58 | L129: 104 | M129: =INDEX(Data[Date],MATCH(Transform_Data[[#This Row],[Unique Index]],Data[Index],0)) -> 2022-11-03 | N129: =MAX( IF(Transform_Data[[#This Row],[Unique Index]]=Data[Index],Data[Adj Close]), IF(Transform_Data[[#This Row],[Unique Index]]=Data[Lag Index],Data[Adj Close])) -> 228.226822 | O129: =MIN(IF(Transform_Data[[#This Row],[Unique Index]]=Data[Index],Data[Adj Close]), IF(Transform_Data[[#This Row],[Unique Index]]=Data[Lag Index],Data[Adj Close])) -> 213.647903
D130: 2022-06-02 | E130: 273.228394 | F130: =IF(Data[[#This Row],[Adj Close]]<E131,TRUE,"") ->  | G130: =IF(F129=Data[[#This Row],[Up]],0,1) -> 1 | H130: =SUM($G$26:G130) -> 59 | I130: 58 | L130: 105 | M130: =INDEX(Data[Date],MATCH(Transform_Data[[#This Row],[Unique Index]],Data[Index],0)) -> 2022-11-08 | N130: =MAX( IF(Transform_Data[[#This Row],[Unique Index]]=Data[Index],Data[Adj Close]), IF(Transform_Data[[#This Row],[Unique Index]]=Data[Lag Index],Data[Adj Close])) -> 228.226822 | O130: =MIN(IF(Transform_Data[[#This Row],[Unique Index]]=Data[Index],Data[Adj Close]), IF(Transform_Data[[#This Row],[Unique Index]]=Data[Lag Index],Data[Adj Close])) -> 223.879074
D131: 2022-06-03 | E131: 268.690857 | F131: =IF(Data[[#This Row],[Adj Close]]<E132,TRUE,"") ->  | G131: =IF(F130=Data[[#This Row],[Up]],0,1) -> 0 | H131: =SUM($G$26:G131) -> 59 | I131: 59 | L131: 106 | M131: =INDEX(Data[Date],MATCH(Transform_Data[[#This Row],[Unique Index]],Data[Index],0)) -> 2022-11-09 | N131: =MAX( IF(Transform_Data[[#This Row],[Unique Index]]=Data[Index],Data[Adj Close]), IF(Transform_Data[[#This Row],[Unique Index]]=Data[Lag Index],Data[Adj Close])) -> 246.415558 | O131: =MIN(IF(Transform_Data[[#This Row],[Unique Index]]=Data[Index],Data[Adj Close]), IF(Transform_Data[[#This Row],[Unique Index]]=Data[Lag Index],Data[Adj Close])) -> 223.879074
D132: 2022-06-06 | E132: 267.427094 | F132: =IF(Data[[#This Row],[Adj Close]]<E133,TRUE,"") -> TRUE | G132: =IF(F131=Data[[#This Row],[Up]],0,1) -> 1 | H132: =SUM($G$26:G132) -> 60 | I132: 59 | L132: 107 | M132: =INDEX(Data[Date],MATCH(Transform_Data[[#This Row],[Unique Index]],Data[Index],0)) -> 2022-11-11 | N132: =MAX( IF(Transform_Data[[#This Row],[Unique Index]]=Data[Index],Data[Adj Close]), IF(Transform_Data[[#This Row],[Unique Index]]=Data[Lag Index],Data[Adj Close])) -> 246.415558 | O132: =MIN(IF(Transform_Data[[#This Row],[Unique Index]]=Data[Index],Data[Adj Close]), IF(Transform_Data[[#This Row],[Unique Index]]=Data[Lag Index],Data[Adj Close])) -> 240.871185
D133: 2022-06-07 | E133: 271.158661 | F133: =IF(Data[[#This Row],[Adj Close]]<E134,TRUE,"") ->  | G133: =IF(F132=Data[[#This Row],[Up]],0,1) -> 1 | H133: =SUM($G$26:G133) -> 61 | I133: 60 | L133: 108 | M133: =INDEX(Data[Date],MATCH(Transform_Data[[#This Row],[Unique Index]],Data[Index],0)) -> 2022-11-14 | N133: =MAX( IF(Transform_Data[[#This Row],[Unique Index]]=Data[Index],Data[Adj Close]), IF(Transform_Data[[#This Row],[Unique Index]]=Data[Lag Index],Data[Adj Close])) -> 241.729996 | O133: =MIN(IF(Transform_Data[[#This Row],[Unique Index]]=Data[Index],Data[Adj Close]), IF(Transform_Data[[#This Row],[Unique Index]]=Data[Lag Index],Data[Adj Close])) -> 240.871185
D134: 2022-06-08 | E134: 269.078949 | F134: =IF(Data[[#This Row],[Adj Close]]<E135,TRUE,"") ->  | G134: =IF(F133=Data[[#This Row],[Up]],0,1) -> 0 | H134: =SUM($G$26:G134) -> 61 | I134: 61 | L134: 109 | M134: =INDEX(Data[Date],MATCH(Transform_Data[[#This Row],[Unique Index]],Data[Index],0)) -> 2022-11-16 | N134: =MAX( IF(Transform_Data[[#This Row],[Unique Index]]=Data[Index],Data[Adj Close]), IF(Transform_Data[[#This Row],[Unique Index]]=Data[Lag Index],Data[Adj Close])) -> 241.729996 | O134: =MIN(IF(Transform_Data[[#This Row],[Unique Index]]=Data[Index],Data[Adj Close]), IF(Transform_Data[[#This Row],[Unique Index]]=Data[Lag Index],Data[Adj Close])) -> 241.220001
D135: 2022-06-09 | E135: 263.486633 | F135: =IF(Data[[#This Row],[Adj Close]]<E136,TRUE,"") ->  | G135: =IF(F134=Data[[#This Row],[Up]],0,1) -> 0 | H135: =SUM($G$26:G135) -> 61 | I135: 61 | L135: 110 | M135: =INDEX(Data[Date],MATCH(Transform_Data[[#This Row],[Unique Index]],Data[Index],0)) -> 2022-11-18 | N135: =MAX( IF(Transform_Data[[#This Row],[Unique Index]]=Data[Index],Data[Adj Close]), IF(Transform_Data[[#This Row],[Unique Index]]=Data[Lag Index],Data[Adj Close])) -> 247.580002 | O135: =MIN(IF(Transform_Data[[#This Row],[Unique Index]]=Data[Index],Data[Adj Close]), IF(Transform_Data[[#This Row],[Unique Index]]=Data[Lag Index],Data[Adj Close])) -> 241.220001
D136: 2022-06-10 | E136: 251.74469 | F136: =IF(Data[[#This Row],[Adj Close]]<E137,TRUE,"") ->  | G136: =IF(F135=Data[[#This Row],[Up]],0,1) -> 0 | H136: =SUM($G$26:G136) -> 61 | I136: 61 | L136: 111 | M136: =INDEX(Data[Date],MATCH(Transform_Data[[#This Row],[Unique Index]],Data[Index],0)) -> 2022-11-23 | N136: =MAX( IF(Transform_Data[[#This Row],[Unique Index]]=Data[Index],Data[Adj Close]), IF(Transform_Data[[#This Row],[Unique Index]]=Data[Lag Index],Data[Adj Close])) -> 247.580002 | O136: =MIN(IF(Transform_Data[[#This Row],[Unique Index]]=Data[Index],Data[Adj Close]), IF(Transform_Data[[#This Row],[Unique Index]]=Data[Lag Index],Data[Adj Close])) -> 240.330002
D137: 2022-06-13 | E137: 241.067505 | F137: =IF(Data[[#This Row],[Adj Close]]<E138,TRUE,"") -> TRUE | G137: =IF(F136=Data[[#This Row],[Up]],0,1) -> 1 | H137: =SUM($G$26:G137) -> 62 | I137: 61 | L137: 112 | M137: =INDEX(Data[Date],MATCH(Transform_Data[[#This Row],[Unique Index]],Data[Index],0)) -> 2022-11-29 | N137: =MAX( IF(Transform_Data[[#This Row],[Unique Index]]=Data[Index],Data[Adj Close]), IF(Transform_Data[[#This Row],[Unique Index]]=Data[Lag Index],Data[Adj Close])) -> 255.139999 | O137: =MIN(IF(Transform_Data[[#This Row],[Unique Index]]=Data[Index],Data[Adj Close]), IF(Transform_Data[[#This Row],[Unique Index]]=Data[Lag Index],Data[Adj Close])) -> 240.330002
D138: 2022-06-14 | E138: 243.28653 | F138: =IF(Data[[#This Row],[Adj Close]]<E139,TRUE,"") -> TRUE | G138: =IF(F137=Data[[#This Row],[Up]],0,1) -> 0 | H138: =SUM($G$26:G138) -> 62 | I138: 62 | L138: 113 | M138: =INDEX(Data[Date],MATCH(Transform_Data[[#This Row],[Unique Index]],Data[Index],0)) -> 2022-11-30 | N138: =MAX( IF(Transform_Data[[#This Row],[Unique Index]]=Data[Index],Data[Adj Close]), IF(Transform_Data[[#This Row],[Unique Index]]=Data[Lag Index],Data[Adj Close])) -> 255.139999 | O138: =MIN(IF(Transform_Data[[#This Row],[Unique Index]]=Data[Index],Data[Adj Close]), IF(Transform_Data[[#This Row],[Unique Index]]=Data[Lag Index],Data[Adj Close])) -> 254.690002
D139: 2022-06-15 | E139: 250.520737 | F139: =IF(Data[[#This Row],[Adj Close]]<E140,TRUE,"") ->  | G139: =IF(F138=Data[[#This Row],[Up]],0,1) -> 1 | H139: =SUM($G$26:G139) -> 63 | I139: 62 | L139: 114 | M139: =INDEX(Data[Date],MATCH(Transform_Data[[#This Row],[Unique Index]],Data[Index],0)) -> 2022-12-01 | N139: =MAX( IF(Transform_Data[[#This Row],[Unique Index]]=Data[Index],Data[Adj Close]), IF(Transform_Data[[#This Row],[Unique Index]]=Data[Lag Index],Data[Adj Close])) -> 255.020004 | O139: =MIN(IF(Transform_Data[[#This Row],[Unique Index]]=Data[Index],Data[Adj Close]), IF(Transform_Data[[#This Row],[Unique Index]]=Data[Lag Index],Data[Adj Close])) -> 254.690002
D140: 2022-06-16 | E140: 243.76416 | F140: =IF(Data[[#This Row],[Adj Close]]<E141,TRUE,"") -> TRUE | G140: =IF(F139=Data[[#This Row],[Up]],0,1) -> 1 | H140: =SUM($G$26:G140) -> 64 | I140: 63 | L140: 115 | M140: =INDEX(Data[Date],MATCH(Transform_Data[[#This Row],[Unique Index]],Data[Index],0)) -> 2022-12-02 | N140: =MAX( IF(Transform_Data[[#This Row],[Unique Index]]=Data[Index],Data[Adj Close]), IF(Transform_Data[[#This Row],[Unique Index]]=Data[Lag Index],Data[Adj Close])) -> 255.020004 | O140: =MIN(IF(Transform_Data[[#This Row],[Unique Index]]=Data[Index],Data[Adj Close]), IF(Transform_Data[[#This Row],[Unique Index]]=Data[Lag Index],Data[Adj Close])) -> 244.369995
D141: 2022-06-17 | E141: 246.430969 | F141: =IF(Data[[#This Row],[Adj Close]]<E142,TRUE,"") -> TRUE | G141: =IF(F140=Data[[#This Row],[Up]],0,1) -> 0 | H141: =SUM($G$26:G141) -> 64 | I141: 64 | L141: 116 | M141: =INDEX(Data[Date],MATCH(Transform_Data[[#This Row],[Unique Index]],Data[Index],0)) -> 2022-12-07 | N141: =MAX( IF(Transform_Data[[#This Row],[Unique Index]]=Data[Index],Data[Adj Close]), IF(Transform_Data[[#This Row],[Unique Index]]=Data[Lag Index],Data[Adj Close])) -> 247.399994 | O141: =MIN(IF(Transform_Data[[#This Row],[Unique Index]]=Data[Index],Data[Adj Close]), IF(Transform_Data[[#This Row],[Unique Index]]=Data[Lag Index],Data[Adj Close])) -> 244.369995
D142: 2022-06-21 | E142: 252.490997 | F142: =IF(Data[[#This Row],[Adj Close]]<E143,TRUE,"") ->  | G142: =IF(F141=Data[[#This Row],[Up]],0,1) -> 1 | H142: =SUM($G$26:G142) -> 65 | I142: 64 | L142: 117 | M142: =INDEX(Data[Date],MATCH(Transform_Data[[#This Row],[Unique Index]],Data[Index],0)) -> 2022-12-08 | N142: =MAX( IF(Transform_Data[[#This Row],[Unique Index]]=Data[Index],Data[Adj Close]), IF(Transform_Data[[#This Row],[Unique Index]]=Data[Lag Index],Data[Adj Close])) -> 247.399994 | O142: =MIN(IF(Transform_Data[[#This Row],[Unique Index]]=Data[Index],Data[Adj Close]), IF(Transform_Data[[#This Row],[Unique Index]]=Data[Lag Index],Data[Adj Close])) -> 245.419998
D143: 2022-06-22 | E143: 251.884003 | F143: =IF(Data[[#This Row],[Adj Close]]<E144,TRUE,"") -> TRUE | G143: =IF(F142=Data[[#This Row],[Up]],0,1) -> 1 | H143: =SUM($G$26:G143) -> 66 | I143: 65 | L143: 118 | M143: =INDEX(Data[Date],MATCH(Transform_Data[[#This Row],[Unique Index]],Data[Index],0)) -> 2022-12-09 | N143: =MAX( IF(Transform_Data[[#This Row],[Unique Index]]=Data[Index],Data[Adj Close]), IF(Transform_Data[[#This Row],[Unique Index]]=Data[Lag Index],Data[Adj Close])) -> 257.220001 | O143: =MIN(IF(Transform_Data[[#This Row],[Unique Index]]=Data[Index],Data[Adj Close]), IF(Transform_Data[[#This Row],[Unique Index]]=Data[Lag Index],Data[Adj Close])) -> 245.419998
D144: 2022-06-23 | E144: 257.585785 | F144: =IF(Data[[#This Row],[Adj Close]]<E145,TRUE,"") -> TRUE | G144: =IF(F143=Data[[#This Row],[Up]],0,1) -> 0 | H144: =SUM($G$26:G144) -> 66 | I144: 66 | L144: 119 | M144: =INDEX(Data[Date],MATCH(Transform_Data[[#This Row],[Unique Index]],Data[Index],0)) -> 2022-12-14 | N144: =MAX( IF(Transform_Data[[#This Row],[Unique Index]]=Data[Index],Data[Adj Close]), IF(Transform_Data[[#This Row],[Unique Index]]=Data[Lag Index],Data[Adj Close])) -> 257.220001 | O144: =MIN(IF(Transform_Data[[#This Row],[Unique Index]]=Data[Index],Data[Adj Close]), IF(Transform_Data[[#This Row],[Unique Index]]=Data[Lag Index],Data[Adj Close])) -> 240.449997
D145: 2022-06-24 | E145: 266.382294 | F145: =IF(Data[[#This Row],[Adj Close]]<E146,TRUE,"") ->  | G145: =IF(F144=Data[[#This Row],[Up]],0,1) -> 1 | H145: =SUM($G$26:G145) -> 67 | I145: 66 | L145: 120 | M145: =INDEX(Data[Date],MATCH(Transform_Data[[#This Row],[Unique Index]],Data[Index],0)) -> 2022-12-19 | N145: =MAX( IF(Transform_Data[[#This Row],[Unique Index]]=Data[Index],Data[Adj Close]), IF(Transform_Data[[#This Row],[Unique Index]]=Data[Lag Index],Data[Adj Close])) -> 244.429993 | O145: =MIN(IF(Transform_Data[[#This Row],[Unique Index]]=Data[Index],Data[Adj Close]), IF(Transform_Data[[#This Row],[Unique Index]]=Data[Lag Index],Data[Adj Close])) -> 240.449997
D146: 2022-06-27 | E146: 263.586121 | F146: =IF(Data[[#This Row],[Adj Close]]<E147,TRUE,"") ->  | G146: =IF(F145=Data[[#This Row],[Up]],0,1) -> 0 | H146: =SUM($G$26:G146) -> 67 | I146: 67 | L146: 121 | M146: =INDEX(Data[Date],MATCH(Transform_Data[[#This Row],[Unique Index]],Data[Index],0)) -> 2022-12-21 | N146: =MAX( IF(Transform_Data[[#This Row],[Unique Index]]=Data[Index],Data[Adj Close]), IF(Transform_Data[[#This Row],[Unique Index]]=Data[Lag Index],Data[Adj Close])) -> 244.429993 | O146: =MIN(IF(Transform_Data[[#This Row],[Unique Index]]=Data[Index],Data[Adj Close]), IF(Transform_Data[[#This Row],[Unique Index]]=Data[Lag Index],Data[Adj Close])) -> 238.190002
D147: 2022-06-28 | E147: 255.217514 | F147: =IF(Data[[#This Row],[Adj Close]]<E148,TRUE,"") -> TRUE | G147: =IF(F146=Data[[#This Row],[Up]],0,1) -> 1 | H147: =SUM($G$26:G147) -> 68 | I147: 67 | L147: 122 | M147: =INDEX(Data[Date],MATCH(Transform_Data[[#This Row],[Unique Index]],Data[Index],0)) -> 2022-12-22 | N147: =MAX( IF(Transform_Data[[#This Row],[Unique Index]]=Data[Index],Data[Adj Close]), IF(Transform_Data[[#This Row],[Unique Index]]=Data[Lag Index],Data[Adj Close])) -> 238.729996 | O147: =MIN(IF(Transform_Data[[#This Row],[Unique Index]]=Data[Index],Data[Adj Close]), IF(Transform_Data[[#This Row],[Unique Index]]=Data[Lag Index],Data[Adj Close])) -> 238.190002
D148: 2022-06-29 | E148: 258.978912 | F148: =IF(Data[[#This Row],[Adj Close]]<E149,TRUE,"") ->  | G148: =IF(F147=Data[[#This Row],[Up]],0,1) -> 1 | H148: =SUM($G$26:G148) -> 69 | I148: 68 | L148: 123 | M148: =INDEX(Data[Date],MATCH(Transform_Data[[#This Row],[Unique Index]],Data[Index],0)) -> 2022-12-23 | N148: =MAX( IF(Transform_Data[[#This Row],[Unique Index]]=Data[Index],Data[Adj Close]), IF(Transform_Data[[#This Row],[Unique Index]]=Data[Lag Index],Data[Adj Close])) -> 238.729996 | O148: =MIN(IF(Transform_Data[[#This Row],[Unique Index]]=Data[Index],Data[Adj Close]), IF(Transform_Data[[#This Row],[Unique Index]]=Data[Lag Index],Data[Adj Close])) -> 234.529999
D149: 2022-06-30 | E149: 255.565781 | F149: =IF(Data[[#This Row],[Adj Close]]<E150,TRUE,"") -> TRUE | G149: =IF(F148=Data[[#This Row],[Up]],0,1) -> 1 | H149: =SUM($G$26:G149) -> 70 | I149: 69 | L149: 124 | M149: =INDEX(Data[Date],MATCH(Transform_Data[[#This Row],[Unique Index]],Data[Index],0)) -> 2022-12-28 | N149: =MAX( IF(Transform_Data[[#This Row],[Unique Index]]=Data[Index],Data[Adj Close]), IF(Transform_Data[[#This Row],[Unique Index]]=Data[Lag Index],Data[Adj Close])) -> 241.009995 | O149: =MIN(IF(Transform_Data[[#This Row],[Unique Index]]=Data[Index],Data[Adj Close]), IF(Transform_Data[[#This Row],[Unique Index]]=Data[Lag Index],Data[Adj Close])) -> 234.529999
D150: 2022-07-01 | E150: 258.302216 | F150: =IF(Data[[#This Row],[Adj Close]]<E151,TRUE,"") -> TRUE | G150: =IF(F149=Data[[#This Row],[Up]],0,1) -> 0 | H150: =SUM($G$26:G150) -> 70 | I150: 70 | L150: 125 | M150: =INDEX(Data[Date],MATCH(Transform_Data[[#This Row],[Unique Index]],Data[Index],0)) -> 2022-12-29 | N150: =MAX( IF(Transform_Data[[#This Row],[Unique Index]]=Data[Index],Data[Adj Close]), IF(Transform_Data[[#This Row],[Unique Index]]=Data[Lag Index],Data[Adj Close])) -> 241.009995 | O150: =MIN(IF(Transform_Data[[#This Row],[Unique Index]]=Data[Index],Data[Adj Close]), IF(Transform_Data[[#This Row],[Unique Index]]=Data[Lag Index],Data[Adj Close])) -> 222.309998
D151: 2022-07-05 | E151: 261.556152 | F151: =IF(Data[[#This Row],[Adj Close]]<E152,TRUE,"") -> TRUE | G151: =IF(F150=Data[[#This Row],[Up]],0,1) -> 0 | H151: =SUM($G$26:G151) -> 70 | I151: 70 | L151: 126 | M151: =INDEX(Data[Date],MATCH(Transform_Data[[#This Row],[Unique Index]],Data[Index],0)) -> 2023-01-05 | N151: =MAX( IF(Transform_Data[[#This Row],[Unique Index]]=Data[Index],Data[Adj Close]), IF(Transform_Data[[#This Row],[Unique Index]]=Data[Lag Index],Data[Adj Close])) -> 240.350006 | O151: =MIN(IF(Transform_Data[[#This Row],[Unique Index]]=Data[Index],Data[Adj Close]), IF(Transform_Data[[#This Row],[Unique Index]]=Data[Lag Index],Data[Adj Close])) -> 222.309998
D152: 2022-07-06 | E152: 264.899597 | F152: =IF(Data[[#This Row],[Adj Close]]<E153,TRUE,"") -> TRUE | G152: =IF(F151=Data[[#This Row],[Up]],0,1) -> 0 | H152: =SUM($G$26:G152) -> 70 | I152: 70 | L152: 127 | M152: =INDEX(Data[Date],MATCH(Transform_Data[[#This Row],[Unique Index]],Data[Index],0)) -> 2023-01-17 | N152: =MAX( IF(Transform_Data[[#This Row],[Unique Index]]=Data[Index],Data[Adj Close]), IF(Transform_Data[[#This Row],[Unique Index]]=Data[Lag Index],Data[Adj Close])) -> 240.350006 | O152: =MIN(IF(Transform_Data[[#This Row],[Unique Index]]=Data[Index],Data[Adj Close]), IF(Transform_Data[[#This Row],[Unique Index]]=Data[Lag Index],Data[Adj Close])) -> 231.929993
D153: 2022-07-07 | E153: 267.078827 | F153: =IF(Data[[#This Row],[Adj Close]]<E154,TRUE,"") ->  | G153: =IF(F152=Data[[#This Row],[Up]],0,1) -> 1 | H153: =SUM($G$26:G153) -> 71 | I153: 70 | L153: 128 | M153: =INDEX(Data[Date],MATCH(Transform_Data[[#This Row],[Unique Index]],Data[Index],0)) -> 2023-01-19 | N153: =MAX( IF(Transform_Data[[#This Row],[Unique Index]]=Data[Index],Data[Adj Close]), IF(Transform_Data[[#This Row],[Unique Index]]=Data[Lag Index],Data[Adj Close])) -> 242.580002 | O153: =MIN(IF(Transform_Data[[#This Row],[Unique Index]]=Data[Index],Data[Adj Close]), IF(Transform_Data[[#This Row],[Unique Index]]=Data[Lag Index],Data[Adj Close])) -> 231.929993
D154: 2022-07-08 | E154: 266.342468 | F154: =IF(Data[[#This Row],[Adj Close]]<E155,TRUE,"") ->  | G154: =IF(F153=Data[[#This Row],[Up]],0,1) -> 0 | H154: =SUM($G$26:G154) -> 71 | I154: =N(H153) -> 71 | L154: 129 | M154: =INDEX(Data[Date],MATCH(Transform_Data[[#This Row],[Unique Index]],Data[Index],0)) -> 2023-01-23 | N154: =MAX( IF(Transform_Data[[#This Row],[Unique Index]]=Data[Index],Data[Adj Close]), IF(Transform_Data[[#This Row],[Unique Index]]=Data[Lag Index],Data[Adj Close])) -> 242.580002 | O154: =MIN(IF(Transform_Data[[#This Row],[Unique Index]]=Data[Index],Data[Adj Close]), IF(Transform_Data[[#This Row],[Unique Index]]=Data[Lag Index],Data[Adj Close])) -> 240.610001
D155: 2022-07-11 | E155: 263.207977 | F155: =IF(Data[[#This Row],[Adj Close]]<E156,TRUE,"") ->  | G155: =IF(F154=Data[[#This Row],[Up]],0,1) -> 0 | H155: =SUM($G$26:G155) -> 71 | I155: 71 | L155: 130 | M155: =INDEX(Data[Date],MATCH(Transform_Data[[#This Row],[Unique Index]],Data[Index],0)) -> 2023-01-25 | N155: =MAX( IF(Transform_Data[[#This Row],[Unique Index]]=Data[Index],Data[Adj Close]), IF(Transform_Data[[#This Row],[Unique Index]]=Data[Lag Index],Data[Adj Close])) -> 248.160004 | O155: =MIN(IF(Transform_Data[[#This Row],[Unique Index]]=Data[Index],Data[Adj Close]), IF(Transform_Data[[#This Row],[Unique Index]]=Data[Lag Index],Data[Adj Close])) -> 240.610001
D156: 2022-07-12 | E156: 252.421326 | F156: =IF(Data[[#This Row],[Adj Close]]<E157,TRUE,"") ->  | G156: =IF(F155=Data[[#This Row],[Up]],0,1) -> 0 | H156: =SUM($G$26:G156) -> 71 | I156: 71
D157: 2022-07-13 | E157: 251.476013 | F157: =IF(Data[[#This Row],[Adj Close]]<E158,TRUE,"") -> TRUE | G157: =IF(F156=Data[[#This Row],[Up]],0,1) -> 1 | H157: =SUM($G$26:G157) -> 72 | I157: 71
D158: 2022-07-14 | E158: 252.82933 | F158: =IF(Data[[#This Row],[Adj Close]]<E159,TRUE,"") -> TRUE | G158: =IF(F157=Data[[#This Row],[Up]],0,1) -> 0 | H158: =SUM($G$26:G158) -> 72 | I158: 72
D159: 2022-07-15 | E159: 255.456314 | F159: =IF(Data[[#This Row],[Adj Close]]<E160,TRUE,"") ->  | G159: =IF(F158=Data[[#This Row],[Up]],0,1) -> 1 | H159: =SUM($G$26:G159) -> 73 | I159: 72
D160: 2022-07-18 | E160: 252.998474 | F160: =IF(Data[[#This Row],[Adj Close]]<E161,TRUE,"") -> TRUE | G160: =IF(F159=Data[[#This Row],[Up]],0,1) -> 1 | H160: =SUM($G$26:G160) -> 74 | I160: 73
D161: 2022-07-19 | E161: 258.252502 | F161: =IF(Data[[#This Row],[Adj Close]]<E162,TRUE,"") -> TRUE | G161: =IF(F160=Data[[#This Row],[Up]],0,1) -> 0 | H161: =SUM($G$26:G161) -> 74 | I161: 74
D162: 2022-07-20 | E162: 260.979004 | F162: =IF(Data[[#This Row],[Adj Close]]<E163,TRUE,"") -> TRUE | G162: =IF(F161=Data[[#This Row],[Up]],0,1) -> 0 | H162: =SUM($G$26:G162) -> 74 | I162: 74
D163: 2022-07-21 | E163: 263.536346 | F163: =IF(Data[[#This Row],[Adj Close]]<E164,TRUE,"") ->  | G163: =IF(F162=Data[[#This Row],[Up]],0,1) -> 1 | H163: =SUM($G$26:G163) -> 75 | I163: 74
D164: 2022-07-22 | E164: 259.0784 | F164: =IF(Data[[#This Row],[Adj Close]]<E165,TRUE,"") ->  | G164: =IF(F163=Data[[#This Row],[Up]],0,1) -> 0 | H164: =SUM($G$26:G164) -> 75 | I164: 75
D165: 2022-07-25 | E165: 257.555908 | F165: =IF(Data[[#This Row],[Adj Close]]<E166,TRUE,"") ->  | G165: =IF(F164=Data[[#This Row],[Up]],0,1) -> 0 | H165: =SUM($G$26:G165) -> 75 | I165: 75
D166: 2022-07-26 | E166: 250.660034 | F166: =IF(Data[[#This Row],[Adj Close]]<E167,TRUE,"") -> TRUE | G166: =IF(F165=Data[[#This Row],[Up]],0,1) -> 1 | H166: =SUM($G$26:G166) -> 76 | I166: 75
D167: 2022-07-27 | E167: 267.417145 | F167: =IF(Data[[#This Row],[Adj Close]]<E168,TRUE,"") -> TRUE | G167: =IF(F166=Data[[#This Row],[Up]],0,1) -> 0 | H167: =SUM($G$26:G167) -> 76 | I167: 76
D168: 2022-07-28 | E168: 275.049408 | F168: =IF(Data[[#This Row],[Adj Close]]<E169,TRUE,"") -> TRUE | G168: =IF(F167=Data[[#This Row],[Up]],0,1) -> 0 | H168: =SUM($G$26:G168) -> 76 | I168: 76
D169: 2022-07-29 | E169: 279.358093 | F169: =IF(Data[[#This Row],[Adj Close]]<E170,TRUE,"") ->  | G169: =IF(F168=Data[[#This Row],[Up]],0,1) -> 1 | H169: =SUM($G$26:G169) -> 77 | I169: 76
D170: 2022-08-01 | E170: 276.641541 | F170: =IF(Data[[#This Row],[Adj Close]]<E171,TRUE,"") ->  | G170: =IF(F169=Data[[#This Row],[Up]],0,1) -> 0 | H170: =SUM($G$26:G170) -> 77 | I170: 77
D171: 2022-08-02 | E171: 273.467224 | F171: =IF(Data[[#This Row],[Adj Close]]<E172,TRUE,"") -> TRUE | G171: =IF(F170=Data[[#This Row],[Up]],0,1) -> 1 | H171: =SUM($G$26:G171) -> 78 | I171: 77
D172: 2022-08-03 | E172: 281.079559 | F172: =IF(Data[[#This Row],[Adj Close]]<E173,TRUE,"") -> TRUE | G172: =IF(F171=Data[[#This Row],[Up]],0,1) -> 0 | H172: =SUM($G$26:G172) -> 78 | I172: 78
D173: 2022-08-04 | E173: 282.253754 | F173: =IF(Data[[#This Row],[Adj Close]]<E174,TRUE,"") ->  | G173: =IF(F172=Data[[#This Row],[Up]],0,1) -> 1 | H173: =SUM($G$26:G173) -> 79 | I173: 78
D174: 2022-08-05 | E174: 281.517395 | F174: =IF(Data[[#This Row],[Adj Close]]<E175,TRUE,"") ->  | G174: =IF(F173=Data[[#This Row],[Up]],0,1) -> 0 | H174: =SUM($G$26:G174) -> 79 | I174: 79
D175: 2022-08-08 | E175: 278.940155 | F175: =IF(Data[[#This Row],[Adj Close]]<E176,TRUE,"") -> TRUE | G175: =IF(F174=Data[[#This Row],[Up]],0,1) -> 1 | H175: =SUM($G$26:G175) -> 80 | I175: 79
D176: 2022-08-09 | E176: 280.9104 | F176: =IF(Data[[#This Row],[Adj Close]]<E177,TRUE,"") -> TRUE | G176: =IF(F175=Data[[#This Row],[Up]],0,1) -> 0 | H176: =SUM($G$26:G176) -> 80 | I176: 80
D177: 2022-08-10 | E177: 287.736633 | F177: =IF(Data[[#This Row],[Adj Close]]<E178,TRUE,"") ->  | G177: =IF(F176=Data[[#This Row],[Up]],0,1) -> 1 | H177: =SUM($G$26:G177) -> 81 | I177: 80
D178: 2022-08-11 | E178: 285.607147 | F178: =IF(Data[[#This Row],[Adj Close]]<E179,TRUE,"") -> TRUE | G178: =IF(F177=Data[[#This Row],[Up]],0,1) -> 1 | H178: =SUM($G$26:G178) -> 82 | I178: 81
D179: 2022-08-12 | E179: 290.473114 | F179: =IF(Data[[#This Row],[Adj Close]]<E180,TRUE,"") -> TRUE | G179: =IF(F178=Data[[#This Row],[Up]],0,1) -> 0 | H179: =SUM($G$26:G179) -> 82 | I179: 82
D180: 2022-08-15 | E180: 292.025452 | F180: =IF(Data[[#This Row],[Adj Close]]<E181,TRUE,"") ->  | G180: =IF(F179=Data[[#This Row],[Up]],0,1) -> 1 | H180: =SUM($G$26:G180) -> 83 | I180: 82
D181: 2022-08-16 | E181: 291.269165 | F181: =IF(Data[[#This Row],[Adj Close]]<E182,TRUE,"") ->  | G181: =IF(F180=Data[[#This Row],[Up]],0,1) -> 0 | H181: =SUM($G$26:G181) -> 83 | I181: 83
D182: 2022-08-17 | E182: 290.501343 | F182: =IF(Data[[#This Row],[Adj Close]]<E183,TRUE,"") ->  | G182: =IF(F181=Data[[#This Row],[Up]],0,1) -> 0 | H182: =SUM($G$26:G182) -> 83 | I182: 83
D183: 2022-08-18 | E183: 289.354553 | F183: =IF(Data[[#This Row],[Adj Close]]<E184,TRUE,"") ->  | G183: =IF(F182=Data[[#This Row],[Up]],0,1) -> 0 | H183: =SUM($G$26:G183) -> 83 | I183: 83
D184: 2022-08-19 | E184: 285.345856 | F184: =IF(Data[[#This Row],[Adj Close]]<E185,TRUE,"") ->  | G184: =IF(F183=Data[[#This Row],[Up]],0,1) -> 0 | H184: =SUM($G$26:G184) -> 83 | I184: 83
D185: 2022-08-22 | E185: 276.969452 | F185: =IF(Data[[#This Row],[Adj Close]]<E186,TRUE,"") ->  | G185: =IF(F184=Data[[#This Row],[Up]],0,1) -> 0 | H185: =SUM($G$26:G185) -> 83 | I185: 83
D186: 2022-08-23 | E186: 275.663147 | F186: =IF(Data[[#This Row],[Adj Close]]<E187,TRUE,"") ->  | G186: =IF(F185=Data[[#This Row],[Up]],0,1) -> 0 | H186: =SUM($G$26:G186) -> 83 | I186: 83
D187: 2022-08-24 | E187: 275.014984 | F187: =IF(Data[[#This Row],[Adj Close]]<E188,TRUE,"") -> TRUE | G187: =IF(F186=Data[[#This Row],[Up]],0,1) -> 1 | H187: =SUM($G$26:G187) -> 84 | I187: 83
D188: 2022-08-25 | E188: 278.066376 | F188: =IF(Data[[#This Row],[Adj Close]]<E189,TRUE,"") ->  | G188: =IF(F187=Data[[#This Row],[Up]],0,1) -> 1 | H188: =SUM($G$26:G188) -> 85 | I188: 84
D189: 2022-08-26 | E189: 267.336609 | F189: =IF(Data[[#This Row],[Adj Close]]<E190,TRUE,"") ->  | G189: =IF(F188=Data[[#This Row],[Up]],0,1) -> 0 | H189: =SUM($G$26:G189) -> 85 | I189: 85
D190: 2022-08-29 | E190: 264.48465 | F190: =IF(Data[[#This Row],[Adj Close]]<E191,TRUE,"") ->  | G190: =IF(F189=Data[[#This Row],[Up]],0,1) -> 0 | H190: =SUM($G$26:G190) -> 85 | I190: 85
D191: 2022-08-30 | E191: 262.230988 | F191: =IF(Data[[#This Row],[Adj Close]]<E192,TRUE,"") ->  | G191: =IF(F190=Data[[#This Row],[Up]],0,1) -> 0 | H191: =SUM($G$26:G191) -> 85 | I191: 85
D192: 2022-08-31 | E192: 260.735199 | F192: =IF(Data[[#This Row],[Adj Close]]<E193,TRUE,"") ->  | G192: =IF(F191=Data[[#This Row],[Up]],0,1) -> 0 | H192: =SUM($G$26:G192) -> 85 | I192: 85
D193: 2022-09-01 | E193: 259.668213 | F193: =IF(Data[[#This Row],[Adj Close]]<E194,TRUE,"") ->  | G193: =IF(F192=Data[[#This Row],[Up]],0,1) -> 0 | H193: =SUM($G$26:G193) -> 85 | I193: 85
D194: 2022-09-02 | E194: 255.340408 | F194: =IF(Data[[#This Row],[Adj Close]]<E195,TRUE,"") ->  | G194: =IF(F193=Data[[#This Row],[Up]],0,1) -> 0 | H194: =SUM($G$26:G194) -> 85 | I194: 85
D195: 2022-09-06 | E195: 252.5383 | F195: =IF(Data[[#This Row],[Adj Close]]<E196,TRUE,"") -> TRUE | G195: =IF(F194=Data[[#This Row],[Up]],0,1) -> 1 | H195: =SUM($G$26:G195) -> 86 | I195: 85
D196: 2022-09-07 | E196: 257.364716 | F196: =IF(Data[[#This Row],[Adj Close]]<E197,TRUE,"") -> TRUE | G196: =IF(F195=Data[[#This Row],[Up]],0,1) -> 0 | H196: =SUM($G$26:G196) -> 86 | I196: 86
D197: 2022-09-08 | E197: 257.793488 | F197: =IF(Data[[#This Row],[Adj Close]]<E198,TRUE,"") -> TRUE | G197: =IF(F196=Data[[#This Row],[Up]],0,1) -> 0 | H197: =SUM($G$26:G197) -> 86 | I197: 86
D198: 2022-09-09 | E198: 263.716797 | F198: =IF(Data[[#This Row],[Adj Close]]<E199,TRUE,"") -> TRUE | G198: =IF(F197=Data[[#This Row],[Up]],0,1) -> 0 | H198: =SUM($G$26:G198) -> 86 | I198: 86
D199: 2022-09-12 | E199: 265.900635 | F199: =IF(Data[[#This Row],[Adj Close]]<E200,TRUE,"") ->  | G199: =IF(F198=Data[[#This Row],[Up]],0,1) -> 1 | H199: =SUM($G$26:G199) -> 87 | I199: 86
D200: 2022-09-13 | E200: 251.28186 | F200: =IF(Data[[#This Row],[Adj Close]]<E201,TRUE,"") -> TRUE | G200: =IF(F199=Data[[#This Row],[Up]],0,1) -> 1 | H200: =SUM($G$26:G200) -> 88 | I200: 87
D201: 2022-09-14 | E201: 251.5112 | F201: =IF(Data[[#This Row],[Adj Close]]<E202,TRUE,"") ->  | G201: =IF(F200=Data[[#This Row],[Up]],0,1) -> 1 | H201: =SUM($G$26:G201) -> 89 | I201: 88
D202: 2022-09-15 | E202: 244.69043 | F202: =IF(Data[[#This Row],[Adj Close]]<E203,TRUE,"") ->  | G202: =IF(F201=Data[[#This Row],[Up]],0,1) -> 0 | H202: =SUM($G$26:G202) -> 89 | I202: 89
D203: 2022-09-16 | E203: 244.052231 | F203: =IF(Data[[#This Row],[Adj Close]]<E204,TRUE,"") ->  | G203: =IF(F202=Data[[#This Row],[Up]],0,1) -> 0 | H203: =SUM($G$26:G203) -> 89 | I203: 89
D204: 2022-09-19 | E204: 243.83284 | F204: =IF(Data[[#This Row],[Adj Close]]<E205,TRUE,"") ->  | G204: =IF(F203=Data[[#This Row],[Up]],0,1) -> 0 | H204: =SUM($G$26:G204) -> 89 | I204: 89
D205: 2022-09-20 | E205: 241.768661 | F205: =IF(Data[[#This Row],[Adj Close]]<E206,TRUE,"") ->  | G205: =IF(F204=Data[[#This Row],[Up]],0,1) -> 0 | H205: =SUM($G$26:G205) -> 89 | I205: 89
D206: 2022-09-21 | E206: 238.278488 | F206: =IF(Data[[#This Row],[Adj Close]]<E207,TRUE,"") -> TRUE | G206: =IF(F205=Data[[#This Row],[Up]],0,1) -> 1 | H206: =SUM($G$26:G206) -> 90 | I206: 89
D207: 2022-09-22 | E207: 240.30278 | F207: =IF(Data[[#This Row],[Adj Close]]<E208,TRUE,"") ->  | G207: =IF(F206=Data[[#This Row],[Up]],0,1) -> 1 | H207: =SUM($G$26:G207) -> 91 | I207: 90
D208: 2022-09-23 | E208: 237.251389 | F208: =IF(Data[[#This Row],[Adj Close]]<E209,TRUE,"") ->  | G208: =IF(F207=Data[[#This Row],[Up]],0,1) -> 0 | H208: =SUM($G$26:G208) -> 91 | I208: 91
... 86 more rows

Sheet PnF-CSE
A1: =IF(ISERROR(RIGHT(CELL("filename",A1),LEN(CELL("filename",A1))-FIND("]",CELL("filename",A1)))), "", RIGHT(CELL("filename",A1),LEN(CELL("filename",A1))-FIND("]",CELL("filename",A1)))) -> PnF-CSE
A2: =Model_Name -> SP Point and Figure Chart - Complete.xlsm
A3: Navigator
B4: Error Checks: | F4: =Overall_Error_Check -> 0
B6: =MAX($B$5:$B5)+1 -> 1 | C6: =A1 -> PnF-CSE
G8: Date
G9: =TRANSPOSE(Transform_Data[[Unique Index]:[Date]]) -> 1 | H9: 2 | I9: 3 | J9: 4 | K9: 5 | L9: 6 | M9: 7 | N9: 8 | O9: 9 | P9: 10 | Q9: 11 | R9: 12 | S9: 13 | T9: 14 | U9: 15 | V9: 16 | W9: 17 | X9: 18 | Y9: 19 | Z9: 20 | AA9: 21 | AB9: 22 | AC9: 23 | AD9: 24 | AE9: 25 | AF9: 26 | AG9: 27 | AH9: 28 | AI9: 29 | AJ9: 30 | AK9: 31 | AL9: 32 | AM9: 33 | AN9: 34 | AO9: 35 | AP9: 36 | AQ9: 37 | AR9: 38 | AS9: 39 | AT9: 40 | AU9: 41 | AV9: 42 | AW9: 43 | AX9: 44 | AY9: 45 | AZ9: 46 | BA9: 47 | BB9: 48 | BC9: 49 | BD9: 50 | BE9: 51 | BF9: 52 | BG9: 53 | BH9: 54 | BI9: 55 | BJ9: 56 | BK9: 57 | BL9: 58 | BM9: 59 | BN9: 60 | BO9: 61 | BP9: 62 | BQ9: 63 | BR9: 64 | BS9: 65 | BT9: 66 | BU9: 67 | BV9: 68 | BW9: 69 | BX9: 70 | BY9: 71 | BZ9: 72 | CA9: 73 | CB9: 74 | CC9: 75 | CD9: 76 | CE9: 77 | CF9: 78 | CG9: 79 | CH9: 80 | CI9: 81 | CJ9: 82 | CK9: 83 | CL9: 84 | CM9: 85 | CN9: 86 | CO9: 87 | CP9: 88 | CQ9: 89 | CR9: 90 | CS9: 91 | CT9: 92 | CU9: 93 | CV9: 94 | CW9: 95 | CX9: 96 | CY9: 97 | CZ9: 98 | DA9: 99 | DB9: 100 | DC9: 101 | DD9: 102 | DE9: 103 | DF9: 104 | DG9: 105 | DH9: 106 | DI9: 107 | DJ9: 108 | DK9: 109 | DL9: 110 | DM9: 111 | DN9: 112 | DO9: 113 | DP9: 114 | DQ9: 115 | DR9: 116 | DS9: 117 | DT9: 118 | DU9: 119 | DV9: 120 | DW9: 121 | DX9: 122 | DY9: 123 | DZ9: 124 | EA9: 125 | EB9: 126 | EC9: 127 | ED9: 128 | EE9: 129 | EF9: 130
E10: Lower Bin | F10: Upper Bin | G10: 2022-01-03 | H10: 2022-01-06 | I10: 2022-01-12 | J10: 2022-01-13 | K10: 2022-01-14 | L10: 2022-01-18 | M10: 2022-01-19 | N10: 2022-01-21 | O10: 2022-01-24 | P10: 2022-01-25 | Q10: 2022-01-31 | R10: 2022-02-01 | S10: 2022-02-02 | T10: 2022-02-03 | U10: 2022-02-04 | V10: 2022-02-07 | W10: 2022-02-09 | X10: 2022-02-14 | Y10: 2022-02-15 | Z10: 2022-02-23 | AA10: 2022-02-28 | AB10: 2022-03-01 | AC10: 2022-03-02 | AD10: 2022-03-08 | AE10: 2022-03-09 | AF10: 2022-03-14 | AG10: 2022-03-18 | AH10: 2022-03-21 | AI10: 2022-03-22 | AJ10: 2022-03-23 | AK10: 2022-03-24 | AL10: 2022-03-25 | AM10: 2022-03-29 | AN10: 2022-03-31 | AO10: 2022-04-04 | AP10: 2022-04-06 | AQ10: 2022-04-07 | AR10: 2022-04-12 | AS10: 2022-04-13 | AT10: 2022-04-14 | AU10: 2022-04-20 | AV10: 2022-04-22 | AW10: 2022-04-25 | AX10: 2022-04-26 | AY10: 2022-04-28 | AZ10: 2022-04-29 | BA10: 2022-05-02 | BB10: 2022-05-03 | BC10: 2022-05-04 | BD10: 2022-05-09 | BE10: 2022-05-10 | BF10: 2022-05-12 | BG10: 2022-05-17 | BH10: 2022-05-20 | BI10: 2022-05-23 | BJ10: 2022-05-24 | BK10: 2022-05-27 | BL10: 2022-05-31 | BM10: 2022-06-02 | BN10: 2022-06-06 | BO10: 2022-06-07 | BP10: 2022-06-13 | BQ10: 2022-06-15 | BR10: 2022-06-16 | BS10: 2022-06-21 | BT10: 2022-06-22 | BU10: 2022-06-24 | BV10: 2022-06-28 | BW10: 2022-06-29 | BX10: 2022-06-30 | BY10: 2022-07-07 | BZ10: 2022-07-13 | CA10: 2022-07-15 | CB10: 2022-07-18 | CC10: 2022-07-21 | CD10: 2022-07-26 | CE10: 2022-07-29 | CF10: 2022-08-02 | CG10: 2022-08-04 | CH10: 2022-08-08 | CI10: 2022-08-10 | CJ10: 2022-08-11 | CK10: 2022-08-15 | CL10: 2022-08-24 | CM10: 2022-08-25 | CN10: 2022-09-06 | CO10: 2022-09-12 | CP10: 2022-09-13 | CQ10: 2022-09-14 | CR10: 2022-09-21 | CS10: 2022-09-22 | CT10: 2022-09-27 | CU10: 2022-09-28 | CV10: 2022-09-30 | CW10: 2022-10-05 | CX10: 2022-10-11 | CY10: 2022-10-13 | CZ10: 2022-10-14 | DA10: 2022-10-18 | DB10: 2022-10-20 | DC10: 2022-10-25 | DD10: 2022-10-27 | DE10: 2022-10-28 | DF10: 2022-11-03 | DG10: 2022-11-08 | DH10: 2022-11-09 | DI10: 2022-11-11 | DJ10: 2022-11-14 | DK10: 2022-11-16 | DL10: 2022-11-18 | DM10: 2022-11-23 | DN10: 2022-11-29 | DO10: 2022-11-30 | DP10: 2022-12-01 | DQ10: 2022-12-02 | DR10: 2022-12-07 | DS10: 2022-12-08 | DT10: 2022-12-09 | DU10: 2022-12-14 | DV10: 2022-12-19 | DW10: 2022-12-21 | DX10: 2022-12-22 | DY10: 2022-12-23 | DZ10: 2022-12-28 | EA10: 2022-12-29 | EB10: 2023-01-05 | EC10: 2023-01-17 | ED10: 2023-01-19 | EE10: 2023-01-23 | EF10: 2023-01-25
D11: $ | E11: =Max-Width*ROW(INDIRECT("A1:A"&Number_of_Bins)) -> 327.0882634 | F11: =Max-Width*(ROW(INDIRECT("A1:A"&Number_of_Bins))-1) -> 331 | G11: =IF((Upper_Bin_Column>=TRANSPOSE(Transform_Data[Min])) *(Lower_Bin_Column<=TRANSPOSE(Transform_Data[Max])), _xlfn.IFS(Starting_Symbol=Up_Symbol,IF(MOD(Index_Row,2)=1,Up_Symbol,Down_Symbol), Starting_Symbol=Down_Symbol,IF(MOD(Index_Row,2)=1,Down_Symbol,Up_Symbol)),"") -> O
E12: 323.1765269 | F12: 327.0882634 | G12: O
E13: 319.2647903 | F13: 323.1765269 | G13: O
E14: 315.3530537 | F14: 319.2647903 | G14: O
E15: 311.4413172 | F15: 315.3530537 | G15: O | H15: X | I15: O | AL15: X | AM15: O | AN15: X | AO15: O
E16: 307.5295806 | F16: 311.4413172 | G16: O | H16: X | I16: O | P16: X | Q16: O | R16: X | S16: O | V16: X | W16: O | AL16: X | AM16: O | AN16: X | AO16: O
E17: 303.617844 | F17: 307.5295806 | I17: O | J17: X | K17: O | P17: X | Q17: O | R17: X | S17: O | V17: X | W17: O | AL17: X | AM17: O | AN17: X | AO17: O
E18: 299.7061075 | F18: 303.617844 | I18: O | J18: X | K18: O | L18: X | M18: O | P18: X | S18: O | T18: X | U18: O | V18: X | W18: O | AH18: X | AI18: O | AJ18: X | AK18: O | AL18: X | AO18: O
E19: 295.7943709 | F19: 299.7061075 | M19: O | P19: X | S19: O | T19: X | U19: O | V19: X | W19: O | X19: X | Y19: O | Z19: X | AA19: O | AB19: X | AC19: O | AF19: X | AG19: O | AH19: X | AI19: O | AJ19: X | AO19: O | AP19: X | AQ19: O
E20: 291.8826343 | F20: 295.7943709 | M20: O | N20: X | O20: O | P20: X | W20: O | X20: X | Y20: O | Z20: X | AA20: O | AB20: X | AC20: O | AF20: X | AQ20: O | CJ20: X | CK20: O
E21: 287.9708978 | F21: 291.8826343 | O21: O | P21: X | Y21: O | Z21: X | AC21: O | AF21: X | AQ21: O | CJ21: X | CK21: O
E22: 284.0591612 | F22: 287.9708978 | O22: O | P22: X | Y22: O | Z22: X | AC22: O | AD22: X | AE22: O | AF22: X | AQ22: O | AR22: X | AS22: O | AT22: X | AU22: O | AX22: X | AY22: O | BB22: X | BC22: O | CH22: X | CI22: O | CJ22: X | CK22: O
E23: 280.1474246 | F23: 284.0591612 | Y23: O | Z23: X | AC23: O | AD23: X | AE23: O | AF23: X | AQ23: O | AR23: X | AS23: O | AT23: X | AU23: O | AX23: X | AY23: O | AZ23: X | BA23: O | BB23: X | BC23: O | CF23: X | CG23: O | CH23: X | CK23: O
E24: 276.2356881 | F24: 280.1474246 | Y24: O | Z24: X | AC24: O | AD24: X | AE24: O | AF24: X | AQ24: O | AR24: X | AS24: O | AT24: X | AU24: O | AV24: X | AW24: O | AX24: X | AY24: O | AZ24: X | BA24: O | BB24: X | BC24: O | CD24: X | CE24: O | CF24: X | CG24: O | CH24: X | CK24: O | CL24: X | CM24: O
E25: 272.3239515 | F25: 276.2356881 | AC25: O | AD25: X | AE25: O | AF25: X | AU25: O | AV25: X | AW25: O | AX25: X | AY25: O | AZ25: X | BC25: O | BL25: X | BM25: O | CD25: X | CE25: O | CF25: X | CK25: O | CL25: X | CM25: O
E26: 268.4122149 | F26: 272.3239515 | AU26: O | AV26: X | AW26: O | AX26: X | BC26: O | BJ26: X | BK26: O | BL26: X | BM26: O | BN26: X | BO26: O | CD26: X | CM26: O
E27: 264.5004784 | F27: 268.4122149 | AW27: O | AX27: X | BC27: O | BD27: X | BE27: O | BF27: X | BG27: O | BJ27: X | BM27: O | BN27: X | BO27: O | BT27: X | BU27: O | BX27: X | BY27: O | CD27: X | CM27: O | CN27: X | CO27: O
E28: 260.5887418 | F28: 264.5004784 | BC28: O | BD28: X | BE28: O | BF28: X | BG28: O | BJ28: X | BO28: O | BT28: X | BU28: O | BX28: X | BY28: O | CB28: X | CC28: O | CD28: X | CM28: O | CN28: X | CO28: O
E29: 256.6770052 | F29: 260.5887418 | BE29: O | BF29: X | BG29: O | BH29: X | BI29: O | BJ29: X | BO29: O | BT29: X | BU29: O | BV29: X | BW29: O | BX29: X | BY29: O | CB29: X | CC29: O | CD29: X | CM29: O | CN29: X | CO29: O | DT29: X | DU29: O
E30: 252.7652687 | F30: 256.6770052 | BE30: O | BF30: X | BG30: O | BH30: X | BO30: O | BT30: X | BU30: O | BV30: X | BW30: O | BX30: X | BY30: O | BZ30: X | CA30: O | CB30: X | CC30: O | CD30: X | CM30: O | CN30: X | CO30: O | DN30: X | DO30: O | DP30: X | DQ30: O | DT30: X | DU30: O
E31: 248.8535321 | F31: 252.7652687 | BG31: O | BH31: X | BO31: O | BP31: X | BQ31: O | BR31: X | BS31: O | BT31: X | BY31: O | BZ31: X | CC31: O | CD31: X | CM31: O | CN31: X | CO31: O | CP31: X | CQ31: O | DB31: X | DC31: O | DN31: X | DQ31: O | DT31: X | DU31: O
E32: 244.9417955 | F32: 248.8535321 | BO32: O | BP32: X | BQ32: O | BR32: X | CQ32: O | CV32: X | CW32: O | DB32: X | DC32: O | DH32: X | DI32: O | DL32: X | DM32: O | DN32: X | DQ32: O | DR32: X | DS32: O | DT32: X | DU32: O | EF32: X
E33: 241.030059 | F33: 244.9417955 | BO33: O | BP33: X | BQ33: O | BR33: X | CQ33: O | CV33: X | CW33: O | DB33: X | DC33: O | DH33: X | DI33: O | DJ33: X | DK33: O | DL33: X | DM33: O | DN33: X | DQ33: O | DR33: X | DU33: O | DV33: X | DW33: O | ED33: X | EE33: O | EF33: X
E34: 237.1183224 | F34: 241.030059 | CQ34: O | CR34: X | CS34: O | CT34: X | CU34: O | CV34: X | CW34: O | CZ34: X | DA34: O | DB34: X | DC34: O | DH34: X | DI34: O | DJ34: X | DM34: O | DN34: X | DU34: O | DV34: X | DW34: O | DX34: X | DY34: O | DZ34: X | EA34: O | EB34: X | EC34: O | ED34: X | EE34: O | EF34: X
E35: 233.2065858 | F35: 237.1183224 | CS35: O | CT35: X | CU35: O | CV35: X | CW35: O | CX35: X | CY35: O | CZ35: X | DA35: O | DB35: X | DC35: O | DD35: X | DE35: O | DH35: X | DY35: O | DZ35: X | EA35: O | EB35: X | EC35: O | ED35: X
E36: 229.2948493 | F36: 233.2065858 | CU36: O | CV36: X | CW36: O | CX36: X | CY36: O | CZ36: X | DC36: O | DD36: X | DE36: O | DH36: X | EA36: O | EB36: X | EC36: O | ED36: X
E37: 225.3831127 | F37: 229.2948493 | CW37: O | CX37: X | CY37: O | CZ37: X | DC37: O | DD37: X | DE37: O | DF37: X | DG37: O | DH37: X | EA37: O | EB37: X
E38: 221.4713761 | F38: 225.3831127 | CW38: O | CX38: X | DE38: O | DF38: X | DG38: O | DH38: X | EA38: O | EB38: X
E39: 217.5596396 | F39: 221.4713761 | DE39: O | DF39: X
E40: 213.647903 | F40: 217.5596396 | DE40: O | DF40: X

Sheet PnF-DA
A1: =IF(ISERROR(RIGHT(CELL("filename",A1),LEN(CELL("filename",A1))-FIND("]",CELL("filename",A1)))), "", RIGHT(CELL("filename",A1),LEN(CELL("filename",A1))-FIND("]",CELL("filename",A1)))) -> PnF-DA
A2: =Model_Name -> SP Point and Figure Chart - Complete.xlsm
A3: Navigator
B4: Error Checks: | F4: =Overall_Error_Check -> 0
B6: =MAX($B$5:$B5)+1 -> 1 | C6: =A1 -> PnF-DA
G8: Date
G9: =TRANSPOSE(Transform_Data[Unique Index]) -> 1 | H9: 2 | I9: 3 | J9: 4 | K9: 5 | L9: 6 | M9: 7 | N9: 8 | O9: 9 | P9: 10 | Q9: 11 | R9: 12 | S9: 13 | T9: 14 | U9: 15 | V9: 16 | W9: 17 | X9: 18 | Y9: 19 | Z9: 20 | AA9: 21 | AB9: 22 | AC9: 23 | AD9: 24 | AE9: 25 | AF9: 26 | AG9: 27 | AH9: 28 | AI9: 29 | AJ9: 30 | AK9: 31 | AL9: 32 | AM9: 33 | AN9: 34 | AO9: 35 | AP9: 36 | AQ9: 37 | AR9: 38 | AS9: 39 | AT9: 40 | AU9: 41 | AV9: 42 | AW9: 43 | AX9: 44 | AY9: 45 | AZ9: 46 | BA9: 47 | BB9: 48 | BC9: 49 | BD9: 50 | BE9: 51 | BF9: 52 | BG9: 53 | BH9: 54 | BI9: 55 | BJ9: 56 | BK9: 57 | BL9: 58 | BM9: 59 | BN9: 60 | BO9: 61 | BP9: 62 | BQ9: 63 | BR9: 64 | BS9: 65 | BT9: 66 | BU9: 67 | BV9: 68 | BW9: 69 | BX9: 70 | BY9: 71 | BZ9: 72 | CA9: 73 | CB9: 74 | CC9: 75 | CD9: 76 | CE9: 77 | CF9: 78 | CG9: 79 | CH9: 80 | CI9: 81 | CJ9: 82 | CK9: 83 | CL9: 84 | CM9: 85 | CN9: 86 | CO9: 87 | CP9: 88 | CQ9: 89 | CR9: 90 | CS9: 91 | CT9: 92 | CU9: 93 | CV9: 94 | CW9: 95 | CX9: 96 | CY9: 97 | CZ9: 98 | DA9: 99 | DB9: 100 | DC9: 101 | DD9: 102 | DE9: 103 | DF9: 104 | DG9: 105 | DH9: 106 | DI9: 107 | DJ9: 108 | DK9: 109 | DL9: 110 | DM9: 111 | DN9: 112 | DO9: 113 | DP9: 114 | DQ9: 115 | DR9: 116 | DS9: 117 | DT9: 118 | DU9: 119 | DV9: 120 | DW9: 121 | DX9: 122 | DY9: 123 | DZ9: 124 | EA9: 125 | EB9: 126 | EC9: 127 | ED9: 128 | EE9: 129 | EF9: 130
E10: Lower Bin | F10: Upper Bin | G10: =TRANSPOSE(Transform_Data[Date]) -> 2022-01-03 | H10: 2022-01-06 | I10: 2022-01-12 | J10: 2022-01-13 | K10: 2022-01-14 | L10: 2022-01-18 | M10: 2022-01-19 | N10: 2022-01-21 | O10: 2022-01-24 | P10: 2022-01-25 | Q10: 2022-01-31 | R10: 2022-02-01 | S10: 2022-02-02 | T10: 2022-02-03 | U10: 2022-02-04 | V10: 2022-02-07 | W10: 2022-02-09 | X10: 2022-02-14 | Y10: 2022-02-15 | Z10: 2022-02-23 | AA10: 2022-02-28 | AB10: 2022-03-01 | AC10: 2022-03-02 | AD10: 2022-03-08 | AE10: 2022-03-09 | AF10: 2022-03-14 | AG10: 2022-03-18 | AH10: 2022-03-21 | AI10: 2022-03-22 | AJ10: 2022-03-23 | AK10: 2022-03-24 | AL10: 2022-03-25 | AM10: 2022-03-29 | AN10: 2022-03-31 | AO10: 2022-04-04 | AP10: 2022-04-06 | AQ10: 2022-04-07 | AR10: 2022-04-12 | AS10: 2022-04-13 | AT10: 2022-04-14 | AU10: 2022-04-20 | AV10: 2022-04-22 | AW10: 2022-04-25 | AX10: 2022-04-26 | AY10: 2022-04-28 | AZ10: 2022-04-29 | BA10: 2022-05-02 | BB10: 2022-05-03 | BC10: 2022-05-04 | BD10: 2022-05-09 | BE10: 2022-05-10 | BF10: 2022-05-12 | BG10: 2022-05-17 | BH10: 2022-05-20 | BI10: 2022-05-23 | BJ10: 2022-05-24 | BK10: 2022-05-27 | BL10: 2022-05-31 | BM10: 2022-06-02 | BN10: 2022-06-06 | BO10: 2022-06-07 | BP10: 2022-06-13 | BQ10: 2022-06-15 | BR10: 2022-06-16 | BS10: 2022-06-21 | BT10: 2022-06-22 | BU10: 2022-06-24 | BV10: 2022-06-28 | BW10: 2022-06-29 | BX10: 2022-06-30 | BY10: 2022-07-07 | BZ10: 2022-07-13 | CA10: 2022-07-15 | CB10: 2022-07-18 | CC10: 2022-07-21 | CD10: 2022-07-26 | CE10: 2022-07-29 | CF10: 2022-08-02 | CG10: 2022-08-04 | CH10: 2022-08-08 | CI10: 2022-08-10 | CJ10: 2022-08-11 | CK10: 2022-08-15 | CL10: 2022-08-24 | CM10: 2022-08-25 | CN10: 2022-09-06 | CO10: 2022-09-12 | CP10: 2022-09-13 | CQ10: 2022-09-14 | CR10: 2022-09-21 | CS10: 2022-09-22 | CT10: 2022-09-27 | CU10: 2022-09-28 | CV10: 2022-09-30 | CW10: 2022-10-05 | CX10: 2022-10-11 | CY10: 2022-10-13 | CZ10: 2022-10-14 | DA10: 2022-10-18 | DB10: 2022-10-20 | DC10: 2022-10-25 | DD10: 2022-10-27 | DE10: 2022-10-28 | DF10: 2022-11-03 | DG10: 2022-11-08 | DH10: 2022-11-09 | DI10: 2022-11-11 | DJ10: 2022-11-14 | DK10: 2022-11-16 | DL10: 2022-11-18 | DM10: 2022-11-23 | DN10: 2022-11-29 | DO10: 2022-11-30 | DP10: 2022-12-01 | DQ10: 2022-12-02 | DR10: 2022-12-07 | DS10: 2022-12-08 | DT10: 2022-12-09 | DU10: 2022-12-14 | DV10: 2022-12-19 | DW10: 2022-12-21 | DX10: 2022-12-22 | DY10: 2022-12-23 | DZ10: 2022-12-28 | EA10: 2022-12-29 | EB10: 2023-01-05 | EC10: 2023-01-17 | ED10: 2023-01-19 | EE10: 2023-01-23 | EF10: 2023-01-25
D11: $ | E11: =Max-Width*_xlfn.SEQUENCE(Number_of_Bins) -> 327.0882634 | F11: =Max-Width*(_xlfn.SEQUENCE(Number_of_Bins)-1) -> 331 | G11: =IF((_xlfn.ANCHORARRAY(F11)>=TRANSPOSE(Transform_Data[Min])) *(_xlfn.ANCHORARRAY(E11)<=TRANSPOSE(Transform_Data[Max])), _xlfn.IFS(Starting_Symbol=Up_Symbol,IF(MOD(_xlfn.ANCHORARRAY(G9),2)=1,Up_Symbol,Down_Symbol), Starting_Symbol=Down_Symbol,IF(MOD(_xlfn.ANCHORARRAY(G9),2)=1,Down_Symbol,Up_Symbol)),"") -> O
E12: 323.1765269 | F12: 327.0882634 | G12: O
E13: 319.2647903 | F13: 323.1765269 | G13: O
E14: 315.3530537 | F14: 319.2647903 | G14: O
E15: 311.4413172 | F15: 315.3530537 | G15: O | H15: X | I15: O | AL15: X | AM15: O | AN15: X | AO15: O
E16: 307.5295806 | F16: 311.4413172 | G16: O | H16: X | I16: O | P16: X | Q16: O | R16: X | S16: O | V16: X | W16: O | AL16: X | AM16: O | AN16: X | AO16: O
E17: 303.617844 | F17: 307.5295806 | I17: O | J17: X | K17: O | P17: X | Q17: O | R17: X | S17: O | V17: X | W17: O | AL17: X | AM17: O | AN17: X | AO17: O
E18: 299.7061075 | F18: 303.617844 | I18: O | J18: X | K18: O | L18: X | M18: O | P18: X | S18: O | T18: X | U18: O | V18: X | W18: O | AH18: X | AI18: O | AJ18: X | AK18: O | AL18: X | AO18: O
E19: 295.7943709 | F19: 299.7061075 | M19: O | P19: X | S19: O | T19: X | U19: O | V19: X | W19: O | X19: X | Y19: O | Z19: X | AA19: O | AB19: X | AC19: O | AF19: X | AG19: O | AH19: X | AI19: O | AJ19: X | AO19: O | AP19: X | AQ19: O
E20: 291.8826343 | F20: 295.7943709 | M20: O | N20: X | O20: O | P20: X | W20: O | X20: X | Y20: O | Z20: X | AA20: O | AB20: X | AC20: O | AF20: X | AQ20: O | CJ20: X | CK20: O
E21: 287.9708978 | F21: 291.8826343 | O21: O | P21: X | Y21: O | Z21: X | AC21: O | AF21: X | AQ21: O | CJ21: X | CK21: O
E22: 284.0591612 | F22: 287.9708978 | O22: O | P22: X | Y22: O | Z22: X | AC22: O | AD22: X | AE22: O | AF22: X | AQ22: O | AR22: X | AS22: O | AT22: X | AU22: O | AX22: X | AY22: O | BB22: X | BC22: O | CH22: X | CI22: O | CJ22: X | CK22: O
E23: 280.1474246 | F23: 284.0591612 | Y23: O | Z23: X | AC23: O | AD23: X | AE23: O | AF23: X | AQ23: O | AR23: X | AS23: O | AT23: X | AU23: O | AX23: X | AY23: O | AZ23: X | BA23: O | BB23: X | BC23: O | CF23: X | CG23: O | CH23: X | CK23: O
E24: 276.2356881 | F24: 280.1474246 | Y24: O | Z24: X | AC24: O | AD24: X | AE24: O | AF24: X | AQ24: O | AR24: X | AS24: O | AT24: X | AU24: O | AV24: X | AW24: O | AX24: X | AY24: O | AZ24: X | BA24: O | BB24: X | BC24: O | CD24: X | CE24: O | CF24: X | CG24: O | CH24: X | CK24: O | CL24: X | CM24: O
E25: 272.3239515 | F25: 276.2356881 | AC25: O | AD25: X | AE25: O | AF25: X | AU25: O | AV25: X | AW25: O | AX25: X | AY25: O | AZ25: X | BC25: O | BL25: X | BM25: O | CD25: X | CE25: O | CF25: X | CK25: O | CL25: X | CM25: O
E26: 268.4122149 | F26: 272.3239515 | AU26: O | AV26: X | AW26: O | AX26: X | BC26: O | BJ26: X | BK26: O | BL26: X | BM26: O | BN26: X | BO26: O | CD26: X | CM26: O
E27: 264.5004784 | F27: 268.4122149 | AW27: O | AX27: X | BC27: O | BD27: X | BE27: O | BF27: X | BG27: O | BJ27: X | BM27: O | BN27: X | BO27: O | BT27: X | BU27: O | BX27: X | BY27: O | CD27: X | CM27: O | CN27: X | CO27: O
E28: 260.5887418 | F28: 264.5004784 | BC28: O | BD28: X | BE28: O | BF28: X | BG28: O | BJ28: X | BO28: O | BT28: X | BU28: O | BX28: X | BY28: O | CB28: X | CC28: O | CD28: X | CM28: O | CN28: X | CO28: O
E29: 256.6770052 | F29: 260.5887418 | BE29: O | BF29: X | BG29: O | BH29: X | BI29: O | BJ29: X | BO29: O | BT29: X | BU29: O | BV29: X | BW29: O | BX29: X | BY29: O | CB29: X | CC29: O | CD29: X | CM29: O | CN29: X | CO29: O | DT29: X | DU29: O
E30: 252.7652687 | F30: 256.6770052 | BE30: O | BF30: X | BG30: O | BH30: X | BO30: O | BT30: X | BU30: O | BV30: X | BW30: O | BX30: X | BY30: O | BZ30: X | CA30: O | CB30: X | CC30: O | CD30: X | CM30: O | CN30: X | CO30: O | DN30: X | DO30: O | DP30: X | DQ30: O | DT30: X | DU30: O
E31: 248.8535321 | F31: 252.7652687 | BG31: O | BH31: X | BO31: O | BP31: X | BQ31: O | BR31: X | BS31: O | BT31: X | BY31: O | BZ31: X | CC31: O | CD31: X | CM31: O | CN31: X | CO31: O | CP31: X | CQ31: O | DB31: X | DC31: O | DN31: X | DQ31: O | DT31: X | DU31: O
E32: 244.9417955 | F32: 248.8535321 | BO32: O | BP32: X | BQ32: O | BR32: X | CQ32: O | CV32: X | CW32: O | DB32: X | DC32: O | DH32: X | DI32: O | DL32: X | DM32: O | DN32: X | DQ32: O | DR32: X | DS32: O | DT32: X | DU32: O | EF32: X
E33: 241.030059 | F33: 244.9417955 | BO33: O | BP33: X | BQ33: O | BR33: X | CQ33: O | CV33: X | CW33: O | DB33: X | DC33: O | DH33: X | DI33: O | DJ33: X | DK33: O | DL33: X | DM33: O | DN33: X | DQ33: O | DR33: X | DU33: O | DV33: X | DW33: O | ED33: X | EE33: O | EF33: X
E34: 237.1183224 | F34: 241.030059 | CQ34: O | CR34: X | CS34: O | CT34: X | CU34: O | CV34: X | CW34: O | CZ34: X | DA34: O | DB34: X | DC34: O | DH34: X | DI34: O | DJ34: X | DM34: O | DN34: X | DU34: O | DV34: X | DW34: O | DX34: X | DY34: O | DZ34: X | EA34: O | EB34: X | EC34: O | ED34: X | EE34: O | EF34: X
E35: 233.2065858 | F35: 237.1183224 | CS35: O | CT35: X | CU35: O | CV35: X | CW35: O | CX35: X | CY35: O | CZ35: X | DA35: O | DB35: X | DC35: O | DD35: X | DE35: O | DH35: X | DY35: O | DZ35: X | EA35: O | EB35: X | EC35: O | ED35: X
E36: 229.2948493 | F36: 233.2065858 | CU36: O | CV36: X | CW36: O | CX36: X | CY36: O | CZ36: X | DC36: O | DD36: X | DE36: O | DH36: X | EA36: O | EB36: X | EC36: O | ED36: X
E37: 225.3831127 | F37: 229.2948493 | CW37: O | CX37: X | CY37: O | CZ37: X | DC37: O | DD37: X | DE37: O | DF37: X | DG37: O | DH37: X | EA37: O | EB37: X
E38: 221.4713761 | F38: 225.3831127 | CW38: O | CX38: X | DE38: O | DF38: X | DG38: O | DH38: X | EA38: O | EB38: X
E39: 217.5596396 | F39: 221.4713761 | DE39: O | DF39: X
E40: 213.647903 | F40: 217.5596396 | DE40: O | DF40: X

Sheet Data_BB
A1: =IF(ISERROR(RIGHT(CELL("filename",A1),LEN(CELL("filename",A1))-FIND("]",CELL("filename",A1)))), "", RIGHT(CELL("filename",A1),LEN(CELL("filename",A1))-FIND("]",CELL("filename",A1)))) -> Data_BB
A2: =Model_Name -> SP Point and Figure Chart - Complete.xlsm
A3: Navigator
B4: Error Checks: | F4: =Overall_Error_Check -> 0
B6: =MAX($B$5:$B5)+1 -> 1 | C6: =A1 -> Data_BB
C8: Summary Data
D10: Min | F10: =SMALL(Data_BB[Lower Bollinger Band],2) -> 202.9529344
D11: Max | F11: =MAX(Data_BB[Upper Bollinger Band]) -> 350.5843793
D12: Range | F12: =Max_BB-Min_BB -> 147.6314449
D14: Bin Width | F14: 30
D15: Width | F15: =Range_BB/Number_of_Bins_BB -> 4.921048163
D17: Up Symbol | F17: X
D18: Down Symbol | F18: O
D19: Starting Symbol | F19: =IF(F33<>"",Up_Symbol_BB,Down_Symbol_BB) -> O
C22: Bollinger Band Data
D24: Standard Deviation | F24: 3
D25: Range | F25: 20
D27: Bollinger Band Symbol | F27: +++
C30: Data Table | M30: Date
D31: The Adjusted Close Price is took from MSFT stock on Yahoo Finance
D32: Date | E32: Adj Close | F32: Up | G32: Switch Location | H32: Index | I32: Lag Index U | J32: Upper Bollinger Band | K32: Lower Bollinger Band | N32: Unique Index | O32: Date | P32: Max Stock | Q32: Min Stock | R32: Max Upper Band | S32: Min Upper Band | T32: Max Lower Band | U32: Min Lower Band
D33: 2022-01-03 | E33: 331 | F33: =IF(Data_BB[[#This Row],[Adj Close]]<E34,TRUE,"") ->  | G33: =IF(F32=Data_BB[[#This Row],[Up]],0,1) -> 1 | H33: =SUM($G$33:G33) -> 1 | I33: =N(H32) -> 0 | J33: =AVERAGE(OFFSET(E32,1,,-MIN(Bollinger_Band_Range_BB,COUNTA(E$32:E32)))+Standard_Deviation_BB*IFERROR(STDEV(OFFSET(E32,1,,-MIN(Bollinger_Band_Range_BB,COUNTA(E$32:E32)))),0)) -> 331 | K33: =IFERROR(AVERAGE(OFFSET(E32,1,,-MIN(Bollinger_Band_Range_BB,COUNTA(E$32:E32)))-Standard_Deviation_BB*IFERROR(STDEV(OFFSET(E32,1,,-MIN(Bollinger_Band_Range_BB,COUNTA(E$32:E32)))),0)),0) -> 331 | N33: =N(N32)+1 -> 1 | O33: =INDEX(Data_BB[Date],MATCH(N33,Data_BB[Index],0)) -> 2022-01-03 | P33: =MAX(IF(N33=Data_BB[Index],Data_BB[Adj Close],0),IF(N33=Data_BB[Lag Index U],Data_BB[Adj Close],0)) -> 331 | Q33: =MIN(IF(N33=Data_BB[Index],Data_BB[Adj Close]),IF(N33=Data_BB[Lag Index U],Data_BB[Adj Close])) -> 310.966217 | R33: =MAX(IF(N33=Data_BB[Index],Data_BB[Upper Bollinger Band],0),IF(N33=Data_BB[Lag Index U],Data_BB[Upper Bollinger Band],0)) -> 350.5843793 | S33: =MIN(IF(N33=Data_BB[Index],Data_BB[Upper Bollinger Band]),IF(N33=Data_BB[Lag Index U],Data_BB[Upper Bollinger Band])) -> 331 | T33: =MAX(IF(N33=Data_BB[Index],Data_BB[Lower Bollinger Band],0),IF(N33=Data_BB[Lag Index U],Data_BB[Lower Bollinger Band],0)) -> 331 | U33: =MIN(IF(N33=Data_BB[Index],Data_BB[Lower Bollinger Band]),IF(N33=Data_BB[Lag Index U],Data_BB[Lower Bollinger Band])) -> 291.3269975
D34: 2022-01-04 | E34: 325.95575 | F34: =IF(Data_BB[[#This Row],[Adj Close]]<E35,TRUE,"") ->  | G34: =IF(F33=Data_BB[[#This Row],[Up]],0,1) -> 0 | H34: =SUM($G$33:G34) -> 1 | I34: 1 | J34: =AVERAGE(OFFSET(E33,1,,-MIN(Bollinger_Band_Range_BB,COUNTA(E$32:E33)))+Standard_Deviation_BB*IFERROR(STDEV(OFFSET(E33,1,,-MIN(Bollinger_Band_Range_BB,COUNTA(E$32:E33)))),0)) -> 339.1783451 | K34: =IFERROR(AVERAGE(OFFSET(E33,1,,-MIN(Bollinger_Band_Range_BB,COUNTA(E$32:E33)))-Standard_Deviation_BB*IFERROR(STDEV(OFFSET(E33,1,,-MIN(Bollinger_Band_Range_BB,COUNTA(E$32:E33)))),0)),0) -> 317.7774049 | N34: =N(N33)+1 -> 2 | O34: =INDEX(Data_BB[Date],MATCH(N34,Data_BB[Index],0)) -> 2022-01-06 | P34: =MAX(IF(N34=Data_BB[Index],Data_BB[Adj Close],0),IF(N34=Data_BB[Lag Index U],Data_BB[Adj Close],0)) -> 315.31543 | Q34: =MIN(IF(N34=Data_BB[Index],Data_BB[Adj Close]),IF(N34=Data_BB[Lag Index U],Data_BB[Adj Close])) -> 310.966217 | R34: =MAX(IF(N34=Data_BB[Index],Data_BB[Upper Bollinger Band],0),IF(N34=Data_BB[Lag Index U],Data_BB[Upper Bollinger Band],0)) -> 349.3554825 | S34: =MIN(IF(N34=Data_BB[Index],Data_BB[Upper Bollinger Band]),IF(N34=Data_BB[Lag Index U],Data_BB[Upper Bollinger Band])) -> 339.5313 | T34: =MAX(IF(N34=Data_BB[Index],Data_BB[Lower Bollinger Band],0),IF(N34=Data_BB[Lag Index U],Data_BB[Lower Bollinger Band],0)) -> 293.2721212 | U34: =MIN(IF(N34=Data_BB[Index],Data_BB[Lower Bollinger Band]),IF(N34=Data_BB[Lag Index U],Data_BB[Lower Bollinger Band])) -> 290.4931309
D35: 2022-01-05 | E35: 313.442993 | F35: =IF(Data_BB[[#This Row],[Adj Close]]<E36,TRUE,"") ->  | G35: =IF(F34=Data_BB[[#This Row],[Up]],0,1) -> 0 | H35: =SUM($G$33:G35) -> 1 | I35: 1 | J35: =AVERAGE(OFFSET(E34,1,,-MIN(Bollinger_Band_Range_BB,COUNTA(E$32:E34)))+Standard_Deviation_BB*IFERROR(STDEV(OFFSET(E34,1,,-MIN(Bollinger_Band_Range_BB,COUNTA(E$32:E34)))),0)) -> 350.5843793 | K35: =IFERROR(AVERAGE(OFFSET(E34,1,,-MIN(Bollinger_Band_Range_BB,COUNTA(E$32:E34)))-Standard_Deviation_BB*IFERROR(STDEV(OFFSET(E34,1,,-MIN(Bollinger_Band_Range_BB,COUNTA(E$32:E34)))),0)),0) -> 296.3481161 | N35: 3 | O35: =INDEX(Data_BB[Date],MATCH(N35,Data_BB[Index],0)) -> 2022-01-12 | P35: =MAX(IF(N35=Data_BB[Index],Data_BB[Adj Close],0),IF(N35=Data_BB[Lag Index U],Data_BB[Adj Close],0)) -> 315.31543 | Q35: =MIN(IF(N35=Data_BB[Index],Data_BB[Adj Close]),IF(N35=Data_BB[Lag Index U],Data_BB[Adj Close])) -> 301.97049 | R35: =MAX(IF(N35=Data_BB[Index],Data_BB[Upper Bollinger Band],0),IF(N35=Data_BB[Lag Index U],Data_BB[Upper Bollinger Band],0)) -> 340.8052753 | S35: =MIN(IF(N35=Data_BB[Index],Data_BB[Upper Bollinger Band]),IF(N35=Data_BB[Lag Index U],Data_BB[Upper Bollinger Band])) -> 339.5313 | T35: =MAX(IF(N35=Data_BB[Index],Data_BB[Lower Bollinger Band],0),IF(N35=Data_BB[Lag Index U],Data_BB[Lower Bollinger Band],0)) -> 293.2721212 | U35: =MIN(IF(N35=Data_BB[Index],Data_BB[Lower Bollinger Band]),IF(N35=Data_BB[Lag Index U],Data_BB[Lower Bollinger Band])) -> 288.7912081
D36: 2022-01-06 | E36: 310.966217 | F36: =IF(Data_BB[[#This Row],[Adj Close]]<E37,TRUE,"") -> TRUE | G36: =IF(F35=Data_BB[[#This Row],[Up]],0,1) -> 1 | H36: =SUM($G$33:G36) -> 2 | I36: 1 | J36: =AVERAGE(OFFSET(E35,1,,-MIN(Bollinger_Band_Range_BB,COUNTA(E$32:E35)))+Standard_Deviation_BB*IFERROR(STDEV(OFFSET(E35,1,,-MIN(Bollinger_Band_Range_BB,COUNTA(E$32:E35)))),0)) -> 349.3554825 | K36: =IFERROR(AVERAGE(OFFSET(E35,1,,-MIN(Bollinger_Band_Range_BB,COUNTA(E$32:E35)))-Standard_Deviation_BB*IFERROR(STDEV(OFFSET(E35,1,,-MIN(Bollinger_Band_Range_BB,COUNTA(E$32:E35)))),0)),0) -> 291.3269975 | N36: 4 | O36: =INDEX(Data_BB[Date],MATCH(N36,Data_BB[Index],0)) -> 2022-01-13 | P36: =MAX(IF(N36=Data_BB[Index],Data_BB[Adj Close],0),IF(N36=Data_BB[Lag Index U],Data_BB[Adj Close],0)) -> 307.320404 | Q36: =MIN(IF(N36=Data_BB[Index],Data_BB[Adj Close]),IF(N36=Data_BB[Lag Index U],Data_BB[Adj Close])) -> 301.97049 | R36: =MAX(IF(N36=Data_BB[Index],Data_BB[Upper Bollinger Band],0),IF(N36=Data_BB[Lag Index U],Data_BB[Upper Bollinger Band],0)) -> 340.8052753 | S36: =MIN(IF(N36=Data_BB[Index],Data_BB[Upper Bollinger Band]),IF(N36=Data_BB[Lag Index U],Data_BB[Upper Bollinger Band])) -> 339.5757452 | T36: =MAX(IF(N36=Data_BB[Index],Data_BB[Lower Bollinger Band],0),IF(N36=Data_BB[Lag Index U],Data_BB[Lower Bollinger Band],0)) -> 288.7912081 | U36: =MIN(IF(N36=Data_BB[Index],Data_BB[Lower Bollinger Band]),IF(N36=Data_BB[Lag Index U],Data_BB[Lower Bollinger Band])) -> 288.5251706
D37: 2022-01-07 | E37: 311.124725 | F37: =IF(Data_BB[[#This Row],[Adj Close]]<E38,TRUE,"") -> TRUE | G37: =IF(F36=Data_BB[[#This Row],[Up]],0,1) -> 0 | H37: =SUM($G$33:G37) -> 2 | I37: 2 | J37: =AVERAGE(OFFSET(E36,1,,-MIN(Bollinger_Band_Range_BB,COUNTA(E$32:E36)))+Standard_Deviation_BB*IFERROR(STDEV(OFFSET(E36,1,,-MIN(Bollinger_Band_Range_BB,COUNTA(E$32:E36)))),0)) -> 346.5027431 | K37: =IFERROR(AVERAGE(OFFSET(E36,1,,-MIN(Bollinger_Band_Range_BB,COUNTA(E$32:E36)))-Standard_Deviation_BB*IFERROR(STDEV(OFFSET(E36,1,,-MIN(Bollinger_Band_Range_BB,COUNTA(E$32:E36)))),0)),0) -> 290.4931309 | N37: 5 | O37: =INDEX(Data_BB[Date],MATCH(N37,Data_BB[Index],0)) -> 2022-01-14 | P37: =MAX(IF(N37=Data_BB[Index],Data_BB[Adj Close],0),IF(N37=Data_BB[Lag Index U],Data_BB[Adj Close],0)) -> 307.320404 | Q37: =MIN(IF(N37=Data_BB[Index],Data_BB[Adj Close]),IF(N37=Data_BB[Lag Index U],Data_BB[Adj Close])) -> 299.840454 | R37: =MAX(IF(N37=Data_BB[Index],Data_BB[Upper Bollinger Band],0),IF(N37=Data_BB[Lag Index U],Data_BB[Upper Bollinger Band],0)) -> 340.1739085 | S37: =MIN(IF(N37=Data_BB[Index],Data_BB[Upper Bollinger Band]),IF(N37=Data_BB[Lag Index U],Data_BB[Upper Bollinger Band])) -> 339.5757452 | T37: =MAX(IF(N37=Data_BB[Index],Data_BB[Lower Bollinger Band],0),IF(N37=Data_BB[Lag Index U],Data_BB[Lower Bollinger Band],0)) -> 288.5251706 | U37: =MIN(IF(N37=Data_BB[Index],Data_BB[Lower Bollinger Band]),IF(N37=Data_BB[Lag Index U],Data_BB[Lower Bollinger Band])) -> 285.3433703
D38: 2022-01-10 | E38: 311.35257 | F38: =IF(Data_BB[[#This Row],[Adj Close]]<E39,TRUE,"") -> TRUE | G38: =IF(F37=Data_BB[[#This Row],[Up]],0,1) -> 0 | H38: =SUM($G$33:G38) -> 2 | I38: 2 | J38: =AVERAGE(OFFSET(E37,1,,-MIN(Bollinger_Band_Range_BB,COUNTA(E$32:E37)))+Standard_Deviation_BB*IFERROR(STDEV(OFFSET(E37,1,,-MIN(Bollinger_Band_Range_BB,COUNTA(E$32:E37)))),0)) -> 343.8400359 | K38: =IFERROR(AVERAGE(OFFSET(E37,1,,-MIN(Bollinger_Band_Range_BB,COUNTA(E$32:E37)))-Standard_Deviation_BB*IFERROR(STDEV(OFFSET(E37,1,,-MIN(Bollinger_Band_Range_BB,COUNTA(E$32:E37)))),0)),0) -> 290.7740491 | N38: 6 | O38: =INDEX(Data_BB[Date],MATCH(N38,Data_BB[Index],0)) -> 2022-01-18 | P38: =MAX(IF(N38=Data_BB[Index],Data_BB[Adj Close],0),IF(N38=Data_BB[Lag Index U],Data_BB[Adj Close],0)) -> 300.514099 | Q38: =MIN(IF(N38=Data_BB[Index],Data_BB[Adj Close]),IF(N38=Data_BB[Lag Index U],Data_BB[Adj Close])) -> 299.840454 | R38: =MAX(IF(N38=Data_BB[Index],Data_BB[Upper Bollinger Band],0),IF(N38=Data_BB[Lag Index U],Data_BB[Upper Bollinger Band],0)) -> 340.1739085 | S38: =MIN(IF(N38=Data_BB[Index],Data_BB[Upper Bollinger Band]),IF(N38=Data_BB[Lag Index U],Data_BB[Upper Bollinger Band])) -> 339.9467094 | T38: =MAX(IF(N38=Data_BB[Index],Data_BB[Lower Bollinger Band],0),IF(N38=Data_BB[Lag Index U],Data_BB[Lower Bollinger Band],0)) -> 285.3433703 | U38: =MIN(IF(N38=Data_BB[Index],Data_BB[Lower Bollinger Band]),IF(N38=Data_BB[Lag Index U],Data_BB[Lower Bollinger Band])) -> 283.5298126
D39: 2022-01-11 | E39: 312.056 | F39: =IF(Data_BB[[#This Row],[Adj Close]]<E40,TRUE,"") -> TRUE | G39: =IF(F38=Data_BB[[#This Row],[Up]],0,1) -> 0 | H39: =SUM($G$33:G39) -> 2 | I39: 2 | J39: =AVERAGE(OFFSET(E38,1,,-MIN(Bollinger_Band_Range_BB,COUNTA(E$32:E38)))+Standard_Deviation_BB*IFERROR(STDEV(OFFSET(E38,1,,-MIN(Bollinger_Band_Range_BB,COUNTA(E$32:E38)))),0)) -> 341.4991874 | K39: =IFERROR(AVERAGE(OFFSET(E38,1,,-MIN(Bollinger_Band_Range_BB,COUNTA(E$32:E38)))-Standard_Deviation_BB*IFERROR(STDEV(OFFSET(E38,1,,-MIN(Bollinger_Band_Range_BB,COUNTA(E$32:E38)))),0)),0) -> 291.6145997 | N39: 7 | O39: =INDEX(Data_BB[Date],MATCH(N39,Data_BB[Index],0)) -> 2022-01-19 | P39: =MAX(IF(N39=Data_BB[Index],Data_BB[Adj Close],0),IF(N39=Data_BB[Lag Index U],Data_BB[Adj Close],0)) -> 300.514099 | Q39: =MIN(IF(N39=Data_BB[Index],Data_BB[Adj Close]),IF(N39=Data_BB[Lag Index U],Data_BB[Adj Close])) -> 293.281891 | R39: =MAX(IF(N39=Data_BB[Index],Data_BB[Upper Bollinger Band],0),IF(N39=Data_BB[Lag Index U],Data_BB[Upper Bollinger Band],0)) -> 340.7411811 | S39: =MIN(IF(N39=Data_BB[Index],Data_BB[Upper Bollinger Band]),IF(N39=Data_BB[Lag Index U],Data_BB[Upper Bollinger Band])) -> 339.8169828 | T39: =MAX(IF(N39=Data_BB[Index],Data_BB[Lower Bollinger Band],0),IF(N39=Data_BB[Lag Index U],Data_BB[Lower Bollinger Band],0)) -> 283.5298126 | U39: =MIN(IF(N39=Data_BB[Index],Data_BB[Lower Bollinger Band]),IF(N39=Data_BB[Lag Index U],Data_BB[Lower Bollinger Band])) -> 278.2504181
D40: 2022-01-12 | E40: 315.31543 | F40: =IF(Data_BB[[#This Row],[Adj Close]]<E41,TRUE,"") ->  | G40: =IF(F39=Data_BB[[#This Row],[Up]],0,1) -> 1 | H40: =SUM($G$33:G40) -> 3 | I40: 2 | J40: =AVERAGE(OFFSET(E39,1,,-MIN(Bollinger_Band_Range_BB,COUNTA(E$32:E39)))+Standard_Deviation_BB*IFERROR(STDEV(OFFSET(E39,1,,-MIN(Bollinger_Band_Range_BB,COUNTA(E$32:E39)))),0)) -> 339.5313 | K40: =IFERROR(AVERAGE(OFFSET(E39,1,,-MIN(Bollinger_Band_Range_BB,COUNTA(E$32:E39)))-Standard_Deviation_BB*IFERROR(STDEV(OFFSET(E39,1,,-MIN(Bollinger_Band_Range_BB,COUNTA(E$32:E39)))),0)),0) -> 293.2721212 | N40: 8 | O40: =INDEX(Data_BB[Date],MATCH(N40,Data_BB[Index],0)) -> 2022-01-21 | P40: =MAX(IF(N40=Data_BB[Index],Data_BB[Adj Close],0),IF(N40=Data_BB[Lag Index U],Data_BB[Adj Close],0)) -> 293.618744 | Q40: =MIN(IF(N40=Data_BB[Index],Data_BB[Adj Close]),IF(N40=Data_BB[Lag Index U],Data_BB[Adj Close])) -> 293.281891 | R40: =MAX(IF(N40=Data_BB[Index],Data_BB[Upper Bollinger Band],0),IF(N40=Data_BB[Lag Index U],Data_BB[Upper Bollinger Band],0)) -> 340.9609907 | S40: =MIN(IF(N40=Data_BB[Index],Data_BB[Upper Bollinger Band]),IF(N40=Data_BB[Lag Index U],Data_BB[Upper Bollinger Band])) -> 340.7411811 | T40: =MAX(IF(N40=Data_BB[Index],Data_BB[Lower Bollinger Band],0),IF(N40=Data_BB[Lag Index U],Data_BB[Lower Bollinger Band],0)) -> 278.2504181 | U40: =MIN(IF(N40=Data_BB[Index],Data_BB[Lower Bollinger Band]),IF(N40=Data_BB[Lag Index U],Data_BB[Lower Bollinger Band])) -> 275.9136677
D41: 2022-01-13 | E41: 301.97049 | F41: =IF(Data_BB[[#This Row],[Adj Close]]<E42,TRUE,"") -> TRUE | G41: =IF(F40=Data_BB[[#This Row],[Up]],0,1) -> 1 | H41: =SUM($G$33:G41) -> 4 | I41: 3 | J41: =AVERAGE(OFFSET(E40,1,,-MIN(Bollinger_Band_Range_BB,COUNTA(E$32:E40)))+Standard_Deviation_BB*IFERROR(STDEV(OFFSET(E40,1,,-MIN(Bollinger_Band_Range_BB,COUNTA(E$32:E40)))),0)) -> 340.8052753 | K41: =IFERROR(AVERAGE(OFFSET(E40,1,,-MIN(Bollinger_Band_Range_BB,COUNTA(E$32:E40)))-Standard_Deviation_BB*IFERROR(STDEV(OFFSET(E40,1,,-MIN(Bollinger_Band_Range_BB,COUNTA(E$32:E40)))),0)),0) -> 288.7912081 | N41: 9 | O41: =INDEX(Data_BB[Date],MATCH(N41,Data_BB[Index],0)) -> 2022-01-24 | P41: =MAX(IF(N41=Data_BB[Index],Data_BB[Adj Close],0),IF(N41=Data_BB[Lag Index U],Data_BB[Adj Close],0)) -> 293.618744 | Q41: =MIN(IF(N41=Data_BB[Index],Data_BB[Adj Close]),IF(N41=Data_BB[Lag Index U],Data_BB[Adj Close])) -> 285.81192 | R41: =MAX(IF(N41=Data_BB[Index],Data_BB[Upper Bollinger Band],0),IF(N41=Data_BB[Lag Index U],Data_BB[Upper Bollinger Band],0)) -> 342.7334387 | S41: =MIN(IF(N41=Data_BB[Index],Data_BB[Upper Bollinger Band]),IF(N41=Data_BB[Lag Index U],Data_BB[Upper Bollinger Band])) -> 340.9609907 | T41: =MAX(IF(N41=Data_BB[Index],Data_BB[Lower Bollinger Band],0),IF(N41=Data_BB[Lag Index U],Data_BB[Lower Bollinger Band],0)) -> 275.9136677 | U41: =MIN(IF(N41=Data_BB[Index],Data_BB[Lower Bollinger Band]),IF(N41=Data_BB[Lag Index U],Data_BB[Lower Bollinger Band])) -> 271.3130436
D42: 2022-01-14 | E42: 307.320404 | F42: =IF(Data_BB[[#This Row],[Adj Close]]<E43,TRUE,"") ->  | G42: =IF(F41=Data_BB[[#This Row],[Up]],0,1) -> 1 | H42: =SUM($G$33:G42) -> 5 | I42: 4 | J42: =AVERAGE(OFFSET(E41,1,,-MIN(Bollinger_Band_Range_BB,COUNTA(E$32:E41)))+Standard_Deviation_BB*IFERROR(STDEV(OFFSET(E41,1,,-MIN(Bollinger_Band_Range_BB,COUNTA(E$32:E41)))),0)) -> 339.5757452 | K42: =IFERROR(AVERAGE(OFFSET(E41,1,,-MIN(Bollinger_Band_Range_BB,COUNTA(E$32:E41)))-Standard_Deviation_BB*IFERROR(STDEV(OFFSET(E41,1,,-MIN(Bollinger_Band_Range_BB,COUNTA(E$32:E41)))),0)),0) -> 288.5251706 | N42: 10 | O42: =INDEX(Data_BB[Date],MATCH(N42,Data_BB[Index],0)) -> 2022-01-25 | P42: =MAX(IF(N42=Data_BB[Index],Data_BB[Adj Close],0),IF(N42=Data_BB[Lag Index U],Data_BB[Adj Close],0)) -> 308.093109 | Q42: =MIN(IF(N42=Data_BB[Index],Data_BB[Adj Close]),IF(N42=Data_BB[Lag Index U],Data_BB[Adj Close])) -> 285.81192 | R42: =MAX(IF(N42=Data_BB[Index],Data_BB[Upper Bollinger Band],0),IF(N42=Data_BB[Lag Index U],Data_BB[Upper Bollinger Band],0)) -> 342.7334387 | S42: =MIN(IF(N42=Data_BB[Index],Data_BB[Upper Bollinger Band]),IF(N42=Data_BB[Lag Index U],Data_BB[Upper Bollinger Band])) -> 339.359533 | T42: =MAX(IF(N42=Data_BB[Index],Data_BB[Lower Bollinger Band],0),IF(N42=Data_BB[Lag Index U],Data_BB[Lower Bollinger Band],0)) -> 272.3280159 | U42: =MIN(IF(N42=Data_BB[Index],Data_BB[Lower Bollinger Band]),IF(N42=Data_BB[Lag Index U],Data_BB[Lower Bollinger Band])) -> 270.3517428
D43: 2022-01-18 | E43: 299.840454 | F43: =IF(Data_BB[[#This Row],[Adj Close]]<E44,TRUE,"") -> TRUE | G43: =IF(F42=Data_BB[[#This Row],[Up]],0,1) -> 1 | H43: =SUM($G$33:G43) -> 6 | I43: 5 | J43: =AVERAGE(OFFSET(E42,1,,-MIN(Bollinger_Band_Range_BB,COUNTA(E$32:E42)))+Standard_Deviation_BB*IFERROR(STDEV(OFFSET(E42,1,,-MIN(Bollinger_Band_Range_BB,COUNTA(E$32:E42)))),0)) -> 340.1739085 | K43: =IFERROR(AVERAGE(OFFSET(E42,1,,-MIN(Bollinger_Band_Range_BB,COUNTA(E$32:E42)))-Standard_Deviation_BB*IFERROR(STDEV(OFFSET(E42,1,,-MIN(Bollinger_Band_Range_BB,COUNTA(E$32:E42)))),0)),0) -> 285.3433703 | N43: 11 | O43: =INDEX(Data_BB[Date],MATCH(N43,Data_BB[Index],0)) -> 2022-01-31 | P43: =MAX(IF(N43=Data_BB[Index],Data_BB[Adj Close],0),IF(N43=Data_BB[Lag Index U],Data_BB[Adj Close],0)) -> 308.093109 | Q43: =MIN(IF(N43=Data_BB[Index],Data_BB[Adj Close]),IF(N43=Data_BB[Lag Index U],Data_BB[Adj Close])) -> 305.893738 | R43: =MAX(IF(N43=Data_BB[Index],Data_BB[Upper Bollinger Band],0),IF(N43=Data_BB[Lag Index U],Data_BB[Upper Bollinger Band],0)) -> 339.359533 | S43: =MIN(IF(N43=Data_BB[Index],Data_BB[Upper Bollinger Band]),IF(N43=Data_BB[Lag Index U],Data_BB[Upper Bollinger Band])) -> 333.0246047 | T43: =MAX(IF(N43=Data_BB[Index],Data_BB[Lower Bollinger Band],0),IF(N43=Data_BB[Lag Index U],Data_BB[Lower Bollinger Band],0)) -> 276.152318 | U43: =MIN(IF(N43=Data_BB[Index],Data_BB[Lower Bollinger Band]),IF(N43=Data_BB[Lag Index U],Data_BB[Lower Bollinger Band])) -> 272.3280159
D44: 2022-01-19 | E44: 300.514099 | F44: =IF(Data_BB[[#This Row],[Adj Close]]<E45,TRUE,"") ->  | G44: =IF(F43=Data_BB[[#This Row],[Up]],0,1) -> 1 | H44: =SUM($G$33:G44) -> 7 | I44: 6 | J44: =AVERAGE(OFFSET(E43,1,,-MIN(Bollinger_Band_Range_BB,COUNTA(E$32:E43)))+Standard_Deviation_BB*IFERROR(STDEV(OFFSET(E43,1,,-MIN(Bollinger_Band_Range_BB,COUNTA(E$32:E43)))),0)) -> 339.9467094 | K44: =IFERROR(AVERAGE(OFFSET(E43,1,,-MIN(Bollinger_Band_Range_BB,COUNTA(E$32:E43)))-Standard_Deviation_BB*IFERROR(STDEV(OFFSET(E43,1,,-MIN(Bollinger_Band_Range_BB,COUNTA(E$32:E43)))),0)),0) -> 283.5298126 | N44: 12 | O44: =INDEX(Data_BB[Date],MATCH(N44,Data_BB[Index],0)) -> 2022-02-01 | P44: =MAX(IF(N44=Data_BB[Index],Data_BB[Adj Close],0),IF(N44=Data_BB[Lag Index U],Data_BB[Adj Close],0)) -> 310.550079 | Q44: =MIN(IF(N44=Data_BB[Index],Data_BB[Adj Close]),IF(N44=Data_BB[Lag Index U],Data_BB[Adj Close])) -> 305.893738 | R44: =MAX(IF(N44=Data_BB[Index],Data_BB[Upper Bollinger Band],0),IF(N44=Data_BB[Lag Index U],Data_BB[Upper Bollinger Band],0)) -> 333.0246047 | S44: =MIN(IF(N44=Data_BB[Index],Data_BB[Upper Bollinger Band]),IF(N44=Data_BB[Lag Index U],Data_BB[Upper Bollinger Band])) -> 328.3856883 | T44: =MAX(IF(N44=Data_BB[Index],Data_BB[Lower Bollinger Band],0),IF(N44=Data_BB[Lag Index U],Data_BB[Lower Bollinger Band],0)) -> 279.2506673 | U44: =MIN(IF(N44=Data_BB[Index],Data_BB[Lower Bollinger Band]),IF(N44=Data_BB[Lag Index U],Data_BB[Lower Bollinger Band])) -> 276.152318
D45: 2022-01-20 | E45: 298.800171 | F45: =IF(Data_BB[[#This Row],[Adj Close]]<E46,TRUE,"") ->  | G45: =IF(F44=Data_BB[[#This Row],[Up]],0,1) -> 0 | H45: =SUM($G$33:G45) -> 7 | I45: 7 | J45: =AVERAGE(OFFSET(E44,1,,-MIN(Bollinger_Band_Range_BB,COUNTA(E$32:E44)))+Standard_Deviation_BB*IFERROR(STDEV(OFFSET(E44,1,,-MIN(Bollinger_Band_Range_BB,COUNTA(E$32:E44)))),0)) -> 339.8169828 | K45: =IFERROR(AVERAGE(OFFSET(E44,1,,-MIN(Bollinger_Band_Range_BB,COUNTA(E$32:E44)))-Standard_Deviation_BB*IFERROR(STDEV(OFFSET(E44,1,,-MIN(Bollinger_Band_Range_BB,COUNTA(E$32:E44)))),0)),0) -> 281.6690638 | N45: 13 | O45: =INDEX(Data_BB[Date],MATCH(N45,Data_BB[Index],0)) -> 2022-02-02 | P45: =MAX(IF(N45=Data_BB[Index],Data_BB[Adj Close],0),IF(N45=Data_BB[Lag Index U],Data_BB[Adj Close],0)) -> 310.550079 | Q45: =MIN(IF(N45=Data_BB[Index],Data_BB[Adj Close]),IF(N45=Data_BB[Lag Index U],Data_BB[Adj Close])) -> 298.45343 | R45: =MAX(IF(N45=Data_BB[Index],Data_BB[Upper Bollinger Band],0),IF(N45=Data_BB[Lag Index U],Data_BB[Upper Bollinger Band],0)) -> 328.3856883 | S45: =MIN(IF(N45=Data_BB[Index],Data_BB[Upper Bollinger Band]),IF(N45=Data_BB[Lag Index U],Data_BB[Upper Bollinger Band])) -> 326.9013075 | T45: =MAX(IF(N45=Data_BB[Index],Data_BB[Lower Bollinger Band],0),IF(N45=Data_BB[Lag Index U],Data_BB[Lower Bollinger Band],0)) -> 279.2506673 | U45: =MIN(IF(N45=Data_BB[Index],Data_BB[Lower Bollinger Band]),IF(N45=Data_BB[Lag Index U],Data_BB[Lower Bollinger Band])) -> 279.2360918
D46: 2022-01-21 | E46: 293.281891 | F46: =IF(Data_BB[[#This Row],[Adj Close]]<E47,TRUE,"") -> TRUE | G46: =IF(F45=Data_BB[[#This Row],[Up]],0,1) -> 1 | H46: =SUM($G$33:G46) -> 8 | I46: 7 | J46: =AVERAGE(OFFSET(E45,1,,-MIN(Bollinger_Band_Range_BB,COUNTA(E$32:E45)))+Standard_Deviation_BB*IFERROR(STDEV(OFFSET(E45,1,,-MIN(Bollinger_Band_Range_BB,COUNTA(E$32:E45)))),0)) -> 340.7411811 | K46: =IFERROR(AVERAGE(OFFSET(E45,1,,-MIN(Bollinger_Band_Range_BB,COUNTA(E$32:E45)))-Standard_Deviation_BB*IFERROR(STDEV(OFFSET(E45,1,,-MIN(Bollinger_Band_Range_BB,COUNTA(E$32:E45)))),0)),0) -> 278.2504181 | N46: 14 | O46: =INDEX(Data_BB[Date],MATCH(N46,Data_BB[Index],0)) -> 2022-02-03 | P46: =MAX(IF(N46=Data_BB[Index],Data_BB[Adj Close],0),IF(N46=Data_BB[Lag Index U],Data_BB[Adj Close],0)) -> 303.099884 | Q46: =MIN(IF(N46=Data_BB[Index],Data_BB[Adj Close]),IF(N46=Data_BB[Lag Index U],Data_BB[Adj Close])) -> 298.45343 | R46: =MAX(IF(N46=Data_BB[Index],Data_BB[Upper Bollinger Band],0),IF(N46=Data_BB[Lag Index U],Data_BB[Upper Bollinger Band],0)) -> 326.9013075 | S46: =MIN(IF(N46=Data_BB[Index],Data_BB[Upper Bollinger Band]),IF(N46=Data_BB[Lag Index U],Data_BB[Upper Bollinger Band])) -> 325.8482992 | T46: =MAX(IF(N46=Data_BB[Index],Data_BB[Lower Bollinger Band],0),IF(N46=Data_BB[Lag Index U],Data_BB[Lower Bollinger Band],0)) -> 279.5024668 | U46: =MIN(IF(N46=Data_BB[Index],Data_BB[Lower Bollinger Band]),IF(N46=Data_BB[Lag Index U],Data_BB[Lower Bollinger Band])) -> 279.2360918
D47: 2022-01-24 | E47: 293.618744 | F47: =IF(Data_BB[[#This Row],[Adj Close]]<E48,TRUE,"") ->  | G47: =IF(F46=Data_BB[[#This Row],[Up]],0,1) -> 1 | H47: =SUM($G$33:G47) -> 9 | I47: 8 | J47: =AVERAGE(OFFSET(E46,1,,-MIN(Bollinger_Band_Range_BB,COUNTA(E$32:E46)))+Standard_Deviation_BB*IFERROR(STDEV(OFFSET(E46,1,,-MIN(Bollinger_Band_Range_BB,COUNTA(E$32:E46)))),0)) -> 340.9609907 | K47: =IFERROR(AVERAGE(OFFSET(E46,1,,-MIN(Bollinger_Band_Range_BB,COUNTA(E$32:E46)))-Standard_Deviation_BB*IFERROR(STDEV(OFFSET(E46,1,,-MIN(Bollinger_Band_Range_BB,COUNTA(E$32:E46)))),0)),0) -> 275.9136677 | N47: 15 | O47: =INDEX(Data_BB[Date],MATCH(N47,Data_BB[Index],0)) -> 2022-02-04 | P47: =MAX(IF(N47=Data_BB[Index],Data_BB[Adj Close],0),IF(N47=Data_BB[Lag Index U],Data_BB[Adj Close],0)) -> 303.099884 | Q47: =MIN(IF(N47=Data_BB[Index],Data_BB[Adj Close]),IF(N47=Data_BB[Lag Index U],Data_BB[Adj Close])) -> 298.156219 | R47: =MAX(IF(N47=Data_BB[Index],Data_BB[Upper Bollinger Band],0),IF(N47=Data_BB[Lag Index U],Data_BB[Upper Bollinger Band],0)) -> 325.8482992 | S47: =MIN(IF(N47=Data_BB[Index],Data_BB[Upper Bollinger Band]),IF(N47=Data_BB[Lag Index U],Data_BB[Upper Bollinger Band])) -> 324.5848342 | T47: =MAX(IF(N47=Data_BB[Index],Data_BB[Lower Bollinger Band],0),IF(N47=Data_BB[Lag Index U],Data_BB[Lower Bollinger Band],0)) -> 279.5024668 | U47: =MIN(IF(N47=Data_BB[Index],Data_BB[Lower Bollinger Band]),IF(N47=Data_BB[Lag Index U],Data_BB[Lower Bollinger Band])) -> 279.4690812
D48: 2022-01-25 | E48: 285.81192 | F48: =IF(Data_BB[[#This Row],[Adj Close]]<E49,TRUE,"") -> TRUE | G48: =IF(F47=Data_BB[[#This Row],[Up]],0,1) -> 1 | H48: =SUM($G$33:G48) -> 10 | I48: 9 | J48: =AVERAGE(OFFSET(E47,1,,-MIN(Bollinger_Band_Range_BB,COUNTA(E$32:E47)))+Standard_Deviation_BB*IFERROR(STDEV(OFFSET(E47,1,,-MIN(Bollinger_Band_Range_BB,COUNTA(E$32:E47)))),0)) -> 342.7334387 | K48: =IFERROR(AVERAGE(OFFSET(E47,1,,-MIN(Bollinger_Band_Range_BB,COUNTA(E$32:E47)))-Standard_Deviation_BB*IFERROR(STDEV(OFFSET(E47,1,,-MIN(Bollinger_Band_Range_BB,COUNTA(E$32:E47)))),0)),0) -> 271.3130436 | N48: 16 | O48: =INDEX(Data_BB[Date],MATCH(N48,Data_BB[Index],0)) -> 2022-02-07 | P48: =MAX(IF(N48=Data_BB[Index],Data_BB[Adj Close],0),IF(N48=Data_BB[Lag Index U],Data_BB[Adj Close],0)) -> 308.320953 | Q48: =MIN(IF(N48=Data_BB[Index],Data_BB[Adj Close]),IF(N48=Data_BB[Lag Index U],Data_BB[Adj Close])) -> 298.156219 | R48: =MAX(IF(N48=Data_BB[Index],Data_BB[Upper Bollinger Band],0),IF(N48=Data_BB[Lag Index U],Data_BB[Upper Bollinger Band],0)) -> 324.5848342 | S48: =MIN(IF(N48=Data_BB[Index],Data_BB[Upper Bollinger Band]),IF(N48=Data_BB[Lag Index U],Data_BB[Upper Bollinger Band])) -> 322.206285 | T48: =MAX(IF(N48=Data_BB[Index],Data_BB[Lower Bollinger Band],0),IF(N48=Data_BB[Lag Index U],Data_BB[Lower Bollinger Band],0)) -> 280.5121384 | U48: =MIN(IF(N48=Data_BB[Index],Data_BB[Lower Bollinger Band]),IF(N48=Data_BB[Lag Index U],Data_BB[Lower Bollinger Band])) -> 279.4690812
D49: 2022-01-26 | E49: 293.955597 | F49: =IF(Data_BB[[#This Row],[Adj Close]]<E50,TRUE,"") -> TRUE | G49: =IF(F48=Data_BB[[#This Row],[Up]],0,1) -> 0 | H49: =SUM($G$33:G49) -> 10 | I49: 10 | J49: =AVERAGE(OFFSET(E48,1,,-MIN(Bollinger_Band_Range_BB,COUNTA(E$32:E48)))+Standard_Deviation_BB*IFERROR(STDEV(OFFSET(E48,1,,-MIN(Bollinger_Band_Range_BB,COUNTA(E$32:E48)))),0)) -> 342.1142994 | K49: =IFERROR(AVERAGE(OFFSET(E48,1,,-MIN(Bollinger_Band_Range_BB,COUNTA(E$32:E48)))-Standard_Deviation_BB*IFERROR(STDEV(OFFSET(E48,1,,-MIN(Bollinger_Band_Range_BB,COUNTA(E$32:E48)))),0)),0) -> 270.394813 | N49: 17 | O49: =INDEX(Data_BB[Date],MATCH(N49,Data_BB[Index],0)) -> 2022-02-09 | P49: =MAX(IF(N49=Data_BB[Index],Data_BB[Adj Close],0),IF(N49=Data_BB[Lag Index U],Data_BB[Adj Close],0)) -> 308.320953 | Q49: =MIN(IF(N49=Data_BB[Index],Data_BB[Adj Close]),IF(N49=Data_BB[Lag Index U],Data_BB[Adj Close])) -> 292.261475 | R49: =MAX(IF(N49=Data_BB[Index],Data_BB[Upper Bollinger Band],0),IF(N49=Data_BB[Lag Index U],Data_BB[Upper Bollinger Band],0)) -> 322.206285 | S49: =MIN(IF(N49=Data_BB[Index],Data_BB[Upper Bollinger Band]),IF(N49=Data_BB[Lag Index U],Data_BB[Upper Bollinger Band])) -> 318.4699265 | T49: =MAX(IF(N49=Data_BB[Index],Data_BB[Lower Bollinger Band],0),IF(N49=Data_BB[Lag Index U],Data_BB[Lower Bollinger Band],0)) -> 282.1878595 | U49: =MIN(IF(N49=Data_BB[Index],Data_BB[Lower Bollinger Band]),IF(N49=Data_BB[Lag Index U],Data_BB[Lower Bollinger Band])) -> 280.2014204
D50: 2022-01-27 | E50: 297.056549 | F50: =IF(Data_BB[[#This Row],[Adj Close]]<E51,TRUE,"") -> TRUE | G50: =IF(F49=Data_BB[[#This Row],[Up]],0,1) -> 0 | H50: =SUM($G$33:G50) -> 10 | I50: 10 | J50: =AVERAGE(OFFSET(E49,1,,-MIN(Bollinger_Band_Range_BB,COUNTA(E$32:E49)))+Standard_Deviation_BB*IFERROR(STDEV(OFFSET(E49,1,,-MIN(Bollinger_Band_Range_BB,COUNTA(E$32:E49)))),0)) -> 341.1353688 | K50: =IFERROR(AVERAGE(OFFSET(E49,1,,-MIN(Bollinger_Band_Range_BB,COUNTA(E$32:E49)))-Standard_Deviation_BB*IFERROR(STDEV(OFFSET(E49,1,,-MIN(Bollinger_Band_Range_BB,COUNTA(E$32:E49)))),0)),0) -> 270.3517428 | N50: 18 | O50: =INDEX(Data_BB[Date],MATCH(N50,Data_BB[Index],0)) -> 2022-02-14 | P50: =MAX(IF(N50=Data_BB[Index],Data_BB[Adj Close],0),IF(N50=Data_BB[Lag Index U],Data_BB[Adj Close],0)) -> 297.680695 | Q50: =MIN(IF(N50=Data_BB[Index],Data_BB[Adj Close]),IF(N50=Data_BB[Lag Index U],Data_BB[Adj Close])) -> 292.261475 | R50: =MAX(IF(N50=Data_BB[Index],Data_BB[Upper Bollinger Band],0),IF(N50=Data_BB[Lag Index U],Data_BB[Upper Bollinger Band],0)) -> 318.4699265 | S50: =MIN(IF(N50=Data_BB[Index],Data_BB[Upper Bollinger Band]),IF(N50=Data_BB[Lag Index U],Data_BB[Upper Bollinger Band])) -> 318.3897801 | T50: =MAX(IF(N50=Data_BB[Index],Data_BB[Lower Bollinger Band],0),IF(N50=Data_BB[Lag Index U],Data_BB[Lower Bollinger Band],0)) -> 280.2014204 | U50: =MIN(IF(N50=Data_BB[Index],Data_BB[Lower Bollinger Band]),IF(N50=Data_BB[Lag Index U],Data_BB[Lower Bollinger Band])) -> 280.0655909
D51: 2022-01-28 | E51: 305.398376 | F51: =IF(Data_BB[[#This Row],[Adj Close]]<E52,TRUE,"") -> TRUE | G51: =IF(F50=Data_BB[[#This Row],[Up]],0,1) -> 0 | H51: =SUM($G$33:G51) -> 10 | I51: 10 | J51: =AVERAGE(OFFSET(E50,1,,-MIN(Bollinger_Band_Range_BB,COUNTA(E$32:E50)))+Standard_Deviation_BB*IFERROR(STDEV(OFFSET(E50,1,,-MIN(Bollinger_Band_Range_BB,COUNTA(E$32:E50)))),0)) -> 340.1208687 | K51: =IFERROR(AVERAGE(OFFSET(E50,1,,-MIN(Bollinger_Band_Range_BB,COUNTA(E$32:E50)))-Standard_Deviation_BB*IFERROR(STDEV(OFFSET(E50,1,,-MIN(Bollinger_Band_Range_BB,COUNTA(E$32:E50)))),0)),0) -> 271.3299081 | N51: 19 | O51: =INDEX(Data_BB[Date],MATCH(N51,Data_BB[Index],0)) -> 2022-02-15 | P51: =MAX(IF(N51=Data_BB[Index],Data_BB[Adj Close],0),IF(N51=Data_BB[Lag Index U],Data_BB[Adj Close],0)) -> 297.680695 | Q51: =MIN(IF(N51=Data_BB[Index],Data_BB[Adj Close]),IF(N51=Data_BB[Lag Index U],Data_BB[Adj Close])) -> 278.24231 | R51: =MAX(IF(N51=Data_BB[Index],Data_BB[Upper Bollinger Band],0),IF(N51=Data_BB[Lag Index U],Data_BB[Upper Bollinger Band],0)) -> 322.9833277 | S51: =MIN(IF(N51=Data_BB[Index],Data_BB[Upper Bollinger Band]),IF(N51=Data_BB[Lag Index U],Data_BB[Upper Bollinger Band])) -> 318.2483807 | T51: =MAX(IF(N51=Data_BB[Index],Data_BB[Lower Bollinger Band],0),IF(N51=Data_BB[Lag Index U],Data_BB[Lower Bollinger Band],0)) -> 280.0655909 | U51: =MIN(IF(N51=Data_BB[Index],Data_BB[Lower Bollinger Band]),IF(N51=Data_BB[Lag Index U],Data_BB[Lower Bollinger Band])) -> 271.8381169
D52: 2022-01-31 | E52: 308.093109 | F52: =IF(Data_BB[[#This Row],[Adj Close]]<E53,TRUE,"") ->  | G52: =IF(F51=Data_BB[[#This Row],[Up]],0,1) -> 1 | H52: =SUM($G$33:G52) -> 11 | I52: 10 | J52: =AVERAGE(OFFSET(E51,1,,-MIN(Bollinger_Band_Range_BB,COUNTA(E$32:E51)))+Standard_Deviation_BB*IFERROR(STDEV(OFFSET(E51,1,,-MIN(Bollinger_Band_Range_BB,COUNTA(E$32:E51)))),0)) -> 339.359533 | K52: =IFERROR(AVERAGE(OFFSET(E51,1,,-MIN(Bollinger_Band_Range_BB,COUNTA(E$32:E51)))-Standard_Deviation_BB*IFERROR(STDEV(OFFSET(E51,1,,-MIN(Bollinger_Band_Range_BB,COUNTA(E$32:E51)))),0)),0) -> 272.3280159 | N52: 20 | O52: =INDEX(Data_BB[Date],MATCH(N52,Data_BB[Index],0)) -> 2022-02-23 | P52: =MAX(IF(N52=Data_BB[Index],Data_BB[Adj Close],0),IF(N52=Data_BB[Lag Index U],Data_BB[Adj Close],0)) -> 296.628357 | Q52: =MIN(IF(N52=Data_BB[Index],Data_BB[Adj Close]),IF(N52=Data_BB[Lag Index U],Data_BB[Adj Close])) -> 278.24231 | R52: =MAX(IF(N52=Data_BB[Index],Data_BB[Upper Bollinger Band],0),IF(N52=Data_BB[Lag Index U],Data_BB[Upper Bollinger Band],0)) -> 323.0237384 | S52: =MIN(IF(N52=Data_BB[Index],Data_BB[Upper Bollinger Band]),IF(N52=Data_BB[Lag Index U],Data_BB[Upper Bollinger Band])) -> 321.8788751 | T52: =MAX(IF(N52=Data_BB[Index],Data_BB[Lower Bollinger Band],0),IF(N52=Data_BB[Lag Index U],Data_BB[Lower Bollinger Band],0)) -> 271.8381169 | U52: =MIN(IF(N52=Data_BB[Index],Data_BB[Lower Bollinger Band]),IF(N52=Data_BB[Lag Index U],Data_BB[Lower Bollinger Band])) -> 271.5118686
D53: 2022-02-01 | E53: 305.893738 | F53: =IF(Data_BB[[#This Row],[Adj Close]]<E54,TRUE,"") -> TRUE | G53: =IF(F52=Data_BB[[#This Row],[Up]],0,1) -> 1 | H53: =SUM($G$33:G53) -> 12 | I53: 11 | J53: =AVERAGE(OFFSET(E52,1,,-MIN(Bollinger_Band_Range_BB,COUNTA(E$32:E52)))+Standard_Deviation_BB*IFERROR(STDEV(OFFSET(E52,1,,-MIN(Bollinger_Band_Range_BB,COUNTA(E$32:E52)))),0)) -> 333.0246047 | K53: =IFERROR(AVERAGE(OFFSET(E52,1,,-MIN(Bollinger_Band_Range_BB,COUNTA(E$32:E52)))-Standard_Deviation_BB*IFERROR(STDEV(OFFSET(E52,1,,-MIN(Bollinger_Band_Range_BB,COUNTA(E$32:E52)))),0)),0) -> 276.152318 | N53: 21 | O53: =INDEX(Data_BB[Date],MATCH(N53,Data_BB[Index],0)) -> 2022-02-28 | P53: =MAX(IF(N53=Data_BB[Index],Data_BB[Adj Close],0),IF(N53=Data_BB[Lag Index U],Data_BB[Adj Close],0)) -> 296.628357 | Q53: =MIN(IF(N53=Data_BB[Index],Data_BB[Adj Close]),IF(N53=Data_BB[Lag Index U],Data_BB[Adj Close])) -> 292.816162 | R53: =MAX(IF(N53=Data_BB[Index],Data_BB[Upper Bollinger Band],0),IF(N53=Data_BB[Lag Index U],Data_BB[Upper Bollinger Band],0)) -> 321.8788751 | S53: =MIN(IF(N53=Data_BB[Index],Data_BB[Upper Bollinger Band]),IF(N53=Data_BB[Lag Index U],Data_BB[Upper Bollinger Band])) -> 319.9225407 | T53: =MAX(IF(N53=Data_BB[Index],Data_BB[Lower Bollinger Band],0),IF(N53=Data_BB[Lag Index U],Data_BB[Lower Bollinger Band],0)) -> 272.1547725 | U53: =MIN(IF(N53=Data_BB[Index],Data_BB[Lower Bollinger Band]),IF(N53=Data_BB[Lag Index U],Data_BB[Lower Bollinger Band])) -> 271.7261328
D54: 2022-02-02 | E54: 310.550079 | F54: =IF(Data_BB[[#This Row],[Adj Close]]<E55,TRUE,"") ->  | G54: =IF(F53=Data_BB[[#This Row],[Up]],0,1) -> 1 | H54: =SUM($G$33:G54) -> 13 | I54: 12 | J54: =AVERAGE(OFFSET(E53,1,,-MIN(Bollinger_Band_Range_BB,COUNTA(E$32:E53)))+Standard_Deviation_BB*IFERROR(STDEV(OFFSET(E53,1,,-MIN(Bollinger_Band_Range_BB,COUNTA(E$32:E53)))),0)) -> 328.3856883 | K54: =IFERROR(AVERAGE(OFFSET(E53,1,,-MIN(Bollinger_Band_Range_BB,COUNTA(E$32:E53)))-Standard_Deviation_BB*IFERROR(STDEV(OFFSET(E53,1,,-MIN(Bollinger_Band_Range_BB,COUNTA(E$32:E53)))),0)),0) -> 279.2506673 | N54: 22 | O54: =INDEX(Data_BB[Date],MATCH(N54,Data_BB[Index],0)) -> 2022-03-01 | P54: =MAX(IF(N54=Data_BB[Index],Data_BB[Adj Close],0),IF(N54=Data_BB[Lag Index U],Data_BB[Adj Close],0)) -> 298.01825 | Q54: =MIN(IF(N54=Data_BB[Index],Data_BB[Adj Close]),IF(N54=Data_BB[Lag Index U],Data_BB[Adj Close])) -> 292.816162 | R54: =MAX(IF(N54=Data_BB[Index],Data_BB[Upper Bollinger Band],0),IF(N54=Data_BB[Lag Index U],Data_BB[Upper Bollinger Band],0)) -> 319.9225407 | S54: =MIN(IF(N54=Data_BB[Index],Data_BB[Upper Bollinger Band]),IF(N54=Data_BB[Lag Index U],Data_BB[Upper Bollinger Band])) -> 318.5538709 | T54: =MAX(IF(N54=Data_BB[Index],Data_BB[Lower Bollinger Band],0),IF(N54=Data_BB[Lag Index U],Data_BB[Lower Bollinger Band],0)) -> 272.7358935 | U54: =MIN(IF(N54=Data_BB[Index],Data_BB[Lower Bollinger Band]),IF(N54=Data_BB[Lag Index U],Data_BB[Lower Bollinger Band])) -> 272.1547725
D55: 2022-02-03 | E55: 298.45343 | F55: =IF(Data_BB[[#This Row],[Adj Close]]<E56,TRUE,"") -> TRUE | G55: =IF(F54=Data_BB[[#This Row],[Up]],0,1) -> 1 | H55: =SUM($G$33:G55) -> 14 | I55: 13 | J55: =AVERAGE(OFFSET(E54,1,,-MIN(Bollinger_Band_Range_BB,COUNTA(E$32:E54)))+Standard_Deviation_BB*IFERROR(STDEV(OFFSET(E54,1,,-MIN(Bollinger_Band_Range_BB,COUNTA(E$32:E54)))),0)) -> 326.9013075 | K55: =IFERROR(AVERAGE(OFFSET(E54,1,,-MIN(Bollinger_Band_Range_BB,COUNTA(E$32:E54)))-Standard_Deviation_BB*IFERROR(STDEV(OFFSET(E54,1,,-MIN(Bollinger_Band_Range_BB,COUNTA(E$32:E54)))),0)),0) -> 279.2360918 | N55: 23 | O55: =INDEX(Data_BB[Date],MATCH(N55,Data_BB[Index],0)) -> 2022-03-02 | P55: =MAX(IF(N55=Data_BB[Index],Data_BB[Adj Close],0),IF(N55=Data_BB[Lag Index U],Data_BB[Adj Close],0)) -> 298.01825 | Q55: =MIN(IF(N55=Data_BB[Index],Data_BB[Adj Close]),IF(N55=Data_BB[Lag Index U],Data_BB[Adj Close])) -> 273.854309 | R55: =MAX(IF(N55=Data_BB[Index],Data_BB[Upper Bollinger Band],0),IF(N55=Data_BB[Lag Index U],Data_BB[Upper Bollinger Band],0)) -> 318.5538709 | S55: =MIN(IF(N55=Data_BB[Index],Data_BB[Upper Bollinger Band]),IF(N55=Data_BB[Lag Index U],Data_BB[Upper Bollinger Band])) -> 314.9856933 | T55: =MAX(IF(N55=Data_BB[Index],Data_BB[Lower Bollinger Band],0),IF(N55=Data_BB[Lag Index U],Data_BB[Lower Bollinger Band],0)) -> 274.4452666 | U55: =MIN(IF(N55=Data_BB[Index],Data_BB[Lower Bollinger Band]),IF(N55=Data_BB[Lag Index U],Data_BB[Lower Bollinger Band])) -> 265.9563833
D56: 2022-02-04 | E56: 303.099884 | F56: =IF(Data_BB[[#This Row],[Adj Close]]<E57,TRUE,"") ->  | G56: =IF(F55=Data_BB[[#This Row],[Up]],0,1) -> 1 | H56: =SUM($G$33:G56) -> 15 | I56: 14 | J56: =AVERAGE(OFFSET(E55,1,,-MIN(Bollinger_Band_Range_BB,COUNTA(E$32:E55)))+Standard_Deviation_BB*IFERROR(STDEV(OFFSET(E55,1,,-MIN(Bollinger_Band_Range_BB,COUNTA(E$32:E55)))),0)) -> 325.8482992 | K56: =IFERROR(AVERAGE(OFFSET(E55,1,,-MIN(Bollinger_Band_Range_BB,COUNTA(E$32:E55)))-Standard_Deviation_BB*IFERROR(STDEV(OFFSET(E55,1,,-MIN(Bollinger_Band_Range_BB,COUNTA(E$32:E55)))),0)),0) -> 279.5024668 | N56: 24 | O56: =INDEX(Data_BB[Date],MATCH(N56,Data_BB[Index],0)) -> 2022-03-08 | P56: =MAX(IF(N56=Data_BB[Index],Data_BB[Adj Close],0),IF(N56=Data_BB[Lag Index U],Data_BB[Adj Close],0)) -> 286.412811 | Q56: =MIN(IF(N56=Data_BB[Index],Data_BB[Adj Close]),IF(N56=Data_BB[Lag Index U],Data_BB[Adj Close])) -> 273.854309 | R56: =MAX(IF(N56=Data_BB[Index],Data_BB[Upper Bollinger Band],0),IF(N56=Data_BB[Lag Index U],Data_BB[Upper Bollinger Band],0)) -> 317.5362772 | S56: =MIN(IF(N56=Data_BB[Index],Data_BB[Upper Bollinger Band]),IF(N56=Data_BB[Lag Index U],Data_BB[Upper Bollinger Band])) -> 315.9962904 | T56: =MAX(IF(N56=Data_BB[Index],Data_BB[Lower Bollinger Band],0),IF(N56=Data_BB[Lag Index U],Data_BB[Lower Bollinger Band],0)) -> 265.9643815 | U56: =MIN(IF(N56=Data_BB[Index],Data_BB[Lower Bollinger Band]),IF(N56=Data_BB[Lag Index U],Data_BB[Lower Bollinger Band])) -> 265.9563833
D57: 2022-02-07 | E57: 298.156219 | F57: =IF(Data_BB[[#This Row],[Adj Close]]<E58,TRUE,"") -> TRUE | G57: =IF(F56=Data_BB[[#This Row],[Up]],0,1) -> 1 | H57: =SUM($G$33:G57) -> 16 | I57: 15 | J57: =AVERAGE(OFFSET(E56,1,,-MIN(Bollinger_Band_Range_BB,COUNTA(E$32:E56)))+Standard_Deviation_BB*IFERROR(STDEV(OFFSET(E56,1,,-MIN(Bollinger_Band_Range_BB,COUNTA(E$32:E56)))),0)) -> 324.5848342 | K57: =IFERROR(AVERAGE(OFFSET(E56,1,,-MIN(Bollinger_Band_Range_BB,COUNTA(E$32:E56)))-Standard_Deviation_BB*IFERROR(STDEV(OFFSET(E56,1,,-MIN(Bollinger_Band_Range_BB,COUNTA(E$32:E56)))),0)),0) -> 279.4690812 | N57: 25 | O57: =INDEX(Data_BB[Date],MATCH(N57,Data_BB[Index],0)) -> 2022-03-09 | P57: =MAX(IF(N57=Data_BB[Index],Data_BB[Adj Close],0),IF(N57=Data_BB[Lag Index U],Data_BB[Adj Close],0)) -> 286.412811 | Q57: =MIN(IF(N57=Data_BB[Index],Data_BB[Adj Close]),IF(N57=Data_BB[Lag Index U],Data_BB[Adj Close])) -> 274.440063 | R57: =MAX(IF(N57=Data_BB[Index],Data_BB[Upper Bollinger Band],0),IF(N57=Data_BB[Lag Index U],Data_BB[Upper Bollinger Band],0)) -> 315.9962904 | S57: =MIN(IF(N57=Data_BB[Index],Data_BB[Upper Bollinger Band]),IF(N57=Data_BB[Lag Index U],Data_BB[Upper Bollinger Band])) -> 311.0954437 | T57: =MAX(IF(N57=Data_BB[Index],Data_BB[Lower Bollinger Band],0),IF(N57=Data_BB[Lag Index U],Data_BB[Lower Bollinger Band],0)) -> 267.4888392 | U57: =MIN(IF(N57=Data_BB[Index],Data_BB[Lower Bollinger Band]),IF(N57=Data_BB[Lag Index U],Data_BB[Lower Bollinger Band])) -> 263.5804077
D58: 2022-02-08 | E58: 301.732697 | F58: =IF(Data_BB[[#This Row],[Adj Close]]<E59,TRUE,"") -> TRUE | G58: =IF(F57=Data_BB[[#This Row],[Up]],0,1) -> 0 | H58: =SUM($G$33:G58) -> 16 | I58: 16 | J58: =AVERAGE(OFFSET(E57,1,,-MIN(Bollinger_Band_Range_BB,COUNTA(E$32:E57)))+Standard_Deviation_BB*IFERROR(STDEV(OFFSET(E57,1,,-MIN(Bollinger_Band_Range_BB,COUNTA(E$32:E57)))),0)) -> 323.1216937 | K58: =IFERROR(AVERAGE(OFFSET(E57,1,,-MIN(Bollinger_Band_Range_BB,COUNTA(E$32:E57)))-Standard_Deviation_BB*IFERROR(STDEV(OFFSET(E57,1,,-MIN(Bollinger_Band_Range_BB,COUNTA(E$32:E57)))),0)),0) -> 279.9702344 | N58: 26 | O58: =INDEX(Data_BB[Date],MATCH(N58,Data_BB[Index],0)) -> 2022-03-14 | P58: =MAX(IF(N58=Data_BB[Index],Data_BB[Adj Close],0),IF(N58=Data_BB[Lag Index U],Data_BB[Adj Close],0)) -> 298.2565 | Q58: =MIN(IF(N58=Data_BB[Index],Data_BB[Adj Close]),IF(N58=Data_BB[Lag Index U],Data_BB[Adj Close])) -> 274.440063 | R58: =MAX(IF(N58=Data_BB[Index],Data_BB[Upper Bollinger Band],0),IF(N58=Data_BB[Lag Index U],Data_BB[Upper Bollinger Band],0)) -> 311.9615326 | S58: =MIN(IF(N58=Data_BB[Index],Data_BB[Upper Bollinger Band]),IF(N58=Data_BB[Lag Index U],Data_BB[Upper Bollinger Band])) -> 309.4100188 | T58: =MAX(IF(N58=Data_BB[Index],Data_BB[Lower Bollinger Band],0),IF(N58=Data_BB[Lag Index U],Data_BB[Lower Bollinger Band],0)) -> 264.4460785 | U58: =MIN(IF(N58=Data_BB[Index],Data_BB[Lower Bollinger Band]),IF(N58=Data_BB[Lag Index U],Data_BB[Lower Bollinger Band])) -> 263.3728748
D59: 2022-02-09 | E59: 308.320953 | F59: =IF(Data_BB[[#This Row],[Adj Close]]<E60,TRUE,"") ->  | G59: =IF(F58=Data_BB[[#This Row],[Up]],0,1) -> 1 | H59: =SUM($G$33:G59) -> 17 | I59: 16 | J59: =AVERAGE(OFFSET(E58,1,,-MIN(Bollinger_Band_Range_BB,COUNTA(E$32:E58)))+Standard_Deviation_BB*IFERROR(STDEV(OFFSET(E58,1,,-MIN(Bollinger_Band_Range_BB,COUNTA(E$32:E58)))),0)) -> 322.206285 | K59: =IFERROR(AVERAGE(OFFSET(E58,1,,-MIN(Bollinger_Band_Range_BB,COUNTA(E$32:E58)))-Standard_Deviation_BB*IFERROR(STDEV(OFFSET(E58,1,,-MIN(Bollinger_Band_Range_BB,COUNTA(E$32:E58)))),0)),0) -> 280.5121384 | N59: 27 | O59: =INDEX(Data_BB[Date],MATCH(N59,Data_BB[Index],0)) -> 2022-03-18 | P59: =MAX(IF(N59=Data_BB[Index],Data_BB[Adj Close],0),IF(N59=Data_BB[Lag Index U],Data_BB[Adj Close],0)) -> 298.2565 | Q59: =MIN(IF(N59=Data_BB[Index],Data_BB[Adj Close]),IF(N59=Data_BB[Lag Index U],Data_BB[Adj Close])) -> 296.995697 | R59: =MAX(IF(N59=Data_BB[Index],Data_BB[Upper Bollinger Band],0),IF(N59=Data_BB[Lag Index U],Data_BB[Upper Bollinger Band],0)) -> 312.5045841 | S59: =MIN(IF(N59=Data_BB[Index],Data_BB[Upper Bollinger Band]),IF(N59=Data_BB[Lag Index U],Data_BB[Upper Bollinger Band])) -> 311.1301136 | T59: =MAX(IF(N59=Data_BB[Index],Data_BB[Lower Bollinger Band],0),IF(N59=Data_BB[Lag Index U],Data_BB[Lower Bollinger Band],0)) -> 263.6889659 | U59: =MIN(IF(N59=Data_BB[Index],Data_BB[Lower Bollinger Band]),IF(N59=Data_BB[Lag Index U],Data_BB[Lower Bollinger Band])) -> 263.4293727
D60: 2022-02-10 | E60: 299.572998 | F60: =IF(Data_BB[[#This Row],[Adj Close]]<E61,TRUE,"") ->  | G60: =IF(F59=Data_BB[[#This Row],[Up]],0,1) -> 0 | H60: =SUM($G$33:G60) -> 17 | I60: 17 | J60: =AVERAGE(OFFSET(E59,1,,-MIN(Bollinger_Band_Range_BB,COUNTA(E$32:E59)))+Standard_Deviation_BB*IFERROR(STDEV(OFFSET(E59,1,,-MIN(Bollinger_Band_Range_BB,COUNTA(E$32:E59)))),0)) -> 318.9563207 | K60: =IFERROR(AVERAGE(OFFSET(E59,1,,-MIN(Bollinger_Band_Range_BB,COUNTA(E$32:E59)))-Standard_Deviation_BB*IFERROR(STDEV(OFFSET(E59,1,,-MIN(Bollinger_Band_Range_BB,COUNTA(E$32:E59)))),0)),0) -> 282.1878595 | N60: 28 | O60: =INDEX(Data_BB[Date],MATCH(N60,Data_BB[Index],0)) -> 2022-03-21 | P60: =MAX(IF(N60=Data_BB[Index],Data_BB[Adj Close],0),IF(N60=Data_BB[Lag Index U],Data_BB[Adj Close],0)) -> 301.860229 | Q60: =MIN(IF(N60=Data_BB[Index],Data_BB[Adj Close]),IF(N60=Data_BB[Lag Index U],Data_BB[Adj Close])) -> 296.995697 | R60: =MAX(IF(N60=Data_BB[Index],Data_BB[Upper Bollinger Band],0),IF(N60=Data_BB[Lag Index U],Data_BB[Upper Bollinger Band],0)) -> 314.9453183 | S60: =MIN(IF(N60=Data_BB[Index],Data_BB[Upper Bollinger Band]),IF(N60=Data_BB[Lag Index U],Data_BB[Upper Bollinger Band])) -> 312.5045841 | T60: =MAX(IF(N60=Data_BB[Index],Data_BB[Lower Bollinger Band],0),IF(N60=Data_BB[Lag Index U],Data_BB[Lower Bollinger Band],0)) -> 263.4293727 | U60: =MIN(IF(N60=Data_BB[Index],Data_BB[Lower Bollinger Band]),IF(N60=Data_BB[Lag Index U],Data_BB[Lower Bollinger Band])) -> 262.6108156
D61: 2022-02-11 | E61: 292.301086 | F61: =IF(Data_BB[[#This Row],[Adj Close]]<E62,TRUE,"") ->  | G61: =IF(F60=Data_BB[[#This Row],[Up]],0,1) -> 0 | H61: =SUM($G$33:G61) -> 17 | I61: 17 | J61: =AVERAGE(OFFSET(E60,1,,-MIN(Bollinger_Band_Range_BB,COUNTA(E$32:E60)))+Standard_Deviation_BB*IFERROR(STDEV(OFFSET(E60,1,,-MIN(Bollinger_Band_Range_BB,COUNTA(E$32:E60)))),0)) -> 319.2522241 | K61: =IFERROR(AVERAGE(OFFSET(E60,1,,-MIN(Bollinger_Band_Range_BB,COUNTA(E$32:E60)))-Standard_Deviation_BB*IFERROR(STDEV(OFFSET(E60,1,,-MIN(Bollinger_Band_Range_BB,COUNTA(E$32:E60)))),0)),0) -> 280.9250157 | N61: 29 | O61: =INDEX(Data_BB[Date],MATCH(N61,Data_BB[Index],0)) -> 2022-03-22 | P61: =MAX(IF(N61=Data_BB[Index],Data_BB[Adj Close],0),IF(N61=Data_BB[Lag Index U],Data_BB[Adj Close],0)) -> 301.860229 | Q61: =MIN(IF(N61=Data_BB[Index],Data_BB[Adj Close]),IF(N61=Data_BB[Lag Index U],Data_BB[Adj Close])) -> 297.323273 | R61: =MAX(IF(N61=Data_BB[Index],Data_BB[Upper Bollinger Band],0),IF(N61=Data_BB[Lag Index U],Data_BB[Upper Bollinger Band],0)) -> 315.3857839 | S61: =MIN(IF(N61=Data_BB[Index],Data_BB[Upper Bollinger Band]),IF(N61=Data_BB[Lag Index U],Data_BB[Upper Bollinger Band])) -> 314.9453183 | T61: =MAX(IF(N61=Data_BB[Index],Data_BB[Lower Bollinger Band],0),IF(N61=Data_BB[Lag Index U],Data_BB[Lower Bollinger Band],0)) -> 264.0784463 | U61: =MIN(IF(N61=Data_BB[Index],Data_BB[Lower Bollinger Band]),IF(N61=Data_BB[Lag Index U],Data_BB[Lower Bollinger Band])) -> 262.6108156
D62: 2022-02-14 | E62: 292.261475 | F62: =IF(Data_BB[[#This Row],[Adj Close]]<E63,TRUE,"") -> TRUE | G62: =IF(F61=Data_BB[[#This Row],[Up]],0,1) -> 1 | H62: =SUM($G$33:G62) -> 18 | I62: 17 | J62: =AVERAGE(OFFSET(E61,1,,-MIN(Bollinger_Band_Range_BB,COUNTA(E$32:E61)))+Standard_Deviation_BB*IFERROR(STDEV(OFFSET(E61,1,,-MIN(Bollinger_Band_Range_BB,COUNTA(E$32:E61)))),0)) -> 318.4699265 | K62: =IFERROR(AVERAGE(OFFSET(E61,1,,-MIN(Bollinger_Band_Range_BB,COUNTA(E$32:E61)))-Standard_Deviation_BB*IFERROR(STDEV(OFFSET(E61,1,,-MIN(Bollinger_Band_Range_BB,COUNTA(E$32:E61)))),0)),0) -> 280.2014204 | N62: 30 | O62: =INDEX(Data_BB[Date],MATCH(N62,Data_BB[Index],0)) -> 2022-03-23 | P62: =MAX(IF(N62=Data_BB[Index],Data_BB[Adj Close],0),IF(N62=Data_BB[Lag Index U],Data_BB[Adj Close],0)) -> 301.899963 | Q62: =MIN(IF(N62=Data_BB[Index],Data_BB[Adj Close]),IF(N62=Data_BB[Lag Index U],Data_BB[Adj Close])) -> 297.323273 | R62: =MAX(IF(N62=Data_BB[Index],Data_BB[Upper Bollinger Band],0),IF(N62=Data_BB[Lag Index U],Data_BB[Upper Bollinger Band],0)) -> 317.0855857 | S62: =MIN(IF(N62=Data_BB[Index],Data_BB[Upper Bollinger Band]),IF(N62=Data_BB[Lag Index U],Data_BB[Upper Bollinger Band])) -> 315.3857839 | T62: =MAX(IF(N62=Data_BB[Index],Data_BB[Lower Bollinger Band],0),IF(N62=Data_BB[Lag Index U],Data_BB[Lower Bollinger Band],0)) -> 264.0784463 | U62: =MIN(IF(N62=Data_BB[Index],Data_BB[Lower Bollinger Band]),IF(N62=Data_BB[Lag Index U],Data_BB[Lower Bollinger Band])) -> 263.3227698
D63: 2022-02-15 | E63: 297.680695 | F63: =IF(Data_BB[[#This Row],[Adj Close]]<E64,TRUE,"") ->  | G63: =IF(F62=Data_BB[[#This Row],[Up]],0,1) -> 1 | H63: =SUM($G$33:G63) -> 19 | I63: 18 | J63: =AVERAGE(OFFSET(E62,1,,-MIN(Bollinger_Band_Range_BB,COUNTA(E$32:E62)))+Standard_Deviation_BB*IFERROR(STDEV(OFFSET(E62,1,,-MIN(Bollinger_Band_Range_BB,COUNTA(E$32:E62)))),0)) -> 318.3897801 | K63: =IFERROR(AVERAGE(OFFSET(E62,1,,-MIN(Bollinger_Band_Range_BB,COUNTA(E$32:E62)))-Standard_Deviation_BB*IFERROR(STDEV(OFFSET(E62,1,,-MIN(Bollinger_Band_Range_BB,COUNTA(E$32:E62)))),0)),0) -> 280.0655909 | N63: 31 | O63: =INDEX(Data_BB[Date],MATCH(N63,Data_BB[Index],0)) -> 2022-03-24 | P63: =MAX(IF(N63=Data_BB[Index],Data_BB[Adj Close],0),IF(N63=Data_BB[Lag Index U],Data_BB[Adj Close],0)) -> 301.899963 | Q63: =MIN(IF(N63=Data_BB[Index],Data_BB[Adj Close]),IF(N63=Data_BB[Lag Index U],Data_BB[Adj Close])) -> 301.482971 | R63: =MAX(IF(N63=Data_BB[Index],Data_BB[Upper Bollinger Band],0),IF(N63=Data_BB[Lag Index U],Data_BB[Upper Bollinger Band],0)) -> 318.2744954 | S63: =MIN(IF(N63=Data_BB[Index],Data_BB[Upper Bollinger Band]),IF(N63=Data_BB[Lag Index U],Data_BB[Upper Bollinger Band])) -> 317.0855857 | T63: =MAX(IF(N63=Data_BB[Index],Data_BB[Lower Bollinger Band],0),IF(N63=Data_BB[Lag Index U],Data_BB[Lower Bollinger Band],0)) -> 263.3227698 | U63: =MIN(IF(N63=Data_BB[Index],Data_BB[Lower Bollinger Band]),IF(N63=Data_BB[Lag Index U],Data_BB[Lower Bollinger Band])) -> 262.7662484
D64: 2022-02-16 | E64: 297.333191 | F64: =IF(Data_BB[[#This Row],[Adj Close]]<E65,TRUE,"") ->  | G64: =IF(F63=Data_BB[[#This Row],[Up]],0,1) -> 0 | H64: =SUM($G$33:G64) -> 19 | I64: 19 | J64: =AVERAGE(OFFSET(E63,1,,-MIN(Bollinger_Band_Range_BB,COUNTA(E$32:E63)))+Standard_Deviation_BB*IFERROR(STDEV(OFFSET(E63,1,,-MIN(Bollinger_Band_Range_BB,COUNTA(E$32:E63)))),0)) -> 318.2483807 | K64: =IFERROR(AVERAGE(OFFSET(E63,1,,-MIN(Bollinger_Band_Range_BB,COUNTA(E$32:E63)))-Standard_Deviation_BB*IFERROR(STDEV(OFFSET(E63,1,,-MIN(Bollinger_Band_Range_BB,COUNTA(E$32:E63)))),0)),0) -> 279.8888995 | N64: 32 | O64: =INDEX(Data_BB[Date],MATCH(N64,Data_BB[Index],0)) -> 2022-03-25 | P64: =MAX(IF(N64=Data_BB[Index],Data_BB[Adj Close],0),IF(N64=Data_BB[Lag Index U],Data_BB[Adj Close],0)) -> 313.128113 | Q64: =MIN(IF(N64=Data_BB[Index],Data_BB[Adj Close]),IF(N64=Data_BB[Lag Index U],Data_BB[Adj Close])) -> 301.482971 | R64: =MAX(IF(N64=Data_BB[Index],Data_BB[Upper Bollinger Band],0),IF(N64=Data_BB[Lag Index U],Data_BB[Upper Bollinger Band],0)) -> 325.5947898 | S64: =MIN(IF(N64=Data_BB[Index],Data_BB[Upper Bollinger Band]),IF(N64=Data_BB[Lag Index U],Data_BB[Upper Bollinger Band])) -> 318.2744954 | T64: =MAX(IF(N64=Data_BB[Index],Data_BB[Lower Bollinger Band],0),IF(N64=Data_BB[Lag Index U],Data_BB[Lower Bollinger Band],0)) -> 262.7662484 | U64: =MIN(IF(N64=Data_BB[Index],Data_BB[Lower Bollinger Band]),IF(N64=Data_BB[Lag Index U],Data_BB[Lower Bollinger Band])) -> 258.6595343
D65: 2022-02-17 | E65: 288.626678 | F65: =IF(Data_BB[[#This Row],[Adj Close]]<E66,TRUE,"") ->  | G65: =IF(F64=Data_BB[[#This Row],[Up]],0,1) -> 0 | H65: =SUM($G$33:G65) -> 19 | I65: 19 | J65: =AVERAGE(OFFSET(E64,1,,-MIN(Bollinger_Band_Range_BB,COUNTA(E$32:E64)))+Standard_Deviation_BB*IFERROR(STDEV(OFFSET(E64,1,,-MIN(Bollinger_Band_Range_BB,COUNTA(E$32:E64)))),0)) -> 318.9811542 | K65: =IFERROR(AVERAGE(OFFSET(E64,1,,-MIN(Bollinger_Band_Range_BB,COUNTA(E$32:E64)))-Standard_Deviation_BB*IFERROR(STDEV(OFFSET(E64,1,,-MIN(Bollinger_Band_Range_BB,COUNTA(E$32:E64)))),0)),0) -> 278.1387767 | N65: 33 | O65: =INDEX(Data_BB[Date],MATCH(N65,Data_BB[Index],0)) -> 2022-03-29 | P65: =MAX(IF(N65=Data_BB[Index],Data_BB[Adj Close],0),IF(N65=Data_BB[Lag Index U],Data_BB[Adj Close],0)) -> 313.128113 | Q65: =MIN(IF(N65=Data_BB[Index],Data_BB[Adj Close]),IF(N65=Data_BB[Lag Index U],Data_BB[Adj Close])) -> 306.079468 | R65: =MAX(IF(N65=Data_BB[Index],Data_BB[Upper Bollinger Band],0),IF(N65=Data_BB[Lag Index U],Data_BB[Upper Bollinger Band],0)) -> 330.2735258 | S65: =MIN(IF(N65=Data_BB[Index],Data_BB[Upper Bollinger Band]),IF(N65=Data_BB[Lag Index U],Data_BB[Upper Bollinger Band])) -> 325.5947898 | T65: =MAX(IF(N65=Data_BB[Index],Data_BB[Lower Bollinger Band],0),IF(N65=Data_BB[Lag Index U],Data_BB[Lower Bollinger Band],0)) -> 258.6595343 | U65: =MIN(IF(N65=Data_BB[Index],Data_BB[Lower Bollinger Band]),IF(N65=Data_BB[Lag Index U],Data_BB[Lower Bollinger Band])) -> 256.5679382
D66: 2022-02-18 | E66: 285.846924 | F66: =IF(Data_BB[[#This Row],[Adj Close]]<E67,TRUE,"") ->  | G66: =IF(F65=Data_BB[[#This Row],[Up]],0,1) -> 0 | H66: =SUM($G$33:G66) -> 19 | I66: 19 | J66: =AVERAGE(OFFSET(E65,1,,-MIN(Bollinger_Band_Range_BB,COUNTA(E$32:E65)))+Standard_Deviation_BB*IFERROR(STDEV(OFFSET(E65,1,,-MIN(Bollinger_Band_Range_BB,COUNTA(E$32:E65)))),0)) -> 320.0760517 | K66: =IFERROR(AVERAGE(OFFSET(E65,1,,-MIN(Bollinger_Band_Range_BB,COUNTA(E$32:E65)))-Standard_Deviation_BB*IFERROR(STDEV(OFFSET(E65,1,,-MIN(Bollinger_Band_Range_BB,COUNTA(E$32:E65)))),0)),0) -> 276.3003825 | N66: 34 | O66: =INDEX(Data_BB[Date],MATCH(N66,Data_BB[Index],0)) -> 2022-03-31 | P66: =MAX(IF(N66=Data_BB[Index],Data_BB[Adj Close],0),IF(N66=Data_BB[Lag Index U],Data_BB[Adj Close],0)) -> 312.691315 | Q66: =MIN(IF(N66=Data_BB[Index],Data_BB[Adj Close]),IF(N66=Data_BB[Lag Index U],Data_BB[Adj Close])) -> 306.079468 | R66: =MAX(IF(N66=Data_BB[Index],Data_BB[Upper Bollinger Band],0),IF(N66=Data_BB[Lag Index U],Data_BB[Upper Bollinger Band],0)) -> 333.6908968 | S66: =MIN(IF(N66=Data_BB[Index],Data_BB[Upper Bollinger Band]),IF(N66=Data_BB[Lag Index U],Data_BB[Upper Bollinger Band])) -> 330.2735258 | T66: =MAX(IF(N66=Data_BB[Index],Data_BB[Lower Bollinger Band],0),IF(N66=Data_BB[Lag Index U],Data_BB[Lower Bollinger Band],0)) -> 258.6723325 | U66: =MIN(IF(N66=Data_BB[Index],Data_BB[Lower Bollinger Band]),IF(N66=Data_BB[Lag Index U],Data_BB[Lower Bollinger Band])) -> 256.5679382
D67: 2022-02-22 | E67: 285.638458 | F67: =IF(Data_BB[[#This Row],[Adj Close]]<E68,TRUE,"") ->  | G67: =IF(F66=Data_BB[[#This Row],[Up]],0,1) -> 0 | H67: =SUM($G$33:G67) -> 19 | I67: 19 | J67: =AVERAGE(OFFSET(E66,1,,-MIN(Bollinger_Band_Range_BB,COUNTA(E$32:E66)))+Standard_Deviation_BB*IFERROR(STDEV(OFFSET(E66,1,,-MIN(Bollinger_Band_Range_BB,COUNTA(E$32:E66)))),0)) -> 321.0761518 | K67: =IFERROR(AVERAGE(OFFSET(E66,1,,-MIN(Bollinger_Band_Range_BB,COUNTA(E$32:E66)))-Standard_Deviation_BB*IFERROR(STDEV(OFFSET(E66,1,,-MIN(Bollinger_Band_Range_BB,COUNTA(E$32:E66)))),0)),0) -> 274.5022538 | N67: 35 | O67: =INDEX(Data_BB[Date],MATCH(N67,Data_BB[Index],0)) -> 2022-04-04 | P67: =MAX(IF(N67=Data_BB[Index],Data_BB[Adj Close],0),IF(N67=Data_BB[Lag Index U],Data_BB[Adj Close],0)) -> 312.691315 | Q67: =MIN(IF(N67=Data_BB[Index],Data_BB[Adj Close]),IF(N67=Data_BB[Lag Index U],Data_BB[Adj Close])) -> 297.333191 | R67: =MAX(IF(N67=Data_BB[Index],Data_BB[Upper Bollinger Band],0),IF(N67=Data_BB[Lag Index U],Data_BB[Upper Bollinger Band],0)) -> 333.6908968 | S67: =MIN(IF(N67=Data_BB[Index],Data_BB[Upper Bollinger Band]),IF(N67=Data_BB[Lag Index U],Data_BB[Upper Bollinger Band])) -> 332.3809337 | T67: =MAX(IF(N67=Data_BB[Index],Data_BB[Lower Bollinger Band],0),IF(N67=Data_BB[Lag Index U],Data_BB[Lower Bollinger Band],0)) -> 264.5519917 | U67: =MIN(IF(N67=Data_BB[Index],Data_BB[Lower Bollinger Band]),IF(N67=Data_BB[Lag Index U],Data_BB[Lower Bollinger Band])) -> 258.6723325
D68: 2022-02-23 | E68: 278.24231 | F68: =IF(Data_BB[[#This Row],[Adj Close]]<E69,TRUE,"") -> TRUE | G68: =IF(F67=Data_BB[[#This Row],[Up]],0,1) -> 1 | H68: =SUM($G$33:G68) -> 20 | I68: 19 | J68: =AVERAGE(OFFSET(E67,1,,-MIN(Bollinger_Band_Range_BB,COUNTA(E$32:E67)))+Standard_Deviation_BB*IFERROR(STDEV(OFFSET(E67,1,,-MIN(Bollinger_Band_Range_BB,COUNTA(E$32:E67)))),0)) -> 322.9833277 | K68: =IFERROR(AVERAGE(OFFSET(E67,1,,-MIN(Bollinger_Band_Range_BB,COUNTA(E$32:E67)))-Standard_Deviation_BB*IFERROR(STDEV(OFFSET(E67,1,,-MIN(Bollinger_Band_Range_BB,COUNTA(E$32:E67)))),0)),0) -> 271.8381169 | N68: 36 | O68: =INDEX(Data_BB[Date],MATCH(N68,Data_BB[Index],0)) -> 2022-04-06 | P68: =MAX(IF(N68=Data_BB[Index],Data_BB[Adj Close],0),IF(N68=Data_BB[Lag Index U],Data_BB[Adj Close],0)) -> 299.189667 | Q68: =MIN(IF(N68=Data_BB[Index],Data_BB[Adj Close]),IF(N68=Data_BB[Lag Index U],Data_BB[Adj Close])) -> 297.333191 | R68: =MAX(IF(N68=Data_BB[Index],Data_BB[Upper Bollinger Band],0),IF(N68=Data_BB[Lag Index U],Data_BB[Upper Bollinger Band],0)) -> 332.3809337 | S68: =MIN(IF(N68=Data_BB[Index],Data_BB[Upper Bollinger Band]),IF(N68=Data_BB[Lag Index U],Data_BB[Upper Bollinger Band])) -> 331.4811317 | T68: =MAX(IF(N68=Data_BB[Index],Data_BB[Lower Bollinger Band],0),IF(N68=Data_BB[Lag Index U],Data_BB[Lower Bollinger Band],0)) -> 267.0183739 | U68: =MIN(IF(N68=Data_BB[Index],Data_BB[Lower Bollinger Band]),IF(N68=Data_BB[Lag Index U],Data_BB[Lower Bollinger Band])) -> 264.5519917
D69: 2022-02-24 | E69: 292.45871 | F69: =IF(Data_BB[[#This Row],[Adj Close]]<E70,TRUE,"") -> TRUE | G69: =IF(F68=Data_BB[[#This Row],[Up]],0,1) -> 0 | H69: =SUM($G$33:G69) -> 20 | I69: 20 | J69: =AVERAGE(OFFSET(E68,1,,-MIN(Bollinger_Band_Range_BB,COUNTA(E$32:E68)))+Standard_Deviation_BB*IFERROR(STDEV(OFFSET(E68,1,,-MIN(Bollinger_Band_Range_BB,COUNTA(E$32:E68)))),0)) -> 323.0237384 | K69: =IFERROR(AVERAGE(OFFSET(E68,1,,-MIN(Bollinger_Band_Range_BB,COUNTA(E$32:E68)))-Standard_Deviation_BB*IFERROR(STDEV(OFFSET(E68,1,,-MIN(Bollinger_Band_Range_BB,COUNTA(E$32:E68)))),0)),0) -> 271.6480175 | N69: 37 | O69: =INDEX(Data_BB[Date],MATCH(N69,Data_BB[Index],0)) -> 2022-04-07 | P69: =MAX(IF(N69=Data_BB[Index],Data_BB[Adj Close],0),IF(N69=Data_BB[Lag Index U],Data_BB[Adj Close],0)) -> 299.189667 | Q69: =MIN(IF(N69=Data_BB[Index],Data_BB[Adj Close]),IF(N69=Data_BB[Lag Index U],Data_BB[Adj Close])) -> 280.019409 | R69: =MAX(IF(N69=Data_BB[Index],Data_BB[Upper Bollinger Band],0),IF(N69=Data_BB[Lag Index U],Data_BB[Upper Bollinger Band],0)) -> 331.4811317 | S69: =MIN(IF(N69=Data_BB[Index],Data_BB[Upper Bollinger Band]),IF(N69=Data_BB[Lag Index U],Data_BB[Upper Bollinger Band])) -> 326.0256436 | T69: =MAX(IF(N69=Data_BB[Index],Data_BB[Lower Bollinger Band],0),IF(N69=Data_BB[Lag Index U],Data_BB[Lower Bollinger Band],0)) -> 275.0272556 | U69: =MIN(IF(N69=Data_BB[Index],Data_BB[Lower Bollinger Band]),IF(N69=Data_BB[Lag Index U],Data_BB[Lower Bollinger Band])) -> 267.0183739
D70: 2022-02-25 | E70: 295.159088 | F70: =IF(Data_BB[[#This Row],[Adj Close]]<E71,TRUE,"") -> TRUE | G70: =IF(F69=Data_BB[[#This Row],[Up]],0,1) -> 0 | H70: =SUM($G$33:G70) -> 20 | I70: 20 | J70: =AVERAGE(OFFSET(E69,1,,-MIN(Bollinger_Band_Range_BB,COUNTA(E$32:E69)))+Standard_Deviation_BB*IFERROR(STDEV(OFFSET(E69,1,,-MIN(Bollinger_Band_Range_BB,COUNTA(E$32:E69)))),0)) -> 322.9701412 | K70: =IFERROR(AVERAGE(OFFSET(E69,1,,-MIN(Bollinger_Band_Range_BB,COUNTA(E$32:E69)))-Standard_Deviation_BB*IFERROR(STDEV(OFFSET(E69,1,,-MIN(Bollinger_Band_Range_BB,COUNTA(E$32:E69)))),0)),0) -> 271.5118686 | N70: 38 | O70: =INDEX(Data_BB[Date],MATCH(N70,Data_BB[Index],0)) -> 2022-04-12 | P70: =MAX(IF(N70=Data_BB[Index],Data_BB[Adj Close],0),IF(N70=Data_BB[Lag Index U],Data_BB[Adj Close],0)) -> 285.539154 | Q70: =MIN(IF(N70=Data_BB[Index],Data_BB[Adj Close]),IF(N70=Data_BB[Lag Index U],Data_BB[Adj Close])) -> 280.019409 | R70: =MAX(IF(N70=Data_BB[Index],Data_BB[Upper Bollinger Band],0),IF(N70=Data_BB[Lag Index U],Data_BB[Upper Bollinger Band],0)) -> 328.3460631 | S70: =MIN(IF(N70=Data_BB[Index],Data_BB[Upper Bollinger Band]),IF(N70=Data_BB[Lag Index U],Data_BB[Upper Bollinger Band])) -> 327.3972186 | T70: =MAX(IF(N70=Data_BB[Index],Data_BB[Lower Bollinger Band],0),IF(N70=Data_BB[Lag Index U],Data_BB[Lower Bollinger Band],0)) -> 273.1503644 | U70: =MIN(IF(N70=Data_BB[Index],Data_BB[Lower Bollinger Band]),IF(N70=Data_BB[Lag Index U],Data_BB[Lower Bollinger Band])) -> 271.529416
D71: 2022-02-28 | E71: 296.628357 | F71: =IF(Data_BB[[#This Row],[Adj Close]]<E72,TRUE,"") ->  | G71: =IF(F70=Data_BB[[#This Row],[Up]],0,1) -> 1 | H71: =SUM($G$33:G71) -> 21 | I71: 20 | J71: =AVERAGE(OFFSET(E70,1,,-MIN(Bollinger_Band_Range_BB,COUNTA(E$32:E70)))+Standard_Deviation_BB*IFERROR(STDEV(OFFSET(E70,1,,-MIN(Bollinger_Band_Range_BB,COUNTA(E$32:E70)))),0)) -> 321.8788751 | K71: =IFERROR(AVERAGE(OFFSET(E70,1,,-MIN(Bollinger_Band_Range_BB,COUNTA(E$32:E70)))-Standard_Deviation_BB*IFERROR(STDEV(OFFSET(E70,1,,-MIN(Bollinger_Band_Range_BB,COUNTA(E$32:E70)))),0)),0) -> 271.7261328 | N71: 39 | O71: =INDEX(Data_BB[Date],MATCH(N71,Data_BB[Index],0)) -> 2022-04-13 | P71: =MAX(IF(N71=Data_BB[Index],Data_BB[Adj Close],0),IF(N71=Data_BB[Lag Index U],Data_BB[Adj Close],0)) -> 285.539154 | Q71: =MIN(IF(N71=Data_BB[Index],Data_BB[Adj Close]),IF(N71=Data_BB[Lag Index U],Data_BB[Adj Close])) -> 277.805542 | R71: =MAX(IF(N71=Data_BB[Index],Data_BB[Upper Bollinger Band],0),IF(N71=Data_BB[Lag Index U],Data_BB[Upper Bollinger Band],0)) -> 330.9744555 | S71: =MIN(IF(N71=Data_BB[Index],Data_BB[Upper Bollinger Band]),IF(N71=Data_BB[Lag Index U],Data_BB[Upper Bollinger Band])) -> 328.3460631 | T71: =MAX(IF(N71=Data_BB[Index],Data_BB[Lower Bollinger Band],0),IF(N71=Data_BB[Lag Index U],Data_BB[Lower Bollinger Band],0)) -> 271.529416 | U71: =MIN(IF(N71=Data_BB[Index],Data_BB[Lower Bollinger Band]),IF(N71=Data_BB[Lag Index U],Data_BB[Lower Bollinger Band])) -> 267.3731611
D72: 2022-03-01 | E72: 292.816162 | F72: =IF(Data_BB[[#This Row],[Adj Close]]<E73,TRUE,"") -> TRUE | G72: =IF(F71=Data_BB[[#This Row],[Up]],0,1) -> 1 | H72: =SUM($G$33:G72) -> 22 | I72: 21 | J72: =AVERAGE(OFFSET(E71,1,,-MIN(Bollinger_Band_Range_BB,COUNTA(E$32:E71)))+Standard_Deviation_BB*IFERROR(STDEV(OFFSET(E71,1,,-MIN(Bollinger_Band_Range_BB,COUNTA(E$32:E71)))),0)) -> 319.9225407 | K72: =IFERROR(AVERAGE(OFFSET(E71,1,,-MIN(Bollinger_Band_Range_BB,COUNTA(E$32:E71)))-Standard_Deviation_BB*IFERROR(STDEV(OFFSET(E71,1,,-MIN(Bollinger_Band_Range_BB,COUNTA(E$32:E71)))),0)),0) -> 272.1547725 | N72: 40 | O72: =INDEX(Data_BB[Date],MATCH(N72,Data_BB[Index],0)) -> 2022-04-14 | P72: =MAX(IF(N72=Data_BB[Index],Data_BB[Adj Close],0),IF(N72=Data_BB[Lag Index U],Data_BB[Adj Close],0)) -> 284.288269 | Q72: =MIN(IF(N72=Data_BB[Index],Data_BB[Adj Close]),IF(N72=Data_BB[Lag Index U],Data_BB[Adj Close])) -> 277.805542 | R72: =MAX(IF(N72=Data_BB[Index],Data_BB[Upper Bollinger Band],0),IF(N72=Data_BB[Lag Index U],Data_BB[Upper Bollinger Band],0)) -> 333.6500003 | S72: =MIN(IF(N72=Data_BB[Index],Data_BB[Upper Bollinger Band]),IF(N72=Data_BB[Lag Index U],Data_BB[Upper Bollinger Band])) -> 330.9744555 | T72: =MAX(IF(N72=Data_BB[Index],Data_BB[Lower Bollinger Band],0),IF(N72=Data_BB[Lag Index U],Data_BB[Lower Bollinger Band],0)) -> 267.3731611 | U72: =MIN(IF(N72=Data_BB[Index],Data_BB[Lower Bollinger Band]),IF(N72=Data_BB[Lag Index U],Data_BB[Lower Bollinger Band])) -> 259.5878508
D73: 2022-03-02 | E73: 298.01825 | F73: =IF(Data_BB[[#This Row],[Adj Close]]<E74,TRUE,"") ->  | G73: =IF(F72=Data_BB[[#This Row],[Up]],0,1) -> 1 | H73: =SUM($G$33:G73) -> 23 | I73: 22 | J73: =AVERAGE(OFFSET(E72,1,,-MIN(Bollinger_Band_Range_BB,COUNTA(E$32:E72)))+Standard_Deviation_BB*IFERROR(STDEV(OFFSET(E72,1,,-MIN(Bollinger_Band_Range_BB,COUNTA(E$32:E72)))),0)) -> 318.5538709 | K73: =IFERROR(AVERAGE(OFFSET(E72,1,,-MIN(Bollinger_Band_Range_BB,COUNTA(E$32:E72)))-Standard_Deviation_BB*IFERROR(STDEV(OFFSET(E72,1,,-MIN(Bollinger_Band_Range_BB,COUNTA(E$32:E72)))),0)),0) -> 272.7358935 | N73: 41 | O73: =INDEX(Data_BB[Date],MATCH(N73,Data_BB[Index],0)) -> 2022-04-20 | P73: =MAX(IF(N73=Data_BB[Index],Data_BB[Adj Close],0),IF(N73=Data_BB[Lag Index U],Data_BB[Adj Close],0)) -> 284.288269 | Q73: =MIN(IF(N73=Data_BB[Index],Data_BB[Adj Close]),IF(N73=Data_BB[Lag Index U],Data_BB[Adj Close])) -> 272.047485 | R73: =MAX(IF(N73=Data_BB[Index],Data_BB[Upper Bollinger Band],0),IF(N73=Data_BB[Lag Index U],Data_BB[Upper Bollinger Band],0)) -> 335.9019935 | S73: =MIN(IF(N73=Data_BB[Index],Data_BB[Upper Bollinger Band]),IF(N73=Data_BB[Lag Index U],Data_BB[Upper Bollinger Band])) -> 333.6500003 | T73: =MAX(IF(N73=Data_BB[Index],Data_BB[Lower Bollinger Band],0),IF(N73=Data_BB[Lag Index U],Data_BB[Lower Bollinger Band],0)) -> 259.5878508 | U73: =MIN(IF(N73=Data_BB[Index],Data_BB[Lower Bollinger Band]),IF(N73=Data_BB[Lag Index U],Data_BB[Lower Bollinger Band])) -> 252.4961237
D74: 2022-03-03 | E74: 293.779144 | F74: =IF(Data_BB[[#This Row],[Adj Close]]<E75,TRUE,"") ->  | G74: =IF(F73=Data_BB[[#This Row],[Up]],0,1) -> 0 | H74: =SUM($G$33:G74) -> 23 | I74: 23 | J74: =AVERAGE(OFFSET(E73,1,,-MIN(Bollinger_Band_Range_BB,COUNTA(E$32:E73)))+Standard_Deviation_BB*IFERROR(STDEV(OFFSET(E73,1,,-MIN(Bollinger_Band_Range_BB,COUNTA(E$32:E73)))),0)) -> 315.1674043 | K74: =IFERROR(AVERAGE(OFFSET(E73,1,,-MIN(Bollinger_Band_Range_BB,COUNTA(E$32:E73)))-Standard_Deviation_BB*IFERROR(STDEV(OFFSET(E73,1,,-MIN(Bollinger_Band_Range_BB,COUNTA(E$32:E73)))),0)),0) -> 274.4452666 | N74: 42 | O74: =INDEX(Data_BB[Date],MATCH(N74,Data_BB[Index],0)) -> 2022-04-22 | P74: =MAX(IF(N74=Data_BB[Index],Data_BB[Adj Close],0),IF(N74=Data_BB[Lag Index U],Data_BB[Adj Close],0)) -> 278.689087 | Q74: =MIN(IF(N74=Data_BB[Index],Data_BB[Adj Close]),IF(N74=Data_BB[Lag Index U],Data_BB[Adj Close])) -> 272.047485 | R74: =MAX(IF(N74=Data_BB[Index],Data_BB[Upper Bollinger Band],0),IF(N74=Data_BB[Lag Index U],Data_BB[Upper Bollinger Band],0)) -> 335.9019935 | S74: =MIN(IF(N74=Data_BB[Index],Data_BB[Upper Bollinger Band]),IF(N74=Data_BB[Lag Index U],Data_BB[Upper Bollinger Band])) -> 335.6697738 | T74: =MAX(IF(N74=Data_BB[Index],Data_BB[Lower Bollinger Band],0),IF(N74=Data_BB[Lag Index U],Data_BB[Lower Bollinger Band],0)) -> 252.4961237 | U74: =MIN(IF(N74=Data_BB[Index],Data_BB[Lower Bollinger Band]),IF(N74=Data_BB[Lag Index U],Data_BB[Lower Bollinger Band])) -> 250.448955
D75: 2022-03-04 | E75: 287.762939 | F75: =IF(Data_BB[[#This Row],[Adj Close]]<E76,TRUE,"") ->  | G75: =IF(F74=Data_BB[[#This Row],[Up]],0,1) -> 0 | H75: =SUM($G$33:G75) -> 23 | I75: 23 | J75: =AVERAGE(OFFSET(E74,1,,-MIN(Bollinger_Band_Range_BB,COUNTA(E$32:E74)))+Standard_Deviation_BB*IFERROR(STDEV(OFFSET(E74,1,,-MIN(Bollinger_Band_Range_BB,COUNTA(E$32:E74)))),0)) -> 314.9856933 | K75: =IFERROR(AVERAGE(OFFSET(E74,1,,-MIN(Bollinger_Band_Range_BB,COUNTA(E$32:E74)))-Standard_Deviation_BB*IFERROR(STDEV(OFFSET(E74,1,,-MIN(Bollinger_Band_Range_BB,COUNTA(E$32:E74)))),0)),0) -> 273.5579285 | N75: 43 | O75: =INDEX(Data_BB[Date],MATCH(N75,Data_BB[Index],0)) -> 2022-04-25 | P75: =MAX(IF(N75=Data_BB[Index],Data_BB[Adj Close],0),IF(N75=Data_BB[Lag Index U],Data_BB[Adj Close],0)) -> 278.689087 | Q75: =MIN(IF(N75=Data_BB[Index],Data_BB[Adj Close]),IF(N75=Data_BB[Lag Index U],Data_BB[Adj Close])) -> 268.265076 | R75: =MAX(IF(N75=Data_BB[Index],Data_BB[Upper Bollinger Band],0),IF(N75=Data_BB[Lag Index U],Data_BB[Upper Bollinger Band],0)) -> 335.6697738 | S75: =MIN(IF(N75=Data_BB[Index],Data_BB[Upper Bollinger Band]),IF(N75=Data_BB[Lag Index U],Data_BB[Upper Bollinger Band])) -> 335.2807983 | T75: =MAX(IF(N75=Data_BB[Index],Data_BB[Lower Bollinger Band],0),IF(N75=Data_BB[Lag Index U],Data_BB[Lower Bollinger Band],0)) -> 250.448955 | U75: =MIN(IF(N75=Data_BB[Index],Data_BB[Lower Bollinger Band]),IF(N75=Data_BB[Lag Index U],Data_BB[Lower Bollinger Band])) -> 246.8192172
D76: 2022-03-07 | E76: 276.892181 | F76: =IF(Data_BB[[#This Row],[Adj Close]]<E77,TRUE,"") ->  | G76: =IF(F75=Data_BB[[#This Row],[Up]],0,1) -> 0 | H76: =SUM($G$33:G76) -> 23 | I76: 23 | J76: =AVERAGE(OFFSET(E75,1,,-MIN(Bollinger_Band_Range_BB,COUNTA(E$32:E75)))+Standard_Deviation_BB*IFERROR(STDEV(OFFSET(E75,1,,-MIN(Bollinger_Band_Range_BB,COUNTA(E$32:E75)))),0)) -> 315.7420776 | K76: =IFERROR(AVERAGE(OFFSET(E75,1,,-MIN(Bollinger_Band_Range_BB,COUNTA(E$32:E75)))-Standard_Deviation_BB*IFERROR(STDEV(OFFSET(E75,1,,-MIN(Bollinger_Band_Range_BB,COUNTA(E$32:E75)))),0)),0) -> 270.1807739 | N76: 44 | O76: =INDEX(Data_BB[Date],MATCH(N76,Data_BB[Index],0)) -> 2022-04-26 | P76: =MAX(IF(N76=Data_BB[Index],Data_BB[Adj Close],0),IF(N76=Data_BB[Lag Index U],Data_BB[Adj Close],0)) -> 287.534637 | Q76: =MIN(IF(N76=Data_BB[Index],Data_BB[Adj Close]),IF(N76=Data_BB[Lag Index U],Data_BB[Adj Close])) -> 268.265076 | R76: =MAX(IF(N76=Data_BB[Index],Data_BB[Upper Bollinger Band],0),IF(N76=Data_BB[Lag Index U],Data_BB[Upper Bollinger Band],0)) -> 335.2807983 | S76: =MIN(IF(N76=Data_BB[Index],Data_BB[Upper Bollinger Band]),IF(N76=Data_BB[Lag Index U],Data_BB[Upper Bollinger Band])) -> 327.0233339 | T76: =MAX(IF(N76=Data_BB[Index],Data_BB[Lower Bollinger Band],0),IF(N76=Data_BB[Lag Index U],Data_BB[Lower Bollinger Band],0)) -> 249.4755036 | U76: =MIN(IF(N76=Data_BB[Index],Data_BB[Lower Bollinger Band]),IF(N76=Data_BB[Lag Index U],Data_BB[Lower Bollinger Band])) -> 246.8192172
D77: 2022-03-08 | E77: 273.854309 | F77: =IF(Data_BB[[#This Row],[Adj Close]]<E78,TRUE,"") -> TRUE | G77: =IF(F76=Data_BB[[#This Row],[Up]],0,1) -> 1 | H77: =SUM($G$33:G77) -> 24 | I77: 23 | J77: =AVERAGE(OFFSET(E76,1,,-MIN(Bollinger_Band_Range_BB,COUNTA(E$32:E76)))+Standard_Deviation_BB*IFERROR(STDEV(OFFSET(E76,1,,-MIN(Bollinger_Band_Range_BB,COUNTA(E$32:E76)))),0)) -> 317.5362772 | K77: =IFERROR(AVERAGE(OFFSET(E76,1,,-MIN(Bollinger_Band_Range_BB,COUNTA(E$32:E76)))-Standard_Deviation_BB*IFERROR(STDEV(OFFSET(E76,1,,-MIN(Bollinger_Band_Range_BB,COUNTA(E$32:E76)))),0)),0) -> 265.9563833 | N77: 45 | O77: =INDEX(Data_BB[Date],MATCH(N77,Data_BB[Index],0)) -> 2022-04-28 | P77: =MAX(IF(N77=Data_BB[Index],Data_BB[Adj Close],0),IF(N77=Data_BB[Lag Index U],Data_BB[Adj Close],0)) -> 287.534637 | Q77: =MIN(IF(N77=Data_BB[Index],Data_BB[Adj Close]),IF(N77=Data_BB[Lag Index U],Data_BB[Adj Close])) -> 275.512207 | R77: =MAX(IF(N77=Data_BB[Index],Data_BB[Upper Bollinger Band],0),IF(N77=Data_BB[Lag Index U],Data_BB[Upper Bollinger Band],0)) -> 327.0233339 | S77: =MIN(IF(N77=Data_BB[Index],Data_BB[Upper Bollinger Band]),IF(N77=Data_BB[Lag Index U],Data_BB[Upper Bollinger Band])) -> 324.23834 | T77: =MAX(IF(N77=Data_BB[Index],Data_BB[Lower Bollinger Band],0),IF(N77=Data_BB[Lag Index U],Data_BB[Lower Bollinger Band],0)) -> 249.4755036 | U77: =MIN(IF(N77=Data_BB[Index],Data_BB[Lower Bollinger Band]),IF(N77=Data_BB[Lag Index U],Data_BB[Lower Bollinger Band])) -> 249.2037714
D78: 2022-03-09 | E78: 286.412811 | F78: =IF(Data_BB[[#This Row],[Adj Close]]<E79,TRUE,"") ->  | G78: =IF(F77=Data_BB[[#This Row],[Up]],0,1) -> 1 | H78: =SUM($G$33:G78) -> 25 | I78: 24 | J78: =AVERAGE(OFFSET(E77,1,,-MIN(Bollinger_Band_Range_BB,COUNTA(E$32:E77)))+Standard_Deviation_BB*IFERROR(STDEV(OFFSET(E77,1,,-MIN(Bollinger_Band_Range_BB,COUNTA(E$32:E77)))),0)) -> 315.9962904 | K78: =IFERROR(AVERAGE(OFFSET(E77,1,,-MIN(Bollinger_Band_Range_BB,COUNTA(E$32:E77)))-Standard_Deviation_BB*IFERROR(STDEV(OFFSET(E77,1,,-MIN(Bollinger_Band_Range_BB,COUNTA(E$32:E77)))),0)),0) -> 265.9643815 | N78: 46 | O78: =INDEX(Data_BB[Date],MATCH(N78,Data_BB[Index],0)) -> 2022-04-29 | P78: =MAX(IF(N78=Data_BB[Index],Data_BB[Adj Close],0),IF(N78=Data_BB[Lag Index U],Data_BB[Adj Close],0)) -> 282.411957 | Q78: =MIN(IF(N78=Data_BB[Index],Data_BB[Adj Close]),IF(N78=Data_BB[Lag Index U],Data_BB[Adj Close])) -> 275.512207 | R78: =MAX(IF(N78=Data_BB[Index],Data_BB[Upper Bollinger Band],0),IF(N78=Data_BB[Lag Index U],Data_BB[Upper Bollinger Band],0)) -> 324.23834 | S78: =MIN(IF(N78=Data_BB[Index],Data_BB[Upper Bollinger Band]),IF(N78=Data_BB[Lag Index U],Data_BB[Upper Bollinger Band])) -> 320.1742758 | T78: =MAX(IF(N78=Data_BB[Index],Data_BB[Lower Bollinger Band],0),IF(N78=Data_BB[Lag Index U],Data_BB[Lower Bollinger Band],0)) -> 250.7908855 | U78: =MIN(IF(N78=Data_BB[Index],Data_BB[Lower Bollinger Band]),IF(N78=Data_BB[Lag Index U],Data_BB[Lower Bollinger Band])) -> 249.2037714
D79: 2022-03-10 | E79: 283.523865 | F79: =IF(Data_BB[[#This Row],[Adj Close]]<E80,TRUE,"") ->  | G79: =IF(F78=Data_BB[[#This Row],[Up]],0,1) -> 0 | H79: =SUM($G$33:G79) -> 25 | I79: 25 | J79: =AVERAGE(OFFSET(E78,1,,-MIN(Bollinger_Band_Range_BB,COUNTA(E$32:E78)))+Standard_Deviation_BB*IFERROR(STDEV(OFFSET(E78,1,,-MIN(Bollinger_Band_Range_BB,COUNTA(E$32:E78)))),0)) -> 311.9921239 | K79: =IFERROR(AVERAGE(OFFSET(E78,1,,-MIN(Bollinger_Band_Range_BB,COUNTA(E$32:E78)))-Standard_Deviation_BB*IFERROR(STDEV(OFFSET(E78,1,,-MIN(Bollinger_Band_Range_BB,COUNTA(E$32:E78)))),0)),0) -> 267.4888392 | N79: 47 | O79: =INDEX(Data_BB[Date],MATCH(N79,Data_BB[Index],0)) -> 2022-05-02 | P79: =MAX(IF(N79=Data_BB[Index],Data_BB[Adj Close],0),IF(N79=Data_BB[Lag Index U],Data_BB[Adj Close],0)) -> 282.411957 | Q79: =MIN(IF(N79=Data_BB[Index],Data_BB[Adj Close]),IF(N79=Data_BB[Lag Index U],Data_BB[Adj Close])) -> 279.741425 | R79: =MAX(IF(N79=Data_BB[Index],Data_BB[Upper Bollinger Band],0),IF(N79=Data_BB[Lag Index U],Data_BB[Upper Bollinger Band],0)) -> 320.1742758 | S79: =MIN(IF(N79=Data_BB[Index],Data_BB[Upper Bollinger Band]),IF(N79=Data_BB[Lag Index U],Data_BB[Upper Bollinger Band])) -> 312.8650239 | T79: =MAX(IF(N79=Data_BB[Index],Data_BB[Lower Bollinger Band],0),IF(N79=Data_BB[Lag Index U],Data_BB[Lower Bollinger Band],0)) -> 254.8051484 | U79: =MIN(IF(N79=Data_BB[Index],Data_BB[Lower Bollinger Band]),IF(N79=Data_BB[Lag Index U],Data_BB[Lower Bollinger Band])) -> 250.7908855
D80: 2022-03-11 | E80: 278.043793 | F80: =IF(Data_BB[[#This Row],[Adj Close]]<E81,TRUE,"") ->  | G80: =IF(F79=Data_BB[[#This Row],[Up]],0,1) -> 0 | H80: =SUM($G$33:G80) -> 25 | I80: 25 | J80: =AVERAGE(OFFSET(E79,1,,-MIN(Bollinger_Band_Range_BB,COUNTA(E$32:E79)))+Standard_Deviation_BB*IFERROR(STDEV(OFFSET(E79,1,,-MIN(Bollinger_Band_Range_BB,COUNTA(E$32:E79)))),0)) -> 311.0954437 | K80: =IFERROR(AVERAGE(OFFSET(E79,1,,-MIN(Bollinger_Band_Range_BB,COUNTA(E$32:E79)))-Standard_Deviation_BB*IFERROR(STDEV(OFFSET(E79,1,,-MIN(Bollinger_Band_Range_BB,COUNTA(E$32:E79)))),0)),0) -> 266.2325989 | N80: 48 | O80: =INDEX(Data_BB[Date],MATCH(N80,Data_BB[Index],0)) -> 2022-05-03 | P80: =MAX(IF(N80=Data_BB[Index],Data_BB[Adj Close],0),IF(N80=Data_BB[Lag Index U],Data_BB[Adj Close],0)) -> 287.882111 | Q80: =MIN(IF(N80=Data_BB[Index],Data_BB[Adj Close]),IF(N80=Data_BB[Lag Index U],Data_BB[Adj Close])) -> 279.741425 | R80: =MAX(IF(N80=Data_BB[Index],Data_BB[Upper Bollinger Band],0),IF(N80=Data_BB[Lag Index U],Data_BB[Upper Bollinger Band],0)) -> 312.8650239 | S80: =MIN(IF(N80=Data_BB[Index],Data_BB[Upper Bollinger Band]),IF(N80=Data_BB[Lag Index U],Data_BB[Upper Bollinger Band])) -> 306.2297403 | T80: =MAX(IF(N80=Data_BB[Index],Data_BB[Lower Bollinger Band],0),IF(N80=Data_BB[Lag Index U],Data_BB[Lower Bollinger Band],0)) -> 259.3655541 | U80: =MIN(IF(N80=Data_BB[Index],Data_BB[Lower Bollinger Band]),IF(N80=Data_BB[Lag Index U],Data_BB[Lower Bollinger Band])) -> 254.8051484
D81: 2022-03-14 | E81: 274.440063 | F81: =IF(Data_BB[[#This Row],[Adj Close]]<E82,TRUE,"") -> TRUE | G81: =IF(F80=Data_BB[[#This Row],[Up]],0,1) -> 1 | H81: =SUM($G$33:G81) -> 26 | I81: 25 | J81: =AVERAGE(OFFSET(E80,1,,-MIN(Bollinger_Band_Range_BB,COUNTA(E$32:E80)))+Standard_Deviation_BB*IFERROR(STDEV(OFFSET(E80,1,,-MIN(Bollinger_Band_Range_BB,COUNTA(E$32:E80)))),0)) -> 311.9615326 | K81: =IFERROR(AVERAGE(OFFSET(E80,1,,-MIN(Bollinger_Band_Range_BB,COUNTA(E$32:E80)))-Standard_Deviation_BB*IFERROR(STDEV(OFFSET(E80,1,,-MIN(Bollinger_Band_Range_BB,COUNTA(E$32:E80)))),0)),0) -> 263.5804077 | N81: 49 | O81: =INDEX(Data_BB[Date],MATCH(N81,Data_BB[Index],0)) -> 2022-05-04 | P81: =MAX(IF(N81=Data_BB[Index],Data_BB[Adj Close],0),IF(N81=Data_BB[Lag Index U],Data_BB[Adj Close],0)) -> 287.882111 | Q81: =MIN(IF(N81=Data_BB[Index],Data_BB[Adj Close]),IF(N81=Data_BB[Lag Index U],Data_BB[Adj Close])) -> 262.665863 | R81: =MAX(IF(N81=Data_BB[Index],Data_BB[Upper Bollinger Band],0),IF(N81=Data_BB[Lag Index U],Data_BB[Upper Bollinger Band],0)) -> 306.2297403 | S81: =MIN(IF(N81=Data_BB[Index],Data_BB[Upper Bollinger Band]),IF(N81=Data_BB[Lag Index U],Data_BB[Upper Bollinger Band])) -> 297.8881889 | T81: =MAX(IF(N81=Data_BB[Index],Data_BB[Lower Bollinger Band],0),IF(N81=Data_BB[Lag Index U],Data_BB[Lower Bollinger Band],0)) -> 261.9272085 | U81: =MIN(IF(N81=Data_BB[Index],Data_BB[Lower Bollinger Band]),IF(N81=Data_BB[Lag Index U],Data_BB[Lower Bollinger Band])) -> 259.3655541
D82: 2022-03-15 | E82: 285.072571 | F82: =IF(Data_BB[[#This Row],[Adj Close]]<E83,TRUE,"") -> TRUE | G82: =IF(F81=Data_BB[[#This Row],[Up]],0,1) -> 0 | H82: =SUM($G$33:G82) -> 26 | I82: 26 | J82: =AVERAGE(OFFSET(E81,1,,-MIN(Bollinger_Band_Range_BB,COUNTA(E$32:E81)))+Standard_Deviation_BB*IFERROR(STDEV(OFFSET(E81,1,,-MIN(Bollinger_Band_Range_BB,COUNTA(E$32:E81)))),0)) -> 311.4501751 | K82: =IFERROR(AVERAGE(OFFSET(E81,1,,-MIN(Bollinger_Band_Range_BB,COUNTA(E$32:E81)))-Standard_Deviation_BB*IFERROR(STDEV(OFFSET(E81,1,,-MIN(Bollinger_Band_Range_BB,COUNTA(E$32:E81)))),0)),0) -> 263.3728748 | N82: 50 | O82: =INDEX(Data_BB[Date],MATCH(N82,Data_BB[Index],0)) -> 2022-05-09 | P82: =MAX(IF(N82=Data_BB[Index],Data_BB[Adj Close],0),IF(N82=Data_BB[Lag Index U],Data_BB[Adj Close],0)) -> 267.550262 | Q82: =MIN(IF(N82=Data_BB[Index],Data_BB[Adj Close]),IF(N82=Data_BB[Lag Index U],Data_BB[Adj Close])) -> 262.665863 | R82: =MAX(IF(N82=Data_BB[Index],Data_BB[Upper Bollinger Band],0),IF(N82=Data_BB[Lag Index U],Data_BB[Upper Bollinger Band],0)) -> 298.2366877 | S82: =MIN(IF(N82=Data_BB[Index],Data_BB[Upper Bollinger Band]),IF(N82=Data_BB[Lag Index U],Data_BB[Upper Bollinger Band])) -> 297.8881889 | T82: =MAX(IF(N82=Data_BB[Index],Data_BB[Lower Bollinger Band],0),IF(N82=Data_BB[Lag Index U],Data_BB[Lower Bollinger Band],0)) -> 259.6478464 | U82: =MIN(IF(N82=Data_BB[Index],Data_BB[Lower Bollinger Band]),IF(N82=Data_BB[Lag Index U],Data_BB[Lower Bollinger Band])) -> 257.7347449
D83: 2022-03-16 | E83: 292.260193 | F83: =IF(Data_BB[[#This Row],[Adj Close]]<E84,TRUE,"") -> TRUE | G83: =IF(F82=Data_BB[[#This Row],[Up]],0,1) -> 0 | H83: =SUM($G$33:G83) -> 26 | I83: 26 | J83: =AVERAGE(OFFSET(E82,1,,-MIN(Bollinger_Band_Range_BB,COUNTA(E$32:E82)))+Standard_Deviation_BB*IFERROR(STDEV(OFFSET(E82,1,,-MIN(Bollinger_Band_Range_BB,COUNTA(E$32:E82)))),0)) -> 310.3427446 | K83: =IFERROR(AVERAGE(OFFSET(E82,1,,-MIN(Bollinger_Band_Range_BB,COUNTA(E$32:E82)))-Standard_Deviation_BB*IFERROR(STDEV(OFFSET(E82,1,,-MIN(Bollinger_Band_Range_BB,COUNTA(E$32:E82)))),0)),0) -> 263.9382551 | N83: 51 | O83: =INDEX(Data_BB[Date],MATCH(N83,Data_BB[Index],0)) -> 2022-05-10 | P83: =MAX(IF(N83=Data_BB[Index],Data_BB[Adj Close],0),IF(N83=Data_BB[Lag Index U],Data_BB[Adj Close],0)) -> 267.550262 | Q83: =MIN(IF(N83=Data_BB[Index],Data_BB[Adj Close]),IF(N83=Data_BB[Lag Index U],Data_BB[Adj Close])) -> 253.50264 | R83: =MAX(IF(N83=Data_BB[Index],Data_BB[Upper Bollinger Band],0),IF(N83=Data_BB[Lag Index U],Data_BB[Upper Bollinger Band],0)) -> 303.143508 | S83: =MIN(IF(N83=Data_BB[Index],Data_BB[Upper Bollinger Band]),IF(N83=Data_BB[Lag Index U],Data_BB[Upper Bollinger Band])) -> 298.2366877 | T83: =MAX(IF(N83=Data_BB[Index],Data_BB[Lower Bollinger Band],0),IF(N83=Data_BB[Lag Index U],Data_BB[Lower Bollinger Band],0)) -> 257.7347449 | U83: =MIN(IF(N83=Data_BB[Index],Data_BB[Lower Bollinger Band]),IF(N83=Data_BB[Lag Index U],Data_BB[Lower Bollinger Band])) -> 247.4888332
D84: 2022-03-17 | E84: 293.084167 | F84: =IF(Data_BB[[#This Row],[Adj Close]]<E85,TRUE,"") -> TRUE | G84: =IF(F83=Data_BB[[#This Row],[Up]],0,1) -> 0 | H84: =SUM($G$33:G84) -> 26 | I84: 26 | J84: =AVERAGE(OFFSET(E83,1,,-MIN(Bollinger_Band_Range_BB,COUNTA(E$32:E83)))+Standard_Deviation_BB*IFERROR(STDEV(OFFSET(E83,1,,-MIN(Bollinger_Band_Range_BB,COUNTA(E$32:E83)))),0)) -> 309.4100188 | K84: =IFERROR(AVERAGE(OFFSET(E83,1,,-MIN(Bollinger_Band_Range_BB,COUNTA(E$32:E83)))-Standard_Deviation_BB*IFERROR(STDEV(OFFSET(E83,1,,-MIN(Bollinger_Band_Range_BB,COUNTA(E$32:E83)))),0)),0) -> 264.4460785 | N84: 52 | O84: =INDEX(Data_BB[Date],MATCH(N84,Data_BB[Index],0)) -> 2022-05-12 | P84: =MAX(IF(N84=Data_BB[Index],Data_BB[Adj Close],0),IF(N84=Data_BB[Lag Index U],Data_BB[Adj Close],0)) -> 264.889679 | Q84: =MIN(IF(N84=Data_BB[Index],Data_BB[Adj Close]),IF(N84=Data_BB[Lag Index U],Data_BB[Adj Close])) -> 253.50264 | R84: =MAX(IF(N84=Data_BB[Index],Data_BB[Upper Bollinger Band],0),IF(N84=Data_BB[Lag Index U],Data_BB[Upper Bollinger Band],0)) -> 304.634008 | S84: =MIN(IF(N84=Data_BB[Index],Data_BB[Upper Bollinger Band]),IF(N84=Data_BB[Lag Index U],Data_BB[Upper Bollinger Band])) -> 303.143508 | T84: =MAX(IF(N84=Data_BB[Index],Data_BB[Lower Bollinger Band],0),IF(N84=Data_BB[Lag Index U],Data_BB[Lower Bollinger Band],0)) -> 247.4888332 | U84: =MIN(IF(N84=Data_BB[Index],Data_BB[Lower Bollinger Band]),IF(N84=Data_BB[Lag Index U],Data_BB[Lower Bollinger Band])) -> 241.6371756
D85: 2022-03-18 | E85: 298.2565 | F85: =IF(Data_BB[[#This Row],[Adj Close]]<E86,TRUE,"") ->  | G85: =IF(F84=Data_BB[[#This Row],[Up]],0,1) -> 1 | H85: =SUM($G$33:G85) -> 27 | I85: 26 | J85: =AVERAGE(OFFSET(E84,1,,-MIN(Bollinger_Band_Range_BB,COUNTA(E$32:E84)))+Standard_Deviation_BB*IFERROR(STDEV(OFFSET(E84,1,,-MIN(Bollinger_Band_Range_BB,COUNTA(E$32:E84)))),0)) -> 311.1301136 | K85: =IFERROR(AVERAGE(OFFSET(E84,1,,-MIN(Bollinger_Band_Range_BB,COUNTA(E$32:E84)))-Standard_Deviation_BB*IFERROR(STDEV(OFFSET(E84,1,,-MIN(Bollinger_Band_Range_BB,COUNTA(E$32:E84)))),0)),0) -> 263.6889659 | N85: 53 | O85: =INDEX(Data_BB[Date],MATCH(N85,Data_BB[Index],0)) -> 2022-05-17 | P85: =MAX(IF(N85=Data_BB[Index],Data_BB[Adj Close],0),IF(N85=Data_BB[Lag Index U],Data_BB[Adj Close],0)) -> 264.889679 | Q85: =MIN(IF(N85=Data_BB[Index],Data_BB[Adj Close]),IF(N85=Data_BB[Lag Index U],Data_BB[Adj Close])) -> 251.316803 | R85: =MAX(IF(N85=Data_BB[Index],Data_BB[Upper Bollinger Band],0),IF(N85=Data_BB[Lag Index U],Data_BB[Upper Bollinger Band],0)) -> 304.9089926 | S85: =MIN(IF(N85=Data_BB[Index],Data_BB[Upper Bollinger Band]),IF(N85=Data_BB[Lag Index U],Data_BB[Upper Bollinger Band])) -> 303.3400309 | T85: =MAX(IF(N85=Data_BB[Index],Data_BB[Lower Bollinger Band],0),IF(N85=Data_BB[Lag Index U],Data_BB[Lower Bollinger Band],0)) -> 241.6371756 | U85: =MIN(IF(N85=Data_BB[Index],Data_BB[Lower Bollinger Band]),IF(N85=Data_BB[Lag Index U],Data_BB[Lower Bollinger Band])) -> 232.235612
D86: 2022-03-21 | E86: 296.995697 | F86: =IF(Data_BB[[#This Row],[Adj Close]]<E87,TRUE,"") -> TRUE | G86: =IF(F85=Data_BB[[#This Row],[Up]],0,1) -> 1 | H86: =SUM($G$33:G86) -> 28 | I86: 27 | J86: =AVERAGE(OFFSET(E85,1,,-MIN(Bollinger_Band_Range_BB,COUNTA(E$32:E85)))+Standard_Deviation_BB*IFERROR(STDEV(OFFSET(E85,1,,-MIN(Bollinger_Band_Range_BB,COUNTA(E$32:E85)))),0)) -> 312.5045841 | K86: =IFERROR(AVERAGE(OFFSET(E85,1,,-MIN(Bollinger_Band_Range_BB,COUNTA(E$32:E85)))-Standard_Deviation_BB*IFERROR(STDEV(OFFSET(E85,1,,-MIN(Bollinger_Band_Range_BB,COUNTA(E$32:E85)))),0)),0) -> 263.4293727 | N86: 54 | O86: =INDEX(Data_BB[Date],MATCH(N86,Data_BB[Index],0)) -> 2022-05-20 | P86: =MAX(IF(N86=Data_BB[Index],Data_BB[Adj Close],0),IF(N86=Data_BB[Lag Index U],Data_BB[Adj Close],0)) -> 259.366974 | Q86: =MIN(IF(N86=Data_BB[Index],Data_BB[Adj Close]),IF(N86=Data_BB[Lag Index U],Data_BB[Adj Close])) -> 251.316803 | R86: =MAX(IF(N86=Data_BB[Index],Data_BB[Upper Bollinger Band],0),IF(N86=Data_BB[Lag Index U],Data_BB[Upper Bollinger Band],0)) -> 304.9089926 | S86: =MIN(IF(N86=Data_BB[Index],Data_BB[Upper Bollinger Band]),IF(N86=Data_BB[Lag Index U],Data_BB[Upper Bollinger Band])) -> 303.7056499 | T86: =MAX(IF(N86=Data_BB[Index],Data_BB[Lower Bollinger Band],0),IF(N86=Data_BB[Lag Index U],Data_BB[Lower Bollinger Band],0)) -> 232.235612 | U86: =MIN(IF(N86=Data_BB[Index],Data_BB[Lower Bollinger Band]),IF(N86=Data_BB[Lag Index U],Data_BB[Lower Bollinger Band])) -> 231.5067434
D87: 2022-03-22 | E87: 301.860229 | F87: =IF(Data_BB[[#This Row],[Adj Close]]<E88,TRUE,"") ->  | G87: =IF(F86=Data_BB[[#This Row],[Up]],0,1) -> 1 | H87: =SUM($G$33:G87) -> 29 | I87: 28 | J87: =AVERAGE(OFFSET(E86,1,,-MIN(Bollinger_Band_Range_BB,COUNTA(E$32:E86)))+Standard_Deviation_BB*IFERROR(STDEV(OFFSET(E86,1,,-MIN(Bollinger_Band_Range_BB,COUNTA(E$32:E86)))),0)) -> 314.9453183 | K87: =IFERROR(AVERAGE(OFFSET(E86,1,,-MIN(Bollinger_Band_Range_BB,COUNTA(E$32:E86)))-Standard_Deviation_BB*IFERROR(STDEV(OFFSET(E86,1,,-MIN(Bollinger_Band_Range_BB,COUNTA(E$32:E86)))),0)),0) -> 262.6108156 | N87: 55 | O87: =INDEX(Data_BB[Date],MATCH(N87,Data_BB[Index],0)) -> 2022-05-23 | P87: =MAX(IF(N87=Data_BB[Index],Data_BB[Adj Close],0),IF(N87=Data_BB[Lag Index U],Data_BB[Adj Close],0)) -> 259.366974 | Q87: =MIN(IF(N87=Data_BB[Index],Data_BB[Adj Close]),IF(N87=Data_BB[Lag Index U],Data_BB[Adj Close])) -> 258.342041 | R87: =MAX(IF(N87=Data_BB[Index],Data_BB[Upper Bollinger Band],0),IF(N87=Data_BB[Lag Index U],Data_BB[Upper Bollinger Band],0)) -> 303.7336238 | S87: =MIN(IF(N87=Data_BB[Index],Data_BB[Upper Bollinger Band]),IF(N87=Data_BB[Lag Index U],Data_BB[Upper Bollinger Band])) -> 303.7056499 | T87: =MAX(IF(N87=Data_BB[Index],Data_BB[Lower Bollinger Band],0),IF(N87=Data_BB[Lag Index U],Data_BB[Lower Bollinger Band],0)) -> 231.5067434 | U87: =MIN(IF(N87=Data_BB[Index],Data_BB[Lower Bollinger Band]),IF(N87=Data_BB[Lag Index U],Data_BB[Lower Bollinger Band])) -> 230.486466
D88: 2022-03-23 | E88: 297.323273 | F88: =IF(Data_BB[[#This Row],[Adj Close]]<E89,TRUE,"") -> TRUE | G88: =IF(F87=Data_BB[[#This Row],[Up]],0,1) -> 1 | H88: =SUM($G$33:G88) -> 30 | I88: 29 | J88: =AVERAGE(OFFSET(E87,1,,-MIN(Bollinger_Band_Range_BB,COUNTA(E$32:E87)))+Standard_Deviation_BB*IFERROR(STDEV(OFFSET(E87,1,,-MIN(Bollinger_Band_Range_BB,COUNTA(E$32:E87)))),0)) -> 315.3857839 | K88: =IFERROR(AVERAGE(OFFSET(E87,1,,-MIN(Bollinger_Band_Range_BB,COUNTA(E$32:E87)))-Standard_Deviation_BB*IFERROR(STDEV(OFFSET(E87,1,,-MIN(Bollinger_Band_Range_BB,COUNTA(E$32:E87)))),0)),0) -> 264.0784463 | N88: 56 | O88: =INDEX(Data_BB[Date],MATCH(N88,Data_BB[Index],0)) -> 2022-05-24 | P88: =MAX(IF(N88=Data_BB[Index],Data_BB[Adj Close],0),IF(N88=Data_BB[Lag Index U],Data_BB[Adj Close],0)) -> 271.894989 | Q88: =MIN(IF(N88=Data_BB[Index],Data_BB[Adj Close]),IF(N88=Data_BB[Lag Index U],Data_BB[Adj Close])) -> 258.342041 | R88: =MAX(IF(N88=Data_BB[Index],Data_BB[Upper Bollinger Band],0),IF(N88=Data_BB[Lag Index U],Data_BB[Upper Bollinger Band],0)) -> 303.7336238 | S88: =MIN(IF(N88=Data_BB[Index],Data_BB[Upper Bollinger Band]),IF(N88=Data_BB[Lag Index U],Data_BB[Upper Bollinger Band])) -> 296.3381417 | T88: =MAX(IF(N88=Data_BB[Index],Data_BB[Lower Bollinger Band],0),IF(N88=Data_BB[Lag Index U],Data_BB[Lower Bollinger Band],0)) -> 233.2315513 | U88: =MIN(IF(N88=Data_BB[Index],Data_BB[Lower Bollinger Band]),IF(N88=Data_BB[Lag Index U],Data_BB[Lower Bollinger Band])) -> 230.486466
D89: 2022-03-24 | E89: 301.899963 | F89: =IF(Data_BB[[#This Row],[Adj Close]]<E90,TRUE,"") ->  | G89: =IF(F88=Data_BB[[#This Row],[Up]],0,1) -> 1 | H89: =SUM($G$33:G89) -> 31 | I89: 30 | J89: =AVERAGE(OFFSET(E88,1,,-MIN(Bollinger_Band_Range_BB,COUNTA(E$32:E88)))+Standard_Deviation_BB*IFERROR(STDEV(OFFSET(E88,1,,-MIN(Bollinger_Band_Range_BB,COUNTA(E$32:E88)))),0)) -> 317.0855857 | K89: =IFERROR(AVERAGE(OFFSET(E88,1,,-MIN(Bollinger_Band_Range_BB,COUNTA(E$32:E88)))-Standard_Deviation_BB*IFERROR(STDEV(OFFSET(E88,1,,-MIN(Bollinger_Band_Range_BB,COUNTA(E$32:E88)))),0)),0) -> 263.3227698 | N89: 57 | O89: =INDEX(Data_BB[Date],MATCH(N89,Data_BB[Index],0)) -> 2022-05-27 | P89: =MAX(IF(N89=Data_BB[Index],Data_BB[Adj Close],0),IF(N89=Data_BB[Lag Index U],Data_BB[Adj Close],0)) -> 271.894989 | Q89: =MIN(IF(N89=Data_BB[Index],Data_BB[Adj Close]),IF(N89=Data_BB[Lag Index U],Data_BB[Adj Close])) -> 270.531769 | R89: =MAX(IF(N89=Data_BB[Index],Data_BB[Upper Bollinger Band],0),IF(N89=Data_BB[Lag Index U],Data_BB[Upper Bollinger Band],0)) -> 296.3381417 | S89: =MIN(IF(N89=Data_BB[Index],Data_BB[Upper Bollinger Band]),IF(N89=Data_BB[Lag Index U],Data_BB[Upper Bollinger Band])) -> 293.5290596 | T89: =MAX(IF(N89=Data_BB[Index],Data_BB[Lower Bollinger Band],0),IF(N89=Data_BB[Lag Index U],Data_BB[Lower Bollinger Band],0)) -> 234.8526146 | U89: =MIN(IF(N89=Data_BB[Index],Data_BB[Lower Bollinger Band]),IF(N89=Data_BB[Lag Index U],Data_BB[Lower Bollinger Band])) -> 233.2315513
D90: 2022-03-25 | E90: 301.482971 | F90: =IF(Data_BB[[#This Row],[Adj Close]]<E91,TRUE,"") -> TRUE | G90: =IF(F89=Data_BB[[#This Row],[Up]],0,1) -> 1 | H90: =SUM($G$33:G90) -> 32 | I90: 31 | J90: =AVERAGE(OFFSET(E89,1,,-MIN(Bollinger_Band_Range_BB,COUNTA(E$32:E89)))+Standard_Deviation_BB*IFERROR(STDEV(OFFSET(E89,1,,-MIN(Bollinger_Band_Range_BB,COUNTA(E$32:E89)))),0)) -> 318.2744954 | K90: =IFERROR(AVERAGE(OFFSET(E89,1,,-MIN(Bollinger_Band_Range_BB,COUNTA(E$32:E89)))-Standard_Deviation_BB*IFERROR(STDEV(OFFSET(E89,1,,-MIN(Bollinger_Band_Range_BB,COUNTA(E$32:E89)))),0)),0) -> 262.7662484 | N90: 58 | O90: =INDEX(Data_BB[Date],MATCH(N90,Data_BB[Index],0)) -> 2022-05-31 | P90: =MAX(IF(N90=Data_BB[Index],Data_BB[Adj Close],0),IF(N90=Data_BB[Lag Index U],Data_BB[Adj Close],0)) -> 273.228394 | Q90: =MIN(IF(N90=Data_BB[Index],Data_BB[Adj Close]),IF(N90=Data_BB[Lag Index U],Data_BB[Adj Close])) -> 270.531769 | R90: =MAX(IF(N90=Data_BB[Index],Data_BB[Upper Bollinger Band],0),IF(N90=Data_BB[Lag Index U],Data_BB[Upper Bollinger Band],0)) -> 293.5290596 | S90: =MIN(IF(N90=Data_BB[Index],Data_BB[Upper Bollinger Band]),IF(N90=Data_BB[Lag Index U],Data_BB[Upper Bollinger Band])) -> 286.0164542 | T90: =MAX(IF(N90=Data_BB[Index],Data_BB[Lower Bollinger Band],0),IF(N90=Data_BB[Lag Index U],Data_BB[Lower Bollinger Band],0)) -> 240.0336099 | U90: =MIN(IF(N90=Data_BB[Index],Data_BB[Lower Bollinger Band]),IF(N90=Data_BB[Lag Index U],Data_BB[Lower Bollinger Band])) -> 234.8526146
D91: 2022-03-28 | E91: 308.452209 | F91: =IF(Data_BB[[#This Row],[Adj Close]]<E92,TRUE,"") -> TRUE | G91: =IF(F90=Data_BB[[#This Row],[Up]],0,1) -> 0 | H91: =SUM($G$33:G91) -> 32 | I91: 32 | J91: =AVERAGE(OFFSET(E90,1,,-MIN(Bollinger_Band_Range_BB,COUNTA(E$32:E90)))+Standard_Deviation_BB*IFERROR(STDEV(OFFSET(E90,1,,-MIN(Bollinger_Band_Range_BB,COUNTA(E$32:E90)))),0)) -> 321.1385823 | K91: =IFERROR(AVERAGE(OFFSET(E90,1,,-MIN(Bollinger_Band_Range_BB,COUNTA(E$32:E90)))-Standard_Deviation_BB*IFERROR(STDEV(OFFSET(E90,1,,-MIN(Bollinger_Band_Range_BB,COUNTA(E$32:E90)))),0)),0) -> 261.0845467 | N91: 59 | O91: =INDEX(Data_BB[Date],MATCH(N91,Data_BB[Index],0)) -> 2022-06-02 | P91: =MAX(IF(N91=Data_BB[Index],Data_BB[Adj Close],0),IF(N91=Data_BB[Lag Index U],Data_BB[Adj Close],0)) -> 273.228394 | Q91: =MIN(IF(N91=Data_BB[Index],Data_BB[Adj Close]),IF(N91=Data_BB[Lag Index U],Data_BB[Adj Close])) -> 267.427094 | R91: =MAX(IF(N91=Data_BB[Index],Data_BB[Upper Bollinger Band],0),IF(N91=Data_BB[Lag Index U],Data_BB[Upper Bollinger Band],0)) -> 286.0164542 | S91: =MIN(IF(N91=Data_BB[Index],Data_BB[Upper Bollinger Band]),IF(N91=Data_BB[Lag Index U],Data_BB[Upper Bollinger Band])) -> 283.2350591 | T91: =MAX(IF(N91=Data_BB[Index],Data_BB[Lower Bollinger Band],0),IF(N91=Data_BB[Lag Index U],Data_BB[Lower Bollinger Band],0)) -> 241.6182094 | U91: =MIN(IF(N91=Data_BB[Index],Data_BB[Lower Bollinger Band]),IF(N91=Data_BB[Lag Index U],Data_BB[Lower Bollinger Band])) -> 240.0336099
D92: 2022-03-29 | E92: 313.128113 | F92: =IF(Data_BB[[#This Row],[Adj Close]]<E93,TRUE,"") ->  | G92: =IF(F91=Data_BB[[#This Row],[Up]],0,1) -> 1 | H92: =SUM($G$33:G92) -> 33 | I92: 32 | J92: =AVERAGE(OFFSET(E91,1,,-MIN(Bollinger_Band_Range_BB,COUNTA(E$32:E91)))+Standard_Deviation_BB*IFERROR(STDEV(OFFSET(E91,1,,-MIN(Bollinger_Band_Range_BB,COUNTA(E$32:E91)))),0)) -> 325.5947898 | K92: =IFERROR(AVERAGE(OFFSET(E91,1,,-MIN(Bollinger_Band_Range_BB,COUNTA(E$32:E91)))-Standard_Deviation_BB*IFERROR(STDEV(OFFSET(E91,1,,-MIN(Bollinger_Band_Range_BB,COUNTA(E$32:E91)))),0)),0) -> 258.6595343 | N92: 60 | O92: =INDEX(Data_BB[Date],MATCH(N92,Data_BB[Index],0)) -> 2022-06-06 | P92: =MAX(IF(N92=Data_BB[Index],Data_BB[Adj Close],0),IF(N92=Data_BB[Lag Index U],Data_BB[Adj Close],0)) -> 271.158661 | Q92: =MIN(IF(N92=Data_BB[Index],Data_BB[Adj Close]),IF(N92=Data_BB[Lag Index U],Data_BB[Adj Close])) -> 267.427094 | R92: =MAX(IF(N92=Data_BB[Index],Data_BB[Upper Bollinger Band],0),IF(N92=Data_BB[Lag Index U],Data_BB[Upper Bollinger Band],0)) -> 284.4700799 | S92: =MIN(IF(N92=Data_BB[Index],Data_BB[Upper Bollinger Band]),IF(N92=Data_BB[Lag Index U],Data_BB[Upper Bollinger Band])) -> 283.2350591 | T92: =MAX(IF(N92=Data_BB[Index],Data_BB[Lower Bollinger Band],0),IF(N92=Data_BB[Lag Index U],Data_BB[Lower Bollinger Band],0)) -> 241.6182094 | U92: =MIN(IF(N92=Data_BB[Index],Data_BB[Lower Bollinger Band]),IF(N92=Data_BB[Lag Index U],Data_BB[Lower Bollinger Band])) -> 241.2324684
D93: 2022-03-30 | E93: 311.589325 | F93: =IF(Data_BB[[#This Row],[Adj Close]]<E94,TRUE,"") ->  | G93: =IF(F92=Data_BB[[#This Row],[Up]],0,1) -> 0 | H93: =SUM($G$33:G93) -> 33 | I93: 33 | J93: =AVERAGE(OFFSET(E92,1,,-MIN(Bollinger_Band_Range_BB,COUNTA(E$32:E92)))+Standard_Deviation_BB*IFERROR(STDEV(OFFSET(E92,1,,-MIN(Bollinger_Band_Range_BB,COUNTA(E$32:E92)))),0)) -> 328.5646451 | K93: =IFERROR(AVERAGE(OFFSET(E92,1,,-MIN(Bollinger_Band_Range_BB,COUNTA(E$32:E92)))-Standard_Deviation_BB*IFERROR(STDEV(OFFSET(E92,1,,-MIN(Bollinger_Band_Range_BB,COUNTA(E$32:E92)))),0)),0) -> 257.0467865 | N93: 61 | O93: =INDEX(Data_BB[Date],MATCH(N93,Data_BB[Index],0)) -> 2022-06-07 | P93: =MAX(IF(N93=Data_BB[Index],Data_BB[Adj Close],0),IF(N93=Data_BB[Lag Index U],Data_BB[Adj Close],0)) -> 271.158661 | Q93: =MIN(IF(N93=Data_BB[Index],Data_BB[Adj Close]),IF(N93=Data_BB[Lag Index U],Data_BB[Adj Close])) -> 241.067505 | R93: =MAX(IF(N93=Data_BB[Index],Data_BB[Upper Bollinger Band],0),IF(N93=Data_BB[Lag Index U],Data_BB[Upper Bollinger Band],0)) -> 288.600288 | S93: =MIN(IF(N93=Data_BB[Index],Data_BB[Upper Bollinger Band]),IF(N93=Data_BB[Lag Index U],Data_BB[Upper Bollinger Band])) -> 284.4700799 | T93: =MAX(IF(N93=Data_BB[Index],Data_BB[Lower Bollinger Band],0),IF(N93=Data_BB[Lag Index U],Data_BB[Lower Bollinger Band],0)) -> 241.5766659 | U93: =MIN(IF(N93=Data_BB[Index],Data_BB[Lower Bollinger Band]),IF(N93=Data_BB[Lag Index U],Data_BB[Lower Bollinger Band])) -> 235.7451542
D94: 2022-03-31 | E94: 306.079468 | F94: =IF(Data_BB[[#This Row],[Adj Close]]<E95,TRUE,"") -> TRUE | G94: =IF(F93=Data_BB[[#This Row],[Up]],0,1) -> 1 | H94: =SUM($G$33:G94) -> 34 | I94: 33 | J94: =AVERAGE(OFFSET(E93,1,,-MIN(Bollinger_Band_Range_BB,COUNTA(E$32:E93)))+Standard_Deviation_BB*IFERROR(STDEV(OFFSET(E93,1,,-MIN(Bollinger_Band_Range_BB,COUNTA(E$32:E93)))),0)) -> 330.2735258 | K94: =IFERROR(AVERAGE(OFFSET(E93,1,,-MIN(Bollinger_Band_Range_BB,COUNTA(E$32:E93)))-Standard_Deviation_BB*IFERROR(STDEV(OFFSET(E93,1,,-MIN(Bollinger_Band_Range_BB,COUNTA(E$32:E93)))),0)),0) -> 256.5679382 | N94: 62 | O94: =INDEX(Data_BB[Date],MATCH(N94,Data_BB[Index],0)) -> 2022-06-13 | P94: =MAX(IF(N94=Data_BB[Index],Data_BB[Adj Close],0),IF(N94=Data_BB[Lag Index U],Data_BB[Adj Close],0)) -> 250.520737 | Q94: =MIN(IF(N94=Data_BB[Index],Data_BB[Adj Close]),IF(N94=Data_BB[Lag Index U],Data_BB[Adj Close])) -> 241.067505 | R94: =MAX(IF(N94=Data_BB[Index],Data_BB[Upper Bollinger Band],0),IF(N94=Data_BB[Lag Index U],Data_BB[Upper Bollinger Band],0)) -> 290.6842385 | S94: =MIN(IF(N94=Data_BB[Index],Data_BB[Upper Bollinger Band]),IF(N94=Data_BB[Lag Index U],Data_BB[Upper Bollinger Band])) -> 288.600288 | T94: =MAX(IF(N94=Data_BB[Index],Data_BB[Lower Bollinger Band],0),IF(N94=Data_BB[Lag Index U],Data_BB[Lower Bollinger Band],0)) -> 235.7451542 | U94: =MIN(IF(N94=Data_BB[Index],Data_BB[Lower Bollinger Band]),IF(N94=Data_BB[Lag Index U],Data_BB[Lower Bollinger Band])) -> 230.5921471
D95: 2022-04-01 | E95: 307.181458 | F95: =IF(Data_BB[[#This Row],[Adj Close]]<E96,TRUE,"") -> TRUE | G95: =IF(F94=Data_BB[[#This Row],[Up]],0,1) -> 0 | H95: =SUM($G$33:G95) -> 34 | I95: 34 | J95: =AVERAGE(OFFSET(E94,1,,-MIN(Bollinger_Band_Range_BB,COUNTA(E$32:E94)))+Standard_Deviation_BB*IFERROR(STDEV(OFFSET(E94,1,,-MIN(Bollinger_Band_Range_BB,COUNTA(E$32:E94)))),0)) -> 332.1240097 | K95: =IFERROR(AVERAGE(OFFSET(E94,1,,-MIN(Bollinger_Band_Range_BB,COUNTA(E$32:E94)))-Standard_Deviation_BB*IFERROR(STDEV(OFFSET(E94,1,,-MIN(Bollinger_Band_Range_BB,COUNTA(E$32:E94)))),0)),0) -> 256.6593062 | N95: 63 | O95: =INDEX(Data_BB[Date],MATCH(N95,Data_BB[Index],0)) -> 2022-06-15 | P95: =MAX(IF(N95=Data_BB[Index],Data_BB[Adj Close],0),IF(N95=Data_BB[Lag Index U],Data_BB[Adj Close],0)) -> 250.520737 | Q95: =MIN(IF(N95=Data_BB[Index],Data_BB[Adj Close]),IF(N95=Data_BB[Lag Index U],Data_BB[Adj Close])) -> 243.76416 | R95: =MAX(IF(N95=Data_BB[Index],Data_BB[Upper Bollinger Band],0),IF(N95=Data_BB[Lag Index U],Data_BB[Upper Bollinger Band],0)) -> 291.915166 | S95: =MIN(IF(N95=Data_BB[Index],Data_BB[Upper Bollinger Band]),IF(N95=Data_BB[Lag Index U],Data_BB[Upper Bollinger Band])) -> 290.6842385 | T95: =MAX(IF(N95=Data_BB[Index],Data_BB[Lower Bollinger Band],0),IF(N95=Data_BB[Lag Index U],Data_BB[Lower Bollinger Band],0)) -> 230.5921471 | U95: =MIN(IF(N95=Data_BB[Index],Data_BB[Lower Bollinger Band]),IF(N95=Data_BB[Lag Index U],Data_BB[Lower Bollinger Band])) -> 228.4547026
D96: 2022-04-04 | E96: 312.691315 | F96: =IF(Data_BB[[#This Row],[Adj Close]]<E97,TRUE,"") ->  | G96: =IF(F95=Data_BB[[#This Row],[Up]],0,1) -> 1 | H96: =SUM($G$33:G96) -> 35 | I96: 34 | J96: =AVERAGE(OFFSET(E95,1,,-MIN(Bollinger_Band_Range_BB,COUNTA(E$32:E95)))+Standard_Deviation_BB*IFERROR(STDEV(OFFSET(E95,1,,-MIN(Bollinger_Band_Range_BB,COUNTA(E$32:E95)))),0)) -> 333.6908968 | K96: =IFERROR(AVERAGE(OFFSET(E95,1,,-MIN(Bollinger_Band_Range_BB,COUNTA(E$32:E95)))-Standard_Deviation_BB*IFERROR(STDEV(OFFSET(E95,1,,-MIN(Bollinger_Band_Range_BB,COUNTA(E$32:E95)))),0)),0) -> 258.6723325 | N96: 64 | O96: =INDEX(Data_BB[Date],MATCH(N96,Data_BB[Index],0)) -> 2022-06-16 | P96: =MAX(IF(N96=Data_BB[Index],Data_BB[Adj Close],0),IF(N96=Data_BB[Lag Index U],Data_BB[Adj Close],0)) -> 252.490997 | Q96: =MIN(IF(N96=Data_BB[Index],Data_BB[Adj Close]),IF(N96=Data_BB[Lag Index U],Data_BB[Adj Close])) -> 243.76416 | R96: =MAX(IF(N96=Data_BB[Index],Data_BB[Upper Bollinger Band],0),IF(N96=Data_BB[Lag Index U],Data_BB[Upper Bollinger Band],0)) -> 292.5177218 | S96: =MIN(IF(N96=Data_BB[Index],Data_BB[Upper Bollinger Band]),IF(N96=Data_BB[Lag Index U],Data_BB[Upper Bollinger Band])) -> 291.915166 | T96: =MAX(IF(N96=Data_BB[Index],Data_BB[Lower Bollinger Band],0),IF(N96=Data_BB[Lag Index U],Data_BB[Lower Bollinger Band],0)) -> 228.4547026 | U96: =MIN(IF(N96=Data_BB[Index],Data_BB[Lower Bollinger Band]),IF(N96=Data_BB[Lag Index U],Data_BB[Lower Bollinger Band])) -> 227.3058486
D97: 2022-04-05 | E97: 308.63089 | F97: =IF(Data_BB[[#This Row],[Adj Close]]<E98,TRUE,"") ->  | G97: =IF(F96=Data_BB[[#This Row],[Up]],0,1) -> 0 | H97: =SUM($G$33:G97) -> 35 | I97: =N(H96) -> 35 | J97: =AVERAGE(OFFSET(E96,1,,-MIN(Bollinger_Band_Range_BB,COUNTA(E$32:E96)))+Standard_Deviation_BB*IFERROR(STDEV(OFFSET(E96,1,,-MIN(Bollinger_Band_Range_BB,COUNTA(E$32:E96)))),0)) -> 332.7856177 | K97: =IFERROR(AVERAGE(OFFSET(E96,1,,-MIN(Bollinger_Band_Range_BB,COUNTA(E$32:E96)))-Standard_Deviation_BB*IFERROR(STDEV(OFFSET(E96,1,,-MIN(Bollinger_Band_Range_BB,COUNTA(E$32:E96)))),0)),0) -> 263.0552697 | N97: 65 | O97: =INDEX(Data_BB[Date],MATCH(N97,Data_BB[Index],0)) -> 2022-06-21 | P97: =MAX(IF(N97=Data_BB[Index],Data_BB[Adj Close],0),IF(N97=Data_BB[Lag Index U],Data_BB[Adj Close],0)) -> 252.490997 | Q97: =MIN(IF(N97=Data_BB[Index],Data_BB[Adj Close]),IF(N97=Data_BB[Lag Index U],Data_BB[Adj Close])) -> 251.884003 | R97: =MAX(IF(N97=Data_BB[Index],Data_BB[Upper Bollinger Band],0),IF(N97=Data_BB[Lag Index U],Data_BB[Upper Bollinger Band],0)) -> 292.5156818 | S97: =MIN(IF(N97=Data_BB[Index],Data_BB[Upper Bollinger Band]),IF(N97=Data_BB[Lag Index U],Data_BB[Upper Bollinger Band])) -> 292.4390416 | T97: =MAX(IF(N97=Data_BB[Index],Data_BB[Lower Bollinger Band],0),IF(N97=Data_BB[Lag Index U],Data_BB[Lower Bollinger Band],0)) -> 227.5019482 | U97: =MIN(IF(N97=Data_BB[Index],Data_BB[Lower Bollinger Band]),IF(N97=Data_BB[Lag Index U],Data_BB[Lower Bollinger Band])) -> 226.6770109
D98: 2022-04-06 | E98: 297.333191 | F98: =IF(Data_BB[[#This Row],[Adj Close]]<E99,TRUE,"") -> TRUE | G98: =IF(F97=Data_BB[[#This Row],[Up]],0,1) -> 1 | H98: =SUM($G$33:G98) -> 36 | I98: 35 | J98: =AVERAGE(OFFSET(E97,1,,-MIN(Bollinger_Band_Range_BB,COUNTA(E$32:E97)))+Standard_Deviation_BB*IFERROR(STDEV(OFFSET(E97,1,,-MIN(Bollinger_Band_Range_BB,COUNTA(E$32:E97)))),0)) -> 332.3809337 | K98: =IFERROR(AVERAGE(OFFSET(E97,1,,-MIN(Bollinger_Band_Range_BB,COUNTA(E$32:E97)))-Standard_Deviation_BB*IFERROR(STDEV(OFFSET(E97,1,,-MIN(Bollinger_Band_Range_BB,COUNTA(E$32:E97)))),0)),0) -> 264.5519917 | N98: =N(N97)+1 -> 66 | O98: =INDEX(Data_BB[Date],MATCH(N98,Data_BB[Index],0)) -> 2022-06-22 | P98: =MAX(IF(N98=Data_BB[Index],Data_BB[Adj Close],0),IF(N98=Data_BB[Lag Index U],Data_BB[Adj Close],0)) -> 266.382294 | Q98: =MIN(IF(N98=Data_BB[Index],Data_BB[Adj Close]),IF(N98=Data_BB[Lag Index U],Data_BB[Adj Close])) -> 251.884003 | R98: =MAX(IF(N98=Data_BB[Index],Data_BB[Upper Bollinger Band],0),IF(N98=Data_BB[Lag Index U],Data_BB[Upper Bollinger Band],0)) -> 293.0569874 | S98: =MIN(IF(N98=Data_BB[Index],Data_BB[Upper Bollinger Band]),IF(N98=Data_BB[Lag Index U],Data_BB[Upper Bollinger Band])) -> 292.4954226 | T98: =MAX(IF(N98=Data_BB[Index],Data_BB[Lower Bollinger Band],0),IF(N98=Data_BB[Lag Index U],Data_BB[Lower Bollinger Band],0)) -> 226.6770109 | U98: =MIN(IF(N98=Data_BB[Index],Data_BB[Lower Bollinger Band]),IF(N98=Data_BB[Lag Index U],Data_BB[Lower Bollinger Band])) -> 226.5755308
D99: 2022-04-07 | E99: 299.189667 | F99: =IF(Data_BB[[#This Row],[Adj Close]]<E100,TRUE,"") ->  | G99: =IF(F98=Data_BB[[#This Row],[Up]],0,1) -> 1 | H99: =SUM($G$33:G99) -> 37 | I99: 36 | J99: =AVERAGE(OFFSET(E98,1,,-MIN(Bollinger_Band_Range_BB,COUNTA(E$32:E98)))+Standard_Deviation_BB*IFERROR(STDEV(OFFSET(E98,1,,-MIN(Bollinger_Band_Range_BB,COUNTA(E$32:E98)))),0)) -> 331.4811317 | K99: =IFERROR(AVERAGE(OFFSET(E98,1,,-MIN(Bollinger_Band_Range_BB,COUNTA(E$32:E98)))-Standard_Deviation_BB*IFERROR(STDEV(OFFSET(E98,1,,-MIN(Bollinger_Band_Range_BB,COUNTA(E$32:E98)))),0)),0) -> 267.0183739 | N99: 67 | O99: =INDEX(Data_BB[Date],MATCH(N99,Data_BB[Index],0)) -> 2022-06-24 | P99: =MAX(IF(N99=Data_BB[Index],Data_BB[Adj Close],0),IF(N99=Data_BB[Lag Index U],Data_BB[Adj Close],0)) -> 266.382294 | Q99: =MIN(IF(N99=Data_BB[Index],Data_BB[Adj Close]),IF(N99=Data_BB[Lag Index U],Data_BB[Adj Close])) -> 255.217514 | R99: =MAX(IF(N99=Data_BB[Index],Data_BB[Upper Bollinger Band],0),IF(N99=Data_BB[Lag Index U],Data_BB[Upper Bollinger Band],0)) -> 293.0569874 | S99: =MIN(IF(N99=Data_BB[Index],Data_BB[Upper Bollinger Band]),IF(N99=Data_BB[Lag Index U],Data_BB[Upper Bollinger Band])) -> 291.0939465 | T99: =MAX(IF(N99=Data_BB[Index],Data_BB[Lower Bollinger Band],0),IF(N99=Data_BB[Lag Index U],Data_BB[Lower Bollinger Band],0)) -> 226.7703238 | U99: =MIN(IF(N99=Data_BB[Index],Data_BB[Lower Bollinger Band]),IF(N99=Data_BB[Lag Index U],Data_BB[Lower Bollinger Band])) -> 226.5755308
D100: 2022-04-08 | E100: 294.821503 | F100: =IF(Data_BB[[#This Row],[Adj Close]]<E101,TRUE,"") ->  | G100: =IF(F99=Data_BB[[#This Row],[Up]],0,1) -> 0 | H100: =SUM($G$33:G100) -> 37 | I100: 37 | J100: =AVERAGE(OFFSET(E99,1,,-MIN(Bollinger_Band_Range_BB,COUNTA(E$32:E99)))+Standard_Deviation_BB*IFERROR(STDEV(OFFSET(E99,1,,-MIN(Bollinger_Band_Range_BB,COUNTA(E$32:E99)))),0)) -> 328.8718138 | K100: =IFERROR(AVERAGE(OFFSET(E99,1,,-MIN(Bollinger_Band_Range_BB,COUNTA(E$32:E99)))-Standard_Deviation_BB*IFERROR(STDEV(OFFSET(E99,1,,-MIN(Bollinger_Band_Range_BB,COUNTA(E$32:E99)))),0)),0) -> 271.3054628 | N100: 68 | O100: =INDEX(Data_BB[Date],MATCH(N100,Data_BB[Index],0)) -> 2022-06-28 | P100: =MAX(IF(N100=Data_BB[Index],Data_BB[Adj Close],0),IF(N100=Data_BB[Lag Index U],Data_BB[Adj Close],0)) -> 258.978912 | Q100: =MIN(IF(N100=Data_BB[Index],Data_BB[Adj Close]),IF(N100=Data_BB[Lag Index U],Data_BB[Adj Close])) -> 255.217514 | R100: =MAX(IF(N100=Data_BB[Index],Data_BB[Upper Bollinger Band],0),IF(N100=Data_BB[Lag Index U],Data_BB[Upper Bollinger Band],0)) -> 291.0939465 | S100: =MIN(IF(N100=Data_BB[Index],Data_BB[Upper Bollinger Band]),IF(N100=Data_BB[Lag Index U],Data_BB[Upper Bollinger Band])) -> 289.4589474 | T100: =MAX(IF(N100=Data_BB[Index],Data_BB[Lower Bollinger Band],0),IF(N100=Data_BB[Lag Index U],Data_BB[Lower Bollinger Band],0)) -> 227.2500372 | U100: =MIN(IF(N100=Data_BB[Index],Data_BB[Lower Bollinger Band]),IF(N100=Data_BB[Lag Index U],Data_BB[Lower Bollinger Band])) -> 226.7703238
D101: 2022-04-11 | E101: 283.196289 | F101: =IF(Data_BB[[#This Row],[Adj Close]]<E102,TRUE,"") ->  | G101: =IF(F100=Data_BB[[#This Row],[Up]],0,1) -> 0 | H101: =SUM($G$33:G101) -> 37 | I101: 37 | J101: =AVERAGE(OFFSET(E100,1,,-MIN(Bollinger_Band_Range_BB,COUNTA(E$32:E100)))+Standard_Deviation_BB*IFERROR(STDEV(OFFSET(E100,1,,-MIN(Bollinger_Band_Range_BB,COUNTA(E$32:E100)))),0)) -> 326.0256436 | K101: =IFERROR(AVERAGE(OFFSET(E100,1,,-MIN(Bollinger_Band_Range_BB,COUNTA(E$32:E100)))-Standard_Deviation_BB*IFERROR(STDEV(OFFSET(E100,1,,-MIN(Bollinger_Band_Range_BB,COUNTA(E$32:E100)))),0)),0) -> 275.0272556 | N101: 69 | O101: =INDEX(Data_BB[Date],MATCH(N101,Data_BB[Index],0)) -> 2022-06-29 | P101: =MAX(IF(N101=Data_BB[Index],Data_BB[Adj Close],0),IF(N101=Data_BB[Lag Index U],Data_BB[Adj Close],0)) -> 258.978912 | Q101: =MIN(IF(N101=Data_BB[Index],Data_BB[Adj Close]),IF(N101=Data_BB[Lag Index U],Data_BB[Adj Close])) -> 255.565781 | R101: =MAX(IF(N101=Data_BB[Index],Data_BB[Upper Bollinger Band],0),IF(N101=Data_BB[Lag Index U],Data_BB[Upper Bollinger Band],0)) -> 289.4589474 | S101: =MIN(IF(N101=Data_BB[Index],Data_BB[Upper Bollinger Band]),IF(N101=Data_BB[Lag Index U],Data_BB[Upper Bollinger Band])) -> 287.391157 | T101: =MAX(IF(N101=Data_BB[Index],Data_BB[Lower Bollinger Band],0),IF(N101=Data_BB[Lag Index U],Data_BB[Lower Bollinger Band],0)) -> 227.7665016 | U101: =MIN(IF(N101=Data_BB[Index],Data_BB[Lower Bollinger Band]),IF(N101=Data_BB[Lag Index U],Data_BB[Lower Bollinger Band])) -> 227.2500372
D102: 2022-04-12 | E102: 280.019409 | F102: =IF(Data_BB[[#This Row],[Adj Close]]<E103,TRUE,"") -> TRUE | G102: =IF(F101=Data_BB[[#This Row],[Up]],0,1) -> 1 | H102: =SUM($G$33:G102) -> 38 | I102: 37 | J102: =AVERAGE(OFFSET(E101,1,,-MIN(Bollinger_Band_Range_BB,COUNTA(E$32:E101)))+Standard_Deviation_BB*IFERROR(STDEV(OFFSET(E101,1,,-MIN(Bollinger_Band_Range_BB,COUNTA(E$32:E101)))),0)) -> 327.3972186 | K102: =IFERROR(AVERAGE(OFFSET(E101,1,,-MIN(Bollinger_Band_Range_BB,COUNTA(E$32:E101)))-Standard_Deviation_BB*IFERROR(STDEV(OFFSET(E101,1,,-MIN(Bollinger_Band_Range_BB,COUNTA(E$32:E101)))),0)),0) -> 273.1503644 | N102: 70 | O102: =INDEX(Data_BB[Date],MATCH(N102,Data_BB[Index],0)) -> 2022-06-30 | P102: =MAX(IF(N102=Data_BB[Index],Data_BB[Adj Close],0),IF(N102=Data_BB[Lag Index U],Data_BB[Adj Close],0)) -> 267.078827 | Q102: =MIN(IF(N102=Data_BB[Index],Data_BB[Adj Close]),IF(N102=Data_BB[Lag Index U],Data_BB[Adj Close])) -> 255.565781 | R102: =MAX(IF(N102=Data_BB[Index],Data_BB[Upper Bollinger Band],0),IF(N102=Data_BB[Lag Index U],Data_BB[Upper Bollinger Band],0)) -> 287.391157 | S102: =MIN(IF(N102=Data_BB[Index],Data_BB[Upper Bollinger Band]),IF(N102=Data_BB[Lag Index U],Data_BB[Upper Bollinger Band])) -> 281.3920766 | T102: =MAX(IF(N102=Data_BB[Index],Data_BB[Lower Bollinger Band],0),IF(N102=Data_BB[Lag Index U],Data_BB[Lower Bollinger Band],0)) -> 230.8987606 | U102: =MIN(IF(N102=Data_BB[Index],Data_BB[Lower Bollinger Band]),IF(N102=Data_BB[Lag Index U],Data_BB[Lower Bollinger Band])) -> 227.7665016
D103: 2022-04-13 | E103: 285.539154 | F103: =IF(Data_BB[[#This Row],[Adj Close]]<E104,TRUE,"") ->  | G103: =IF(F102=Data_BB[[#This Row],[Up]],0,1) -> 1 | H103: =SUM($G$33:G103) -> 39 | I103: 38 | J103: =AVERAGE(OFFSET(E102,1,,-MIN(Bollinger_Band_Range_BB,COUNTA(E$32:E102)))+Standard_Deviation_BB*IFERROR(STDEV(OFFSET(E102,1,,-MIN(Bollinger_Band_Range_BB,COUNTA(E$32:E102)))),0)) -> 328.3460631 | K103: =IFERROR(AVERAGE(OFFSET(E102,1,,-MIN(Bollinger_Band_Range_BB,COUNTA(E$32:E102)))-Standard_Deviation_BB*IFERROR(STDEV(OFFSET(E102,1,,-MIN(Bollinger_Band_Range_BB,COUNTA(E$32:E102)))),0)),0) -> 271.529416 | N103: 71 | O103: =INDEX(Data_BB[Date],MATCH(N103,Data_BB[Index],0)) -> 2022-07-07 | P103: =MAX(IF(N103=Data_BB[Index],Data_BB[Adj Close],0),IF(N103=Data_BB[Lag Index U],Data_BB[Adj Close],0)) -> 267.078827 | Q103: =MIN(IF(N103=Data_BB[Index],Data_BB[Adj Close]),IF(N103=Data_BB[Lag Index U],Data_BB[Adj Close])) -> 251.476013 | R103: =MAX(IF(N103=Data_BB[Index],Data_BB[Upper Bollinger Band],0),IF(N103=Data_BB[Lag Index U],Data_BB[Upper Bollinger Band],0)) -> 281.3920766 | S103: =MIN(IF(N103=Data_BB[Index],Data_BB[Upper Bollinger Band]),IF(N103=Data_BB[Lag Index U],Data_BB[Upper Bollinger Band])) -> 278.9989159 | T103: =MAX(IF(N103=Data_BB[Index],Data_BB[Lower Bollinger Band],0),IF(N103=Data_BB[Lag Index U],Data_BB[Lower Bollinger Band],0)) -> 234.098922 | U103: =MIN(IF(N103=Data_BB[Index],Data_BB[Lower Bollinger Band]),IF(N103=Data_BB[Lag Index U],Data_BB[Lower Bollinger Band])) -> 230.8987606
D104: 2022-04-14 | E104: 277.805542 | F104: =IF(Data_BB[[#This Row],[Adj Close]]<E105,TRUE,"") -> TRUE | G104: =IF(F103=Data_BB[[#This Row],[Up]],0,1) -> 1 | H104: =SUM($G$33:G104) -> 40 | I104: 39 | J104: =AVERAGE(OFFSET(E103,1,,-MIN(Bollinger_Band_Range_BB,COUNTA(E$32:E103)))+Standard_Deviation_BB*IFERROR(STDEV(OFFSET(E103,1,,-MIN(Bollinger_Band_Range_BB,COUNTA(E$32:E103)))),0)) -> 330.9744555 | K104: =IFERROR(AVERAGE(OFFSET(E103,1,,-MIN(Bollinger_Band_Range_BB,COUNTA(E$32:E103)))-Standard_Deviation_BB*IFERROR(STDEV(OFFSET(E103,1,,-MIN(Bollinger_Band_Range_BB,COUNTA(E$32:E103)))),0)),0) -> 267.3731611 | N104: 72 | O104: =INDEX(Data_BB[Date],MATCH(N104,Data_BB[Index],0)) -> 2022-07-13 | P104: =MAX(IF(N104=Data_BB[Index],Data_BB[Adj Close],0),IF(N104=Data_BB[Lag Index U],Data_BB[Adj Close],0)) -> 255.456314 | Q104: =MIN(IF(N104=Data_BB[Index],Data_BB[Adj Close]),IF(N104=Data_BB[Lag Index U],Data_BB[Adj Close])) -> 251.476013 | R104: =MAX(IF(N104=Data_BB[Index],Data_BB[Upper Bollinger Band],0),IF(N104=Data_BB[Lag Index U],Data_BB[Upper Bollinger Band],0)) -> 278.9989159 | S104: =MIN(IF(N104=Data_BB[Index],Data_BB[Upper Bollinger Band]),IF(N104=Data_BB[Lag Index U],Data_BB[Upper Bollinger Band])) -> 277.4130138 | T104: =MAX(IF(N104=Data_BB[Index],Data_BB[Lower Bollinger Band],0),IF(N104=Data_BB[Lag Index U],Data_BB[Lower Bollinger Band],0)) -> 237.1326618 | U104: =MIN(IF(N104=Data_BB[Index],Data_BB[Lower Bollinger Band]),IF(N104=Data_BB[Lag Index U],Data_BB[Lower Bollinger Band])) -> 234.098922
D105: 2022-04-18 | E105: 278.49054 | F105: =IF(Data_BB[[#This Row],[Adj Close]]<E106,TRUE,"") -> TRUE | G105: =IF(F104=Data_BB[[#This Row],[Up]],0,1) -> 0 | H105: =SUM($G$33:G105) -> 40 | I105: 40 | J105: =AVERAGE(OFFSET(E104,1,,-MIN(Bollinger_Band_Range_BB,COUNTA(E$32:E104)))+Standard_Deviation_BB*IFERROR(STDEV(OFFSET(E104,1,,-MIN(Bollinger_Band_Range_BB,COUNTA(E$32:E104)))),0)) -> 332.8881079 | K105: =IFERROR(AVERAGE(OFFSET(E104,1,,-MIN(Bollinger_Band_Range_BB,COUNTA(E$32:E104)))-Standard_Deviation_BB*IFERROR(STDEV(OFFSET(E104,1,,-MIN(Bollinger_Band_Range_BB,COUNTA(E$32:E104)))),0)),0) -> 263.4829127 | N105: 73 | O105: =INDEX(Data_BB[Date],MATCH(N105,Data_BB[Index],0)) -> 2022-07-15 | P105: =MAX(IF(N105=Data_BB[Index],Data_BB[Adj Close],0),IF(N105=Data_BB[Lag Index U],Data_BB[Adj Close],0)) -> 255.456314 | Q105: =MIN(IF(N105=Data_BB[Index],Data_BB[Adj Close]),IF(N105=Data_BB[Lag Index U],Data_BB[Adj Close])) -> 252.998474 | R105: =MAX(IF(N105=Data_BB[Index],Data_BB[Upper Bollinger Band],0),IF(N105=Data_BB[Lag Index U],Data_BB[Upper Bollinger Band],0)) -> 277.4130138 | S105: =MIN(IF(N105=Data_BB[Index],Data_BB[Upper Bollinger Band]),IF(N105=Data_BB[Lag Index U],Data_BB[Upper Bollinger Band])) -> 275.7850773 | T105: =MAX(IF(N105=Data_BB[Index],Data_BB[Lower Bollinger Band],0),IF(N105=Data_BB[Lag Index U],Data_BB[Lower Bollinger Band],0)) -> 239.6840297 | U105: =MIN(IF(N105=Data_BB[Index],Data_BB[Lower Bollinger Band]),IF(N105=Data_BB[Lag Index U],Data_BB[Lower Bollinger Band])) -> 237.1326618
D106: 2022-04-19 | E106: 283.235962 | F106: =IF(Data_BB[[#This Row],[Adj Close]]<E107,TRUE,"") -> TRUE | G106: =IF(F105=Data_BB[[#This Row],[Up]],0,1) -> 0 | H106: =SUM($G$33:G106) -> 40 | I106: 40 | J106: =AVERAGE(OFFSET(E105,1,,-MIN(Bollinger_Band_Range_BB,COUNTA(E$32:E105)))+Standard_Deviation_BB*IFERROR(STDEV(OFFSET(E105,1,,-MIN(Bollinger_Band_Range_BB,COUNTA(E$32:E105)))),0)) -> 333.6220136 | K106: =IFERROR(AVERAGE(OFFSET(E105,1,,-MIN(Bollinger_Band_Range_BB,COUNTA(E$32:E105)))-Standard_Deviation_BB*IFERROR(STDEV(OFFSET(E105,1,,-MIN(Bollinger_Band_Range_BB,COUNTA(E$32:E105)))),0)),0) -> 261.3730335 | N106: 74 | O106: =INDEX(Data_BB[Date],MATCH(N106,Data_BB[Index],0)) -> 2022-07-18 | P106: =MAX(IF(N106=Data_BB[Index],Data_BB[Adj Close],0),IF(N106=Data_BB[Lag Index U],Data_BB[Adj Close],0)) -> 263.536346 | Q106: =MIN(IF(N106=Data_BB[Index],Data_BB[Adj Close]),IF(N106=Data_BB[Lag Index U],Data_BB[Adj Close])) -> 252.998474 | R106: =MAX(IF(N106=Data_BB[Index],Data_BB[Upper Bollinger Band],0),IF(N106=Data_BB[Lag Index U],Data_BB[Upper Bollinger Band],0)) -> 275.7850773 | S106: =MIN(IF(N106=Data_BB[Index],Data_BB[Upper Bollinger Band]),IF(N106=Data_BB[Lag Index U],Data_BB[Upper Bollinger Band])) -> 274.4859286 | T106: =MAX(IF(N106=Data_BB[Index],Data_BB[Lower Bollinger Band],0),IF(N106=Data_BB[Lag Index U],Data_BB[Lower Bollinger Band],0)) -> 244.0708102 | U106: =MIN(IF(N106=Data_BB[Index],Data_BB[Lower Bollinger Band]),IF(N106=Data_BB[Lag Index U],Data_BB[Lower Bollinger Band])) -> 239.6840297
D107: 2022-04-20 | E107: 284.288269 | F107: =IF(Data_BB[[#This Row],[Adj Close]]<E108,TRUE,"") ->  | G107: =IF(F106=Data_BB[[#This Row],[Up]],0,1) -> 1 | H107: =SUM($G$33:G107) -> 41 | I107: 40 | J107: =AVERAGE(OFFSET(E106,1,,-MIN(Bollinger_Band_Range_BB,COUNTA(E$32:E106)))+Standard_Deviation_BB*IFERROR(STDEV(OFFSET(E106,1,,-MIN(Bollinger_Band_Range_BB,COUNTA(E$32:E106)))),0)) -> 333.6500003 | K107: =IFERROR(AVERAGE(OFFSET(E106,1,,-MIN(Bollinger_Band_Range_BB,COUNTA(E$32:E106)))-Standard_Deviation_BB*IFERROR(STDEV(OFFSET(E106,1,,-MIN(Bollinger_Band_Range_BB,COUNTA(E$32:E106)))),0)),0) -> 259.5878508 | N107: 75 | O107: =INDEX(Data_BB[Date],MATCH(N107,Data_BB[Index],0)) -> 2022-07-21 | P107: =MAX(IF(N107=Data_BB[Index],Data_BB[Adj Close],0),IF(N107=Data_BB[Lag Index U],Data_BB[Adj Close],0)) -> 263.536346 | Q107: =MIN(IF(N107=Data_BB[Index],Data_BB[Adj Close]),IF(N107=Data_BB[Lag Index U],Data_BB[Adj Close])) -> 250.660034 | R107: =MAX(IF(N107=Data_BB[Index],Data_BB[Upper Bollinger Band],0),IF(N107=Data_BB[Lag Index U],Data_BB[Upper Bollinger Band],0)) -> 274.6209589 | S107: =MIN(IF(N107=Data_BB[Index],Data_BB[Upper Bollinger Band]),IF(N107=Data_BB[Lag Index U],Data_BB[Upper Bollinger Band])) -> 273.3795238 | T107: =MAX(IF(N107=Data_BB[Index],Data_BB[Lower Bollinger Band],0),IF(N107=Data_BB[Lag Index U],Data_BB[Lower Bollinger Band],0)) -> 244.537189 | U107: =MIN(IF(N107=Data_BB[Index],Data_BB[Lower Bollinger Band]),IF(N107=Data_BB[Lag Index U],Data_BB[Lower Bollinger Band])) -> 243.2597857
D108: 2022-04-21 | E108: 278.778412 | F108: =IF(Data_BB[[#This Row],[Adj Close]]<E109,TRUE,"") ->  | G108: =IF(F107=Data_BB[[#This Row],[Up]],0,1) -> 0 | H108: =SUM($G$33:G108) -> 41 | I108: 41 | J108: =AVERAGE(OFFSET(E107,1,,-MIN(Bollinger_Band_Range_BB,COUNTA(E$32:E107)))+Standard_Deviation_BB*IFERROR(STDEV(OFFSET(E107,1,,-MIN(Bollinger_Band_Range_BB,COUNTA(E$32:E107)))),0)) -> 334.597804 | K108: =IFERROR(AVERAGE(OFFSET(E107,1,,-MIN(Bollinger_Band_Range_BB,COUNTA(E$32:E107)))-Standard_Deviation_BB*IFERROR(STDEV(OFFSET(E107,1,,-MIN(Bollinger_Band_Range_BB,COUNTA(E$32:E107)))),0)),0) -> 256.785561 | N108: 76 | O108: =INDEX(Data_BB[Date],MATCH(N108,Data_BB[Index],0)) -> 2022-07-26 | P108: =MAX(IF(N108=Data_BB[Index],Data_BB[Adj Close],0),IF(N108=Data_BB[Lag Index U],Data_BB[Adj Close],0)) -> 279.358093 | Q108: =MIN(IF(N108=Data_BB[Index],Data_BB[Adj Close]),IF(N108=Data_BB[Lag Index U],Data_BB[Adj Close])) -> 250.660034 | R108: =MAX(IF(N108=Data_BB[Index],Data_BB[Upper Bollinger Band],0),IF(N108=Data_BB[Lag Index U],Data_BB[Upper Bollinger Band],0)) -> 284.067718 | S108: =MIN(IF(N108=Data_BB[Index],Data_BB[Upper Bollinger Band]),IF(N108=Data_BB[Lag Index U],Data_BB[Upper Bollinger Band])) -> 273.3795238 | T108: =MAX(IF(N108=Data_BB[Index],Data_BB[Lower Bollinger Band],0),IF(N108=Data_BB[Lag Index U],Data_BB[Lower Bollinger Band],0)) -> 243.2597857 | U108: =MIN(IF(N108=Data_BB[Index],Data_BB[Lower Bollinger Band]),IF(N108=Data_BB[Lag Index U],Data_BB[Lower Bollinger Band])) -> 237.7778354
D109: 2022-04-22 | E109: 272.047485 | F109: =IF(Data_BB[[#This Row],[Adj Close]]<E110,TRUE,"") -> TRUE | G109: =IF(F108=Data_BB[[#This Row],[Up]],0,1) -> 1 | H109: =SUM($G$33:G109) -> 42 | I109: 41 | J109: =AVERAGE(OFFSET(E108,1,,-MIN(Bollinger_Band_Range_BB,COUNTA(E$32:E108)))+Standard_Deviation_BB*IFERROR(STDEV(OFFSET(E108,1,,-MIN(Bollinger_Band_Range_BB,COUNTA(E$32:E108)))),0)) -> 335.9019935 | K109: =IFERROR(AVERAGE(OFFSET(E108,1,,-MIN(Bollinger_Band_Range_BB,COUNTA(E$32:E108)))-Standard_Deviation_BB*IFERROR(STDEV(OFFSET(E108,1,,-MIN(Bollinger_Band_Range_BB,COUNTA(E$32:E108)))),0)),0) -> 252.4961237 | N109: 77 | O109: =INDEX(Data_BB[Date],MATCH(N109,Data_BB[Index],0)) -> 2022-07-29 | P109: =MAX(IF(N109=Data_BB[Index],Data_BB[Adj Close],0),IF(N109=Data_BB[Lag Index U],Data_BB[Adj Close],0)) -> 279.358093 | Q109: =MIN(IF(N109=Data_BB[Index],Data_BB[Adj Close]),IF(N109=Data_BB[Lag Index U],Data_BB[Adj Close])) -> 273.467224 | R109: =MAX(IF(N109=Data_BB[Index],Data_BB[Upper Bollinger Band],0),IF(N109=Data_BB[Lag Index U],Data_BB[Upper Bollinger Band],0)) -> 288.9334164 | S109: =MIN(IF(N109=Data_BB[Index],Data_BB[Upper Bollinger Band]),IF(N109=Data_BB[Lag Index U],Data_BB[Upper Bollinger Band])) -> 284.067718 | T109: =MAX(IF(N109=Data_BB[Index],Data_BB[Lower Bollinger Band],0),IF(N109=Data_BB[Lag Index U],Data_BB[Lower Bollinger Band],0)) -> 237.7778354 | U109: =MIN(IF(N109=Data_BB[Index],Data_BB[Lower Bollinger Band]),IF(N109=Data_BB[Lag Index U],Data_BB[Lower Bollinger Band])) -> 235.9371767
D110: 2022-04-25 | E110: 278.689087 | F110: =IF(Data_BB[[#This Row],[Adj Close]]<E111,TRUE,"") ->  | G110: =IF(F109=Data_BB[[#This Row],[Up]],0,1) -> 1 | H110: =SUM($G$33:G110) -> 43 | I110: 42 | J110: =AVERAGE(OFFSET(E109,1,,-MIN(Bollinger_Band_Range_BB,COUNTA(E$32:E109)))+Standard_Deviation_BB*IFERROR(STDEV(OFFSET(E109,1,,-MIN(Bollinger_Band_Range_BB,COUNTA(E$32:E109)))),0)) -> 335.6697738 | K110: =IFERROR(AVERAGE(OFFSET(E109,1,,-MIN(Bollinger_Band_Range_BB,COUNTA(E$32:E109)))-Standard_Deviation_BB*IFERROR(STDEV(OFFSET(E109,1,,-MIN(Bollinger_Band_Range_BB,COUNTA(E$32:E109)))),0)),0) -> 250.448955 | N110: 78 | O110: =INDEX(Data_BB[Date],MATCH(N110,Data_BB[Index],0)) -> 2022-08-02 | P110: =MAX(IF(N110=Data_BB[Index],Data_BB[Adj Close],0),IF(N110=Data_BB[Lag Index U],Data_BB[Adj Close],0)) -> 282.253754 | Q110: =MIN(IF(N110=Data_BB[Index],Data_BB[Adj Close]),IF(N110=Data_BB[Lag Index U],Data_BB[Adj Close])) -> 273.467224 | R110: =MAX(IF(N110=Data_BB[Index],Data_BB[Upper Bollinger Band],0),IF(N110=Data_BB[Lag Index U],Data_BB[Upper Bollinger Band],0)) -> 295.8853495 | S110: =MIN(IF(N110=Data_BB[Index],Data_BB[Upper Bollinger Band]),IF(N110=Data_BB[Lag Index U],Data_BB[Upper Bollinger Band])) -> 288.9334164 | T110: =MAX(IF(N110=Data_BB[Index],Data_BB[Lower Bollinger Band],0),IF(N110=Data_BB[Lag Index U],Data_BB[Lower Bollinger Band],0)) -> 235.9371767 | U110: =MIN(IF(N110=Data_BB[Index],Data_BB[Lower Bollinger Band]),IF(N110=Data_BB[Lag Index U],Data_BB[Lower Bollinger Band])) -> 232.1207325
D111: 2022-04-26 | E111: 268.265076 | F111: =IF(Data_BB[[#This Row],[Adj Close]]<E112,TRUE,"") -> TRUE | G111: =IF(F110=Data_BB[[#This Row],[Up]],0,1) -> 1 | H111: =SUM($G$33:G111) -> 44 | I111: 43 | J111: =AVERAGE(OFFSET(E110,1,,-MIN(Bollinger_Band_Range_BB,COUNTA(E$32:E110)))+Standard_Deviation_BB*IFERROR(STDEV(OFFSET(E110,1,,-MIN(Bollinger_Band_Range_BB,COUNTA(E$32:E110)))),0)) -> 335.2807983 | K111: =IFERROR(AVERAGE(OFFSET(E110,1,,-MIN(Bollinger_Band_Range_BB,COUNTA(E$32:E110)))-Standard_Deviation_BB*IFERROR(STDEV(OFFSET(E110,1,,-MIN(Bollinger_Band_Range_BB,COUNTA(E$32:E110)))),0)),0) -> 246.8192172 | N111: 79 | O111: =INDEX(Data_BB[Date],MATCH(N111,Data_BB[Index],0)) -> 2022-08-04 | P111: =MAX(IF(N111=Data_BB[Index],Data_BB[Adj Close],0),IF(N111=Data_BB[Lag Index U],Data_BB[Adj Close],0)) -> 282.253754 | Q111: =MIN(IF(N111=Data_BB[Index],Data_BB[Adj Close]),IF(N111=Data_BB[Lag Index U],Data_BB[Adj Close])) -> 278.940155 | R111: =MAX(IF(N111=Data_BB[Index],Data_BB[Upper Bollinger Band],0),IF(N111=Data_BB[Lag Index U],Data_BB[Upper Bollinger Band],0)) -> 300.7897987 | S111: =MIN(IF(N111=Data_BB[Index],Data_BB[Upper Bollinger Band]),IF(N111=Data_BB[Lag Index U],Data_BB[Upper Bollinger Band])) -> 295.8853495 | T111: =MAX(IF(N111=Data_BB[Index],Data_BB[Lower Bollinger Band],0),IF(N111=Data_BB[Lag Index U],Data_BB[Lower Bollinger Band],0)) -> 232.1207325 | U111: =MIN(IF(N111=Data_BB[Index],Data_BB[Lower Bollinger Band]),IF(N111=Data_BB[Lag Index U],Data_BB[Lower Bollinger Band])) -> 230.3069938
D112: 2022-04-27 | E112: 281.171021 | F112: =IF(Data_BB[[#This Row],[Adj Close]]<E113,TRUE,"") -> TRUE | G112: =IF(F111=Data_BB[[#This Row],[Up]],0,1) -> 0 | H112: =SUM($G$33:G112) -> 44 | I112: 44 | J112: =AVERAGE(OFFSET(E111,1,,-MIN(Bollinger_Band_Range_BB,COUNTA(E$32:E111)))+Standard_Deviation_BB*IFERROR(STDEV(OFFSET(E111,1,,-MIN(Bollinger_Band_Range_BB,COUNTA(E$32:E111)))),0)) -> 331.255385 | K112: =IFERROR(AVERAGE(OFFSET(E111,1,,-MIN(Bollinger_Band_Range_BB,COUNTA(E$32:E111)))-Standard_Deviation_BB*IFERROR(STDEV(OFFSET(E111,1,,-MIN(Bollinger_Band_Range_BB,COUNTA(E$32:E111)))),0)),0) -> 247.6489213 | N112: 80 | O112: =INDEX(Data_BB[Date],MATCH(N112,Data_BB[Index],0)) -> 2022-08-08 | P112: =MAX(IF(N112=Data_BB[Index],Data_BB[Adj Close],0),IF(N112=Data_BB[Lag Index U],Data_BB[Adj Close],0)) -> 287.736633 | Q112: =MIN(IF(N112=Data_BB[Index],Data_BB[Adj Close]),IF(N112=Data_BB[Lag Index U],Data_BB[Adj Close])) -> 278.940155 | R112: =MAX(IF(N112=Data_BB[Index],Data_BB[Upper Bollinger Band],0),IF(N112=Data_BB[Lag Index U],Data_BB[Upper Bollinger Band],0)) -> 305.010437 | S112: =MIN(IF(N112=Data_BB[Index],Data_BB[Upper Bollinger Band]),IF(N112=Data_BB[Lag Index U],Data_BB[Upper Bollinger Band])) -> 300.7897987 | T112: =MAX(IF(N112=Data_BB[Index],Data_BB[Lower Bollinger Band],0),IF(N112=Data_BB[Lag Index U],Data_BB[Lower Bollinger Band],0)) -> 232.5613249 | U112: =MIN(IF(N112=Data_BB[Index],Data_BB[Lower Bollinger Band]),IF(N112=Data_BB[Lag Index U],Data_BB[Lower Bollinger Band])) -> 230.3069938
D113: 2022-04-28 | E113: 287.534637 | F113: =IF(Data_BB[[#This Row],[Adj Close]]<E114,TRUE,"") ->  | G113: =IF(F112=Data_BB[[#This Row],[Up]],0,1) -> 1 | H113: =SUM($G$33:G113) -> 45 | I113: 44 | J113: =AVERAGE(OFFSET(E112,1,,-MIN(Bollinger_Band_Range_BB,COUNTA(E$32:E112)))+Standard_Deviation_BB*IFERROR(STDEV(OFFSET(E112,1,,-MIN(Bollinger_Band_Range_BB,COUNTA(E$32:E112)))),0)) -> 327.0233339 | K113: =IFERROR(AVERAGE(OFFSET(E112,1,,-MIN(Bollinger_Band_Range_BB,COUNTA(E$32:E112)))-Standard_Deviation_BB*IFERROR(STDEV(OFFSET(E112,1,,-MIN(Bollinger_Band_Range_BB,COUNTA(E$32:E112)))),0)),0) -> 249.4755036 | N113: 81 | O113: =INDEX(Data_BB[Date],MATCH(N113,Data_BB[Index],0)) -> 2022-08-10 | P113: =MAX(IF(N113=Data_BB[Index],Data_BB[Adj Close],0),IF(N113=Data_BB[Lag Index U],Data_BB[Adj Close],0)) -> 287.736633 | Q113: =MIN(IF(N113=Data_BB[Index],Data_BB[Adj Close]),IF(N113=Data_BB[Lag Index U],Data_BB[Adj Close])) -> 285.607147 | R113: =MAX(IF(N113=Data_BB[Index],Data_BB[Upper Bollinger Band],0),IF(N113=Data_BB[Lag Index U],Data_BB[Upper Bollinger Band],0)) -> 306.4830351 | S113: =MIN(IF(N113=Data_BB[Index],Data_BB[Upper Bollinger Band]),IF(N113=Data_BB[Lag Index U],Data_BB[Upper Bollinger Band])) -> 305.010437 | T113: =MAX(IF(N113=Data_BB[Index],Data_BB[Lower Bollinger Band],0),IF(N113=Data_BB[Lag Index U],Data_BB[Lower Bollinger Band],0)) -> 234.3665085 | U113: =MIN(IF(N113=Data_BB[Index],Data_BB[Lower Bollinger Band]),IF(N113=Data_BB[Lag Index U],Data_BB[Lower Bollinger Band])) -> 232.5613249
D114: 2022-04-29 | E114: 275.512207 | F114: =IF(Data_BB[[#This Row],[Adj Close]]<E115,TRUE,"") -> TRUE | G114: =IF(F113=Data_BB[[#This Row],[Up]],0,1) -> 1 | H114: =SUM($G$33:G114) -> 46 | I114: 45 | J114: =AVERAGE(OFFSET(E113,1,,-MIN(Bollinger_Band_Range_BB,COUNTA(E$32:E113)))+Standard_Deviation_BB*IFERROR(STDEV(OFFSET(E113,1,,-MIN(Bollinger_Band_Range_BB,COUNTA(E$32:E113)))),0)) -> 324.23834 | K114: =IFERROR(AVERAGE(OFFSET(E113,1,,-MIN(Bollinger_Band_Range_BB,COUNTA(E$32:E113)))-Standard_Deviation_BB*IFERROR(STDEV(OFFSET(E113,1,,-MIN(Bollinger_Band_Range_BB,COUNTA(E$32:E113)))),0)),0) -> 249.2037714 | N114: 82 | O114: =INDEX(Data_BB[Date],MATCH(N114,Data_BB[Index],0)) -> 2022-08-11 | P114: =MAX(IF(N114=Data_BB[Index],Data_BB[Adj Close],0),IF(N114=Data_BB[Lag Index U],Data_BB[Adj Close],0)) -> 292.025452 | Q114: =MIN(IF(N114=Data_BB[Index],Data_BB[Adj Close]),IF(N114=Data_BB[Lag Index U],Data_BB[Adj Close])) -> 285.607147 | R114: =MAX(IF(N114=Data_BB[Index],Data_BB[Upper Bollinger Band],0),IF(N114=Data_BB[Lag Index U],Data_BB[Upper Bollinger Band],0)) -> 310.6205114 | S114: =MIN(IF(N114=Data_BB[Index],Data_BB[Upper Bollinger Band]),IF(N114=Data_BB[Lag Index U],Data_BB[Upper Bollinger Band])) -> 306.4830351 | T114: =MAX(IF(N114=Data_BB[Index],Data_BB[Lower Bollinger Band],0),IF(N114=Data_BB[Lag Index U],Data_BB[Lower Bollinger Band],0)) -> 237.63341 | U114: =MIN(IF(N114=Data_BB[Index],Data_BB[Lower Bollinger Band]),IF(N114=Data_BB[Lag Index U],Data_BB[Lower Bollinger Band])) -> 234.3665085
D115: 2022-05-02 | E115: 282.411957 | F115: =IF(Data_BB[[#This Row],[Adj Close]]<E116,TRUE,"") ->  | G115: =IF(F114=Data_BB[[#This Row],[Up]],0,1) -> 1 | H115: =SUM($G$33:G115) -> 47 | I115: 46 | J115: =AVERAGE(OFFSET(E114,1,,-MIN(Bollinger_Band_Range_BB,COUNTA(E$32:E114)))+Standard_Deviation_BB*IFERROR(STDEV(OFFSET(E114,1,,-MIN(Bollinger_Band_Range_BB,COUNTA(E$32:E114)))),0)) -> 320.1742758 | K115: =IFERROR(AVERAGE(OFFSET(E114,1,,-MIN(Bollinger_Band_Range_BB,COUNTA(E$32:E114)))-Standard_Deviation_BB*IFERROR(STDEV(OFFSET(E114,1,,-MIN(Bollinger_Band_Range_BB,COUNTA(E$32:E114)))),0)),0) -> 250.7908855 | N115: 83 | O115: =INDEX(Data_BB[Date],MATCH(N115,Data_BB[Index],0)) -> 2022-08-15 | P115: =MAX(IF(N115=Data_BB[Index],Data_BB[Adj Close],0),IF(N115=Data_BB[Lag Index U],Data_BB[Adj Close],0)) -> 292.025452 | Q115: =MIN(IF(N115=Data_BB[Index],Data_BB[Adj Close]),IF(N115=Data_BB[Lag Index U],Data_BB[Adj Close])) -> 275.014984 | R115: =MAX(IF(N115=Data_BB[Index],Data_BB[Upper Bollinger Band],0),IF(N115=Data_BB[Lag Index U],Data_BB[Upper Bollinger Band],0)) -> 314.161271 | S115: =MIN(IF(N115=Data_BB[Index],Data_BB[Upper Bollinger Band]),IF(N115=Data_BB[Lag Index U],Data_BB[Upper Bollinger Band])) -> 300.929669 | T115: =MAX(IF(N115=Data_BB[Index],Data_BB[Lower Bollinger Band],0),IF(N115=Data_BB[Lag Index U],Data_BB[Lower Bollinger Band],0)) -> 263.9881685 | U115: =MIN(IF(N115=Data_BB[Index],Data_BB[Lower Bollinger Band]),IF(N115=Data_BB[Lag Index U],Data_BB[Lower Bollinger Band])) -> 237.63341
D116: 2022-05-03 | E116: 279.741425 | F116: =IF(Data_BB[[#This Row],[Adj Close]]<E117,TRUE,"") -> TRUE | G116: =IF(F115=Data_BB[[#This Row],[Up]],0,1) -> 1 | H116: =SUM($G$33:G116) -> 48 | I116: 47 | J116: =AVERAGE(OFFSET(E115,1,,-MIN(Bollinger_Band_Range_BB,COUNTA(E$32:E115)))+Standard_Deviation_BB*IFERROR(STDEV(OFFSET(E115,1,,-MIN(Bollinger_Band_Range_BB,COUNTA(E$32:E115)))),0)) -> 312.8650239 | K116: =IFERROR(AVERAGE(OFFSET(E115,1,,-MIN(Bollinger_Band_Range_BB,COUNTA(E$32:E115)))-Standard_Deviation_BB*IFERROR(STDEV(OFFSET(E115,1,,-MIN(Bollinger_Band_Range_BB,COUNTA(E$32:E115)))),0)),0) -> 254.8051484 | N116: 84 | O116: =INDEX(Data_BB[Date],MATCH(N116,Data_BB[Index],0)) -> 2022-08-24 | P116: =MAX(IF(N116=Data_BB[Index],Data_BB[Adj Close],0),IF(N116=Data_BB[Lag Index U],Data_BB[Adj Close],0)) -> 278.066376 | Q116: =MIN(IF(N116=Data_BB[Index],Data_BB[Adj Close]),IF(N116=Data_BB[Lag Index U],Data_BB[Adj Close])) -> 275.014984 | R116: =MAX(IF(N116=Data_BB[Index],Data_BB[Upper Bollinger Band],0),IF(N116=Data_BB[Lag Index U],Data_BB[Upper Bollinger Band],0)) -> 300.929669 | S116: =MIN(IF(N116=Data_BB[Index],Data_BB[Upper Bollinger Band]),IF(N116=Data_BB[Lag Index U],Data_BB[Upper Bollinger Band])) -> 300.6121792 | T116: =MAX(IF(N116=Data_BB[Index],Data_BB[Lower Bollinger Band],0),IF(N116=Data_BB[Lag Index U],Data_BB[Lower Bollinger Band],0)) -> 264.6073551 | U116: =MIN(IF(N116=Data_BB[Index],Data_BB[Lower Bollinger Band]),IF(N116=Data_BB[Lag Index U],Data_BB[Lower Bollinger Band])) -> 263.9881685
D117: 2022-05-04 | E117: 287.882111 | F117: =IF(Data_BB[[#This Row],[Adj Close]]<E118,TRUE,"") ->  | G117: =IF(F116=Data_BB[[#This Row],[Up]],0,1) -> 1 | H117: =SUM($G$33:G117) -> 49 | I117: 48 | J117: =AVERAGE(OFFSET(E116,1,,-MIN(Bollinger_Band_Range_BB,COUNTA(E$32:E116)))+Standard_Deviation_BB*IFERROR(STDEV(OFFSET(E116,1,,-MIN(Bollinger_Band_Range_BB,COUNTA(E$32:E116)))),0)) -> 306.2297403 | K117: =IFERROR(AVERAGE(OFFSET(E116,1,,-MIN(Bollinger_Band_Range_BB,COUNTA(E$32:E116)))-Standard_Deviation_BB*IFERROR(STDEV(OFFSET(E116,1,,-MIN(Bollinger_Band_Range_BB,COUNTA(E$32:E116)))),0)),0) -> 259.3655541 | N117: 85 | O117: =INDEX(Data_BB[Date],MATCH(N117,Data_BB[Index],0)) -> 2022-08-25 | P117: =MAX(IF(N117=Data_BB[Index],Data_BB[Adj Close],0),IF(N117=Data_BB[Lag Index U],Data_BB[Adj Close],0)) -> 278.066376 | Q117: =MIN(IF(N117=Data_BB[Index],Data_BB[Adj Close]),IF(N117=Data_BB[Lag Index U],Data_BB[Adj Close])) -> 252.5383 | R117: =MAX(IF(N117=Data_BB[Index],Data_BB[Upper Bollinger Band],0),IF(N117=Data_BB[Lag Index U],Data_BB[Upper Bollinger Band],0)) -> 315.6604706 | S117: =MIN(IF(N117=Data_BB[Index],Data_BB[Upper Bollinger Band]),IF(N117=Data_BB[Lag Index U],Data_BB[Upper Bollinger Band])) -> 300.6121792 | T117: =MAX(IF(N117=Data_BB[Index],Data_BB[Lower Bollinger Band],0),IF(N117=Data_BB[Lag Index U],Data_BB[Lower Bollinger Band],0)) -> 264.6073551 | U117: =MIN(IF(N117=Data_BB[Index],Data_BB[Lower Bollinger Band]),IF(N117=Data_BB[Lag Index U],Data_BB[Lower Bollinger Band])) -> 236.4667283
D118: 2022-05-05 | E118: 275.343475 | F118: =IF(Data_BB[[#This Row],[Adj Close]]<E119,TRUE,"") ->  | G118: =IF(F117=Data_BB[[#This Row],[Up]],0,1) -> 0 | H118: =SUM($G$33:G118) -> 49 | I118: 49 | J118: =AVERAGE(OFFSET(E117,1,,-MIN(Bollinger_Band_Range_BB,COUNTA(E$32:E117)))+Standard_Deviation_BB*IFERROR(STDEV(OFFSET(E117,1,,-MIN(Bollinger_Band_Range_BB,COUNTA(E$32:E117)))),0)) -> 303.2353315 | K118: =IFERROR(AVERAGE(OFFSET(E117,1,,-MIN(Bollinger_Band_Range_BB,COUNTA(E$32:E117)))-Standard_Deviation_BB*IFERROR(STDEV(OFFSET(E117,1,,-MIN(Bollinger_Band_Range_BB,COUNTA(E$32:E117)))),0)),0) -> 260.1609913 | N118: 86 | O118: =INDEX(Data_BB[Date],MATCH(N118,Data_BB[Index],0)) -> 2022-09-06 | P118: =MAX(IF(N118=Data_BB[Index],Data_BB[Adj Close],0),IF(N118=Data_BB[Lag Index U],Data_BB[Adj Close],0)) -> 265.900635 | Q118: =MIN(IF(N118=Data_BB[Index],Data_BB[Adj Close]),IF(N118=Data_BB[Lag Index U],Data_BB[Adj Close])) -> 252.5383 | R118: =MAX(IF(N118=Data_BB[Index],Data_BB[Upper Bollinger Band],0),IF(N118=Data_BB[Lag Index U],Data_BB[Upper Bollinger Band],0)) -> 316.2297187 | S118: =MIN(IF(N118=Data_BB[Index],Data_BB[Upper Bollinger Band]),IF(N118=Data_BB[Lag Index U],Data_BB[Upper Bollinger Band])) -> 310.5502383 | T118: =MAX(IF(N118=Data_BB[Index],Data_BB[Lower Bollinger Band],0),IF(N118=Data_BB[Lag Index U],Data_BB[Lower Bollinger Band],0)) -> 236.4667283 | U118: =MIN(IF(N118=Data_BB[Index],Data_BB[Lower Bollinger Band]),IF(N118=Data_BB[Lag Index U],Data_BB[Lower Bollinger Band])) -> 230.936801
D119: 2022-05-06 | E119: 272.742432 | F119: =IF(Data_BB[[#This Row],[Adj Close]]<E120,TRUE,"") ->  | G119: =IF(F118=Data_BB[[#This Row],[Up]],0,1) -> 0 | H119: =SUM($G$33:G119) -> 49 | I119: 49 | J119: =AVERAGE(OFFSET(E118,1,,-MIN(Bollinger_Band_Range_BB,COUNTA(E$32:E118)))+Standard_Deviation_BB*IFERROR(STDEV(OFFSET(E118,1,,-MIN(Bollinger_Band_Range_BB,COUNTA(E$32:E118)))),0)) -> 298.8243908 | K119: =IFERROR(AVERAGE(OFFSET(E118,1,,-MIN(Bollinger_Band_Range_BB,COUNTA(E$32:E118)))-Standard_Deviation_BB*IFERROR(STDEV(OFFSET(E118,1,,-MIN(Bollinger_Band_Range_BB,COUNTA(E$32:E118)))),0)),0) -> 261.9272085 | N119: 87 | O119: =INDEX(Data_BB[Date],MATCH(N119,Data_BB[Index],0)) -> 2022-09-12 | P119: =MAX(IF(N119=Data_BB[Index],Data_BB[Adj Close],0),IF(N119=Data_BB[Lag Index U],Data_BB[Adj Close],0)) -> 265.900635 | Q119: =MIN(IF(N119=Data_BB[Index],Data_BB[Adj Close]),IF(N119=Data_BB[Lag Index U],Data_BB[Adj Close])) -> 251.28186 | R119: =MAX(IF(N119=Data_BB[Index],Data_BB[Upper Bollinger Band],0),IF(N119=Data_BB[Lag Index U],Data_BB[Upper Bollinger Band],0)) -> 310.5502383 | S119: =MIN(IF(N119=Data_BB[Index],Data_BB[Upper Bollinger Band]),IF(N119=Data_BB[Lag Index U],Data_BB[Upper Bollinger Band])) -> 307.7199808 | T119: =MAX(IF(N119=Data_BB[Index],Data_BB[Lower Bollinger Band],0),IF(N119=Data_BB[Lag Index U],Data_BB[Lower Bollinger Band],0)) -> 231.5817948 | U119: =MIN(IF(N119=Data_BB[Index],Data_BB[Lower Bollinger Band]),IF(N119=Data_BB[Lag Index U],Data_BB[Lower Bollinger Band])) -> 230.3376931
D120: 2022-05-09 | E120: 262.665863 | F120: =IF(Data_BB[[#This Row],[Adj Close]]<E121,TRUE,"") -> TRUE | G120: =IF(F119=Data_BB[[#This Row],[Up]],0,1) -> 1 | H120: =SUM($G$33:G120) -> 50 | I120: 49 | J120: =AVERAGE(OFFSET(E119,1,,-MIN(Bollinger_Band_Range_BB,COUNTA(E$32:E119)))+Standard_Deviation_BB*IFERROR(STDEV(OFFSET(E119,1,,-MIN(Bollinger_Band_Range_BB,COUNTA(E$32:E119)))),0)) -> 297.8881889 | K120: =IFERROR(AVERAGE(OFFSET(E119,1,,-MIN(Bollinger_Band_Range_BB,COUNTA(E$32:E119)))-Standard_Deviation_BB*IFERROR(STDEV(OFFSET(E119,1,,-MIN(Bollinger_Band_Range_BB,COUNTA(E$32:E119)))),0)),0) -> 259.6478464 | N120: 88 | O120: =INDEX(Data_BB[Date],MATCH(N120,Data_BB[Index],0)) -> 2022-09-13 | P120: =MAX(IF(N120=Data_BB[Index],Data_BB[Adj Close],0),IF(N120=Data_BB[Lag Index U],Data_BB[Adj Close],0)) -> 251.5112 | Q120: =MIN(IF(N120=Data_BB[Index],Data_BB[Adj Close]),IF(N120=Data_BB[Lag Index U],Data_BB[Adj Close])) -> 251.28186 | R120: =MAX(IF(N120=Data_BB[Index],Data_BB[Upper Bollinger Band],0),IF(N120=Data_BB[Lag Index U],Data_BB[Upper Bollinger Band],0)) -> 307.7199808 | S120: =MIN(IF(N120=Data_BB[Index],Data_BB[Upper Bollinger Band]),IF(N120=Data_BB[Lag Index U],Data_BB[Upper Bollinger Band])) -> 304.0629046 | T120: =MAX(IF(N120=Data_BB[Index],Data_BB[Lower Bollinger Band],0),IF(N120=Data_BB[Lag Index U],Data_BB[Lower Bollinger Band],0)) -> 230.3376931 | U120: =MIN(IF(N120=Data_BB[Index],Data_BB[Lower Bollinger Band]),IF(N120=Data_BB[Lag Index U],Data_BB[Lower Bollinger Band])) -> 230.0189728
D121: 2022-05-10 | E121: 267.550262 | F121: =IF(Data_BB[[#This Row],[Adj Close]]<E122,TRUE,"") ->  | G121: =IF(F120=Data_BB[[#This Row],[Up]],0,1) -> 1 | H121: =SUM($G$33:G121) -> 51 | I121: 50 | J121: =AVERAGE(OFFSET(E120,1,,-MIN(Bollinger_Band_Range_BB,COUNTA(E$32:E120)))+Standard_Deviation_BB*IFERROR(STDEV(OFFSET(E120,1,,-MIN(Bollinger_Band_Range_BB,COUNTA(E$32:E120)))),0)) -> 298.2366877 | K121: =IFERROR(AVERAGE(OFFSET(E120,1,,-MIN(Bollinger_Band_Range_BB,COUNTA(E$32:E120)))-Standard_Deviation_BB*IFERROR(STDEV(OFFSET(E120,1,,-MIN(Bollinger_Band_Range_BB,COUNTA(E$32:E120)))),0)),0) -> 257.7347449 | N121: 89 | O121: =INDEX(Data_BB[Date],MATCH(N121,Data_BB[Index],0)) -> 2022-09-14 | P121: =MAX(IF(N121=Data_BB[Index],Data_BB[Adj Close],0),IF(N121=Data_BB[Lag Index U],Data_BB[Adj Close],0)) -> 251.5112 | Q121: =MIN(IF(N121=Data_BB[Index],Data_BB[Adj Close]),IF(N121=Data_BB[Lag Index U],Data_BB[Adj Close])) -> 238.278488 | R121: =MAX(IF(N121=Data_BB[Index],Data_BB[Upper Bollinger Band],0),IF(N121=Data_BB[Lag Index U],Data_BB[Upper Bollinger Band],0)) -> 304.0629046 | S121: =MIN(IF(N121=Data_BB[Index],Data_BB[Upper Bollinger Band]),IF(N121=Data_BB[Lag Index U],Data_BB[Upper Bollinger Band])) -> 289.530249 | T121: =MAX(IF(N121=Data_BB[Index],Data_BB[Lower Bollinger Band],0),IF(N121=Data_BB[Lag Index U],Data_BB[Lower Bollinger Band],0)) -> 230.0189728 | U121: =MIN(IF(N121=Data_BB[Index],Data_BB[Lower Bollinger Band]),IF(N121=Data_BB[Lag Index U],Data_BB[Lower Bollinger Band])) -> 224.0304583
D122: 2022-05-11 | E122: 258.665009 | F122: =IF(Data_BB[[#This Row],[Adj Close]]<E123,TRUE,"") ->  | G122: =IF(F121=Data_BB[[#This Row],[Up]],0,1) -> 0 | H122: =SUM($G$33:G122) -> 51 | I122: 51 | J122: =AVERAGE(OFFSET(E121,1,,-MIN(Bollinger_Band_Range_BB,COUNTA(E$32:E121)))+Standard_Deviation_BB*IFERROR(STDEV(OFFSET(E121,1,,-MIN(Bollinger_Band_Range_BB,COUNTA(E$32:E121)))),0)) -> 300.8797144 | K122: =IFERROR(AVERAGE(OFFSET(E121,1,,-MIN(Bollinger_Band_Range_BB,COUNTA(E$32:E121)))-Standard_Deviation_BB*IFERROR(STDEV(OFFSET(E121,1,,-MIN(Bollinger_Band_Range_BB,COUNTA(E$32:E121)))),0)),0) -> 252.9562782 | N122: 90 | O122: =INDEX(Data_BB[Date],MATCH(N122,Data_BB[Index],0)) -> 2022-09-21 | P122: =MAX(IF(N122=Data_BB[Index],Data_BB[Adj Close],0),IF(N122=Data_BB[Lag Index U],Data_BB[Adj Close],0)) -> 240.30278 | Q122: =MIN(IF(N122=Data_BB[Index],Data_BB[Adj Close]),IF(N122=Data_BB[Lag Index U],Data_BB[Adj Close])) -> 238.278488 | R122: =MAX(IF(N122=Data_BB[Index],Data_BB[Upper Bollinger Band],0),IF(N122=Data_BB[Lag Index U],Data_BB[Upper Bollinger Band],0)) -> 289.530249 | S122: =MIN(IF(N122=Data_BB[Index],Data_BB[Upper Bollinger Band]),IF(N122=Data_BB[Lag Index U],Data_BB[Upper Bollinger Band])) -> 286.9058018 | T122: =MAX(IF(N122=Data_BB[Index],Data_BB[Lower Bollinger Band],0),IF(N122=Data_BB[Lag Index U],Data_BB[Lower Bollinger Band],0)) -> 224.0304583 | U122: =MIN(IF(N122=Data_BB[Index],Data_BB[Lower Bollinger Band]),IF(N122=Data_BB[Lag Index U],Data_BB[Lower Bollinger Band])) -> 223.1836851
D123: 2022-05-12 | E123: 253.50264 | F123: =IF(Data_BB[[#This Row],[Adj Close]]<E124,TRUE,"") -> TRUE | G123: =IF(F122=Data_BB[[#This Row],[Up]],0,1) -> 1 | H123: =SUM($G$33:G123) -> 52 | I123: 51 | J123: =AVERAGE(OFFSET(E122,1,,-MIN(Bollinger_Band_Range_BB,COUNTA(E$32:E122)))+Standard_Deviation_BB*IFERROR(STDEV(OFFSET(E122,1,,-MIN(Bollinger_Band_Range_BB,COUNTA(E$32:E122)))),0)) -> 303.143508 | K123: =IFERROR(AVERAGE(OFFSET(E122,1,,-MIN(Bollinger_Band_Range_BB,COUNTA(E$32:E122)))-Standard_Deviation_BB*IFERROR(STDEV(OFFSET(E122,1,,-MIN(Bollinger_Band_Range_BB,COUNTA(E$32:E122)))),0)),0) -> 247.4888332 | N123: 91 | O123: =INDEX(Data_BB[Date],MATCH(N123,Data_BB[Index],0)) -> 2022-09-22 | P123: =MAX(IF(N123=Data_BB[Index],Data_BB[Adj Close],0),IF(N123=Data_BB[Lag Index U],Data_BB[Adj Close],0)) -> 240.30278 | Q123: =MIN(IF(N123=Data_BB[Index],Data_BB[Adj Close]),IF(N123=Data_BB[Lag Index U],Data_BB[Adj Close])) -> 235.745636 | R123: =MAX(IF(N123=Data_BB[Index],Data_BB[Upper Bollinger Band],0),IF(N123=Data_BB[Lag Index U],Data_BB[Upper Bollinger Band],0)) -> 286.9058018 | S123: =MIN(IF(N123=Data_BB[Index],Data_BB[Upper Bollinger Band]),IF(N123=Data_BB[Lag Index U],Data_BB[Upper Bollinger Band])) -> 279.9945527 | T123: =MAX(IF(N123=Data_BB[Index],Data_BB[Lower Bollinger Band],0),IF(N123=Data_BB[Lag Index U],Data_BB[Lower Bollinger Band],0)) -> 223.4304938 | U123: =MIN(IF(N123=Data_BB[Index],Data_BB[Lower Bollinger Band]),IF(N123=Data_BB[Lag Index U],Data_BB[Lower Bollinger Band])) -> 220.0841432
D124: 2022-05-13 | E124: 259.230927 | F124: =IF(Data_BB[[#This Row],[Adj Close]]<E125,TRUE,"") -> TRUE | G124: =IF(F123=Data_BB[[#This Row],[Up]],0,1) -> 0 | H124: =SUM($G$33:G124) -> 52 | I124: 52 | J124: =AVERAGE(OFFSET(E123,1,,-MIN(Bollinger_Band_Range_BB,COUNTA(E$32:E123)))+Standard_Deviation_BB*IFERROR(STDEV(OFFSET(E123,1,,-MIN(Bollinger_Band_Range_BB,COUNTA(E$32:E123)))),0)) -> 304.1500435 | K124: =IFERROR(AVERAGE(OFFSET(E123,1,,-MIN(Bollinger_Band_Range_BB,COUNTA(E$32:E123)))-Standard_Deviation_BB*IFERROR(STDEV(OFFSET(E123,1,,-MIN(Bollinger_Band_Range_BB,COUNTA(E$32:E123)))),0)),0) -> 244.6248362 | N124: 92 | O124: =INDEX(Data_BB[Date],MATCH(N124,Data_BB[Index],0)) -> 2022-09-27 | P124: =MAX(IF(N124=Data_BB[Index],Data_BB[Adj Close],0),IF(N124=Data_BB[Lag Index U],Data_BB[Adj Close],0)) -> 240.392548 | Q124: =MIN(IF(N124=Data_BB[Index],Data_BB[Adj Close]),IF(N124=Data_BB[Lag Index U],Data_BB[Adj Close])) -> 235.745636 | R124: =MAX(IF(N124=Data_BB[Index],Data_BB[Upper Bollinger Band],0),IF(N124=Data_BB[Lag Index U],Data_BB[Upper Bollinger Band],0)) -> 279.9945527 | S124: =MIN(IF(N124=Data_BB[Index],Data_BB[Upper Bollinger Band]),IF(N124=Data_BB[Lag Index U],Data_BB[Upper Bollinger Band])) -> 278.2679601 | T124: =MAX(IF(N124=Data_BB[Index],Data_BB[Lower Bollinger Band],0),IF(N124=Data_BB[Lag Index U],Data_BB[Lower Bollinger Band],0)) -> 220.0841432 | U124: =MIN(IF(N124=Data_BB[Index],Data_BB[Lower Bollinger Band]),IF(N124=Data_BB[Lag Index U],Data_BB[Lower Bollinger Band])) -> 219.6268918
D125: 2022-05-16 | E125: 259.608154 | F125: =IF(Data_BB[[#This Row],[Adj Close]]<E126,TRUE,"") -> TRUE | G125: =IF(F124=Data_BB[[#This Row],[Up]],0,1) -> 0 | H125: =SUM($G$33:G125) -> 52 | I125: 52 | J125: =AVERAGE(OFFSET(E124,1,,-MIN(Bollinger_Band_Range_BB,COUNTA(E$32:E124)))+Standard_Deviation_BB*IFERROR(STDEV(OFFSET(E124,1,,-MIN(Bollinger_Band_Range_BB,COUNTA(E$32:E124)))),0)) -> 304.634008 | K125: =IFERROR(AVERAGE(OFFSET(E124,1,,-MIN(Bollinger_Band_Range_BB,COUNTA(E$32:E124)))-Standard_Deviation_BB*IFERROR(STDEV(OFFSET(E124,1,,-MIN(Bollinger_Band_Range_BB,COUNTA(E$32:E124)))),0)),0) -> 242.2526331 | N125: 93 | O125: =INDEX(Data_BB[Date],MATCH(N125,Data_BB[Index],0)) -> 2022-09-28 | P125: =MAX(IF(N125=Data_BB[Index],Data_BB[Adj Close],0),IF(N125=Data_BB[Lag Index U],Data_BB[Adj Close],0)) -> 240.392548 | Q125: =MIN(IF(N125=Data_BB[Index],Data_BB[Adj Close]),IF(N125=Data_BB[Lag Index U],Data_BB[Adj Close])) -> 232.245483 | R125: =MAX(IF(N125=Data_BB[Index],Data_BB[Upper Bollinger Band],0),IF(N125=Data_BB[Lag Index U],Data_BB[Upper Bollinger Band],0)) -> 278.2679601 | S125: =MIN(IF(N125=Data_BB[Index],Data_BB[Upper Bollinger Band]),IF(N125=Data_BB[Lag Index U],Data_BB[Upper Bollinger Band])) -> 276.0240231 | T125: =MAX(IF(N125=Data_BB[Index],Data_BB[Lower Bollinger Band],0),IF(N125=Data_BB[Lag Index U],Data_BB[Lower Bollinger Band],0)) -> 219.6268918 | U125: =MIN(IF(N125=Data_BB[Index],Data_BB[Lower Bollinger Band]),IF(N125=Data_BB[Lag Index U],Data_BB[Lower Bollinger Band])) -> 216.7382924
D126: 2022-05-17 | E126: 264.889679 | F126: =IF(Data_BB[[#This Row],[Adj Close]]<E127,TRUE,"") ->  | G126: =IF(F125=Data_BB[[#This Row],[Up]],0,1) -> 1 | H126: =SUM($G$33:G126) -> 53 | I126: 52 | J126: =AVERAGE(OFFSET(E125,1,,-MIN(Bollinger_Band_Range_BB,COUNTA(E$32:E125)))+Standard_Deviation_BB*IFERROR(STDEV(OFFSET(E125,1,,-MIN(Bollinger_Band_Range_BB,COUNTA(E$32:E125)))),0)) -> 303.4148372 | K126: =IFERROR(AVERAGE(OFFSET(E125,1,,-MIN(Bollinger_Band_Range_BB,COUNTA(E$32:E125)))-Standard_Deviation_BB*IFERROR(STDEV(OFFSET(E125,1,,-MIN(Bollinger_Band_Range_BB,COUNTA(E$32:E125)))),0)),0) -> 241.6371756 | N126: 94 | O126: =INDEX(Data_BB[Date],MATCH(N126,Data_BB[Index],0)) -> 2022-09-30 | P126: =MAX(IF(N126=Data_BB[Index],Data_BB[Adj Close],0),IF(N126=Data_BB[Lag Index U],Data_BB[Adj Close],0)) -> 248.49968 | Q126: =MIN(IF(N126=Data_BB[Index],Data_BB[Adj Close]),IF(N126=Data_BB[Lag Index U],Data_BB[Adj Close])) -> 232.245483 | R126: =MAX(IF(N126=Data_BB[Index],Data_BB[Upper Bollinger Band],0),IF(N126=Data_BB[Lag Index U],Data_BB[Upper Bollinger Band],0)) -> 276.0240231 | S126: =MIN(IF(N126=Data_BB[Index],Data_BB[Upper Bollinger Band]),IF(N126=Data_BB[Lag Index U],Data_BB[Upper Bollinger Band])) -> 272.6853003 | T126: =MAX(IF(N126=Data_BB[Index],Data_BB[Lower Bollinger Band],0),IF(N126=Data_BB[Lag Index U],Data_BB[Lower Bollinger Band],0)) -> 217.2270457 | U126: =MIN(IF(N126=Data_BB[Index],Data_BB[Lower Bollinger Band]),IF(N126=Data_BB[Lag Index U],Data_BB[Lower Bollinger Band])) -> 216.3930661
D127: 2022-05-18 | E127: 252.82933 | F127: =IF(Data_BB[[#This Row],[Adj Close]]<E128,TRUE,"") ->  | G127: =IF(F126=Data_BB[[#This Row],[Up]],0,1) -> 0 | H127: =SUM($G$33:G127) -> 53 | I127: 53 | J127: =AVERAGE(OFFSET(E126,1,,-MIN(Bollinger_Band_Range_BB,COUNTA(E$32:E126)))+Standard_Deviation_BB*IFERROR(STDEV(OFFSET(E126,1,,-MIN(Bollinger_Band_Range_BB,COUNTA(E$32:E126)))),0)) -> 303.3400309 | K127: =IFERROR(AVERAGE(OFFSET(E126,1,,-MIN(Bollinger_Band_Range_BB,COUNTA(E$32:E126)))-Standard_Deviation_BB*IFERROR(STDEV(OFFSET(E126,1,,-MIN(Bollinger_Band_Range_BB,COUNTA(E$32:E126)))),0)),0) -> 238.566088 | N127: 95 | O127: =INDEX(Data_BB[Date],MATCH(N127,Data_BB[Index],0)) -> 2022-10-05 | P127: =MAX(IF(N127=Data_BB[Index],Data_BB[Adj Close],0),IF(N127=Data_BB[Lag Index U],Data_BB[Adj Close],0)) -> 248.49968 | Q127: =MIN(IF(N127=Data_BB[Index],Data_BB[Adj Close]),IF(N127=Data_BB[Lag Index U],Data_BB[Adj Close])) -> 224.77655 | R127: =MAX(IF(N127=Data_BB[Index],Data_BB[Upper Bollinger Band],0),IF(N127=Data_BB[Lag Index U],Data_BB[Upper Bollinger Band],0)) -> 272.6853003 | S127: =MIN(IF(N127=Data_BB[Index],Data_BB[Upper Bollinger Band]),IF(N127=Data_BB[Lag Index U],Data_BB[Upper Bollinger Band])) -> 259.8830851 | T127: =MAX(IF(N127=Data_BB[Index],Data_BB[Lower Bollinger Band],0),IF(N127=Data_BB[Lag Index U],Data_BB[Lower Bollinger Band],0)) -> 222.116564 | U127: =MIN(IF(N127=Data_BB[Index],Data_BB[Lower Bollinger Band]),IF(N127=Data_BB[Lag Index U],Data_BB[Lower Bollinger Band])) -> 217.2270457
D128: 2022-05-19 | E128: 251.893951 | F128: =IF(Data_BB[[#This Row],[Adj Close]]<E129,TRUE,"") ->  | G128: =IF(F127=Data_BB[[#This Row],[Up]],0,1) -> 0 | H128: =SUM($G$33:G128) -> 53 | I128: 53 | J128: =AVERAGE(OFFSET(E127,1,,-MIN(Bollinger_Band_Range_BB,COUNTA(E$32:E127)))+Standard_Deviation_BB*IFERROR(STDEV(OFFSET(E127,1,,-MIN(Bollinger_Band_Range_BB,COUNTA(E$32:E127)))),0)) -> 303.8850176 | K128: =IFERROR(AVERAGE(OFFSET(E127,1,,-MIN(Bollinger_Band_Range_BB,COUNTA(E$32:E127)))-Standard_Deviation_BB*IFERROR(STDEV(OFFSET(E127,1,,-MIN(Bollinger_Band_Range_BB,COUNTA(E$32:E127)))),0)),0) -> 235.3326552 | N128: 96 | O128: =INDEX(Data_BB[Date],MATCH(N128,Data_BB[Index],0)) -> 2022-10-11 | P128: =MAX(IF(N128=Data_BB[Index],Data_BB[Adj Close],0),IF(N128=Data_BB[Lag Index U],Data_BB[Adj Close],0)) -> 233.581741 | Q128: =MIN(IF(N128=Data_BB[Index],Data_BB[Adj Close]),IF(N128=Data_BB[Lag Index U],Data_BB[Adj Close])) -> 224.77655 | R128: =MAX(IF(N128=Data_BB[Index],Data_BB[Upper Bollinger Band],0),IF(N128=Data_BB[Lag Index U],Data_BB[Upper Bollinger Band],0)) -> 260.034612 | S128: =MIN(IF(N128=Data_BB[Index],Data_BB[Upper Bollinger Band]),IF(N128=Data_BB[Lag Index U],Data_BB[Upper Bollinger Band])) -> 258.3157503 | T128: =MAX(IF(N128=Data_BB[Index],Data_BB[Lower Bollinger Band],0),IF(N128=Data_BB[Lag Index U],Data_BB[Lower Bollinger Band],0)) -> 219.3145061 | U128: =MIN(IF(N128=Data_BB[Index],Data_BB[Lower Bollinger Band]),IF(N128=Data_BB[Lag Index U],Data_BB[Lower Bollinger Band])) -> 217.2829374
D129: 2022-05-20 | E129: 251.316803 | F129: =IF(Data_BB[[#This Row],[Adj Close]]<E130,TRUE,"") -> TRUE | G129: =IF(F128=Data_BB[[#This Row],[Up]],0,1) -> 1 | H129: =SUM($G$33:G129) -> 54 | I129: 53 | J129: =AVERAGE(OFFSET(E128,1,,-MIN(Bollinger_Band_Range_BB,COUNTA(E$32:E128)))+Standard_Deviation_BB*IFERROR(STDEV(OFFSET(E128,1,,-MIN(Bollinger_Band_Range_BB,COUNTA(E$32:E128)))),0)) -> 304.9089926 | K129: =IFERROR(AVERAGE(OFFSET(E128,1,,-MIN(Bollinger_Band_Range_BB,COUNTA(E$32:E128)))-Standard_Deviation_BB*IFERROR(STDEV(OFFSET(E128,1,,-MIN(Bollinger_Band_Range_BB,COUNTA(E$32:E128)))),0)),0) -> 232.235612 | N129: 97 | O129: =INDEX(Data_BB[Date],MATCH(N129,Data_BB[Index],0)) -> 2022-10-13 | P129: =MAX(IF(N129=Data_BB[Index],Data_BB[Adj Close],0),IF(N129=Data_BB[Lag Index U],Data_BB[Adj Close],0)) -> 233.581741 | Q129: =MIN(IF(N129=Data_BB[Index],Data_BB[Adj Close]),IF(N129=Data_BB[Lag Index U],Data_BB[Adj Close])) -> 227.917694 | R129: =MAX(IF(N129=Data_BB[Index],Data_BB[Upper Bollinger Band],0),IF(N129=Data_BB[Lag Index U],Data_BB[Upper Bollinger Band],0)) -> 258.3157503 | S129: =MIN(IF(N129=Data_BB[Index],Data_BB[Upper Bollinger Band]),IF(N129=Data_BB[Lag Index U],Data_BB[Upper Bollinger Band])) -> 258.0280832 | T129: =MAX(IF(N129=Data_BB[Index],Data_BB[Lower Bollinger Band],0),IF(N129=Data_BB[Lag Index U],Data_BB[Lower Bollinger Band],0)) -> 217.2829374 | U129: =MIN(IF(N129=Data_BB[Index],Data_BB[Lower Bollinger Band]),IF(N129=Data_BB[Lag Index U],Data_BB[Lower Bollinger Band])) -> 215.9571508
D130: 2022-05-23 | E130: 259.366974 | F130: =IF(Data_BB[[#This Row],[Adj Close]]<E131,TRUE,"") ->  | G130: =IF(F129=Data_BB[[#This Row],[Up]],0,1) -> 1 | H130: =SUM($G$33:G130) -> 55 | I130: 54 | J130: =AVERAGE(OFFSET(E129,1,,-MIN(Bollinger_Band_Range_BB,COUNTA(E$32:E129)))+Standard_Deviation_BB*IFERROR(STDEV(OFFSET(E129,1,,-MIN(Bollinger_Band_Range_BB,COUNTA(E$32:E129)))),0)) -> 303.7056499 | K130: =IFERROR(AVERAGE(OFFSET(E129,1,,-MIN(Bollinger_Band_Range_BB,COUNTA(E$32:E129)))-Standard_Deviation_BB*IFERROR(STDEV(OFFSET(E129,1,,-MIN(Bollinger_Band_Range_BB,COUNTA(E$32:E129)))),0)),0) -> 231.5067434 | N130: 98 | O130: =INDEX(Data_BB[Date],MATCH(N130,Data_BB[Index],0)) -> 2022-10-14 | P130: =MAX(IF(N130=Data_BB[Index],Data_BB[Adj Close],0),IF(N130=Data_BB[Lag Index U],Data_BB[Adj Close],0)) -> 237.829758 | Q130: =MIN(IF(N130=Data_BB[Index],Data_BB[Adj Close]),IF(N130=Data_BB[Lag Index U],Data_BB[Adj Close])) -> 227.917694 | R130: =MAX(IF(N130=Data_BB[Index],Data_BB[Upper Bollinger Band],0),IF(N130=Data_BB[Lag Index U],Data_BB[Upper Bollinger Band],0)) -> 258.0280832 | S130: =MIN(IF(N130=Data_BB[Index],Data_BB[Upper Bollinger Band]),IF(N130=Data_BB[Lag Index U],Data_BB[Upper Bollinger Band])) -> 256.6224871 | T130: =MAX(IF(N130=Data_BB[Index],Data_BB[Lower Bollinger Band],0),IF(N130=Data_BB[Lag Index U],Data_BB[Lower Bollinger Band],0)) -> 216.2718214 | U130: =MIN(IF(N130=Data_BB[Index],Data_BB[Lower Bollinger Band]),IF(N130=Data_BB[Lag Index U],Data_BB[Lower Bollinger Band])) -> 215.9571508
D131: 2022-05-24 | E131: 258.342041 | F131: =IF(Data_BB[[#This Row],[Adj Close]]<E132,TRUE,"") -> TRUE | G131: =IF(F130=Data_BB[[#This Row],[Up]],0,1) -> 1 | H131: =SUM($G$33:G131) -> 56 | I131: 55 | J131: =AVERAGE(OFFSET(E130,1,,-MIN(Bollinger_Band_Range_BB,COUNTA(E$32:E130)))+Standard_Deviation_BB*IFERROR(STDEV(OFFSET(E130,1,,-MIN(Bollinger_Band_Range_BB,COUNTA(E$32:E130)))),0)) -> 303.7336238 | K131: =IFERROR(AVERAGE(OFFSET(E130,1,,-MIN(Bollinger_Band_Range_BB,COUNTA(E$32:E130)))-Standard_Deviation_BB*IFERROR(STDEV(OFFSET(E130,1,,-MIN(Bollinger_Band_Range_BB,COUNTA(E$32:E130)))),0)),0) -> 230.486466 | N131: 99 | O131: =INDEX(Data_BB[Date],MATCH(N131,Data_BB[Index],0)) -> 2022-10-18 | P131: =MAX(IF(N131=Data_BB[Index],Data_BB[Adj Close],0),IF(N131=Data_BB[Lag Index U],Data_BB[Adj Close],0)) -> 237.829758 | Q131: =MIN(IF(N131=Data_BB[Index],Data_BB[Adj Close]),IF(N131=Data_BB[Lag Index U],Data_BB[Adj Close])) -> 235.486359 | R131: =MAX(IF(N131=Data_BB[Index],Data_BB[Upper Bollinger Band],0),IF(N131=Data_BB[Lag Index U],Data_BB[Upper Bollinger Band],0)) -> 256.6224871 | S131: =MIN(IF(N131=Data_BB[Index],Data_BB[Upper Bollinger Band]),IF(N131=Data_BB[Lag Index U],Data_BB[Upper Bollinger Band])) -> 256.0277275 | T131: =MAX(IF(N131=Data_BB[Index],Data_BB[Lower Bollinger Band],0),IF(N131=Data_BB[Lag Index U],Data_BB[Lower Bollinger Band],0)) -> 216.2718214 | U131: =MIN(IF(N131=Data_BB[Index],Data_BB[Lower Bollinger Band]),IF(N131=Data_BB[Lag Index U],Data_BB[Lower Bollinger Band])) -> 216.1386331
D132: 2022-05-25 | E132: 261.227783 | F132: =IF(Data_BB[[#This Row],[Adj Close]]<E133,TRUE,"") -> TRUE | G132: =IF(F131=Data_BB[[#This Row],[Up]],0,1) -> 0 | H132: =SUM($G$33:G132) -> 56 | I132: 56 | J132: =AVERAGE(OFFSET(E131,1,,-MIN(Bollinger_Band_Range_BB,COUNTA(E$32:E131)))+Standard_Deviation_BB*IFERROR(STDEV(OFFSET(E131,1,,-MIN(Bollinger_Band_Range_BB,COUNTA(E$32:E131)))),0)) -> 301.5332711 | K132: =IFERROR(AVERAGE(OFFSET(E131,1,,-MIN(Bollinger_Band_Range_BB,COUNTA(E$32:E131)))-Standard_Deviation_BB*IFERROR(STDEV(OFFSET(E131,1,,-MIN(Bollinger_Band_Range_BB,COUNTA(E$32:E131)))),0)),0) -> 230.6924949 | N132: 100 | O132: =INDEX(Data_BB[Date],MATCH(N132,Data_BB[Index],0)) -> 2022-10-20 | P132: =MAX(IF(N132=Data_BB[Index],Data_BB[Adj Close],0),IF(N132=Data_BB[Lag Index U],Data_BB[Adj Close],0)) -> 249.955582 | Q132: =MIN(IF(N132=Data_BB[Index],Data_BB[Adj Close]),IF(N132=Data_BB[Lag Index U],Data_BB[Adj Close])) -> 235.486359 | R132: =MAX(IF(N132=Data_BB[Index],Data_BB[Upper Bollinger Band],0),IF(N132=Data_BB[Lag Index U],Data_BB[Upper Bollinger Band],0)) -> 260.6163897 | S132: =MIN(IF(N132=Data_BB[Index],Data_BB[Upper Bollinger Band]),IF(N132=Data_BB[Lag Index U],Data_BB[Upper Bollinger Band])) -> 256.0277275 | T132: =MAX(IF(N132=Data_BB[Index],Data_BB[Lower Bollinger Band],0),IF(N132=Data_BB[Lag Index U],Data_BB[Lower Bollinger Band],0)) -> 216.1386331 | U132: =MIN(IF(N132=Data_BB[Index],Data_BB[Lower Bollinger Band]),IF(N132=Data_BB[Lag Index U],Data_BB[Lower Bollinger Band])) -> 214.3670317
D133: 2022-05-26 | E133: 264.591125 | F133: =IF(Data_BB[[#This Row],[Adj Close]]<E134,TRUE,"") -> TRUE | G133: =IF(F132=Data_BB[[#This Row],[Up]],0,1) -> 0 | H133: =SUM($G$33:G133) -> 56 | I133: 56 | J133: =AVERAGE(OFFSET(E132,1,,-MIN(Bollinger_Band_Range_BB,COUNTA(E$32:E132)))+Standard_Deviation_BB*IFERROR(STDEV(OFFSET(E132,1,,-MIN(Bollinger_Band_Range_BB,COUNTA(E$32:E132)))),0)) -> 296.9948139 | K133: =IFERROR(AVERAGE(OFFSET(E132,1,,-MIN(Bollinger_Band_Range_BB,COUNTA(E$32:E132)))-Standard_Deviation_BB*IFERROR(STDEV(OFFSET(E132,1,,-MIN(Bollinger_Band_Range_BB,COUNTA(E$32:E132)))),0)),0) -> 232.9366009 | N133: 101 | O133: =INDEX(Data_BB[Date],MATCH(N133,Data_BB[Index],0)) -> 2022-10-25 | P133: =MAX(IF(N133=Data_BB[Index],Data_BB[Adj Close],0),IF(N133=Data_BB[Lag Index U],Data_BB[Adj Close],0)) -> 249.955582 | Q133: =MIN(IF(N133=Data_BB[Index],Data_BB[Adj Close]),IF(N133=Data_BB[Lag Index U],Data_BB[Adj Close])) -> 226.112778 | R133: =MAX(IF(N133=Data_BB[Index],Data_BB[Upper Bollinger Band],0),IF(N133=Data_BB[Lag Index U],Data_BB[Upper Bollinger Band],0)) -> 261.0467731 | S133: =MIN(IF(N133=Data_BB[Index],Data_BB[Upper Bollinger Band]),IF(N133=Data_BB[Lag Index U],Data_BB[Upper Bollinger Band])) -> 260.4697996 | T133: =MAX(IF(N133=Data_BB[Index],Data_BB[Lower Bollinger Band],0),IF(N133=Data_BB[Lag Index U],Data_BB[Lower Bollinger Band],0)) -> 214.3670317 | U133: =MIN(IF(N133=Data_BB[Index],Data_BB[Lower Bollinger Band]),IF(N133=Data_BB[Lag Index U],Data_BB[Lower Bollinger Band])) -> 211.8924085
D134: 2022-05-27 | E134: 271.894989 | F134: =IF(Data_BB[[#This Row],[Adj Close]]<E135,TRUE,"") ->  | G134: =IF(F133=Data_BB[[#This Row],[Up]],0,1) -> 1 | H134: =SUM($G$33:G134) -> 57 | I134: 56 | J134: =AVERAGE(OFFSET(E133,1,,-MIN(Bollinger_Band_Range_BB,COUNTA(E$32:E133)))+Standard_Deviation_BB*IFERROR(STDEV(OFFSET(E133,1,,-MIN(Bollinger_Band_Range_BB,COUNTA(E$32:E133)))),0)) -> 296.3381417 | K134: =IFERROR(AVERAGE(OFFSET(E133,1,,-MIN(Bollinger_Band_Range_BB,COUNTA(E$32:E133)))-Standard_Deviation_BB*IFERROR(STDEV(OFFSET(E133,1,,-MIN(Bollinger_Band_Range_BB,COUNTA(E$32:E133)))),0)),0) -> 233.2315513 | N134: 102 | O134: =INDEX(Data_BB[Date],MATCH(N134,Data_BB[Index],0)) -> 2022-10-27 | P134: =MAX(IF(N134=Data_BB[Index],Data_BB[Adj Close],0),IF(N134=Data_BB[Lag Index U],Data_BB[Adj Close],0)) -> 235.207138 | Q134: =MIN(IF(N134=Data_BB[Index],Data_BB[Adj Close]),IF(N134=Data_BB[Lag Index U],Data_BB[Adj Close])) -> 226.112778 | R134: =MAX(IF(N134=Data_BB[Index],Data_BB[Upper Bollinger Band],0),IF(N134=Data_BB[Lag Index U],Data_BB[Upper Bollinger Band],0)) -> 261.0467731 | S134: =MIN(IF(N134=Data_BB[Index],Data_BB[Upper Bollinger Band]),IF(N134=Data_BB[Lag Index U],Data_BB[Upper Bollinger Band])) -> 261.0335108 | T134: =MAX(IF(N134=Data_BB[Index],Data_BB[Lower Bollinger Band],0),IF(N134=Data_BB[Lag Index U],Data_BB[Lower Bollinger Band],0)) -> 212.2018363 | U134: =MIN(IF(N134=Data_BB[Index],Data_BB[Lower Bollinger Band]),IF(N134=Data_BB[Lag Index U],Data_BB[Lower Bollinger Band])) -> 211.8924085
D135: 2022-05-31 | E135: 270.531769 | F135: =IF(Data_BB[[#This Row],[Adj Close]]<E136,TRUE,"") -> TRUE | G135: =IF(F134=Data_BB[[#This Row],[Up]],0,1) -> 1 | H135: =SUM($G$33:G135) -> 58 | I135: 57 | J135: =AVERAGE(OFFSET(E134,1,,-MIN(Bollinger_Band_Range_BB,COUNTA(E$32:E134)))+Standard_Deviation_BB*IFERROR(STDEV(OFFSET(E134,1,,-MIN(Bollinger_Band_Range_BB,COUNTA(E$32:E134)))),0)) -> 293.5290596 | K135: =IFERROR(AVERAGE(OFFSET(E134,1,,-MIN(Bollinger_Band_Range_BB,COUNTA(E$32:E134)))-Standard_Deviation_BB*IFERROR(STDEV(OFFSET(E134,1,,-MIN(Bollinger_Band_Range_BB,COUNTA(E$32:E134)))),0)),0) -> 234.8526146 | N135: 103 | O135: =INDEX(Data_BB[Date],MATCH(N135,Data_BB[Index],0)) -> 2022-10-28 | P135: =MAX(IF(N135=Data_BB[Index],Data_BB[Adj Close],0),IF(N135=Data_BB[Lag Index U],Data_BB[Adj Close],0)) -> 235.207138 | Q135: =MIN(IF(N135=Data_BB[Index],Data_BB[Adj Close]),IF(N135=Data_BB[Lag Index U],Data_BB[Adj Close])) -> 213.647903 | R135: =MAX(IF(N135=Data_BB[Index],Data_BB[Upper Bollinger Band],0),IF(N135=Data_BB[Lag Index U],Data_BB[Upper Bollinger Band],0)) -> 261.0335108 | S135: =MIN(IF(N135=Data_BB[Index],Data_BB[Upper Bollinger Band]),IF(N135=Data_BB[Lag Index U],Data_BB[Upper Bollinger Band])) -> 257.5934726 | T135: =MAX(IF(N135=Data_BB[Index],Data_BB[Lower Bollinger Band],0),IF(N135=Data_BB[Lag Index U],Data_BB[Lower Bollinger Band],0)) -> 212.2018363 | U135: =MIN(IF(N135=Data_BB[Index],Data_BB[Lower Bollinger Band]),IF(N135=Data_BB[Lag Index U],Data_BB[Lower Bollinger Band])) -> 206.3230389
D136: 2022-06-01 | E136: 271.079041 | F136: =IF(Data_BB[[#This Row],[Adj Close]]<E137,TRUE,"") -> TRUE | G136: =IF(F135=Data_BB[[#This Row],[Up]],0,1) -> 0 | H136: =SUM($G$33:G136) -> 58 | I136: 58 | J136: =AVERAGE(OFFSET(E135,1,,-MIN(Bollinger_Band_Range_BB,COUNTA(E$32:E135)))+Standard_Deviation_BB*IFERROR(STDEV(OFFSET(E135,1,,-MIN(Bollinger_Band_Range_BB,COUNTA(E$32:E135)))),0)) -> 291.450361 | K136: =IFERROR(AVERAGE(OFFSET(E135,1,,-MIN(Bollinger_Band_Range_BB,COUNTA(E$32:E135)))-Standard_Deviation_BB*IFERROR(STDEV(OFFSET(E135,1,,-MIN(Bollinger_Band_Range_BB,COUNTA(E$32:E135)))),0)),0) -> 236.0650748 | N136: 104 | O136: =INDEX(Data_BB[Date],MATCH(N136,Data_BB[Index],0)) -> 2022-11-03 | P136: =MAX(IF(N136=Data_BB[Index],Data_BB[Adj Close],0),IF(N136=Data_BB[Lag Index U],Data_BB[Adj Close],0)) -> 228.226822 | Q136: =MIN(IF(N136=Data_BB[Index],Data_BB[Adj Close]),IF(N136=Data_BB[Lag Index U],Data_BB[Adj Close])) -> 213.647903 | R136: =MAX(IF(N136=Data_BB[Index],Data_BB[Upper Bollinger Band],0),IF(N136=Data_BB[Lag Index U],Data_BB[Upper Bollinger Band],0)) -> 258.2762027 | S136: =MIN(IF(N136=Data_BB[Index],Data_BB[Upper Bollinger Band]),IF(N136=Data_BB[Lag Index U],Data_BB[Upper Bollinger Band])) -> 257.8418735 | T136: =MAX(IF(N136=Data_BB[Index],Data_BB[Lower Bollinger Band],0),IF(N136=Data_BB[Lag Index U],Data_BB[Lower Bollinger Band],0)) -> 206.3230389 | U136: =MIN(IF(N136=Data_BB[Index],Data_BB[Lower Bollinger Band]),IF(N136=Data_BB[Lag Index U],Data_BB[Lower Bollinger Band])) -> 204.4697065
D137: 2022-06-02 | E137: 273.228394 | F137: =IF(Data_BB[[#This Row],[Adj Close]]<E138,TRUE,"") ->  | G137: =IF(F136=Data_BB[[#This Row],[Up]],0,1) -> 1 | H137: =SUM($G$33:G137) -> 59 | I137: 58 | J137: =AVERAGE(OFFSET(E136,1,,-MIN(Bollinger_Band_Range_BB,COUNTA(E$32:E136)))+Standard_Deviation_BB*IFERROR(STDEV(OFFSET(E136,1,,-MIN(Bollinger_Band_Range_BB,COUNTA(E$32:E136)))),0)) -> 286.0164542 | K137: =IFERROR(AVERAGE(OFFSET(E136,1,,-MIN(Bollinger_Band_Range_BB,COUNTA(E$32:E136)))-Standard_Deviation_BB*IFERROR(STDEV(OFFSET(E136,1,,-MIN(Bollinger_Band_Range_BB,COUNTA(E$32:E136)))),0)),0) -> 240.0336099 | N137: 105 | O137: =INDEX(Data_BB[Date],MATCH(N137,Data_BB[Index],0)) -> 2022-11-08 | P137: =MAX(IF(N137=Data_BB[Index],Data_BB[Adj Close],0),IF(N137=Data_BB[Lag Index U],Data_BB[Adj Close],0)) -> 228.226822 | Q137: =MIN(IF(N137=Data_BB[Index],Data_BB[Adj Close]),IF(N137=Data_BB[Lag Index U],Data_BB[Adj Close])) -> 223.879074 | R137: =MAX(IF(N137=Data_BB[Index],Data_BB[Upper Bollinger Band],0),IF(N137=Data_BB[Lag Index U],Data_BB[Upper Bollinger Band],0)) -> 258.238089 | S137: =MIN(IF(N137=Data_BB[Index],Data_BB[Upper Bollinger Band]),IF(N137=Data_BB[Lag Index U],Data_BB[Upper Bollinger Band])) -> 258.1458479 | T137: =MAX(IF(N137=Data_BB[Index],Data_BB[Lower Bollinger Band],0),IF(N137=Data_BB[Lag Index U],Data_BB[Lower Bollinger Band],0)) -> 204.9450885 | U137: =MIN(IF(N137=Data_BB[Index],Data_BB[Lower Bollinger Band]),IF(N137=Data_BB[Lag Index U],Data_BB[Lower Bollinger Band])) -> 204.7291963
D138: 2022-06-03 | E138: 268.690857 | F138: =IF(Data_BB[[#This Row],[Adj Close]]<E139,TRUE,"") ->  | G138: =IF(F137=Data_BB[[#This Row],[Up]],0,1) -> 0 | H138: =SUM($G$33:G138) -> 59 | I138: 59 | J138: =AVERAGE(OFFSET(E137,1,,-MIN(Bollinger_Band_Range_BB,COUNTA(E$32:E137)))+Standard_Deviation_BB*IFERROR(STDEV(OFFSET(E137,1,,-MIN(Bollinger_Band_Range_BB,COUNTA(E$32:E137)))),0)) -> 284.3922754 | K138: =IFERROR(AVERAGE(OFFSET(E137,1,,-MIN(Bollinger_Band_Range_BB,COUNTA(E$32:E137)))-Standard_Deviation_BB*IFERROR(STDEV(OFFSET(E137,1,,-MIN(Bollinger_Band_Range_BB,COUNTA(E$32:E137)))),0)),0) -> 240.9925269 | N138: 106 | O138: =INDEX(Data_BB[Date],MATCH(N138,Data_BB[Index],0)) -> 2022-11-09 | P138: =MAX(IF(N138=Data_BB[Index],Data_BB[Adj Close],0),IF(N138=Data_BB[Lag Index U],Data_BB[Adj Close],0)) -> 246.415558 | Q138: =MIN(IF(N138=Data_BB[Index],Data_BB[Adj Close]),IF(N138=Data_BB[Lag Index U],Data_BB[Adj Close])) -> 223.879074 | R138: =MAX(IF(N138=Data_BB[Index],Data_BB[Upper Bollinger Band],0),IF(N138=Data_BB[Lag Index U],Data_BB[Upper Bollinger Band],0)) -> 262.0188647 | S138: =MIN(IF(N138=Data_BB[Index],Data_BB[Upper Bollinger Band]),IF(N138=Data_BB[Lag Index U],Data_BB[Upper Bollinger Band])) -> 258.238089 | T138: =MAX(IF(N138=Data_BB[Index],Data_BB[Lower Bollinger Band],0),IF(N138=Data_BB[Lag Index U],Data_BB[Lower Bollinger Band],0)) -> 204.7291963 | U138: =MIN(IF(N138=Data_BB[Index],Data_BB[Lower Bollinger Band]),IF(N138=Data_BB[Lag Index U],Data_BB[Lower Bollinger Band])) -> 203.6697494
D139: 2022-06-06 | E139: 267.427094 | F139: =IF(Data_BB[[#This Row],[Adj Close]]<E140,TRUE,"") -> TRUE | G139: =IF(F138=Data_BB[[#This Row],[Up]],0,1) -> 1 | H139: =SUM($G$33:G139) -> 60 | I139: 59 | J139: =AVERAGE(OFFSET(E138,1,,-MIN(Bollinger_Band_Range_BB,COUNTA(E$32:E138)))+Standard_Deviation_BB*IFERROR(STDEV(OFFSET(E138,1,,-MIN(Bollinger_Band_Range_BB,COUNTA(E$32:E138)))),0)) -> 283.2350591 | K139: =IFERROR(AVERAGE(OFFSET(E138,1,,-MIN(Bollinger_Band_Range_BB,COUNTA(E$32:E138)))-Standard_Deviation_BB*IFERROR(STDEV(OFFSET(E138,1,,-MIN(Bollinger_Band_Range_BB,COUNTA(E$32:E138)))),0)),0) -> 241.6182094 | N139: 107 | O139: =INDEX(Data_BB[Date],MATCH(N139,Data_BB[Index],0)) -> 2022-11-11 | P139: =MAX(IF(N139=Data_BB[Index],Data_BB[Adj Close],0),IF(N139=Data_BB[Lag Index U],Data_BB[Adj Close],0)) -> 246.415558 | Q139: =MIN(IF(N139=Data_BB[Index],Data_BB[Adj Close]),IF(N139=Data_BB[Lag Index U],Data_BB[Adj Close])) -> 240.871185 | R139: =MAX(IF(N139=Data_BB[Index],Data_BB[Upper Bollinger Band],0),IF(N139=Data_BB[Lag Index U],Data_BB[Upper Bollinger Band],0)) -> 262.6022461 | S139: =MIN(IF(N139=Data_BB[Index],Data_BB[Upper Bollinger Band]),IF(N139=Data_BB[Lag Index U],Data_BB[Upper Bollinger Band])) -> 262.0188647 | T139: =MAX(IF(N139=Data_BB[Index],Data_BB[Lower Bollinger Band],0),IF(N139=Data_BB[Lag Index U],Data_BB[Lower Bollinger Band],0)) -> 203.6697494 | U139: =MIN(IF(N139=Data_BB[Index],Data_BB[Lower Bollinger Band]),IF(N139=Data_BB[Lag Index U],Data_BB[Lower Bollinger Band])) -> 203.4872377
D140: 2022-06-07 | E140: 271.158661 | F140: =IF(Data_BB[[#This Row],[Adj Close]]<E141,TRUE,"") ->  | G140: =IF(F139=Data_BB[[#This Row],[Up]],0,1) -> 1 | H140: =SUM($G$33:G140) -> 61 | I140: 60 | J140: =AVERAGE(OFFSET(E139,1,,-MIN(Bollinger_Band_Range_BB,COUNTA(E$32:E139)))+Standard_Deviation_BB*IFERROR(STDEV(OFFSET(E139,1,,-MIN(Bollinger_Band_Range_BB,COUNTA(E$32:E139)))),0)) -> 284.4700799 | K140: =IFERROR(AVERAGE(OFFSET(E139,1,,-MIN(Bollinger_Band_Range_BB,COUNTA(E$32:E139)))-Standard_Deviation_BB*IFERROR(STDEV(OFFSET(E139,1,,-MIN(Bollinger_Band_Range_BB,COUNTA(E$32:E139)))),0)),0) -> 241.2324684 | N140: 108 | O140: =INDEX(Data_BB[Date],MATCH(N140,Data_BB[Index],0)) -> 2022-11-14 | P140: =MAX(IF(N140=Data_BB[Index],Data_BB[Adj Close],0),IF(N140=Data_BB[Lag Index U],Data_BB[Adj Close],0)) -> 241.729996 | Q140: =MIN(IF(N140=Data_BB[Index],Data_BB[Adj Close]),IF(N140=Data_BB[Lag Index U],Data_BB[Adj Close])) -> 240.871185 | R140: =MAX(IF(N140=Data_BB[Index],Data_BB[Upper Bollinger Band],0),IF(N140=Data_BB[Lag Index U],Data_BB[Upper Bollinger Band],0)) -> 263.9275814 | S140: =MIN(IF(N140=Data_BB[Index],Data_BB[Upper Bollinger Band]),IF(N140=Data_BB[Lag Index U],Data_BB[Upper Bollinger Band])) -> 262.6022461 | T140: =MAX(IF(N140=Data_BB[Index],Data_BB[Lower Bollinger Band],0),IF(N140=Data_BB[Lag Index U],Data_BB[Lower Bollinger Band],0)) -> 203.4872377 | U140: =MIN(IF(N140=Data_BB[Index],Data_BB[Lower Bollinger Band]),IF(N140=Data_BB[Lag Index U],Data_BB[Lower Bollinger Band])) -> 203.0993841
D141: 2022-06-08 | E141: 269.078949 | F141: =IF(Data_BB[[#This Row],[Adj Close]]<E142,TRUE,"") ->  | G141: =IF(F140=Data_BB[[#This Row],[Up]],0,1) -> 0 | H141: =SUM($G$33:G141) -> 61 | I141: 61 | J141: =AVERAGE(OFFSET(E140,1,,-MIN(Bollinger_Band_Range_BB,COUNTA(E$32:E140)))+Standard_Deviation_BB*IFERROR(STDEV(OFFSET(E140,1,,-MIN(Bollinger_Band_Range_BB,COUNTA(E$32:E140)))),0)) -> 284.7274694 | K141: =IFERROR(AVERAGE(OFFSET(E140,1,,-MIN(Bollinger_Band_Range_BB,COUNTA(E$32:E140)))-Standard_Deviation_BB*IFERROR(STDEV(OFFSET(E140,1,,-MIN(Bollinger_Band_Range_BB,COUNTA(E$32:E140)))),0)),0) -> 241.1279476 | N141: 109 | O141: =INDEX(Data_BB[Date],MATCH(N141,Data_BB[Index],0)) -> 2022-11-16 | P141: =MAX(IF(N141=Data_BB[Index],Data_BB[Adj Close],0),IF(N141=Data_BB[Lag Index U],Data_BB[Adj Close],0)) -> 241.729996 | Q141: =MIN(IF(N141=Data_BB[Index],Data_BB[Adj Close]),IF(N141=Data_BB[Lag Index U],Data_BB[Adj Close])) -> 241.220001 | R141: =MAX(IF(N141=Data_BB[Index],Data_BB[Upper Bollinger Band],0),IF(N141=Data_BB[Lag Index U],Data_BB[Upper Bollinger Band],0)) -> 264.7077245 | S141: =MIN(IF(N141=Data_BB[Index],Data_BB[Upper Bollinger Band]),IF(N141=Data_BB[Lag Index U],Data_BB[Upper Bollinger Band])) -> 263.9275814 | T141: =MAX(IF(N141=Data_BB[Index],Data_BB[Lower Bollinger Band],0),IF(N141=Data_BB[Lag Index U],Data_BB[Lower Bollinger Band],0)) -> 203.0993841 | U141: =MIN(IF(N141=Data_BB[Index],Data_BB[Lower Bollinger Band]),IF(N141=Data_BB[Lag Index U],Data_BB[Lower Bollinger Band])) -> 202.9386044
D142: 2022-06-09 | E142: 263.486633 | F142: =IF(Data_BB[[#This Row],[Adj Close]]<E143,TRUE,"") ->  | G142: =IF(F141=Data_BB[[#This Row],[Up]],0,1) -> 0 | H142: =SUM($G$33:G142) -> 61 | I142: 61 | J142: =AVERAGE(OFFSET(E141,1,,-MIN(Bollinger_Band_Range_BB,COUNTA(E$32:E141)))+Standard_Deviation_BB*IFERROR(STDEV(OFFSET(E141,1,,-MIN(Bollinger_Band_Range_BB,COUNTA(E$32:E141)))),0)) -> 284.7609135 | K142: =IFERROR(AVERAGE(OFFSET(E141,1,,-MIN(Bollinger_Band_Range_BB,COUNTA(E$32:E141)))-Standard_Deviation_BB*IFERROR(STDEV(OFFSET(E141,1,,-MIN(Bollinger_Band_Range_BB,COUNTA(E$32:E141)))),0)),0) -> 241.5766659 | N142: 110 | O142: =INDEX(Data_BB[Date],MATCH(N142,Data_BB[Index],0)) -> 2022-11-18 | P142: =MAX(IF(N142=Data_BB[Index],Data_BB[Adj Close],0),IF(N142=Data_BB[Lag Index U],Data_BB[Adj Close],0)) -> 247.580002 | Q142: =MIN(IF(N142=Data_BB[Index],Data_BB[Adj Close]),IF(N142=Data_BB[Lag Index U],Data_BB[Adj Close])) -> 241.220001 | R142: =MAX(IF(N142=Data_BB[Index],Data_BB[Upper Bollinger Band],0),IF(N142=Data_BB[Lag Index U],Data_BB[Upper Bollinger Band],0)) -> 264.6714371 | S142: =MIN(IF(N142=Data_BB[Index],Data_BB[Upper Bollinger Band]),IF(N142=Data_BB[Lag Index U],Data_BB[Upper Bollinger Band])) -> 262.3505584 | T142: =MAX(IF(N142=Data_BB[Index],Data_BB[Lower Bollinger Band],0),IF(N142=Data_BB[Lag Index U],Data_BB[Lower Bollinger Band],0)) -> 204.3307375 | U142: =MIN(IF(N142=Data_BB[Index],Data_BB[Lower Bollinger Band]),IF(N142=Data_BB[Lag Index U],Data_BB[Lower Bollinger Band])) -> 202.9529344
D143: 2022-06-10 | E143: 251.74469 | F143: =IF(Data_BB[[#This Row],[Adj Close]]<E144,TRUE,"") ->  | G143: =IF(F142=Data_BB[[#This Row],[Up]],0,1) -> 0 | H143: =SUM($G$33:G143) -> 61 | I143: 61 | J143: =AVERAGE(OFFSET(E142,1,,-MIN(Bollinger_Band_Range_BB,COUNTA(E$32:E142)))+Standard_Deviation_BB*IFERROR(STDEV(OFFSET(E142,1,,-MIN(Bollinger_Band_Range_BB,COUNTA(E$32:E142)))),0)) -> 285.0742717 | K143: =IFERROR(AVERAGE(OFFSET(E142,1,,-MIN(Bollinger_Band_Range_BB,COUNTA(E$32:E142)))-Standard_Deviation_BB*IFERROR(STDEV(OFFSET(E142,1,,-MIN(Bollinger_Band_Range_BB,COUNTA(E$32:E142)))),0)),0) -> 241.0875127 | N143: 111 | O143: =INDEX(Data_BB[Date],MATCH(N143,Data_BB[Index],0)) -> 2022-11-23 | P143: =MAX(IF(N143=Data_BB[Index],Data_BB[Adj Close],0),IF(N143=Data_BB[Lag Index U],Data_BB[Adj Close],0)) -> 247.580002 | Q143: =MIN(IF(N143=Data_BB[Index],Data_BB[Adj Close]),IF(N143=Data_BB[Lag Index U],Data_BB[Adj Close])) -> 240.330002 | R143: =MAX(IF(N143=Data_BB[Index],Data_BB[Upper Bollinger Band],0),IF(N143=Data_BB[Lag Index U],Data_BB[Upper Bollinger Band],0)) -> 267.4811411 | S143: =MIN(IF(N143=Data_BB[Index],Data_BB[Upper Bollinger Band]),IF(N143=Data_BB[Lag Index U],Data_BB[Upper Bollinger Band])) -> 264.6405037 | T143: =MAX(IF(N143=Data_BB[Index],Data_BB[Lower Bollinger Band],0),IF(N143=Data_BB[Lag Index U],Data_BB[Lower Bollinger Band],0)) -> 204.5694038 | U143: =MIN(IF(N143=Data_BB[Index],Data_BB[Lower Bollinger Band]),IF(N143=Data_BB[Lag Index U],Data_BB[Lower Bollinger Band])) -> 203.7317987
D144: 2022-06-13 | E144: 241.067505 | F144: =IF(Data_BB[[#This Row],[Adj Close]]<E145,TRUE,"") -> TRUE | G144: =IF(F143=Data_BB[[#This Row],[Up]],0,1) -> 1 | H144: =SUM($G$33:G144) -> 62 | I144: 61 | J144: =AVERAGE(OFFSET(E143,1,,-MIN(Bollinger_Band_Range_BB,COUNTA(E$32:E143)))+Standard_Deviation_BB*IFERROR(STDEV(OFFSET(E143,1,,-MIN(Bollinger_Band_Range_BB,COUNTA(E$32:E143)))),0)) -> 288.600288 | K144: =IFERROR(AVERAGE(OFFSET(E143,1,,-MIN(Bollinger_Band_Range_BB,COUNTA(E$32:E143)))-Standard_Deviation_BB*IFERROR(STDEV(OFFSET(E143,1,,-MIN(Bollinger_Band_Range_BB,COUNTA(E$32:E143)))),0)),0) -> 235.7451542 | N144: 112 | O144: =INDEX(Data_BB[Date],MATCH(N144,Data_BB[Index],0)) -> 2022-11-29 | P144: =MAX(IF(N144=Data_BB[Index],Data_BB[Adj Close],0),IF(N144=Data_BB[Lag Index U],Data_BB[Adj Close],0)) -> 255.139999 | Q144: =MIN(IF(N144=Data_BB[Index],Data_BB[Adj Close]),IF(N144=Data_BB[Lag Index U],Data_BB[Adj Close])) -> 240.330002 | R144: =MAX(IF(N144=Data_BB[Index],Data_BB[Upper Bollinger Band],0),IF(N144=Data_BB[Lag Index U],Data_BB[Upper Bollinger Band],0)) -> 270.7268667 | S144: =MIN(IF(N144=Data_BB[Index],Data_BB[Upper Bollinger Band]),IF(N144=Data_BB[Lag Index U],Data_BB[Upper Bollinger Band])) -> 267.4811411 | T144: =MAX(IF(N144=Data_BB[Index],Data_BB[Lower Bollinger Band],0),IF(N144=Data_BB[Lag Index U],Data_BB[Lower Bollinger Band],0)) -> 204.5694038 | U144: =MIN(IF(N144=Data_BB[Index],Data_BB[Lower Bollinger Band]),IF(N144=Data_BB[Lag Index U],Data_BB[Lower Bollinger Band])) -> 204.0847988
D145: 2022-06-14 | E145: 243.28653 | F145: =IF(Data_BB[[#This Row],[Adj Close]]<E146,TRUE,"") -> TRUE | G145: =IF(F144=Data_BB[[#This Row],[Up]],0,1) -> 0 | H145: =SUM($G$33:G145) -> 62 | I145: 62 | J145: =AVERAGE(OFFSET(E144,1,,-MIN(Bollinger_Band_Range_BB,COUNTA(E$32:E144)))+Standard_Deviation_BB*IFERROR(STDEV(OFFSET(E144,1,,-MIN(Bollinger_Band_Range_BB,COUNTA(E$32:E144)))),0)) -> 290.6474077 | K145: =IFERROR(AVERAGE(OFFSET(E144,1,,-MIN(Bollinger_Band_Range_BB,COUNTA(E$32:E144)))-Standard_Deviation_BB*IFERROR(STDEV(OFFSET(E144,1,,-MIN(Bollinger_Band_Range_BB,COUNTA(E$32:E144)))),0)),0) -> 232.0658721 | N145: 113 | O145: =INDEX(Data_BB[Date],MATCH(N145,Data_BB[Index],0)) -> 2022-11-30 | P145: =MAX(IF(N145=Data_BB[Index],Data_BB[Adj Close],0),IF(N145=Data_BB[Lag Index U],Data_BB[Adj Close],0)) -> 255.139999 | Q145: =MIN(IF(N145=Data_BB[Index],Data_BB[Adj Close]),IF(N145=Data_BB[Lag Index U],Data_BB[Adj Close])) -> 254.690002 | R145: =MAX(IF(N145=Data_BB[Index],Data_BB[Upper Bollinger Band],0),IF(N145=Data_BB[Lag Index U],Data_BB[Upper Bollinger Band],0)) -> 271.881004 | S145: =MIN(IF(N145=Data_BB[Index],Data_BB[Upper Bollinger Band]),IF(N145=Data_BB[Lag Index U],Data_BB[Upper Bollinger Band])) -> 270.7268667 | T145: =MAX(IF(N145=Data_BB[Index],Data_BB[Lower Bollinger Band],0),IF(N145=Data_BB[Lag Index U],Data_BB[Lower Bollinger Band],0)) -> 206.4515141 | U145: =MIN(IF(N145=Data_BB[Index],Data_BB[Lower Bollinger Band]),IF(N145=Data_BB[Lag Index U],Data_BB[Lower Bollinger Band])) -> 204.0847988
D146: 2022-06-15 | E146: 250.520737 | F146: =IF(Data_BB[[#This Row],[Adj Close]]<E147,TRUE,"") ->  | G146: =IF(F145=Data_BB[[#This Row],[Up]],0,1) -> 1 | H146: =SUM($G$33:G146) -> 63 | I146: 62 | J146: =AVERAGE(OFFSET(E145,1,,-MIN(Bollinger_Band_Range_BB,COUNTA(E$32:E145)))+Standard_Deviation_BB*IFERROR(STDEV(OFFSET(E145,1,,-MIN(Bollinger_Band_Range_BB,COUNTA(E$32:E145)))),0)) -> 290.6842385 | K146: =IFERROR(AVERAGE(OFFSET(E145,1,,-MIN(Bollinger_Band_Range_BB,COUNTA(E$32:E145)))-Standard_Deviation_BB*IFERROR(STDEV(OFFSET(E145,1,,-MIN(Bollinger_Band_Range_BB,COUNTA(E$32:E145)))),0)),0) -> 230.5921471 | N146: 114 | O146: =INDEX(Data_BB[Date],MATCH(N146,Data_BB[Index],0)) -> 2022-12-01 | P146: =MAX(IF(N146=Data_BB[Index],Data_BB[Adj Close],0),IF(N146=Data_BB[Lag Index U],Data_BB[Adj Close],0)) -> 255.020004 | Q146: =MIN(IF(N146=Data_BB[Index],Data_BB[Adj Close]),IF(N146=Data_BB[Lag Index U],Data_BB[Adj Close])) -> 254.690002 | R146: =MAX(IF(N146=Data_BB[Index],Data_BB[Upper Bollinger Band],0),IF(N146=Data_BB[Lag Index U],Data_BB[Upper Bollinger Band],0)) -> 271.881004 | S146: =MIN(IF(N146=Data_BB[Index],Data_BB[Upper Bollinger Band]),IF(N146=Data_BB[Lag Index U],Data_BB[Upper Bollinger Band])) -> 270.2230522 | T146: =MAX(IF(N146=Data_BB[Index],Data_BB[Lower Bollinger Band],0),IF(N146=Data_BB[Lag Index U],Data_BB[Lower Bollinger Band],0)) -> 212.246676 | U146: =MIN(IF(N146=Data_BB[Index],Data_BB[Lower Bollinger Band]),IF(N146=Data_BB[Lag Index U],Data_BB[Lower Bollinger Band])) -> 206.4515141
D147: 2022-06-16 | E147: 243.76416 | F147: =IF(Data_BB[[#This Row],[Adj Close]]<E148,TRUE,"") -> TRUE | G147: =IF(F146=Data_BB[[#This Row],[Up]],0,1) -> 1 | H147: =SUM($G$33:G147) -> 64 | I147: 63 | J147: =AVERAGE(OFFSET(E146,1,,-MIN(Bollinger_Band_Range_BB,COUNTA(E$32:E146)))+Standard_Deviation_BB*IFERROR(STDEV(OFFSET(E146,1,,-MIN(Bollinger_Band_Range_BB,COUNTA(E$32:E146)))),0)) -> 291.915166 | K147: =IFERROR(AVERAGE(OFFSET(E146,1,,-MIN(Bollinger_Band_Range_BB,COUNTA(E$32:E146)))-Standard_Deviation_BB*IFERROR(STDEV(OFFSET(E146,1,,-MIN(Bollinger_Band_Range_BB,COUNTA(E$32:E146)))),0)),0) -> 228.4547026 | N147: 115 | O147: =INDEX(Data_BB[Date],MATCH(N147,Data_BB[Index],0)) -> 2022-12-02 | P147: =MAX(IF(N147=Data_BB[Index],Data_BB[Adj Close],0),IF(N147=Data_BB[Lag Index U],Data_BB[Adj Close],0)) -> 255.020004 | Q147: =MIN(IF(N147=Data_BB[Index],Data_BB[Adj Close]),IF(N147=Data_BB[Lag Index U],Data_BB[Adj Close])) -> 244.369995 | R147: =MAX(IF(N147=Data_BB[Index],Data_BB[Upper Bollinger Band],0),IF(N147=Data_BB[Lag Index U],Data_BB[Upper Bollinger Band],0)) -> 270.2230522 | S147: =MIN(IF(N147=Data_BB[Index],Data_BB[Upper Bollinger Band]),IF(N147=Data_BB[Lag Index U],Data_BB[Upper Bollinger Band])) -> 264.9825471 | T147: =MAX(IF(N147=Data_BB[Index],Data_BB[Lower Bollinger Band],0),IF(N147=Data_BB[Lag Index U],Data_BB[Lower Bollinger Band],0)) -> 223.8337508 | U147: =MIN(IF(N147=Data_BB[Index],Data_BB[Lower Bollinger Band]),IF(N147=Data_BB[Lag Index U],Data_BB[Lower Bollinger Band])) -> 212.246676
D148: 2022-06-17 | E148: 246.430969 | F148: =IF(Data_BB[[#This Row],[Adj Close]]<E149,TRUE,"") -> TRUE | G148: =IF(F147=Data_BB[[#This Row],[Up]],0,1) -> 0 | H148: =SUM($G$33:G148) -> 64 | I148: 64 | J148: =AVERAGE(OFFSET(E147,1,,-MIN(Bollinger_Band_Range_BB,COUNTA(E$32:E147)))+Standard_Deviation_BB*IFERROR(STDEV(OFFSET(E147,1,,-MIN(Bollinger_Band_Range_BB,COUNTA(E$32:E147)))),0)) -> 292.5177218 | K148: =IFERROR(AVERAGE(OFFSET(E147,1,,-MIN(Bollinger_Band_Range_BB,COUNTA(E$32:E147)))-Standard_Deviation_BB*IFERROR(STDEV(OFFSET(E147,1,,-MIN(Bollinger_Band_Range_BB,COUNTA(E$32:E147)))),0)),0) -> 227.3058486 | N148: 116 | O148: =INDEX(Data_BB[Date],MATCH(N148,Data_BB[Index],0)) -> 2022-12-07 | P148: =MAX(IF(N148=Data_BB[Index],Data_BB[Adj Close],0),IF(N148=Data_BB[Lag Index U],Data_BB[Adj Close],0)) -> 247.399994 | Q148: =MIN(IF(N148=Data_BB[Index],Data_BB[Adj Close]),IF(N148=Data_BB[Lag Index U],Data_BB[Adj Close])) -> 244.369995 | R148: =MAX(IF(N148=Data_BB[Index],Data_BB[Upper Bollinger Band],0),IF(N148=Data_BB[Lag Index U],Data_BB[Upper Bollinger Band],0)) -> 264.9825471 | S148: =MIN(IF(N148=Data_BB[Index],Data_BB[Upper Bollinger Band]),IF(N148=Data_BB[Lag Index U],Data_BB[Upper Bollinger Band])) -> 260.2406649 | T148: =MAX(IF(N148=Data_BB[Index],Data_BB[Lower Bollinger Band],0),IF(N148=Data_BB[Lag Index U],Data_BB[Lower Bollinger Band],0)) -> 230.927725 | U148: =MIN(IF(N148=Data_BB[Index],Data_BB[Lower Bollinger Band]),IF(N148=Data_BB[Lag Index U],Data_BB[Lower Bollinger Band])) -> 223.8337508
D149: 2022-06-21 | E149: 252.490997 | F149: =IF(Data_BB[[#This Row],[Adj Close]]<E150,TRUE,"") ->  | G149: =IF(F148=Data_BB[[#This Row],[Up]],0,1) -> 1 | H149: =SUM($G$33:G149) -> 65 | I149: 64 | J149: =AVERAGE(OFFSET(E148,1,,-MIN(Bollinger_Band_Range_BB,COUNTA(E$32:E148)))+Standard_Deviation_BB*IFERROR(STDEV(OFFSET(E148,1,,-MIN(Bollinger_Band_Range_BB,COUNTA(E$32:E148)))),0)) -> 292.4390416 | K149: =IFERROR(AVERAGE(OFFSET(E148,1,,-MIN(Bollinger_Band_Range_BB,COUNTA(E$32:E148)))-Standard_Deviation_BB*IFERROR(STDEV(OFFSET(E148,1,,-MIN(Bollinger_Band_Range_BB,COUNTA(E$32:E148)))),0)),0) -> 227.5019482 | N149: 117 | O149: =INDEX(Data_BB[Date],MATCH(N149,Data_BB[Index],0)) -> 2022-12-08 | P149: =MAX(IF(N149=Data_BB[Index],Data_BB[Adj Close],0),IF(N149=Data_BB[Lag Index U],Data_BB[Adj Close],0)) -> 247.399994 | Q149: =MIN(IF(N149=Data_BB[Index],Data_BB[Adj Close]),IF(N149=Data_BB[Lag Index U],Data_BB[Adj Close])) -> 245.419998 | R149: =MAX(IF(N149=Data_BB[Index],Data_BB[Upper Bollinger Band],0),IF(N149=Data_BB[Lag Index U],Data_BB[Upper Bollinger Band],0)) -> 260.2406649 | S149: =MIN(IF(N149=Data_BB[Index],Data_BB[Upper Bollinger Band]),IF(N149=Data_BB[Lag Index U],Data_BB[Upper Bollinger Band])) -> 260.2136209 | T149: =MAX(IF(N149=Data_BB[Index],Data_BB[Lower Bollinger Band],0),IF(N149=Data_BB[Lag Index U],Data_BB[Lower Bollinger Band],0)) -> 231.2670523 | U149: =MIN(IF(N149=Data_BB[Index],Data_BB[Lower Bollinger Band]),IF(N149=Data_BB[Lag Index U],Data_BB[Lower Bollinger Band])) -> 230.927725
D150: 2022-06-22 | E150: 251.884003 | F150: =IF(Data_BB[[#This Row],[Adj Close]]<E151,TRUE,"") -> TRUE | G150: =IF(F149=Data_BB[[#This Row],[Up]],0,1) -> 1 | H150: =SUM($G$33:G150) -> 66 | I150: 65 | J150: =AVERAGE(OFFSET(E149,1,,-MIN(Bollinger_Band_Range_BB,COUNTA(E$32:E149)))+Standard_Deviation_BB*IFERROR(STDEV(OFFSET(E149,1,,-MIN(Bollinger_Band_Range_BB,COUNTA(E$32:E149)))),0)) -> 292.5156818 | K150: =IFERROR(AVERAGE(OFFSET(E149,1,,-MIN(Bollinger_Band_Range_BB,COUNTA(E$32:E149)))-Standard_Deviation_BB*IFERROR(STDEV(OFFSET(E149,1,,-MIN(Bollinger_Band_Range_BB,COUNTA(E$32:E149)))),0)),0) -> 226.6770109 | N150: 118 | O150: =INDEX(Data_BB[Date],MATCH(N150,Data_BB[Index],0)) -> 2022-12-09 | P150: =MAX(IF(N150=Data_BB[Index],Data_BB[Adj Close],0),IF(N150=Data_BB[Lag Index U],Data_BB[Adj Close],0)) -> 257.220001 | Q150: =MIN(IF(N150=Data_BB[Index],Data_BB[Adj Close]),IF(N150=Data_BB[Lag Index U],Data_BB[Adj Close])) -> 245.419998 | R150: =MAX(IF(N150=Data_BB[Index],Data_BB[Upper Bollinger Band],0),IF(N150=Data_BB[Lag Index U],Data_BB[Upper Bollinger Band],0)) -> 264.8965673 | S150: =MIN(IF(N150=Data_BB[Index],Data_BB[Upper Bollinger Band]),IF(N150=Data_BB[Lag Index U],Data_BB[Upper Bollinger Band])) -> 260.2136209 | T150: =MAX(IF(N150=Data_BB[Index],Data_BB[Lower Bollinger Band],0),IF(N150=Data_BB[Lag Index U],Data_BB[Lower Bollinger Band],0)) -> 231.2670523 | U150: =MIN(IF(N150=Data_BB[Index],Data_BB[Lower Bollinger Band]),IF(N150=Data_BB[Lag Index U],Data_BB[Lower Bollinger Band])) -> 230.3914316
